Workbook

Sheet Kom godt i gang
B1: LÆS NEDENSTÅENDE OMHYGGELIGT!
B2: Ændringer siden version 4.0
B4: Der er tilføjet et kort over Danmark så det kan checkes om koordinaterne er korrekte.
B5: Der er tilføjet muligheden for at kunne beregne en intensitet for vilkårlig varighed
B6: Der anvendes andre og bedre data til at beregne årsmiddelnedbøren (Celle B5). Det giver lidt andre resultater, men ændringerne er små i forhold til usikkerheden.
B7: Dokumentation for ændringer er publiceret i EVA-blad 4, dec. 2016 og kan downloades via www.evanet.dk
B9: Generelt
B10: SVK Regndata svarende til Skrift 30 er anvendt.
B11: For at kunne anvendes på flere udgaver af excel er der udviklet en simpel solver til version 3.2. Den anvendes stadig,
B12: hvilket betyder, at man ikke skal installere Excels indbyggede solverfunktioner.
B13: Bemærk, at regnearket anvender meget simple antagelser. Benyt mere avancerede metoder såfremt der er tale om komplicerede anvendelser.
B14: Hvis ikke makroer aktiveres kan regnearket ikke regne rigtigt!!!
B15: Enhver anvendelse af programmet sker uden ansvar for udvikler(e) og udgivere.

Sheet Beregn
A1: Regnkurve karakteristika | G1: Ledningsdimensionering | M1: Bassindimensionering opstrøms udløb | T1: Regression | AD1: Sæt optimering i gang
G2: CDS karakteristika | M2: Oplandskarakteristika | AD2: Initdummy
A3: Northing (WGS84 ZONE 32) | B3: 6140000 | G3: CDS-regn varighed (min) | I3: 240 | J3: =IF(OR(I3<1,I3>2880)," Fejl: Indtast storm varighed i intervallet 1 - 2880 min"," ") ->  | M3: Befæstet areal (ha) | Q3: 5 | T3: Estimates, 3 parameters: | AD3: =initdummy(B3,B4,B8,B9,B10,I3,I4,I5,Q3,Q4,Q5) -> 1
A4: Easting (WGS84 ZONE 32) | B4: 589900 | G4: Tidsskridt (min) | I4: 1 | J4: =IF(OR(I4<1,I4>I3),CONCATENATE(" Fejl: Indtast tidsskridt i intervallet 1 - ",I3," min")," ") ->  | M4: Hydrologisk reduktionsfaktor (-) | Q4: 1 | T4: Alpha | U4: =EXP(X22/11+U7*W22/11) -> 137.3108733
A5: Årsmiddelnedbør [mm] | B5: =MAP!H4 -> 675.696197 | C5: Beregnes ud fra N og E koordinater | G5: Asymmetri koefficient | I5: 0.5 | J5: =IF(OR(I5<0,I5>1)," Fejl: Indtast Asymmetri koefficient I intervallet 0-1"," ") ->  | M5: Afskærende lednings kapacitet (l/s) | Q5: 10 | T5: Theta | U5: =AD11 -> 4.743348089 | AD5: idftheta | AE5: theta
A6: Middelværdi ekstrem døgnnedbør DMI Klimagrid [mm/dag] | B6: ='CGD mean'!H4 -> 25.79561857 | C6: Beregnes ud fra N og E koordinater
T7: Nu | U7: =-(Z22-W22*X22/11)/(Y22-W22^2/11) -> 0.763228732 | AD7: =idftheta(AE7) -> 0.2213827898 | AE7: 1
A8: Gentagelsesperiode (år) | B8: 5 | C8: =IF(B8<1/help1!C11,CONCATENATE(" Fejl: Indtast gentagelsesperiode > ",ROUND(1/help1!C11,2)," år")," ") ->  | M8: NB. Frekvens- og sikkerhedsfaktorer på regnen | AD8: derividf | AE8: x
A9: Sikkerhedsfaktor (Fra Skrift 27) | B9: 1 | C9: Defineret i Skrift 27, Faktor til beskrivelse af usikkerhed, klima, mv. Typisk 1.0 - 1.8 | M9: indgår ved beregning af bassinvolumen | T9: Dur (min) | U9: Intensity | V9: ln(dur) | W9: ln(dur+Theta) | X9: ln(int) | Y9: ln(dur+Theta)^2 | Z9: ln(dur+Theta)*ln(int) | AA9: Est. Intensity | AB9: Obj.Func | AD9: =derividf(AE9) -> -0.1977270659 | AE9: =AE7 -> 1
T10: =Beregn!A18 -> 1 | U10: =Beregn!D18 -> 36.0711336 | V10: =LN(T10) -> 0 | W10: =LN(T10+$U$5) -> 1.748042331 | X10: =LN(U10) -> 3.585492922 | Y10: =W10^2 -> 3.055651991 | Z10: =W10*X10 -> 6.267593406 | AA10: =$U$4*(T10+$U$5)^(-$U$7) -> 36.16498448 | AB10: =(LN(U10)-LN(AA10))^2 -> 6.751937805e-06 | AD10: bisectidf | AE10: min | AF10: max | AG10: middel | AH10: tiny
A11: Varighed (min) | B11: Intensitet givet ovenstående input (mm/s) | T11: =Beregn!A19 -> 2 | U11: =Beregn!D19 -> 31.92001151 | V11: =LN(T11) -> 0.6931471806 | W11: 1.908556551 | X11: 3.463233133 | Y11: 3.642588107 | Z11: 6.609776283 | AA11: 31.99508531 | AB11: =(LN(U11)-LN(AA11))^2 -> 5.518617443e-06 | AD11: =bisectidf(AE11,AF11,AG11,AH11) -> 4.743348089 | AE11: 0 | AF11: 60 | AG11: =(AE11+AF11)/2 -> 30 | AH11: =AD3/100000 -> 1e-05
A12: 20 | B12: =Beregn!$U$4*(A12+Beregn!$U$5)^(-Beregn!$U$7) -> 11.86253186 | T12: =Beregn!A20 -> 5 | U12: =Beregn!D20 -> 24.19146741 | V12: 1.609437912 | W12: 2.276584805 | X12: 3.185999984 | Y12: 5.182838374 | Z12: 7.253199153 | AA12: 24.15985978 | AB12: 1.709334789e-06
T13: =Beregn!A21 -> 10 | U13: =Beregn!D21 -> 17.78440228 | V13: 2.302585093 | W13: 2.690792004 | X13: 2.878321797 | Y13: 7.240361609 | Z13: 7.744965276 | AA13: 17.61159926 | AB13: 9.533693067e-05
A14: Design regnkurve | G14: CDS regn | M14: Volumen af bassin | T14: =Beregn!A22 -> 30 | U14: =Beregn!D22 -> 9.195893362 | V14: 3.401197382 | W14: 3.547988132 | X14: 2.218757011 | Y14: 12.58821978 | Z14: 7.872123541 | AA14: 9.15519081 | AB14: 1.967801215e-05
G15: =IF(AB22>0.1,"Dårlig optimering, check regnkurven for fejl"," ") ->  | M15: =Q24*Q27*12 -> 1819.566797 | N15: m3 | O15: =IF(Y27>0.1,"ADVARSEL: Programmet har muligvis ikke optimeret korrekt"," ") ->  | T15: =Beregn!A23 -> 60 | U15: =Beregn!D23 -> 5.664894742 | V15: 4.094344562 | W15: 4.170430963 | X15: 1.734288314 | Y15: 17.39249442 | Z15: 7.232729683 | AA15: 5.693099157 | AB15: 2.466565834e-05
A16: Varighed | B16: zT | C16: S{zT} | D16: f*zT | E16: Regression | G16: Tid | H16: Intensitet | M16: Effekten af koblede regn ER inkluderet (20 % ekstra volumen) | T16: =Beregn!A24 -> 180 | U16: =Beregn!D24 -> 2.535211539 | V16: 5.192956851 | W16: 5.218967554 | X16: 0.9302770807 | Y16: 27.23762233 | Z16: 4.855085901 | AA16: 2.557375441 | AB16: 7.576716404e-05
A17: (min) | B17: (mm/s) | C17: (mm/s) | D17: (mm/s) | E17: (mm/s) | G17: (min) | H17: (mm/s) | J17: Plot af CDS regn: | T17: =Beregn!A25 -> 360 | U17: =Beregn!D25 -> 1.524918782 | V17: 5.886104031 | W17: 5.89919395 | X17: 0.4219411511 | Y17: 34.80048926 | Z17: 2.489112686 | AA17: 1.521677256 | AB17: 4.528241627e-06
A18: 1 | B18: =help1!B17 -> 36.0711336 | C18: =help1!C17 -> 3.264572061 | D18: =$B$9*B18 -> 36.0711336 | E18: =Beregn!$U$4*(A18+Beregn!$U$5)^(-Beregn!$U$7) -> 36.16498448 | G18: 0 | H18: =help2!G3 -> 0.5190645357 | J18: Tilpas SERIE(..) i CDS regn | T18: =Beregn!A26 -> 720 | U18: =Beregn!D26 -> 0.8971199496 | V18: 6.579251212 | W18: 6.58581759 | X18: -0.1085657028 | Y18: 43.37299332 | Z18: -0.7149939154 | AA18: 0.9010110971 | AB18: 1.873156533e-05
A19: 2 | B19: =help1!B18 -> 31.92001151 | C19: =help1!C18 -> 2.682646034 | D19: =$B$9*B19 -> 31.92001151 | E19: =Beregn!$U$4*(A19+Beregn!$U$5)^(-Beregn!$U$7) -> 31.99508531 | G19: =G18+help2!$C$3 -> 1 | H19: =help2!G4 -> 0.5225785162 | J19: =CONCATENATE("til at plotte fra H",ROW( H18)," til H",COUNT(H18:H2897)+ROW(H18)-1) -> til at plotte fra H18 til H257 | T19: =Beregn!A27 -> 1440 | U19: =Beregn!D27 -> 0.5292572108 | V19: 7.272398393 | W19: 7.275686971 | X19: -0.6362807445 | Y19: 52.9356209 | Z19: -4.629379523 | AA19: 0.532184078 | AB19: 3.041419094e-05
A20: 5 | B20: =help1!B19 -> 24.19146741 | C20: =help1!C19 -> 1.615589639 | D20: 24.19146741 | E20: =Beregn!$U$4*(A20+Beregn!$U$5)^(-Beregn!$U$7) -> 24.15985978 | G20: =G19+help2!$C$3 -> 2 | H20: =help2!G5 -> 0.5261476548 | T20: =Beregn!A28 -> 2880 | U20: =Beregn!D28 -> 0.3173608683 | V20: 7.965545573 | W20: 7.967191214 | X20: -1.147715767 | Y20: 63.47613584 | Z20: -9.144070973 | AA20: 0.3139436572 | AB20: 0.0001172018048
A21: 10 | B21: =help1!B20 -> 17.78440228 | C21: =help1!C20 -> 1.350287584 | D21: 17.78440228 | E21: =Beregn!$U$4*(A21+Beregn!$U$5)^(-Beregn!$U$7) -> 17.61159926 | G21: =G20+help2!$C$3 -> 3 | H21: =help2!G6 -> 0.529773314 | M21: Mellemresultater svarende til Skrift 16
A22: 30 | B22: =help1!B21 -> 9.195893362 | C22: =help1!C21 -> 0.8645784332 | D22: 9.195893362 | E22: =Beregn!$U$4*(A22+Beregn!$U$5)^(-Beregn!$U$7) -> 9.15519081 | G22: =G21+help2!$C$3 -> 4 | H22: =help2!G7 -> 0.5334569025 | M22: Dvs. at effekt af koblede regn IKKE er indkluderet | U22: Sum | W22: =SUM(W10:W20) -> 49.28925206 | X22: =SUM(X10:X20) -> 16.52574918 | Y22: =SUM(Y10:Y20) -> 270.9250159 | Z22: =SUM(Z10:Z20) -> 35.83614152 | AB22: =SUM(AB10:AB20) -> 0.000400303458
A23: 60 | B23: =help1!B22 -> 5.664894742 | C23: =help1!C22 -> 0.6306782311 | D23: 5.664894742 | E23: =Beregn!$U$4*(A23+Beregn!$U$5)^(-Beregn!$U$7) -> 5.693099157 | G23: =G22+help2!$C$3 -> 5 | H23: =help2!G8 -> 0.5371998772 | M23: i mellemresultaterne.
A24: 180 | B24: =help1!B23 -> 2.535211539 | C24: =help1!C23 -> 0.2351960424 | D24: 2.535211539 | E24: =Beregn!$U$4*(A24+Beregn!$U$5)^(-Beregn!$U$7) -> 2.557375441 | G24: =G23+help2!$C$3 -> 6 | H24: =help2!G9 -> 0.5410037448 | M24: Reduceret areal (ha) | Q24: =Q3*Q4 -> 5
A25: 360 | B25: =help1!B24 -> 1.524918782 | C25: =help1!C24 -> 0.1046197731 | D25: 1.524918782 | E25: =Beregn!$U$4*(A25+Beregn!$U$5)^(-Beregn!$U$7) -> 1.521677256 | G25: =G24+help2!$C$3 -> 7 | H25: =help2!G10 -> 0.5448700647 | M25: Afløbstal (mu-m/s | Q25: =Q5/(Q24*10) -> 0.2 | V25: Afløbstal | W25: tr, 3 par | X25: Vr,k 3 par | Y25: dV/dt | Z25: (dV/dt)^2 | AD25: dbasvol | AE25: alpha | AF25: nu | AG25: theta | AH25: t | AI25: a
A26: 720 | B26: =help1!B25 -> 0.8971199496 | C26: =help1!C25 -> 0.06634352532 | D26: 0.8971199496 | E26: =Beregn!$U$4*(A26+Beregn!$U$5)^(-Beregn!$U$7) -> 0.9010110971 | G26: =G25+help2!$C$3 -> 8 | H26: =help2!G11 -> 0.5488004507 | M26: Varighed (h) | Q26: =W27/60 -> 13.19753509 | V26: mu-m/s | W26: 1153.531525 | X26: (mm) | Y26: ( … ) | Z26: ( … ) | AD26: =dbasvol(AE26,AF26,AG26,AH26,AI26) -> 0.03603716597 | AE26: =U4 -> 137.3108733 | AF26: =U7 -> 0.763228732 | AG26: =AE7 -> 1 | AH26: 638 | AI26: =V27 -> 0.2
A27: 1440 | B27: =help1!B26 -> 0.5292572108 | C27: =help1!C26 -> 0.03696115832 | D27: 0.5292572108 | E27: =Beregn!$U$4*(A27+Beregn!$U$5)^(-Beregn!$U$7) -> 0.532184078 | G27: =G26+help2!$C$3 -> 9 | H27: =help2!G12 -> 0.5527965738 | M27: Vr,k (mm) | Q27: =X27 -> 30.32611329 | T27: Faktisk opland | V27: =Q25 -> 0.2 | W27: =AD28 -> 791.8521054 | X27: =(U$4*(W27+U$5)^(-U$7)-V27)*W27*60/1000 -> 30.32611329 | Y27: =$U$4*(W27+$U$5)^(-1-$U$7)*(W27+$U$5-$U$7*W27)-V27 -> 0.002293934596 | Z27: =SQRT(Y27^2) -> 0.002293934596 | AD27: bisectvol | AE27: xl | AF27: xr | AG27: xmid | AH27: tiny
A28: 2880 | B28: =help1!B27 -> 0.3173608683 | C28: =help1!C27 -> 0.02374780579 | D28: =$B$9*B28 -> 0.3173608683 | E28: =Beregn!$U$4*(A28+Beregn!$U$5)^(-Beregn!$U$7) -> 0.3139436572 | G28: =G27+help2!$C$3 -> 10 | H28: =help2!G13 -> 0.5568601646 | T28: Initialisering | W28: =(U$4*(1-U$7)/V27)^(1/U$7) -> 788.6942476 | AD28: =bisectvol(AE28,AF28,AG28,AH28,AE26,AF26,AG26,AI26) -> 791.8521054 | AE28: =0.3*W28 -> 236.6082743 | AF28: =3*W28 -> 2366.082743 | AG28: =(AE28+AF28)/2 -> 1301.345509 | AH28: =AD3/100000 -> 1e-05
G29: =G28+help2!$C$3 -> 11 | H29: =help2!G14 -> 0.560993016
G30: =G29+help2!$C$3 -> 12 | H30: =help2!G15 -> 0.5651969863 | X30: Tilnærmet volumenkurve excl koblede regn. Tilnærmelsen er god op til ca. T=5 år
G31: =G30+help2!$C$3 -> 13 | H31: =help2!G16 -> 0.5694740018 | T31: Volumenkurve | V31: 0.01 | W31: =(U$4*(1-U$7)/V31)^(1/U$7) -> 39952.90585 | X31: =(U$4*(W31+U$5)^(-U$7)-V31)*W31*60/1000 -> 77.26339277
G32: =G31+help2!$C$3 -> 14 | H32: =help2!G17 -> 0.5738260605 | T32: Tilnærmet for store afløbstal | V32: =V31*1.2 -> 0.012 | W32: 31463.22713 | X32: 73.01229557
G33: =G32+help2!$C$3 -> 15 | H33: =help2!G18 -> 0.5782552349 | V33: 0.0144 | W33: 24777.53846 | X33: 68.99450108
G34: =G33+help2!$C$3 -> 16 | H34: =help2!G19 -> 0.5827636762 | V34: 0.01728 | W34: 19512.50613 | X34: 65.19708644
G35: =G34+help2!$C$3 -> 17 | H35: =help2!G20 -> 0.5873536175 | V35: 0.020736 | W35: 15366.25182 | X35: 61.60782077
G36: =G35+help2!$C$3 -> 18 | H36: =help2!G21 -> 0.592027378 | V36: 0.0248832 | W36: 12101.04399 | X36: 58.21512346
G37: =G36+help2!$C$3 -> 19 | H37: =help2!G22 -> 0.5967873675 | V37: 0.02985984 | W37: 9529.667176 | X37: 55.00802394
G38: =G37+help2!$C$3 -> 20 | H38: =help2!G23 -> 0.6016360904 | V38: 0.035831808 | W38: 7504.687743 | X38: 51.97612287
G39: =G38+help2!$C$3 -> 21 | H39: =help2!G24 -> 0.6065761509 | V39: 0.0429981696 | W39: 5910.000536 | X39: 49.1095544
G40: =G39+help2!$C$3 -> 22 | H40: =help2!G25 -> 0.6116102577 | V40: 0.05159780352 | W40: 4654.171836 | X40: 46.3989493
G41: =G40+help2!$C$3 -> 23 | H41: =help2!G26 -> 0.6167412294 | V41: 0.06191736422 | W41: 3665.196873 | X41: 43.83539866
G42: =G41+help2!$C$3 -> 24 | H42: =help2!G27 -> 0.6219720006 | V42: 0.07430083707 | W42: 2886.371322 | X42: 41.41041795
G43: =G42+help2!$C$3 -> 25 | H43: =help2!G28 -> 0.6273056274 | V43: 0.08916100448 | W43: 2273.040084 | X43: 39.11591103
G44: =G43+help2!$C$3 -> 26 | H44: =help2!G29 -> 0.632745294 | V44: 0.1 | W44: 1955.803238 | X44: 37.73547446
G45: =G44+help2!$C$3 -> 27 | H45: =help2!G30 -> 0.6382943198 | V45: 0.12 | W45: 1540.21041 | X45: 35.63709908
G46: =G45+help2!$C$3 -> 28 | H46: =help2!G31 -> 0.6439561664 | V46: 0.144 | W46: 1212.927794 | X46: 33.64949504
G47: =G46+help2!$C$3 -> 29 | H47: =help2!G32 -> 0.6497344453 | V47: 0.1728 | W47: 955.1901635 | X47: 31.765666
G48: =G47+help2!$C$3 -> 30 | H48: =help2!G33 -> 0.6556329268 | V48: 0.20736 | W48: 752.2197554 | X48: 29.97882919
G49: =G48+help2!$C$3 -> 31 | H49: =help2!G34 -> 0.6616555478 | V49: 0.248832 | W49: 592.378965 | X49: 28.28237445
G50: =G49+help2!$C$3 -> 32 | H50: =help2!G35 -> 0.6678064224 | V50: 0.2985984 | W50: 466.5030872 | X50: 26.66982218
G51: =G50+help2!$C$3 -> 33 | H51: =help2!G36 -> 0.674089851 | V51: 0.35831808 | W51: 367.3748449 | X51: 25.13478099
G52: =G51+help2!$C$3 -> 34 | H52: =help2!G37 -> 0.6805103318 | V52: 0.429981696 | W52: 289.3105755 | X52: 23.670906
G53: =G52+help2!$C$3 -> 35 | H53: =help2!G38 -> 0.687072572 | V53: 0.5159780352 | W53: 227.8343503 | X53: 22.27186043
G54: =G53+help2!$C$3 -> 36 | H54: =help2!G39 -> 0.6937815003 | V54: 0.6191736422 | W54: 179.4213402 | X54: 20.93128376
G55: =G54+help2!$C$3 -> 37 | H55: =help2!G40 -> 0.7006422802 | V55: 0.7430083707 | W55: 141.2957145 | X55: 19.64277232
G56: =G55+help2!$C$3 -> 38 | H56: =help2!G41 -> 0.7076603241 | V56: 1 | W56: 95.74187971 | X56: 17.63826969
G57: =G56+help2!$C$3 -> 39 | H57: =help2!G42 -> 0.7148413089 | V57: 1.2 | W57: 75.39748219 | X57: 16.45590365
G58: =G57+help2!$C$3 -> 40 | H58: =help2!G43 -> 0.7221911922 | V58: 1.44 | W58: 59.37610936 | X58: 15.30239688
G59: =G58+help2!$C$3 -> 41 | H59: =help2!G44 -> 0.7297162299 | V59: 1.728 | W59: 46.75915243 | X59: 14.17182464
G60: =G59+help2!$C$3 -> 42 | H60: =help2!G45 -> 0.7374229958 | V60: 2.0736 | W60: 36.82319977 | X60: 13.05889823
G61: =G60+help2!$C$3 -> 43 | H61: =help2!G46 -> 0.7453184014 | V61: 2.48832 | W61: 28.99855901 | X61: 11.95935862
G62: =G61+help2!$C$3 -> 44 | H62: =help2!G47 -> 0.7534097188 | V62: 2.985984 | W62: 22.83659296 | X62: 10.87046693
G63: =G62+help2!$C$3 -> 45 | H63: =help2!G48 -> 0.7617046041 | V63: 3.5831808 | W63: 17.9839963 | X63: 9.791553084
G64: =G63+help2!$C$3 -> 46 | H64: =help2!G49 -> 0.7702111235 | V64: 4.29981696 | W64: 14.16253833 | X64: 8.724541463
G65: =G64+help2!$C$3 -> 47 | H65: =help2!G50 -> 0.7789377813 | V65: =V64*1.2 -> 5.159780352 | W65: 11.15311016 | X65: 7.67432656
G66: =G65+help2!$C$3 -> 48 | H66: =help2!G51 -> 0.7878935504 | V66: =V65*1.2 -> 6.191736422 | W66: 8.783161842 | X66: 6.648842912
G67: =G66+help2!$C$3 -> 49 | H67: =help2!G52 -> 0.7970879048 | V67: =V66*1.2 -> 7.430083707 | W67: 6.916808929 | X67: 5.658687567
G68: =G67+help2!$C$3 -> 50 | H68: =help2!G53 -> 0.8065308558 | V68: =V67*1.2 -> 8.916100448 | W68: 5.447041353 | X68: 4.716231254
G69: =G68+help2!$C$3 -> 51 | H69: =help2!G54 -> 0.8162329906 | V69: 10 | W69: 4.68682501 | X69: 4.153424461
G70: =G69+help2!$C$3 -> 52 | H70: =help2!G55 -> 0.8262055146
G71: =G70+help2!$C$3 -> 53 | H71: =help2!G56 -> 0.8364602974
G72: =G71+help2!$C$3 -> 54 | H72: =help2!G57 -> 0.8470099232
G73: =G72+help2!$C$3 -> 55 | H73: =help2!G58 -> 0.8578677456
G74: =G73+help2!$C$3 -> 56 | H74: =help2!G59 -> 0.8690479478
G75: =G74+help2!$C$3 -> 57 | H75: =help2!G60 -> 0.880565608
G76: =G75+help2!$C$3 -> 58 | H76: =help2!G61 -> 0.892436772
G77: =G76+help2!$C$3 -> 59 | H77: =help2!G62 -> 0.9046785321
G78: =G77+help2!$C$3 -> 60 | H78: =help2!G63 -> 0.9173091147
G79: =G78+help2!$C$3 -> 61 | H79: =help2!G64 -> 0.9303479756
G80: =G79+help2!$C$3 -> 62 | H80: =help2!G65 -> 0.9438159071
G81: =G80+help2!$C$3 -> 63 | H81: =help2!G66 -> 0.9577351541
G82: =G81+help2!$C$3 -> 64 | H82: =help2!G67 -> 0.9721295446
G83: =G82+help2!$C$3 -> 65 | H83: =help2!G68 -> 0.9870246333
G84: =G83+help2!$C$3 -> 66 | H84: =help2!G69 -> 1.002447862
G85: =G84+help2!$C$3 -> 67 | H85: =help2!G70 -> 1.018428736
G86: =G85+help2!$C$3 -> 68 | H86: =help2!G71 -> 1.034999026
G87: =G86+help2!$C$3 -> 69 | H87: =help2!G72 -> 1.052192986
G88: =G87+help2!$C$3 -> 70 | H88: =help2!G73 -> 1.070047607
G89: =G88+help2!$C$3 -> 71 | H89: =help2!G74 -> 1.088602891
G90: =G89+help2!$C$3 -> 72 | H90: =help2!G75 -> 1.107902168
G91: =G90+help2!$C$3 -> 73 | H91: =help2!G76 -> 1.12799245
G92: =G91+help2!$C$3 -> 74 | H92: =help2!G77 -> 1.148924833
G93: =G92+help2!$C$3 -> 75 | H93: =help2!G78 -> 1.170754946
G94: =G93+help2!$C$3 -> 76 | H94: =help2!G79 -> 1.193543473
G95: =G94+help2!$C$3 -> 77 | H95: =help2!G80 -> 1.217356737
G96: =G95+help2!$C$3 -> 78 | H96: =help2!G81 -> 1.242267371
G97: =G96+help2!$C$3 -> 79 | H97: =help2!G82 -> 1.268355091
G98: =G97+help2!$C$3 -> 80 | H98: =help2!G83 -> 1.295707581
G99: =G98+help2!$C$3 -> 81 | H99: =help2!G84 -> 1.324421512
G100: =G99+help2!$C$3 -> 82 | H100: =help2!G85 -> 1.354603725
G101: =G100+help2!$C$3 -> 83 | H101: =help2!G86 -> 1.386372607
G102: =G101+help2!$C$3 -> 84 | H102: =help2!G87 -> 1.419859691
G103: =G102+help2!$C$3 -> 85 | H103: =help2!G88 -> 1.45521153
G104: =G103+help2!$C$3 -> 86 | H104: =help2!G89 -> 1.492591905
G105: =G104+help2!$C$3 -> 87 | H105: =help2!G90 -> 1.53218443
G106: =G105+help2!$C$3 -> 88 | H106: =help2!G91 -> 1.574195636
G107: =G106+help2!$C$3 -> 89 | H107: =help2!G92 -> 1.61885866
G108: =G107+help2!$C$3 -> 90 | H108: =help2!G93 -> 1.666437658
G109: =G108+help2!$C$3 -> 91 | H109: =help2!G94 -> 1.717233123
G110: =G109+help2!$C$3 -> 92 | H110: =help2!G95 -> 1.771588335
G111: =G110+help2!$C$3 -> 93 | H111: =help2!G96 -> 1.829897226
G112: =G111+help2!$C$3 -> 94 | H112: =help2!G97 -> 1.892614033
G113: =G112+help2!$C$3 -> 95 | H113: =help2!G98 -> 1.960265241
G114: =G113+help2!$C$3 -> 96 | H114: =help2!G99 -> 2.033464451
G115: =G114+help2!$C$3 -> 97 | H115: =help2!G100 -> 2.112931066
G116: =G115+help2!$C$3 -> 98 | H116: =help2!G101 -> 2.199513953
G117: =G116+help2!$C$3 -> 99 | H117: =help2!G102 -> 2.29422171
G118: =G117+help2!$C$3 -> 100 | H118: =help2!G103 -> 2.398261768
G119: =G118+help2!$C$3 -> 101 | H119: =help2!G104 -> 2.513091461
G120: =G119+help2!$C$3 -> 102 | H120: =help2!G105 -> 2.640485539
G121: =G120+help2!$C$3 -> 103 | H121: =help2!G106 -> 2.782626585
G122: =G121+help2!$C$3 -> 104 | H122: =help2!G107 -> 2.942227869
G123: =G122+help2!$C$3 -> 105 | H123: =help2!G108 -> 3.122702903
G124: =G123+help2!$C$3 -> 106 | H124: =help2!G109 -> 3.328403621
G125: =G124+help2!$C$3 -> 107 | H125: =help2!G110 -> 3.564961495
G126: =G125+help2!$C$3 -> 108 | H126: =help2!G111 -> 3.839786887
G127: =G126+help2!$C$3 -> 109 | H127: =help2!G112 -> 4.162818227
G128: =G127+help2!$C$3 -> 110 | H128: =help2!G113 -> 4.547677925
G129: =G128+help2!$C$3 -> 111 | H129: =help2!G114 -> 5.013514088
G130: =G129+help2!$C$3 -> 112 | H130: =help2!G115 -> 5.588046355
G131: =G130+help2!$C$3 -> 113 | H131: =help2!G116 -> 6.312828657
G132: =G131+help2!$C$3 -> 114 | H132: =help2!G117 -> 7.252830174
G133: =G132+help2!$C$3 -> 115 | H133: =help2!G118 -> 8.515020865
G134: =G133+help2!$C$3 -> 116 | H134: =help2!G119 -> 10.28738707
G135: =G134+help2!$C$3 -> 117 | H135: =help2!G120 -> 12.92956492
G136: =G135+help2!$C$3 -> 118 | H136: =help2!G121 -> 17.21392587
G137: =G136+help2!$C$3 -> 119 | H137: =help2!G122 -> 25.10323133
G138: =G137+help2!$C$3 -> 120 | H138: =help2!G123 -> 36.16498448
G139: =G138+help2!$C$3 -> 121 | H139: =help2!G124 -> 25.10323133
G140: =G139+help2!$C$3 -> 122 | H140: =help2!G125 -> 17.21392587
G141: =G140+help2!$C$3 -> 123 | H141: =help2!G126 -> 12.92956492
G142: =G141+help2!$C$3 -> 124 | H142: =help2!G127 -> 10.28738707
G143: =G142+help2!$C$3 -> 125 | H143: =help2!G128 -> 8.515020865
G144: =G143+help2!$C$3 -> 126 | H144: =help2!G129 -> 7.252830174
G145: =G144+help2!$C$3 -> 127 | H145: =help2!G130 -> 6.312828657
G146: =G145+help2!$C$3 -> 128 | H146: =help2!G131 -> 5.588046355
G147: =G146+help2!$C$3 -> 129 | H147: =help2!G132 -> 5.013514088
G148: =G147+help2!$C$3 -> 130 | H148: =help2!G133 -> 4.547677925
G149: =G148+help2!$C$3 -> 131 | H149: =help2!G134 -> 4.162818227
G150: =G149+help2!$C$3 -> 132 | H150: =help2!G135 -> 3.839786887
G151: =G150+help2!$C$3 -> 133 | H151: =help2!G136 -> 3.564961495
G152: =G151+help2!$C$3 -> 134 | H152: =help2!G137 -> 3.328403621
G153: =G152+help2!$C$3 -> 135 | H153: =help2!G138 -> 3.122702903
G154: =G153+help2!$C$3 -> 136 | H154: =help2!G139 -> 2.942227869
G155: =G154+help2!$C$3 -> 137 | H155: =help2!G140 -> 2.782626585
G156: =G155+help2!$C$3 -> 138 | H156: =help2!G141 -> 2.640485539
G157: =G156+help2!$C$3 -> 139 | H157: =help2!G142 -> 2.513091461
G158: =G157+help2!$C$3 -> 140 | H158: =help2!G143 -> 2.398261768
G159: =G158+help2!$C$3 -> 141 | H159: =help2!G144 -> 2.29422171
G160: =G159+help2!$C$3 -> 142 | H160: =help2!G145 -> 2.199513953
G161: =G160+help2!$C$3 -> 143 | H161: =help2!G146 -> 2.112931066
G162: =G161+help2!$C$3 -> 144 | H162: =help2!G147 -> 2.033464451
G163: =G162+help2!$C$3 -> 145 | H163: =help2!G148 -> 1.960265241
G164: =G163+help2!$C$3 -> 146 | H164: =help2!G149 -> 1.892614033
G165: =G164+help2!$C$3 -> 147 | H165: =help2!G150 -> 1.829897226
G166: =G165+help2!$C$3 -> 148 | H166: =help2!G151 -> 1.771588335
G167: =G166+help2!$C$3 -> 149 | H167: =help2!G152 -> 1.717233123
G168: =G167+help2!$C$3 -> 150 | H168: =help2!G153 -> 1.666437658
G169: =G168+help2!$C$3 -> 151 | H169: =help2!G154 -> 1.61885866
G170: =G169+help2!$C$3 -> 152 | H170: =help2!G155 -> 1.574195636
G171: =G170+help2!$C$3 -> 153 | H171: =help2!G156 -> 1.53218443
G172: =G171+help2!$C$3 -> 154 | H172: =help2!G157 -> 1.492591905
G173: =G172+help2!$C$3 -> 155 | H173: =help2!G158 -> 1.45521153
G174: =G173+help2!$C$3 -> 156 | H174: =help2!G159 -> 1.419859691
G175: =G174+help2!$C$3 -> 157 | H175: =help2!G160 -> 1.386372607
G176: =G175+help2!$C$3 -> 158 | H176: =help2!G161 -> 1.354603725
G177: =G176+help2!$C$3 -> 159 | H177: =help2!G162 -> 1.324421512
G178: =G177+help2!$C$3 -> 160 | H178: =help2!G163 -> 1.295707581
G179: =G178+help2!$C$3 -> 161 | H179: =help2!G164 -> 1.268355091
G180: =G179+help2!$C$3 -> 162 | H180: =help2!G165 -> 1.242267371
G181: =G180+help2!$C$3 -> 163 | H181: =help2!G166 -> 1.217356737
G182: =G181+help2!$C$3 -> 164 | H182: =help2!G167 -> 1.193543473
G183: =G182+help2!$C$3 -> 165 | H183: =help2!G168 -> 1.170754946
G184: =G183+help2!$C$3 -> 166 | H184: =help2!G169 -> 1.148924833
G185: =G184+help2!$C$3 -> 167 | H185: =help2!G170 -> 1.12799245
G186: =G185+help2!$C$3 -> 168 | H186: =help2!G171 -> 1.107902168
G187: =G186+help2!$C$3 -> 169 | H187: =help2!G172 -> 1.088602891
G188: =G187+help2!$C$3 -> 170 | H188: =help2!G173 -> 1.070047607
G189: =G188+help2!$C$3 -> 171 | H189: =help2!G174 -> 1.052192986
G190: =G189+help2!$C$3 -> 172 | H190: =help2!G175 -> 1.034999026
G191: =G190+help2!$C$3 -> 173 | H191: =help2!G176 -> 1.018428736
G192: =G191+help2!$C$3 -> 174 | H192: =help2!G177 -> 1.002447862
G193: =G192+help2!$C$3 -> 175 | H193: =help2!G178 -> 0.9870246333
G194: =G193+help2!$C$3 -> 176 | H194: =help2!G179 -> 0.9721295446
G195: =G194+help2!$C$3 -> 177 | H195: =help2!G180 -> 0.9577351541
G196: =G195+help2!$C$3 -> 178 | H196: =help2!G181 -> 0.9438159071
G197: =G196+help2!$C$3 -> 179 | H197: =help2!G182 -> 0.9303479756
G198: =G197+help2!$C$3 -> 180 | H198: =help2!G183 -> 0.9173091147
G199: =G198+help2!$C$3 -> 181 | H199: =help2!G184 -> 0.9046785321
G200: =G199+help2!$C$3 -> 182 | H200: =help2!G185 -> 0.892436772
... 2697 more rows

Sheet Tables (hidden)
A1: LAMBDA
A3: Variabel | B3: b_0 | C3: b_1 | D3: V(b_0) | E3: Cov | F3: V(b_1) | G3: Res.var. | I3: E(lambda) | J3: V(lambda) | L3: z_0
A4: i1m | B4: -0.8322 | C4: 0.007291 | D4: 1.353 | E4: -0.001883 | F4: 2.694e-06 | G4: 0.3571 | I4: =B4+C4*Beregn!$B$5 -> 4.094300972 | J4: =D4+2*E4*Beregn!$B$5+F4*Beregn!$B$5^2+G4 -> 0.3954151767 | L4: 15.8
A5: i2m | B5: -0.3746 | C5: 0.006631 | D5: 1.427 | E5: -0.001984 | F5: 2.839e-06 | G5: 0.3929 | I5: =B5+C5*Beregn!$B$5 -> 4.105941482 | J5: =D5+2*E5*Beregn!$B$5+F5*Beregn!$B$5^2+G5 -> 0.4349265208 | L5: 12.8
A6: i5m | B6: 0.2793 | C6: 0.00549 | D6: 1.438 | E6: -0.002 | F6: 2.86e-06 | G6: 0.3974 | I6: =B6+C6*Beregn!$B$5 -> 3.988872122 | J6: =D6+2*E6*Beregn!$B$5+F6*Beregn!$B$5^2+G6 -> 0.4383921148 | L6: 9
A7: i10m | B7: 0.4209 | C7: 0.005875 | D7: 1.84 | E7: -0.002563 | F7: 3.666e-06 | G7: 0.5236 | I7: =B7+C7*Beregn!$B$5 -> 4.390615157 | J7: =D7+2*E7*Beregn!$B$5+F7*Beregn!$B$5^2+G7 -> 0.5737498696 | L7: 6
A8: i30m | B8: 1.066 | C8: 0.004339 | D8: 1.587 | E8: -0.002206 | F8: 3.149e-06 | G8: 0.4187 | I8: =B8+C8*Beregn!$B$5 -> 3.997845799 | J8: =D8+2*E8*Beregn!$B$5+F8*Beregn!$B$5^2+G8 -> 0.462252668 | L8: 3.2
A9: i60m | B9: 1.695 | C9: 0.003258 | D9: 1.644 | E9: -0.002283 | F9: 3.254e-06 | G9: 0.4128 | I9: =B9+C9*Beregn!$B$5 -> 3.89641821 | J9: =D9+2*E9*Beregn!$B$5+F9*Beregn!$B$5^2+G9 -> 0.4572348155 | L9: 2.1
A10: i3h | B10: 1.2 | C10: 0.003352 | D10: 1.394 | E10: -0.00193 | F10: 2.746e-06 | G10: 0.3107 | I10: =B10+C10*Beregn!$B$5 -> 3.464933652 | J10: =D10+2*E10*Beregn!$B$5+F10*Beregn!$B$5^2+G10 -> 0.3502411324 | L10: 1.1
A11: i6h | B11: 0.1843 | C11: 0.004362 | D11: 1.356 | E11: -0.001873 | F11: 2.662e-06 | G11: 0.311 | I11: =B11+C11*Beregn!$B$5 -> 3.131686811 | J11: =D11+2*E11*Beregn!$B$5+F11*Beregn!$B$5^2+G11 -> 0.3512190094 | L11: 0.73
A12: i12h | B12: -0.9251 | C12: 0.005524 | D12: 1.301 | E12: -0.001795 | F12: 2.553e-06 | G12: 0.313 | I12: =B12+C12*Beregn!$B$5 -> 2.807445792 | J12: =D12+2*E12*Beregn!$B$5+F12*Beregn!$B$5^2+G12 -> 0.353861993 | L12: 0.45
A13: i24h | B13: -3.072 | C13: 0.008851 | D13: 1.281 | E13: -0.001761 | F13: 2.501e-06 | G13: 0.2889 | I13: =B13+C13*Beregn!$B$5 -> 2.90858704 | J13: =D13+2*E13*Beregn!$B$5+F13*Beregn!$B$5^2+G13 -> 0.3319679361 | L13: 0.26
A14: i48h | B14: -5.168 | C14: 0.01239 | D14: 1.111 | E14: -0.00152 | F14: 2.154e-06 | G14: 0.2094 | I14: =B14+C14*Beregn!$B$5 -> 3.203875881 | J14: =D14+2*E14*Beregn!$B$5+F14*Beregn!$B$5^2+G14 -> 0.2497253264 | L14: 0.15
A17: MEAN
A19: Variabel | B19: b_0 | C19: b_1 | D19: V(b_0) | E19: Cov | F19: V(b_1) | G19: Res.var. | I19: E(Mean) | J19: V(Mean)
A20: i1m | B20: 6.223 | C20: 0 | D20: 0.01991 | E20: 0 | F20: 0 | G20: 0.2212 | I20: =B20+C20*Beregn!$B$6 -> 6.223 | J20: =D20+2*E20*Beregn!$B$6+F20*Beregn!$B$6^2+G20 -> 0.24111
A21: i2m | B21: 5.994 | C21: 0 | D21: 0.01665 | E21: 0 | F21: 0 | G21: 0.1275 | I21: =B21+C21*Beregn!$B$6 -> 5.994 | J21: =D21+2*E21*Beregn!$B$6+F21*Beregn!$B$6^2+G21 -> 0.14415
A22: i5m | B22: 4.896 | C22: 0 | D22: 0.0109 | E22: 0 | F22: 0 | G22: 0.0764 | I22: =B22+C22*Beregn!$B$6 -> 4.896 | J22: =D22+2*E22*Beregn!$B$6+F22*Beregn!$B$6^2+G22 -> 0.0873
A23: i10m | B23: 3.577 | C23: 0 | D23: 0.006223 | E23: 0 | F23: 0 | G23: 0.04421 | I23: =B23+C23*Beregn!$B$6 -> 3.577 | J23: =D23+2*E23*Beregn!$B$6+F23*Beregn!$B$6^2+G23 -> 0.050433
A24: i30m | B24: 1.822 | C24: 0 | D24: 0.002434 | E24: 0 | F24: 0 | G24: 0.02471 | I24: =B24+C24*Beregn!$B$6 -> 1.822 | J24: =D24+2*E24*Beregn!$B$6+F24*Beregn!$B$6^2+G24 -> 0.027144
A25: i60m | B25: 1.096 | C25: 0 | D25: 0.001104 | E25: 0 | F25: 0 | G25: 0.01188 | I25: =B25+C25*Beregn!$B$6 -> 1.096 | J25: =D25+2*E25*Beregn!$B$6+F25*Beregn!$B$6^2+G25 -> 0.012984
A26: i3h | B26: -0.3892 | C26: 0.03332 | D26: 0.1145 | E26: -0.004327 | F26: 0.0001639 | G26: 0.001221 | I26: =B26+C26*Beregn!$B$6 -> 0.4703100108 | J26: =D26+2*E26*Beregn!$B$6+F26*Beregn!$B$6^2+G26 -> 0.001547061236
A27: i6h | B27: -0.4425 | C27: 0.02771 | D27: 0.046 | E27: -0.001735 | F27: 6.565e-05 | G27: 0.0004646 | I27: =B27+C27*Beregn!$B$6 -> 0.2722965906 | J27: =D27+2*E27*Beregn!$B$6+F27*Beregn!$B$6^2+G27 -> 0.0006382285529
A28: i12h | B28: -0.3382 | C28: 0.01942 | D28: 0.01371 | E28: -0.000516 | F28: 1.949e-05 | G28: 4.249e-05 | I28: =B28+C28*Beregn!$B$6 -> 0.1627509127 | J28: =D28+2*E28*Beregn!$B$6+F28*Beregn!$B$6^2+G28 -> 0.0001003292758
A29: i24h | B29: -0.2522 | C29: 0.01353 | D29: 0.00411 | E29: -0.0001547 | F29: 5.846e-06 | G29: 9.278e-06 | I29: =B29+C29*Beregn!$B$6 -> 0.09681471927 | J29: =D29+2*E29*Beregn!$B$6+F29*Beregn!$B$6^2+G29 -> 2.812349252e-05
A30: i48h | B30: -0.07725 | C30: 0.005258 | D30: 0.001479 | E30: -5.577e-05 | F30: 2.113e-06 | G30: 1.41e-05 | I30: =B30+C30*Beregn!$B$6 -> 0.05838336245 | J30: =D30+2*E30*Beregn!$B$6+F30*Beregn!$B$6^2+G30 -> 2.187635444e-05
A33: L-CV
B35: L-CV | E35: Kappa
A36: Variabel | B36: mean | C36: res. var | D36: pred. var. | E36: mean | F36: res.var. | G36: pred. var.
A37: i1m | B37: 0.5429 | C37: 0.0004942 | D37: 0.0005112 | E37: =1/B37-2 -> -0.1580401547 | F37: =1/B37^4*C37 -> 0.005688835483 | G37: =1/B37^4*D37 -> 0.005884525898
A38: i2m | B38: 0.529 | C38: 0.000344 | D38: 0.0003628 | E38: =1/B38-2 -> -0.1096408318 | F38: =1/B38^4*C38 -> 0.004392742586 | G38: =1/B38^4*D38 -> 0.004632811076
A39: i5m | B39: 0.5193 | C39: 9.798e-05 | D39: 0.000116 | E39: =1/B39-2 -> -0.07433082996 | F39: =1/B39^4*C39 -> 0.001347299488 | G39: =1/B39^4*D39 -> 0.001595088187
A40: i10m | B40: 0.5326 | C40: 0.0001207 | D40: 0.00014 | E40: =1/B40-2 -> -0.1224183252 | F40: =1/B40^4*C40 -> 0.001500039246 | G40: =1/B40^4*D40 -> 0.001739896391
A41: i30m | B41: 0.5578 | C41: 0.0002168 | D41: 0.0002416 | E41: -0.2072427393 | F41: 0.002239469944 | G41: 0.002495645473
A42: i60m | B42: 0.5577 | C42: 0.000485 | D42: 0.0005195 | E42: -0.2069212838 | F42: 0.005013478544 | G42: 0.00537010743
A43: i3h | B43: 0.548 | C43: 0.0004867 | D43: 0.0005321 | E43: -0.1751824818 | F43: 0.005396834651 | G43: 0.005900258307
A44: i6h | B44: 0.5495 | C44: 0 | D44: 4.538e-05 | E44: -0.1801637853 | F44: 0 | G44: 0.0004977298699
A45: i12h | B45: 0.5369 | C45: 0.0003267 | D45: 0.0003846 | E45: -0.1374557646 | F45: 0.003931656058 | G45: 0.004628450933
A46: i24h | B46: 0.533 | C46: 0.0002715 | D46: 0.0003352 | E46: -0.1238273921 | F46: 0.003364038813 | G46: 0.0041533179
A47: i48h | B47: 0.5234 | C47: 0.0002728 | D47: 0.0003485 | E47: -0.0894153611 | F47: 0.003635042499 | G47: 0.004643740143
A48: i48h

Sheet CGD mean (hidden)
D1: Northing | E1: =Beregn!B3 -> 6140000 | J1: mean | W1: Std(mean)
D2: Easting | E2: =Beregn!B4 -> 589900 | J2: b_0 | K2: 6.223 | L2: 5.994 | M2: 4.896 | N2: 3.577 | O2: 1.822 | P2: 1.096 | Q2: -0.3892 | R2: -0.4425 | S2: -0.3382 | T2: -0.2522 | U2: -0.07725 | W2: V(b_0) | X2: 0.01991 | Y2: 0.01665 | Z2: 0.0109 | AA2: 0.006223 | AB2: 0.002434 | AC2: 0.001104 | AD2: 0.1145 | AE2: 0.046 | AF2: 0.01371 | AG2: 0.00411 | AH2: 0.001479
J3: b_1 | K3: 0 | L3: 0 | M3: 0 | N3: 0 | O3: 0 | P3: 0 | Q3: 0.03332 | R3: 0.02771 | S3: 0.01942 | T3: 0.01353 | U3: 0.005258 | W3: Cov | X3: 0 | Y3: 0 | Z3: 0 | AA3: 0 | AB3: 0 | AC3: 0 | AD3: -0.004327 | AE3: -0.001735 | AF3: -0.000516 | AG3: -0.0001547 | AH3: -5.577e-05
D4: Mean | H4: =SUM(H8:H616) -> 25.79561857 | W4: V(b_1) | X4: 0 | Y4: 0 | Z4: 0 | AA4: 0 | AB4: 0 | AC4: 0 | AD4: 0.0001639 | AE4: 6.565e-05 | AF4: 1.949e-05 | AG4: 5.846e-06 | AH4: 2.113e-06
W5: Res.var. | X5: 0.2212 | Y5: 0.1275 | Z5: 0.0764 | AA5: 0.04421 | AB5: 0.02471 | AC5: 0.01188 | AD5: 0.001221 | AE5: 0.0004646 | AF5: 4.249e-05 | AG5: 9.278e-06 | AH5: 1.41e-05
A7: Northing | B7: Easting | C7: CGD Mean [mm] | E7: dist | F7: dist = 0? | G7: 1/dist^2 | H7: w*mean | K7: 1 | L7: 2 | M7: 5 | N7: 10 | O7: 30 | P7: 60 | Q7: 180 | R7: 360 | S7: 720 | T7: 1440 | U7: 2880 | X7: 1 | Y7: 2 | Z7: 5 | AA7: 10 | AB7: 30 | AC7: 60 | AD7: 180 | AE7: 360 | AF7: 720 | AG7: 1440 | AH7: 2880
A8: 6055000 | B8: 655000 | C8: 25.65076916 | E8: =(SQRT(($A8-E$1)^2+($B8-E$2)^2)/1000) -> 107.0654473 | F8: =IF(E8=0,1,0) -> 0 | G8: =IF($F$618=0,1/E8^2,F8) -> 8.723712184e-05 | H8: =G8/$G$618*C8 -> 0.01048472618 | K8: =K$2+K$3*$C8 -> 6.223 | L8: =L$2+L$3*$C8 -> 5.994 | M8: 4.896 | N8: 3.577 | O8: 1.822 | P8: 1.096 | Q8: 0.4654836284 | R8: 0.2682828134 | S8: 0.1599379371 | T8: 0.09485490674 | U8: 0.05762174425 | X8: =SQRT(X$2+2*X$3*$C8+X$4*$C8^2+X$5) -> 0.4910295307 | Y8: =SQRT(Y$2+2*Y$3*$C8+Y$4*$C8^2+Y$5) -> 0.3796709101 | Z8: 0.2954657341 | AA8: 0.224572928 | AB8: 0.1647543626 | AC8: 0.1139473563 | AD8: 0.03973925877 | AE8: 0.0255271148 | AF8: 0.01022618199 | AG8: 0.005419929085 | AH8: 0.004720892522
A9: 6055000 | B9: 665000 | C9: 26.74754099 | E9: =(SQRT(($A9-E$1)^2+($B9-E$2)^2)/1000) -> 113.4240274 | F9: =IF(E9=0,1,0) -> 0 | G9: =IF($F$618=0,1/E9^2,F9) -> 7.773021552e-05 | H9: =G9/$G$618*C9 -> 0.00974157336 | K9: 6.223 | L9: 5.994 | M9: 4.896 | N9: 3.577 | O9: 1.822 | P9: 1.096 | Q9: 0.5020280658 | R9: 0.2986743608 | S9: 0.181237246 | T9: 0.1096942296 | U9: 0.06338857052 | X9: 0.4910295307 | Y9: 0.3796709101 | Z9: 0.2954657341 | AA9: 0.224572928 | AB9: 0.1647543626 | AC9: 0.1139473563 | AD9: 0.03881897494 | AE9: 0.02487316963 | AF9: 0.009632076337 | AG9: 0.005098837673 | AH9: 0.004624378146
A10: 6055000 | B10: 685000 | C10: 27.8117647 | E10: 127.5500294 | F10: 0 | G10: 6.146655513e-05 | H10: 0.008009820655 | K10: 6.223 | L10: 5.994 | M10: 4.896 | N10: 3.577 | O10: 1.822 | P10: 1.096 | Q10: 0.5374879998 | R10: 0.3281639998 | S10: 0.2019044704 | T10: 0.1240931764 | U10: 0.06898425878 | X10: 0.4910295307 | Y10: 0.3796709101 | Z10: 0.2954657341 | AA10: 0.224572928 | AB10: 0.1647543626 | AC10: 0.1139473563 | AD10: 0.04258751929 | AE10: 0.02716016162 | AF10: 0.01123173511 | AG10: 0.006013769266 | AH10: 0.005036777512
A11: 6055000 | B11: 695000 | C11: 28.87346929 | E11: 135.1703 | F11: 0 | G11: 5.473151183e-05 | H11: 0.007404432633 | K11: 6.223 | L11: 5.994 | M11: 4.896 | N11: 3.577 | O11: 1.822 | P11: 1.096 | Q11: 0.5728639969 | R11: 0.3575838341 | S11: 0.2225227737 | T11: 0.1384580396 | U11: 0.07456670155 | X11: 0.4910295307 | Y11: 0.3796709101 | Z11: 0.2954657341 | AA11: 0.224572928 | AB11: 0.1647543626 | AC11: 0.1139473563 | AD11: 0.04989683933 | AE11: 0.03169497813 | AF11: 0.01426320032 | AG11: 0.007713862949 | AH11: 0.005840652359
A12: 6065000 | B12: 605000 | C12: 28.28222228 | E12: 76.50496716 | F12: 0 | G12: 0.0001708522623 | H12: 0.02264068888 | K12: 6.223 | L12: 5.994 | M12: 4.896 | N12: 3.577 | O12: 1.822 | P12: 1.096 | Q12: 0.5531636464 | R12: 0.3412003794 | S12: 0.2110407567 | T12: 0.1304584675 | U12: 0.07145792476 | X12: 0.4910295307 | Y12: 0.3796709101 | Z12: 0.2954657341 | AA12: 0.224572928 | AB12: 0.1647543626 | AC12: 0.1139473563 | AD12: 0.04547144053 | AE12: 0.0289426962 | AF12: 0.01244900235 | AG12: 0.006699317743 | AH12: 0.005353132173
A13: 6065000 | B13: 615000 | C13: 28.12340432 | E13: 79.08862118 | F13: 0 | G13: 0.0001598718467 | H13: 0.02106663904 | K13: 6.223 | L13: 5.994 | M13: 4.896 | N13: 3.577 | O13: 1.822 | P13: 1.096 | Q13: 0.547871832 | R13: 0.3367995337 | S13: 0.2079565119 | T13: 0.1283096605 | U13: 0.07062285992 | X13: 0.4910295307 | Y13: 0.3796709101 | Z13: 0.2954657341 | AA13: 0.224572928 | AB13: 0.1647543626 | AC13: 0.1139473563 | AD13: 0.04442757249 | AE13: 0.02829612007 | AF13: 0.01201174253 | AG13: 0.006453630188 | AH13: 0.005238496599
A14: 6065000 | B14: 635000 | C14: 25.95384631 | E14: 87.51577001 | F14: 0 | G14: 0.0001305651775 | H14: 0.01587758563 | K14: 6.223 | L14: 5.994 | M14: 4.896 | N14: 3.577 | O14: 1.822 | P14: 1.096 | Q14: 0.475582159 | R14: 0.2766810812 | S14: 0.1658236953 | T14: 0.09895554055 | U14: 0.05921532389 | X14: 0.4910295307 | Y14: 0.3796709101 | Z14: 0.2954657341 | AA14: 0.224572928 | AB14: 0.1647543626 | AC14: 0.1139473563 | AD14: 0.03898467004 | AE14: 0.02503464964 | AF14: 0.009829866899 | AG14: 0.005199620381 | AH14: 0.004639967756
A15: 6065000 | B15: 645000 | C15: 26.75555551 | E15: 93.06454749 | F15: 0 | G15: 0.0001154599752 | H15: 0.0144744078 | K15: 6.223 | L15: 5.994 | M15: 4.896 | N15: 3.577 | O15: 1.822 | P15: 1.096 | Q15: 0.5022951095 | R15: 0.2988964431 | S15: 0.1813928879 | T15: 0.109802666 | U15: 0.06343071085 | X15: 0.4910295307 | Y15: 0.3796709101 | Z15: 0.2954657341 | AA15: 0.224572928 | AB15: 0.1647543626 | AC15: 0.1139473563 | AD15: 0.03883086076 | AE15: 0.02488001226 | AF15: 0.009636558192 | AG15: 0.005101492672 | AH15: 0.004625688222
A16: 6065000 | B16: 655000 | C16: 26.34923069 | E16: 99.31268801 | F16: 0 | G16: 0.0001013889269 | H16: 0.01251739157 | K16: 6.223 | L16: 5.994 | M16: 4.896 | N16: 3.577 | O16: 1.822 | P16: 1.096 | Q16: 0.4887563667 | R16: 0.2876371825 | S16: 0.1735020601 | T16: 0.1043050913 | U16: 0.06129425498 | X16: 0.4910295307 | Y16: 0.3796709101 | Z16: 0.2954657341 | AA16: 0.224572928 | AB16: 0.1647543626 | AC16: 0.1139473563 | AD16: 0.03856903573 | AE16: 0.02474631377 | AF16: 0.00957284119 | AG16: 0.005059481269 | AH16: 0.00459614904
A17: 6065000 | B17: 665000 | C17: 25.23380285 | E17: 106.1367514 | F17: 0 | G17: 8.877044938e-05 | H17: 0.01049558127 | K17: 6.223 | L17: 5.994 | M17: 4.896 | N17: 3.577 | O17: 1.822 | P17: 1.096 | Q17: 0.4515903109 | R17: 0.2567286769 | S17: 0.1518404513 | T17: 0.08921335255 | U17: 0.05542933538 | X17: 0.4910295307 | Y17: 0.3796709101 | Z17: 0.2954657341 | AA17: 0.224572928 | AB17: 0.1647543626 | AC17: 0.1139473563 | AD17: 0.04135388597 | AE17: 0.02656314444 | AF17: 0.01101643014 | AG17: 0.005860847694 | AH17: 0.004895243178
A18: 6065000 | B18: 675000 | C18: 25.18333334 | E18: 113.4328436 | F18: 0 | G18: 7.771813343e-05 | H18: 0.009170456336 | K18: 6.223 | L18: 5.994 | M18: 4.896 | N18: 3.577 | O18: 1.822 | P18: 1.096 | Q18: 0.4499086669 | R18: 0.2553301668 | S18: 0.1508603334 | T18: 0.08853050008 | U18: 0.0551639667 | X18: 0.4910295307 | Y18: 0.3796709101 | Z18: 0.2954657341 | AA18: 0.224572928 | AB18: 0.1647543626 | AC18: 0.1139473563 | AD18: 0.04159157197 | AE18: 0.02671481927 | AF18: 0.01112894486 | AG18: 0.00592363828 | AH18: 0.004920994505
A19: 6065000 | B19: 685000 | C19: 25.77627117 | E19: 121.1156885 | F19: 0 | G19: 6.817092633e-05 | H19: 0.008233313628 | K19: 6.223 | L19: 5.994 | M19: 4.896 | N19: 3.577 | O19: 1.822 | P19: 1.096 | Q19: 0.4696653555 | R19: 0.2717604742 | S19: 0.1623751862 | T19: 0.09655294898 | U19: 0.05828163383 | X19: 0.4910295307 | Y19: 0.3796709101 | Z19: 0.2954657341 | AA19: 0.224572928 | AB19: 0.1647543626 | AC19: 0.1139473563 | AD19: 0.03938219355 | AE19: 0.0252954471 | AF19: 0.01004236136 | AG19: 0.005317569427 | AH19: 0.00468252604
A20: 6065000 | B20: 695000 | C20: 27.17017545 | E20: 129.1162654 | F20: 0 | G20: 5.998436807e-05 | H20: 0.007636351359 | K20: 6.223 | L20: 5.994 | M20: 4.896 | N20: 3.577 | O20: 1.822 | P20: 1.096 | Q20: 0.5161102461 | R20: 0.3103855618 | S20: 0.1894448073 | T20: 0.1154124739 | U20: 0.06561078253 | X20: 0.4910295307 | Y20: 0.3796709101 | Z20: 0.2954657341 | AA20: 0.224572928 | AB20: 0.1647543626 | AC20: 0.1139473563 | AD20: 0.03980330371 | AE20: 0.02545842453 | AF20: 0.01003724135 | AG20: 0.005333917965 | AH20: 0.004732249076
A21: 6075000 | B21: 515000 | C21: 25.32551018 | E21: 99.17161892 | F21: 0 | G21: 0.0001016775784 | H21: 0.01206531789 | K21: 6.223 | L21: 5.994 | M21: 4.896 | N21: 3.577 | O21: 1.822 | P21: 1.096 | Q21: 0.4546459992 | R21: 0.2592698871 | S21: 0.1536214077 | T21: 0.09045415275 | U21: 0.05591153253 | X21: 0.4910295307 | Y21: 0.3796709101 | Z21: 0.2954657341 | AA21: 0.224572928 | AB21: 0.1647543626 | AC21: 0.1139473563 | AD21: 0.04094456202 | AE21: 0.02630157619 | AF21: 0.01082073307 | AG21: 0.005751625841 | AH21: 0.004850941344
A22: 6075000 | B22: 525000 | C22: 25.88018867 | E22: 91.85319809 | F22: 0 | G22: 0.0001185254018 | H22: 0.01437256383 | K22: 6.223 | L22: 5.994 | M22: 4.896 | N22: 3.577 | O22: 1.822 | P22: 1.096 | Q22: 0.4731278866 | R22: 0.2746400281 | S22: 0.164393264 | T22: 0.09795895273 | U22: 0.05882803204 | X22: 0.4910295307 | Y22: 0.3796709101 | Z22: 0.2954657341 | AA22: 0.224572928 | AB22: 0.1647543626 | AC22: 0.1139473563 | AD22: 0.03913402599 | AE22: 0.02513316109 | AF22: 0.009911038288 | AG22: 0.005244602707 | AH22: 0.004655931448
A23: 6075000 | B23: 545000 | C23: 26.24999997 | E23: 79.00006329 | F23: 0 | G23: 0.0001602304755 | H23: 0.01970742129 | K23: 6.223 | L23: 5.994 | M23: 4.896 | N23: 3.577 | O23: 1.822 | P23: 1.096 | Q23: 0.4854499991 | R23: 0.2848874992 | S23: 0.1715749995 | T23: 0.1029624996 | U23: 0.06077249986 | X23: 0.4910295307 | Y23: 0.3796709101 | Z23: 0.2954657341 | AA23: 0.224572928 | AB23: 0.1647543626 | AC23: 0.1139473563 | AD23: 0.03861144586 | AE23: 0.02478009535 | AF23: 0.00960823216 | AG23: 0.005078127122 | AH23: 0.004600441557
A24: 6075000 | B24: 595000 | C24: 27.14166661 | E24: 65.19976994 | F24: 0 | G24: 0.000235238214 | H24: 0.02991574046 | K24: 6.223 | L24: =L$2+L$3*$C24 -> 5.994 | M24: 4.896 | N24: 3.577 | O24: 1.822 | P24: 1.096 | Q24: 0.5151603315 | R24: 0.3095955818 | S24: 0.1888911656 | T24: 0.1150267492 | U24: 0.06546088304 | X24: 0.4910295307 | Y24: =SQRT(Y$2+2*Y$3*$C24+Y$4*$C24^2+Y$5) -> 0.3796709101 | Z24: 0.2954657341 | AA24: 0.224572928 | AB24: 0.1647543626 | AC24: 0.1139473563 | AD24: 0.03971449402 | AE24: 0.02540485624 | AF24: 0.009999482588 | AG24: 0.005312208473 | AH24: 0.004722537089
A25: 6075000 | B25: 605000 | C25: 27.89767443 | E25: 66.73087741 | F25: 0 | G25: 0.0002245672029 | H25: 0.0293541631 | K25: 6.223 | L25: 5.994 | M25: 4.896 | N25: 3.577 | O25: 1.822 | P25: 1.096 | Q25: 0.5403505119 | R25: 0.3305445584 | S25: 0.2035728374 | T25: 0.125255535 | U25: 0.06943597214 | X25: 0.4910295307 | Y25: 0.3796709101 | Z25: 0.2954657341 | AA25: 0.224572928 | AB25: 0.1647543626 | AC25: 0.1139473563 | AD25: 0.04306572406 | AE25: 0.02745482456 | AF25: 0.01143555152 | AG25: 0.006128931896 | AH25: 0.005089158892
A26: 6075000 | B26: 615000 | C26: 27.92499984 | E26: 69.67790181 | F26: 0 | G26: 0.0002059727992 | H26: 0.02694997846 | K26: 6.223 | L26: 5.994 | M26: 4.896 | N26: 3.577 | O26: 1.822 | P26: 1.096 | Q26: 0.5412609948 | R26: 0.3313017457 | S26: 0.204103497 | T26: 0.1256252479 | U26: 0.06957964918 | X26: 0.4910295307 | Y26: 0.3796709101 | Z26: 0.2954657341 | AA26: 0.224572928 | AB26: 0.1647543626 | AC26: 0.1139473563 | AD26: 0.04322258506 | AE26: 0.02755157438 | AF26: 0.01150224423 | AG26: 0.006166577745 | AH26: 0.005106347483
A27: 6075000 | B27: 625000 | C27: 26.51463411 | E27: 73.87157775 | F27: 0 | G27: 0.0001832505346 | H27: 0.02276597531 | K27: 6.223 | L27: 5.994 | M27: 4.896 | N27: 3.577 | O27: 1.822 | P27: 1.096 | Q27: 0.4942676085 | R27: 0.2922205112 | S27: 0.1767141944 | T27: 0.1065429995 | U27: 0.06216394615 | X27: 0.4910295307 | Y27: 0.3796709101 | Z27: 0.2954657341 | AA27: 0.224572928 | AB27: 0.1647543626 | AC27: 0.1139473563 | AD27: 0.03859130259 | AE27: 0.02474802723 | AF27: 0.009558287975 | AG27: 0.005053628568 | AH27: 0.00459905134
A28: 6075000 | B28: 635000 | C28: 26.67826084 | E28: 79.11390523 | F28: 0 | G28: 0.000159769676 | H28: 0.01997134163 | K28: 6.223 | L28: 5.994 | M28: 4.896 | N28: 3.577 | O28: 1.822 | P28: 1.096 | Q28: 0.4997196513 | R28: 0.296754608 | S28: 0.1798918256 | T28: 0.1087568692 | U28: 0.06302429552 | X28: 0.4910295307 | Y28: 0.3796709101 | Z28: 0.2954657341 | AA28: 0.224572928 | AB28: 0.1647543626 | AC28: 0.1139473563 | AD28: 0.03872741107 | AE28: 0.02482102376 | AF28: 0.009598684564 | AG28: 0.005078911909 | AH28: 0.004614264163
A29: 6075000 | B29: 645000 | C29: 28.10000012 | E29: 85.21156025 | F29: 0 | G29: 0.0001377218872 | H29: 0.01813279112 | K29: 6.223 | L29: 5.994 | M29: 4.896 | N29: 3.577 | O29: 1.822 | P29: 1.096 | Q29: 0.547092004 | R29: 0.3361510033 | S29: 0.2075020023 | T29: 0.1279930016 | U29: 0.07049980063 | X29: 0.4910295307 | Y29: 0.3796709101 | Z29: 0.2954657341 | AA29: 0.224572928 | AB29: 0.1647543626 | AC29: 0.1139473563 | AD29: 0.04427955585 | AE29: 0.02820454797 | AF29: 0.01194943127 | AG29: 0.006418571671 | AH29: 0.005222253428
A30: 6075000 | B30: 655000 | C30: 27.84576261 | E30: 91.99461941 | F30: 0 | G30: 0.0001181612689 | H30: 0.01541663655 | K30: 6.223 | L30: 5.994 | M30: 4.896 | N30: 3.577 | O30: 1.822 | P30: 1.096 | Q30: 0.5386208101 | R30: 0.3291060819 | S30: 0.2025647099 | T30: 0.1245531681 | U30: 0.0691630198 | X30: 0.4910295307 | Y30: 0.3796709101 | Z30: 0.2954657341 | AA30: 0.224572928 | AB30: 0.1647543626 | AC30: 0.1139473563 | AD30: 0.04277402199 | AE30: 0.02727502817 | AF30: 0.01131131206 | AG30: 0.00605875401 | AH30: 0.005057203091
A31: 6075000 | B31: 665000 | C31: 25.51891899 | E31: 99.32275671 | F31: 0 | G31: 0.0001013683716 | H31: 0.01212048826 | K31: 6.223 | L31: 5.994 | M31: 4.896 | N31: 3.577 | O31: 1.822 | P31: 1.096 | Q31: 0.4610903808 | R31: 0.2646292452 | S31: 0.1573774068 | T31: 0.09307097395 | U31: 0.05692847606 | X31: 0.4910295307 | Y31: 0.3796709101 | Z31: 0.2954657341 | AA31: 0.224572928 | AB31: 0.1647543626 | AC31: 0.1139473563 | AD31: 0.04018022735 | AE31: 0.0258114455 | AF31: 0.01044750521 | AG31: 0.005543345391 | AH31: 0.004768390638
A32: 6075000 | B32: 675000 | C32: 24.70704224 | E32: 107.0841258 | F32: 0 | G32: 8.72066912e-05 | H32: 0.01009545595 | K32: 6.223 | L32: 5.994 | M32: 4.896 | N32: 3.577 | O32: 1.822 | P32: 1.096 | Q32: 0.4340386474 | R32: 0.2421321404 | S32: 0.1416107603 | T32: 0.08208628147 | U32: 0.05265962808 | X32: 0.4910295307 | Y32: 0.3796709101 | Z32: 0.2954657341 | AA32: 0.224572928 | AB32: 0.1647543626 | AC32: 0.1139473563 | AD32: 0.04423837935 | AE32: 0.02839742845 | AF32: 0.01233927818 | AG32: 0.00659843211 | AH32: 0.005208825958
A33: 6075000 | B33: 685000 | C33: 25.36031756 | E33: 115.1911889 | F33: 0 | G33: 7.536357272e-05 | H33: 0.00895512264 | K33: 6.223 | L33: 5.994 | M33: 4.896 | N33: 3.577 | O33: 1.822 | P33: 1.096 | Q33: 0.4558057812 | R33: 0.2602343997 | S33: 0.1542973671 | T33: 0.09092509663 | U33: 0.05609454975 | X33: 0.4910295307 | Y33: 0.3796709101 | Z33: 0.2954657341 | AA33: 0.224572928 | AB33: 0.1647543626 | AC33: 0.1139473563 | AD33: 0.04079697501 | AE33: 0.02620713098 | AF33: 0.01074951638 | AG33: 0.005711877845 | AH33: 0.004834982698
A34: 6075000 | B34: 695000 | C34: 25.51864404 | E34: 123.5759281 | F34: 0 | G34: 6.548355348e-05 | H34: 0.007829701481 | K34: 6.223 | L34: =L$2+L$3*$C34 -> 5.994 | M34: 4.896 | N34: 3.577 | O34: 1.822 | P34: 1.096 | Q34: 0.4610812195 | R34: 0.2646216264 | S34: 0.1573720673 | T34: 0.09306725389 | U34: 0.05692703037 | X34: 0.4910295307 | Y34: =SQRT(Y$2+2*Y$3*$C34+Y$4*$C34^2+Y$5) -> 0.3796709101 | Z34: 0.2954657341 | AA34: 0.224572928 | AB34: 0.1647543626 | AC34: 0.1139473563 | AD34: 0.04018121595 | AE34: 0.02581208135 | AF34: 0.01044799573 | AG34: 0.005543619037 | AH34: 0.004768497241
A35: 6085000 | B35: 475000 | C35: 24.69411777 | E35: 127.3852817 | F35: 0 | G35: 6.162564761e-05 | H35: 0.007130342364 | K35: 6.223 | L35: 5.994 | M35: 4.896 | N35: 3.577 | O35: 1.822 | P35: 1.096 | Q35: 0.4336080041 | R35: 0.2417740034 | S35: 0.1413597671 | T35: 0.08191141343 | U35: 0.05259167124 | X35: 0.4910295307 | Y35: 0.3796709101 | Z35: 0.2954657341 | AA35: 0.224572928 | AB35: 0.1647543626 | AC35: 0.1139473563 | AD35: 0.04431969171 | AE35: 0.0284489963 | AF35: 0.01237545108 | AG35: 0.006618576955 | AH35: 0.005217695558
A36: 6085000 | B36: 485000 | C36: 24.63285708 | E36: 118.4441218 | F36: 0 | G36: 7.128086729e-05 | H36: 0.008227031005 | K36: 6.223 | L36: 5.994 | M36: 4.896 | N36: 3.577 | O36: 1.822 | P36: 1.096 | Q36: 0.4315667978 | R36: 0.2400764696 | S36: 0.1401700844 | T36: 0.08108255626 | U36: 0.05226956251 | X36: 0.4910295307 | Y36: 0.3796709101 | Z36: 0.2954657341 | AA36: 0.224572928 | AB36: 0.1647543626 | AC36: 0.1139473563 | AD36: 0.04471142277 | AE36: 0.02869736084 | AF36: 0.01254901796 | AG36: 0.006715217738 | AH36: 0.00526044593
A37: 6085000 | B37: 495000 | C37: 24.86962024 | E37: 109.6859608 | F37: 0 | G37: 8.311854117e-05 | H37: 0.009685508746 | K37: 6.223 | L37: 5.994 | M37: 4.896 | N37: 3.577 | O37: 1.822 | P37: 1.096 | Q37: 0.4394557464 | R37: 0.2466371768 | S37: 0.144768025 | T37: 0.08428596183 | U37: 0.05351446321 | X37: 0.4910295307 | Y37: 0.3796709101 | Z37: 0.2954657341 | AA37: 0.224572928 | AB37: 0.1647543626 | AC37: 0.1139473563 | AD37: 0.04325656513 | AE37: 0.02777430795 | AF37: 0.01189824124 | AG37: 0.006352705674 | AH37: 0.005101848237
A38: 6085000 | B38: 505000 | C38: 24.61414141 | E38: 101.1583412 | F38: 0 | G38: 9.772295737e-05 | H38: 0.01127033083 | K38: 6.223 | L38: 5.994 | M38: 4.896 | N38: 3.577 | O38: 1.822 | P38: 1.096 | Q38: 0.4309431917 | R38: 0.2395578584 | S38: 0.1398066261 | T38: 0.08082933323 | U38: 0.05217115552 | X38: 0.4910295307 | Y38: 0.3796709101 | Z38: 0.2954657341 | AA38: 0.224572928 | AB38: 0.1647543626 | AC38: 0.1139473563 | AD38: 0.04483315347 | AE38: 0.02877451838 | AF38: 0.01260272486 | AG38: 0.006745114862 | AH38: 0.005273737293
A39: 6085000 | B39: 515000 | C39: 24.82058821 | E39: 92.92475451 | F39: 0 | G39: 0.000115807625 | H39: 0.01346804616 | K39: 6.223 | L39: 5.994 | M39: 4.896 | N39: 3.577 | O39: 1.822 | P39: 1.096 | Q39: 0.437821999 | R39: 0.2452784992 | S39: 0.1438158229 | T39: 0.08362255842 | U39: 0.05325665278 | X39: 0.4910295307 | Y39: 0.3796709101 | Z39: 0.2954657341 | AA39: 0.224572928 | AB39: 0.1647543626 | AC39: 0.1139473563 | AD39: 0.04354452576 | AE39: 0.02795716174 | AF39: 0.01202844686 | AG39: 0.006425271683 | AH39: 0.005133200752
A40: 6085000 | B40: 525000 | C40: 26.14893613 | E40: 85.07061772 | F40: 0 | G40: 0.0001381786124 | H40: 0.01692973746 | K40: 6.223 | L40: 5.994 | M40: 4.896 | N40: 3.577 | O40: 1.822 | P40: 1.096 | Q40: 0.4820825518 | R40: 0.2820870202 | S40: 0.1696123396 | T40: 0.1015951058 | U40: 0.06024110617 | X40: 0.4910295307 | Y40: 0.3796709101 | Z40: 0.2954657341 | AA40: 0.224572928 | AB40: 0.1647543626 | AC40: 0.1139473563 | AD40: 0.03869748318 | AE40: 0.02484121647 | AF40: 0.009664576012 | AG40: 0.0051086426 | AH40: 0.004609451245
A41: 6085000 | B41: 535000 | C41: 26.00399996 | E41: 77.71106742 | F41: 0 | G41: 0.0001655900553 | H41: 0.02017575427 | K41: 6.223 | L41: 5.994 | M41: 4.896 | N41: 3.577 | O41: 1.822 | P41: 1.096 | Q41: 0.4772532788 | R41: 0.278070839 | S41: 0.1667976793 | T41: 0.09963411952 | U41: 0.05947903181 | X41: 0.4910295307 | Y41: 0.3796709101 | Z41: 0.2954657341 | AA41: 0.224572928 | AB41: 0.1647543626 | AC41: 0.1139473563 | AD41: 0.03889573019 | AE41: 0.02497551306 | AF41: 0.009780400426 | AG41: 0.005172278195 | AH41: 0.004630483546
A42: 6085000 | B42: 545000 | C42: 26.01147545 | E42: 71.00007042 | F42: 0 | G42: 0.0001983729451 | H42: 0.0241770217 | K42: 6.223 | L42: 5.994 | M42: 4.896 | N42: 3.577 | O42: 1.822 | P42: 1.096 | Q42: 0.4775023621 | R42: 0.2782779848 | S42: 0.1669428533 | T42: 0.09973526289 | U42: 0.05951833794 | X42: 0.4910295307 | Y42: 0.3796709101 | Z42: 0.2954657341 | AA42: 0.224572928 | AB42: 0.1647543626 | AC42: 0.1139473563 | AD42: 0.0388833641 | AE42: 0.02496725305 | AF42: 0.009773435484 | AG42: 0.005168434055 | AH42: 0.004629166566
A43: 6085000 | B43: 555000 | C43: 26.08846151 | E43: 65.13839114 | F43: 0 | G43: 0.0002356817448 | H43: 0.02880910623 | K43: 6.223 | L43: 5.994 | M43: 4.896 | N43: 3.577 | O43: 1.822 | P43: 1.096 | Q43: 0.4800675375 | R43: 0.2804112684 | S43: 0.1684379225 | T43: 0.1007768842 | U43: 0.05992313061 | X43: 0.4910295307 | Y43: 0.3796709101 | Z43: 0.2954657341 | AA43: 0.224572928 | AB43: 0.1647543626 | AC43: 0.1139473563 | AD43: 0.03876952978 | AE43: 0.02489060472 | AF43: 0.009707945748 | AG43: 0.005132382261 | AH43: 0.00461706998
A44: 6085000 | B44: 565000 | C44: 27.51799999 | E44: 60.37391821 | F44: 0 | G44: 0.0002743476698 | H44: 0.03537313193 | K44: 6.223 | L44: =L$2+L$3*$C44 -> 5.994 | M44: 4.896 | N44: 3.577 | O44: 1.822 | P44: 1.096 | Q44: 0.5276997597 | R44: 0.3200237798 | S44: 0.1961995599 | T44: 0.1201185399 | U44: 0.06743964396 | X44: 0.4910295307 | Y44: =SQRT(Y$2+2*Y$3*$C44+Y$4*$C44^2+Y$5) -> 0.3796709101 | Z44: 0.2954657341 | AA44: 0.224572928 | AB44: 0.1647543626 | AC44: 0.1139473563 | AD44: 0.04113291992 | AE44: 0.02626722805 | AF44: 0.01060791754 | AG44: 0.005660011838 | AH44: 0.00487761054
A45: 6085000 | B45: 575000 | C45: 26.78478253 | E45: 56.98254119 | F45: 0 | G45: 0.0003079756453 | H45: 0.03865092307 | K45: 6.223 | L45: 5.994 | M45: 4.896 | N45: 3.577 | O45: 1.822 | P45: 1.096 | Q45: 0.503268954 | R45: 0.299706324 | S45: 0.1819604768 | T45: 0.1101981077 | U45: 0.06358438656 | X45: 0.4910295307 | Y45: 0.3796709101 | Z45: 0.2954657341 | AA45: 0.224572928 | AB45: 0.1647543626 | AC45: 0.1139473563 | AD45: 0.0388764692 | AE45: 0.02490638435 | AF45: 0.009653983599 | AG45: 0.005111785572 | AH45: 0.004630710957
A46: 6085000 | B46: 585000 | C46: 27.01190472 | E46: 55.21784132 | F46: 0 | G46: 0.00032797531 | H46: 0.0415099043 | K46: =K$2+K$3*$C46 -> 6.223 | L46: 5.994 | M46: 4.896 | N46: 3.577 | O46: 1.822 | P46: 1.096 | Q46: 0.5108366652 | R46: 0.3059998797 | S46: 0.1863711896 | T46: 0.1132710708 | U46: 0.064778595 | X46: =SQRT(X$2+2*X$3*$C46+X$4*$C46^2+X$5) -> 0.4910295307 | Y46: 0.3796709101 | Z46: 0.2954657341 | AA46: 0.224572928 | AB46: 0.1647543626 | AC46: 0.1139473563 | AD46: 0.03935052345 | AE46: 0.02518637227 | AF46: 0.009846132879 | AG46: 0.005223757053 | AH46: 0.004682712819
A47: 6085000 | B47: 595000 | C47: 25.96041667 | E47: 55.23594844 | F47: 0 | G47: 0.0003277603154 | H47: 0.0398679036 | K47: 6.223 | L47: 5.994 | M47: 4.896 | N47: 3.577 | O47: 1.822 | P47: 1.096 | Q47: 0.4758010836 | R47: 0.2768631461 | S47: 0.1659512918 | T47: 0.09904443761 | U47: 0.05924987088 | X47: 0.4910295307 | Y47: 0.3796709101 | Z47: 0.2954657341 | AA47: 0.224572928 | AB47: 0.1647543626 | AC47: 0.1139473563 | AD47: 0.03897242791 | AE47: 0.02502653484 | AF47: 0.009823116659 | AG47: 0.005195885523 | AH47: 0.004638661163
A48: 6085000 | B48: 605000 | C48: 28.30238093 | E48: 57.03516459 | F48: 0 | G48: 0.000307407601 | H48: 0.04076551614 | K48: 6.223 | L48: 5.994 | M48: 4.896 | N48: 3.577 | O48: 1.822 | P48: 1.096 | Q48: 0.5538353324 | R48: 0.3417589754 | S48: 0.2114322376 | T48: 0.1307312139 | U48: 0.0715639189 | X48: 0.4910295307 | Y48: 0.3796709101 | Z48: 0.2954657341 | AA48: 0.224572928 | AB48: 0.1647543626 | AC48: 0.1139473563 | AD48: 0.04560871218 | AE48: 0.02902781562 | AF48: 0.01250622146 | AG48: 0.006731428079 | AH48: 0.005368217789
A49: 6085000 | B49: 615000 | C49: 28.1937501 | E49: 60.4566787 | F49: 0 | G49: 0.0002735970627 | H49: 0.03614262139 | K49: 6.223 | L49: 5.994 | M49: 4.896 | N49: 3.577 | O49: 1.822 | P49: 1.096 | Q49: 0.5502157534 | R49: 0.3387488154 | S49: 0.209322627 | T49: 0.1292614389 | U49: 0.07099273804 | X49: 0.4910295307 | Y49: 0.3796709101 | Z49: 0.2954657341 | AA49: 0.224572928 | AB49: 0.1647543626 | AC49: 0.1139473563 | AD49: 0.04488156875 | AE49: 0.02857716682 | AF49: 0.01220238269 | AG49: 0.006560815913 | AH49: 0.005288335828
A50: 6085000 | B50: 625000 | C50: 26.70750022 | E50: 65.24576615 | F50: 0 | G50: 0.0002349066598 | H50: 0.02939570917 | K50: 6.223 | L50: 5.994 | M50: 4.896 | N50: 3.577 | O50: 1.822 | P50: 1.096 | Q50: 0.5006939073 | R50: 0.2975648311 | S50: 0.1804596543 | T50: 0.109152478 | U50: 0.06317803615 | X50: 0.4910295307 | Y50: 0.3796709101 | Z50: 0.2954657341 | AA50: 0.224572928 | AB50: 0.1647543626 | AC50: 0.1139473563 | AD50: 0.03876360653 | AE50: 0.02484149806 | AF50: 0.009611604616 | AG50: 0.005086658281 | AH50: 0.004618267602
A51: 6085000 | B51: 635000 | C51: 26.38461548 | E51: 71.12671791 | F51: 0 | G51: 0.0001976671325 | H51: 0.02443659006 | K51: 6.223 | L51: 5.994 | M51: 4.896 | N51: 3.577 | O51: 1.822 | P51: 1.096 | Q51: 0.4899353879 | R51: 0.288617695 | S51: 0.1741892327 | T51: 0.1047838475 | U51: 0.06148030821 | X51: 0.4910295307 | Y51: 0.3796709101 | Z51: 0.2954657341 | AA51: 0.224572928 | AB51: 0.1647543626 | AC51: 0.1139473563 | AD51: 0.03856402499 | AE51: 0.02474057706 | AF51: 0.009565043587 | AG51: 0.005055570473 | AH51: 0.004595712563
A52: 6085000 | B52: 645000 | C52: 27.38913034 | E52: 77.85248872 | F52: 0 | G52: 0.0001649890035 | H52: 0.02117330307 | K52: 6.223 | L52: 5.994 | M52: 4.896 | N52: 3.577 | O52: 1.822 | P52: 1.096 | Q52: 0.523405823 | R52: 0.3164528018 | S52: 0.1936969113 | T52: 0.1183749335 | U52: 0.06676204735 | X52: 0.4910295307 | Y52: 0.3796709101 | Z52: 0.2954657341 | AA52: 0.224572928 | AB52: 0.1647543626 | AC52: 0.1139473563 | AD52: 0.0405884363 | AE52: 0.02593481388 | AF52: 0.01037366039 | AG52: 0.005526527895 | AH52: 0.004818081311
A53: 6085000 | B53: 655000 | C53: 26.68545459 | E53: 85.22329494 | F53: 0 | G53: 0.000137683963 | H53: 0.01721525005 | K53: 6.223 | L53: 5.994 | M53: 4.896 | N53: 3.577 | O53: 1.822 | P53: 1.096 | Q53: 0.4999593471 | R53: 0.2969539468 | S53: 0.1800315282 | T53: 0.1088542007 | U53: 0.06306212026 | X53: 0.4910295307 | Y53: 0.3796709101 | Z53: 0.2954657341 | AA53: 0.224572928 | AB53: 0.1647543626 | AC53: 0.1139473563 | AD53: 0.03873598385 | AE53: 0.02482585292 | AF53: 0.009601703935 | AG53: 0.005080727602 | AH53: 0.004615213146
A54: 6085000 | B54: 665000 | C54: 26.52857154 | E54: 93.08603547 | F54: 0 | G54: 0.0001154066758 | H54: 0.01434498733 | K54: 6.223 | L54: =L$2+L$3*$C54 -> 5.994 | M54: 4.896 | N54: 3.577 | O54: 1.822 | P54: 1.096 | Q54: 0.4947320036 | R54: 0.2926067173 | S54: 0.1769848593 | T54: 0.1067315729 | U54: 0.06223722914 | X54: 0.4910295307 | Y54: =SQRT(Y$2+2*Y$3*$C54+Y$4*$C54^2+Y$5) -> 0.3796709101 | Z54: 0.2954657341 | AA54: 0.224572928 | AB54: 0.1647543626 | AC54: 0.1139473563 | AD54: 0.03859848554 | AE54: 0.02475148669 | AF54: 0.009559609025 | AG54: 0.005054580756 | AH54: 0.004599869947
A55: 6085000 | B55: 675000 | C55: 26.25283033 | E55: 101.3262552 | F55: 0 | G55: 9.739934022e-05 | H55: 0.0119808469 | K55: 6.223 | L55: 5.994 | M55: 4.896 | N55: 3.577 | O55: 1.822 | P55: 1.096 | Q55: 0.4855443064 | R55: 0.2849659283 | S55: 0.1716299649 | T55: 0.1030007943 | U55: 0.06078738185 | X55: 0.4910295307 | Y55: 0.3796709101 | Z55: 0.2954657341 | AA55: 0.224572928 | AB55: 0.1647543626 | AC55: 0.1139473563 | AD55: 0.03860965772 | AE55: 0.024778771 | AF55: 0.009606947748 | AG55: 0.005077439165 | AH55: 0.004600256515
A56: 6085000 | B56: 685000 | C56: 25.16461543 | E56: 109.8590461 | F56: 0 | G56: 8.285683747e-05 | H56: 0.009769537908 | K56: 6.223 | L56: 5.994 | M56: 4.896 | N56: 3.577 | O56: 1.822 | P56: 1.096 | Q56: 0.449284986 | R56: 0.2548114934 | S56: 0.1504968316 | T56: 0.08827724671 | U56: 0.05506554791 | X56: 0.4910295307 | Y56: 0.3796709101 | Z56: 0.2954657341 | AA56: 0.224572928 | AB56: 0.1647543626 | AC56: 0.1139473563 | AD56: 0.04168192559 | AE56: 0.02677244119 | AF56: 0.01117151546 | AG56: 0.005947393759 | AH56: 0.004930788347
A57: 6085000 | B57: 695000 | C57: 25.58793104 | E57: 118.6212881 | F57: 0 | G57: 7.106810385e-05 | H57: 0.008520503746 | K57: 6.223 | L57: 5.994 | M57: 4.896 | N57: 3.577 | O57: 1.822 | P57: 1.096 | Q57: 0.4633898623 | R57: 0.2665415691 | S57: 0.1587176208 | T57: 0.09400470699 | U57: 0.05729134141 | X57: 0.4910295307 | Y57: 0.3796709101 | Z57: 0.2954657341 | AA57: 0.224572928 | AB57: 0.1647543626 | AC57: 0.1139473563 | AD57: 0.03994112921 | AE57: 0.02565746869 | AF57: 0.01032816224 | AG57: 0.005476780493 | AH57: 0.004742622892
A58: 6085000 | B58: 705000 | C58: 25.93965501 | E58: 127.5657086 | F58: 0 | G58: 6.145144629e-05 | H58: 0.007468814552 | K58: 6.223 | L58: 5.994 | M58: 4.896 | N58: 3.577 | O58: 1.822 | P58: 1.096 | Q58: 0.4751093049 | R58: 0.2762878403 | S58: 0.1655481003 | T58: 0.09876353226 | U58: 0.05914070603 | X58: 0.4910295307 | Y58: 0.3796709101 | Z58: 0.2954657341 | AA58: 0.224572928 | AB58: 0.1647543626 | AC58: 0.1139473563 | AD58: 0.03901171757 | AE58: 0.02505255385 | AF58: 0.009844722568 | AG58: 0.005207843511 | AH58: 0.004642855651
A59: 6095000 | B59: 475000 | C59: 24.79718308 | E59: 123.3977715 | F59: 0 | G59: 6.567277489e-05 | H59: 0.007630325894 | K59: 6.223 | L59: 5.994 | M59: 4.896 | N59: 3.577 | O59: 1.822 | P59: 1.096 | Q59: 0.4370421401 | R59: 0.2446299431 | S59: 0.1433612954 | T59: 0.08330588703 | U59: 0.05313358862 | X59: 0.4910295307 | Y59: 0.3796709101 | Z59: 0.2954657341 | AA59: 0.224572928 | AB59: 0.1647543626 | AC59: 0.1139473563 | AD59: 0.04368449319 | AE59: 0.02804600981 | AF59: 0.01209147172 | AG59: 0.006460390303 | AH59: 0.005148447271
A60: 6095000 | B60: 485000 | C60: 24.92777774 | E60: 114.1446889 | F60: 0 | G60: 7.675180232e-05 | H60: 0.00896452986 | K60: 6.223 | L60: 5.994 | M60: 4.896 | N60: 3.577 | O60: 1.822 | P60: 1.096 | Q60: 0.4413935543 | R60: 0.2482487212 | S60: 0.1458974437 | T60: 0.08507283283 | U60: 0.05382025536 | X60: 0.4910295307 | Y60: 0.3796709101 | Z60: 0.2954657341 | AA60: 0.224572928 | AB60: 0.1647543626 | AC60: 0.1139473563 | AD60: 0.04292440947 | AE60: 0.02756327462 | AF60: 0.01174710351 | AG60: 0.006268452256 | AH60: 0.005065709292
A61: 6095000 | B61: 495000 | C61: 24.85274717 | E61: 105.0286151 | F61: 0 | G61: 9.065353037e-05 | H61: 0.01055636736 | K61: 6.223 | L61: 5.994 | M61: 4.896 | N61: 3.577 | O61: 1.822 | P61: 1.096 | Q61: 0.4388935358 | R61: 0.2461696242 | S61: 0.1444403501 | T61: 0.08405766925 | U61: 0.05342574464 | X61: 0.4910295307 | Y61: 0.3796709101 | Z61: 0.2954657341 | AA61: 0.224572928 | AB61: 0.1647543626 | AC61: 0.1139473563 | AD61: 0.04335484928 | AE61: 0.0278367279 | AF61: 0.01194276546 | AG61: 0.006377521812 | AH61: 0.005112546935
A62: 6095000 | B62: 505000 | C62: 25.63218382 | E62: 96.08855291 | F62: 0 | G62: 0.0001083070418 | H62: 0.01300761502 | K62: 6.223 | L62: 5.994 | M62: 4.896 | N62: 3.577 | O62: 1.822 | P62: 1.096 | Q62: 0.4648643649 | R62: 0.2677678137 | S62: 0.1595770098 | T62: 0.09460344709 | U62: 0.05752402253 | X62: 0.4910295307 | Y62: 0.3796709101 | Z62: 0.2954657341 | AA62: 0.224572928 | AB62: 0.1647543626 | AC62: 0.1139473563 | AD62: 0.03979737815 | AE62: 0.02556468218 | AF62: 0.01025566835 | AG62: 0.00543636348 | AH62: 0.004727146204
A63: 6095000 | B63: 515000 | C63: 24.50222217 | E63: 87.37854428 | F63: 0 | G63: 0.0001309755979 | H63: 0.01503665498 | K63: 6.223 | L63: 5.994 | M63: 4.896 | N63: 3.577 | O63: 1.822 | P63: 1.096 | Q63: 0.4272140426 | R63: 0.2364565763 | S63: 0.1376331545 | T63: 0.07931506592 | U63: 0.05158268415 | X63: 0.4910295307 | Y63: 0.3796709101 | Z63: 0.2954657341 | AA63: 0.224572928 | AB63: 0.1647543626 | AC63: 0.1139473563 | AD63: 0.04558060576 | AE63: 0.02924808169 | AF63: 0.01293025567 | AG63: 0.006927376056 | AH63: 0.005355415617
A64: 6095000 | B64: 525000 | C64: 25.76767679 | E64: 78.9747428 | F64: 0 | G64: 0.0001603332366 | H64: 0.01935771965 | K64: 6.223 | L64: =L$2+L$3*$C64 -> 5.994 | M64: 4.896 | N64: 3.577 | O64: 1.822 | P64: 1.096 | Q64: 0.4693789905 | R64: 0.2715223238 | S64: 0.1622082832 | T64: 0.09643666693 | U64: 0.05823644455 | X64: 0.4910295307 | Y64: =SQRT(Y$2+2*Y$3*$C64+Y$4*$C64^2+Y$5) -> 0.3796709101 | Z64: 0.2954657341 | AA64: 0.224572928 | AB64: 0.1647543626 | AC64: 0.1139473563 | AD64: 0.03940465907 | AE64: 0.02531007631 | AF64: 0.01005408278 | AG64: 0.005324090193 | AH64: 0.004684936824
A65: 6095000 | B65: 535000 | C65: 25.2226666 | E65: 70.98598453 | F65: 0 | G65: 0.00019845168 | H65: 0.02345314836 | K65: 6.223 | L65: 5.994 | M65: 4.896 | N65: 3.577 | O65: 1.822 | P65: 1.096 | Q65: 0.4512192511 | R65: 0.2564200915 | S65: 0.1516241854 | T65: 0.08906267911 | U65: 0.05537078099 | X65: 0.4910295307 | Y65: 0.3796709101 | Z65: 0.2954657341 | AA65: 0.224572928 | AB65: 0.1647543626 | AC65: 0.1139473563 | AD65: 0.04140558248 | AE65: 0.02659614571 | AF65: 0.01104096883 | AG65: 0.005874542385 | AH65: 0.004900842493
A66: 6095000 | B66: 545000 | C66: 25.53333332 | E66: 63.56893896 | F66: 0 | G66: 0.0002474628868 | H66: 0.02960553825 | K66: 6.223 | L66: 5.994 | M66: 4.896 | N66: 3.577 | O66: 1.822 | P66: 1.096 | Q66: 0.4615706662 | R66: 0.2650286663 | S66: 0.1576573331 | T66: 0.09326599981 | U66: 0.05700426659 | X66: 0.4910295307 | Y66: 0.3796709101 | Z66: 0.2954657341 | AA66: 0.224572928 | AB66: 0.1647543626 | AC66: 0.1139473563 | AD66: 0.04012879824 | AE66: 0.02577835874 | AF66: 0.01042195548 | AG66: 0.005529092365 | AH66: 0.00476284556
A67: 6095000 | B67: 555000 | C67: 24.70483875 | E67: 56.9474319 | F67: 0 | G67: 0.0003083555092 | H67: 0.03569349769 | K67: 6.223 | L67: 5.994 | M67: 4.896 | N67: 3.577 | O67: 1.822 | P67: 1.096 | Q67: 0.4339652272 | R67: 0.2420710818 | S67: 0.1415679686 | T67: 0.08205646832 | U67: 0.05264804216 | X67: 0.4910295307 | Y67: 0.3796709101 | Z67: 0.2954657341 | AA67: 0.224572928 | AB67: 0.1647543626 | AC67: 0.1139473563 | AD67: 0.04425220906 | AE67: 0.02840619954 | AF67: 0.01234543412 | AG67: 0.00660186048 | AH67: 0.005210334408
A68: 6095000 | B68: 565000 | C68: 25.53939392 | E68: 51.4296607 | F68: 0 | G68: 0.0003780704043 | H68: 0.0452416713 | K68: 6.223 | L68: 5.994 | M68: 4.896 | N68: 3.577 | O68: 1.822 | P68: 1.096 | Q68: 0.4617726053 | R68: 0.2651966054 | S68: 0.1577750299 | T68: 0.09334799969 | U68: 0.05703613321 | X68: 0.4910295307 | Y68: 0.3796709101 | Z68: 0.2954657341 | AA68: 0.224572928 | AB68: 0.1647543626 | AC68: 0.1139473563 | AD68: 0.0401074084 | AE68: 0.02576459261 | AF68: 0.01041131036 | AG68: 0.005523154276 | AH68: 0.004760539707
A69: 6095000 | B69: 575000 | C69: 26.91875017 | E69: 47.40263706 | F69: 0 | G69: 0.0004450358476 | H69: 0.05613132039 | K69: 6.223 | L69: 5.994 | M69: 4.896 | N69: 3.577 | O69: 1.822 | P69: 1.096 | Q69: 0.5077327556 | R69: 0.3034185671 | S69: 0.1845621282 | T69: 0.1120106898 | U69: 0.06428878838 | X69: 0.4910295307 | Y69: 0.3796709101 | Z69: 0.2954657341 | AA69: 0.224572928 | AB69: 0.1647543626 | AC69: 0.1139473563 | AD69: 0.03913065645 | AE69: 0.02505556881 | AF69: 0.009755321232 | AG69: 0.00517107519 | AH69: 0.004658625009
A70: 6095000 | B70: 585000 | C70: 27.19230758 | E70: 45.26599165 | F70: 0 | G70: 0.0004880405659 | H70: 0.06218095072 | K70: 6.223 | L70: 5.994 | M70: 4.896 | N70: 3.577 | O70: 1.822 | P70: 1.096 | Q70: 0.5168476886 | R70: 0.3109988431 | S70: 0.1898746132 | T70: 0.1157119216 | U70: 0.06572715327 | X70: 0.4910295307 | Y70: 0.3796709101 | Z70: 0.2954657341 | AA70: 0.224572928 | AB70: 0.1647543626 | AC70: 0.1139473563 | AD70: 0.03987441604 | AE70: 0.02550137607 | AF70: 0.01006754172 | AG70: 0.005351323091 | AH70: 0.004740024834
A71: 6095000 | B71: 595000 | C71: 26.13103459 | E71: 45.2880779 | F71: 0 | G71: 0.0004875646633 | H71: 0.05969585801 | K71: 6.223 | L71: 5.994 | M71: 4.896 | N71: 3.577 | O71: 1.822 | P71: 1.096 | Q71: 0.4814860725 | R71: 0.2815909684 | S71: 0.1692646917 | T71: 0.101352898 | U71: 0.06014697986 | X71: 0.4910295307 | Y71: 0.3796709101 | Z71: 0.2954657341 | AA71: 0.224572928 | AB71: 0.1647543626 | AC71: 0.1139473563 | AD71: 0.0387172111 | AE71: 0.02485483999 | AF71: 0.009676666986 | AG71: 0.005115245951 | AH71: 0.004611533236
A72: 6095000 | B72: 605000 | C72: 28.0020835 | E72: 47.46588248 | F72: 0 | G72: 0.0004438506709 | H72: 0.0582348014 | K72: 6.223 | L72: 5.994 | M72: 4.896 | N72: 3.577 | O72: 1.822 | P72: 1.096 | Q72: 0.5438294222 | R72: 0.3334377338 | S72: 0.2056004616 | T72: 0.1266681898 | U72: 0.06998495504 | X72: 0.4910295307 | Y72: 0.3796709101 | Z72: 0.2954657341 | AA72: 0.224572928 | AB72: 0.1647543626 | AC72: 0.1139473563 | AD72: 0.04367714848 | AE72: 0.02783218136 | AF72: 0.0116950386 | AG72: 0.006275307035 | AH72: 0.0051561761
A73: 6095000 | B73: 615000 | C73: 27.61272729 | E73: =(SQRT(($A73-E$1)^2+($B73-E$2)^2)/1000) -> 51.52678915 | F73: =IF(E73=0,1,0) -> 0 | G73: =IF($F$618=0,1/E73^2,F73) -> 0.0003766464156 | H73: =G73/$G$618*C73 -> 0.04873023596 | K73: 6.223 | L73: 5.994 | M73: 4.896 | N73: 3.577 | O73: 1.822 | P73: 1.096 | Q73: 0.5308560732 | R73: 0.3226486731 | S73: 0.1980391639 | T73: 0.1214002002 | U73: 0.06793772007 | X73: 0.4910295307 | Y73: 0.3796709101 | Z73: 0.2954657341 | AA73: 0.224572928 | AB73: 0.1647543626 | AC73: 0.1139473563 | AD73: 0.0415703733 | AE73: 0.02653512972 | AF73: 0.01079600033 | AG73: 0.005766902955 | AH73: 0.004925454384
A74: 6095000 | B74: 625000 | C74: 27.40000002 | E74: 57.0702199 | F74: 0 | G74: 0.0003070300675 | H74: 0.0394172973 | K74: 6.223 | L74: =L$2+L$3*$C74 -> 5.994 | M74: 4.896 | N74: 3.577 | O74: 1.822 | P74: 1.096 | Q74: 0.5237680008 | R74: 0.3167540007 | S74: 0.1939080005 | T74: 0.1185220003 | U74: 0.06681920013 | X74: 0.4910295307 | Y74: =SQRT(Y$2+2*Y$3*$C74+Y$4*$C74^2+Y$5) -> 0.3796709101 | Z74: 0.2954657341 | AA74: 0.224572928 | AB74: 0.1647543626 | AC74: 0.1139473563 | AD74: 0.04063205641 | AE74: 0.02596139448 | AF74: 0.01039242036 | AG74: 0.005537233991 | AH74: 0.004822849791
A75: 6095000 | B75: 635000 | C75: 25.57826092 | E75: 63.71036023 | F75: 0 | G75: 0.0002463654931 | H75: 0.02952611206 | K75: 6.223 | L75: 5.994 | M75: 4.896 | N75: 3.577 | O75: 1.822 | P75: 1.096 | Q75: 0.4630676538 | R75: 0.2662736101 | S75: 0.1585298271 | T75: 0.09387387024 | U75: 0.05724049591 | X75: 0.4910295307 | Y75: 0.3796709101 | Z75: 0.2954657341 | AA75: 0.224572928 | AB75: 0.1647543626 | AC75: 0.1139473563 | AD75: 0.03997354191 | AE75: 0.02567836635 | AF75: 0.01034442721 | AG75: 0.00548585062 | AH75: 0.004746114216
A76: 6095000 | B76: 645000 | C76: 26.47000004 | E76: 71.14077593 | F76: 0 | G76: 0.0001975890188 | H76: 0.02450598246 | K76: 6.223 | L76: 5.994 | M76: 4.896 | N76: 3.577 | O76: 1.822 | P76: 1.096 | Q76: 0.4927804013 | R76: 0.2909837011 | S76: 0.1758474007 | T76: 0.1059391005 | U76: 0.0619292602 | X76: 0.4910295307 | Y76: 0.3796709101 | Z76: 0.2954657341 | AA76: 0.224572928 | AB76: 0.1647543626 | AC76: 0.1139473563 | AD76: 0.03857384491 | AE76: 0.02474041401 | AF76: 0.009556722293 | AG76: 0.005052090795 | AH76: 0.004597029662
A77: 6095000 | B77: 655000 | C77: 26.97254895 | E77: 79.13918119 | F77: 0 | G77: 0.0001596676358 | H77: 0.02017874985 | K77: 6.223 | L77: 5.994 | M77: 4.896 | N77: 3.577 | O77: 1.822 | P77: 1.096 | Q77: 0.5095253311 | R77: 0.3049093315 | S77: 0.1856069007 | T77: 0.1127385873 | U77: 0.06457166239 | X77: 0.4910295307 | Y77: 0.3796709101 | Z77: 0.2954657341 | AA77: 0.224572928 | AB77: 0.1647543626 | AC77: 0.1139473563 | AD77: 0.0392533646 | AE77: 0.02512842808 | AF77: 0.009805765572 | AG77: 0.005200375268 | AH77: 0.004672072633
A78: 6095000 | B78: 665000 | C78: 26.68983065 | E78: 87.55004283 | F78: 0 | G78: 0.000130462974 | H78: 0.01631505207 | K78: 6.223 | L78: 5.994 | M78: 4.896 | N78: 3.577 | O78: 1.822 | P78: 1.096 | Q78: 0.5001051573 | R78: 0.2970752073 | S78: 0.1801165112 | T78: 0.1089134087 | U78: 0.06308512956 | X78: 0.4910295307 | Y78: 0.3796709101 | Z78: 0.2954657341 | AA78: 0.224572928 | AB78: 0.1647543626 | AC78: 0.1139473563 | AD78: 0.03874130495 | AE78: 0.02482885704 | AF78: 0.009603591571 | AG78: 0.005081860918 | AH78: 0.004615801918
A79: 6095000 | B79: 675000 | C79: 25.20847469 | E79: 96.26531047 | F79: 0 | G79: 0.000107909671 | H79: 0.01274565939 | K79: 6.223 | L79: 5.994 | M79: 4.896 | N79: 3.577 | O79: 1.822 | P79: 1.096 | Q79: 0.4507463768 | R79: 0.2560268337 | S79: 0.1513485785 | T79: 0.08887066259 | U79: 0.05529615993 | X79: 0.4910295307 | Y79: 0.3796709101 | Z79: 0.2954657341 | AA79: 0.224572928 | AB79: 0.1647543626 | AC79: 0.1139473563 | AD79: 0.04147208083 | AE79: 0.02663858584 | AF79: 0.01107247821 | AG79: 0.005892126937 | AH79: 0.004908046315
A80: 6095000 | B80: 685000 | C80: 26.08730165 | E80: 105.2093627 | F80: 0 | G80: 9.034231607e-05 | H80: 0.01104271216 | K80: 6.223 | L80: 5.994 | M80: 4.896 | N80: 3.577 | O80: 1.822 | P80: 1.096 | Q80: 0.4800288909 | R80: 0.2803791287 | S80: 0.168415398 | T80: 0.1007611913 | U80: 0.05991703206 | X80: 0.4910295307 | Y80: 0.3796709101 | Z80: 0.2954657341 | AA80: 0.224572928 | AB80: 0.1647543626 | AC80: 0.1139473563 | AD80: 0.03877106138 | AE80: 0.02489164526 | AF80: 0.00970884741 | AG80: 0.005132877208 | AH80: 0.004617232337
A81: 6095000 | B81: 695000 | C81: 26.05714274 | E81: 114.3285179 | F81: 0 | G81: 7.650518208e-05 | H81: 0.009340562202 | K81: 6.223 | L81: 5.994 | M81: 4.896 | N81: 3.577 | O81: 1.822 | P81: 1.096 | Q81: 0.4790239962 | R81: 0.2795434254 | S81: 0.1678297121 | T81: 0.1003531413 | U81: 0.05975845654 | X81: 0.4910295307 | Y81: 0.3796709101 | Z81: 0.2954657341 | AA81: 0.224572928 | AB81: 0.1647543626 | AC81: 0.1139473563 | AD81: 0.03881285939 | AE81: 0.02491993067 | AF81: 0.009733208976 | AG81: 0.005146266701 | AH81: 0.004621667885
A82: 6095000 | B82: 705000 | C82: 25.84126975 | E82: 123.58402 | F82: 0 | G82: 6.547497841e-05 | H82: 0.007927652138 | K82: 6.223 | L82: 5.994 | M82: 4.896 | N82: 3.577 | O82: 1.822 | P82: 1.096 | Q82: 0.4718311081 | R82: 0.2735615848 | S82: 0.1636374586 | T82: 0.09743237972 | U82: 0.05862339635 | X82: 0.4910295307 | Y82: 0.3796709101 | Z82: 0.2954657341 | AA82: 0.224572928 | AB82: 0.1647543626 | AC82: 0.1139473563 | AD82: 0.03922186784 | AE82: 0.02519076638 | AF82: 0.009957948607 | AG82: 0.005270645584 | AH82: 0.004665336514
A83: 6095000 | B83: 715000 | C83: 25.78870976 | E83: 132.9473956 | F83: 0 | G83: 5.657705427e-05 | H83: 0.006836366196 | K83: 6.223 | L83: 5.994 | M83: 4.896 | N83: 3.577 | O83: 1.822 | P83: 1.096 | Q83: 0.4700798093 | R83: 0.2721051475 | S83: 0.1626167436 | T83: 0.0967212431 | U83: 0.05834703594 | X83: 0.4910295307 | Y83: 0.3796709101 | Z83: 0.2954657341 | AA83: 0.224572928 | AB83: 0.1647543626 | AC83: 0.1139473563 | AD83: 0.03935020151 | AE83: 0.02527459913 | AF83: 0.01002562707 | AG83: 0.005308261851 | AH83: 0.004679093802
A84: 6095000 | B84: 725000 | C84: 25.78461559 | E84: 142.3973665 | F84: 0 | G84: 4.931693578e-05 | H84: 0.005958159396 | K84: 6.223 | L84: =L$2+L$3*$C84 -> 5.994 | M84: 4.896 | N84: 3.577 | O84: 1.822 | P84: 1.096 | Q84: 0.4699433915 | R84: 0.271991698 | S84: 0.1625372348 | T84: 0.09666584893 | U84: 0.05832550877 | X84: 0.4910295307 | Y84: =SQRT(Y$2+2*Y$3*$C84+Y$4*$C84^2+Y$5) -> 0.3796709101 | Z84: 0.2954657341 | AA84: 0.224572928 | AB84: 0.1647543626 | AC84: 0.1139473563 | AD84: 0.03936066346 | AE84: 0.0252814188 | AF84: 0.01003110508 | AG84: 0.005311308448 | AH84: 0.004680216092
A85: 6105000 | B85: 465000 | C85: 25.40476168 | E85: 129.7112563 | F85: 0 | G85: 5.943532872e-05 | H85: 0.00707481627 | K85: 6.223 | L85: 5.994 | M85: 4.896 | N85: 3.577 | O85: 1.822 | P85: 1.096 | Q85: 0.4572866591 | R85: 0.2614659461 | S85: 0.1551604718 | T85: 0.0915264255 | U85: 0.0563282369 | X85: 0.4910295307 | Y85: 0.3796709101 | Z85: 0.2954657341 | AA85: 0.224572928 | AB85: 0.1647543626 | AC85: 0.1139473563 | AD85: 0.04061485513 | AE85: 0.02609047254 | AF85: 0.01066111108 | AG85: 0.00566253806 | AH85: 0.004815301732
A86: 6105000 | B86: 475000 | C86: 25.24390235 | E86: 120.1124889 | F86: 0 | G86: 6.931443175e-05 | H86: 0.008198521321 | K86: 6.223 | L86: 5.994 | M86: 4.896 | N86: 3.577 | O86: 1.822 | P86: 1.096 | Q86: 0.4519268262 | R86: 0.257008534 | S86: 0.1520365836 | T86: 0.08934999874 | U86: 0.05548243854 | X86: 0.4910295307 | Y86: 0.3796709101 | Z86: 0.2954657341 | AA86: 0.224572928 | AB86: 0.1647543626 | AC86: 0.1139473563 | AD86: 0.04130737179 | AE86: 0.02653344532 | AF86: 0.01099431868 | AG86: 0.0058485074 | AH86: 0.004890205934
A87: 6105000 | B87: 485000 | C87: 24.88977272 | E87: 110.5848543 | F87: 0 | G87: 8.17727682e-05 | H87: 0.009536411933 | K87: 6.223 | L87: 5.994 | M87: 4.896 | N87: 3.577 | O87: 1.822 | P87: 1.096 | Q87: 0.440127227 | R87: 0.247195602 | S87: 0.1451593862 | T87: 0.08455862488 | U87: 0.05362042495 | X87: 0.4910295307 | Y87: 0.3796709101 | Z87: 0.2954657341 | AA87: 0.224572928 | AB87: 0.1647543626 | AC87: 0.1139473563 | AD87: 0.04314030269 | AE87: 0.02770045607 | AF87: 0.01184545792 | AG87: 0.006323283619 | AH87: 0.00508919559
A88: 6105000 | B88: 495000 | C88: 25.29130438 | E88: 101.1484553 | F88: 0 | G88: 9.774206066e-05 | H88: 0.01158265421 | K88: 6.223 | L88: 5.994 | M88: 4.896 | N88: 3.577 | O88: 1.822 | P88: 1.096 | Q88: 0.453506262 | R88: 0.2583220444 | S88: 0.1529571311 | T88: 0.08999134827 | U88: 0.05573167844 | X88: 0.4910295307 | Y88: 0.3796709101 | Z88: 0.2954657341 | AA88: 0.224572928 | AB88: 0.1647543626 | AC88: 0.1139473563 | AD88: 0.04109378974 | AE88: 0.02639699551 | AF88: 0.01089237739 | AG88: 0.005791612588 | AH88: 0.004867085644
A89: 6105000 | B89: 505000 | C89: 25.8168317 | E89: 91.83142164 | F89: 0 | G89: 0.0001185816215 | H89: 0.01434417913 | K89: 6.223 | L89: 5.994 | M89: 4.896 | N89: 3.577 | O89: 1.822 | P89: 1.096 | Q89: 0.4710168323 | R89: 0.2728844065 | S89: 0.1631628717 | T89: 0.09710173293 | U89: 0.05849490109 | X89: 0.4910295307 | Y89: 0.3796709101 | Z89: 0.2954657341 | AA89: 0.224572928 | AB89: 0.1647543626 | AC89: 0.1139473563 | AD89: 0.03928015565 | AE89: 0.02522888537 | AF89: 0.009988802659 | AG89: 0.005287788868 | AH89: 0.004671582657
A90: 6105000 | B90: 515000 | C90: 25.54893605 | E90: 82.67411929 | F90: 0 | G90: 0.000146305565 | H90: 0.01751414887 | K90: 6.223 | L90: 5.994 | M90: 4.896 | N90: 3.577 | O90: 1.822 | P90: 1.096 | Q90: 0.4620905493 | R90: 0.265461018 | S90: 0.1579603381 | T90: 0.09347710479 | U90: 0.05708630576 | X90: 0.4910295307 | Y90: 0.3796709101 | Z90: 0.2954657341 | AA90: 0.224572928 | AB90: 0.1647543626 | AC90: 0.1139473563 | AD90: 0.04007401238 | AE90: 0.02574309337 | AF90: 0.01039466758 | AG90: 0.00551387099 | AH90: 0.004756940047
A91: 6105000 | B91: 525000 | C91: 25.38888895 | E91: 73.73608343 | F91: 0 | G91: 0.0001839246203 | H91: 0.02187957773 | K91: 6.223 | L91: 5.994 | M91: 4.896 | N91: 3.577 | O91: 1.822 | P91: 1.096 | Q91: 0.4567577797 | R91: 0.2610261127 | S91: 0.1548522233 | T91: 0.09131166745 | U91: 0.05624477808 | X91: 0.4910295307 | Y91: 0.3796709101 | Z91: 0.2954657341 | AA91: 0.224572928 | AB91: 0.1647543626 | AC91: 0.1139473563 | AD91: 0.04067907726 | AE91: 0.02613162595 | AF91: 0.01069235466 | AG91: 0.005679975049 | AH91: 0.004822240438
A92: 6105000 | B92: 535000 | C92: 24.64736836 | E92: 65.10768004 | F92: 0 | G92: 0.000235904138 | H92: 0.02724341125 | K92: 6.223 | L92: 5.994 | M92: 4.896 | N92: 3.577 | O92: 1.822 | P92: 1.096 | Q92: 0.4320503136 | R92: 0.2404785771 | S92: 0.1404518935 | T92: 0.08127889385 | U92: 0.05234586281 | X92: 0.4910295307 | Y92: 0.3796709101 | Z92: 0.2954657341 | AA92: 0.224572928 | AB92: 0.1647543626 | AC92: 0.1139473563 | AD92: 0.04461769535 | AE92: 0.02863794598 | AF92: 0.01250759302 | AG92: 0.006692155543 | AH92: 0.00525021428
A93: 6105000 | B93: 545000 | C93: 25.30847456 | E93: 56.92986914 | F93: 0 | G93: 0.0003085457928 | H93: 0.03658819374 | K93: 6.223 | L93: 5.994 | M93: 4.896 | N93: 3.577 | O93: 1.822 | P93: 1.096 | Q93: 0.4540783722 | R93: 0.25879783 | S93: 0.1532905759 | T93: 0.09022366075 | U93: 0.05582195922 | X93: 0.4910295307 | Y93: 0.3796709101 | Z93: 0.2954657341 | AA93: 0.224572928 | AB93: 0.1647543626 | AC93: 0.1139473563 | AD93: 0.04101836585 | AE93: 0.02634877698 | AF93: 0.01085621086 | AG93: 0.005771427058 | AH93: 0.004858924846
A94: 6105000 | B94: 555000 | C94: 24.84821429 | E94: 49.42681458 | F94: 0 | G94: 0.000409331112 | H94: 0.04765684754 | K94: 6.223 | L94: =L$2+L$3*$C94 -> 5.994 | M94: 4.896 | N94: 3.577 | O94: 1.822 | P94: 1.096 | Q94: 0.4387425 | R94: 0.2460440179 | S94: 0.1443523214 | T94: 0.08399633929 | U94: 0.05340191071 | X94: 0.4910295307 | Y94: =SQRT(Y$2+2*Y$3*$C94+Y$4*$C94^2+Y$5) -> 0.3796709101 | Z94: 0.2954657341 | AA94: 0.224572928 | AB94: 0.1647543626 | AC94: 0.1139473563 | AD94: 0.04338139831 | AE94: 0.0278535873 | AF94: 0.01195477757 | AG94: 0.006384216564 | AH94: 0.005115437328
A95: 6105000 | B95: 565000 | C95: 26.19833339 | E95: 42.95357959 | F95: 0 | G95: 0.0005420024824 | H95: 0.06653195911 | K95: 6.223 | L95: 5.994 | M95: 4.896 | N95: 3.577 | O95: 1.822 | P95: 1.096 | Q95: 0.4837284686 | R95: 0.2834558183 | S95: 0.1705716344 | T95: 0.1022634508 | U95: 0.06050083697 | X95: 0.4910295307 | Y95: 0.3796709101 | Z95: 0.2954657341 | AA95: 0.224572928 | AB95: 0.1647543626 | AC95: 0.1139473563 | AD95: 0.03865004336 | AE95: 0.02480798421 | AF95: 0.00963449671 | AG95: 0.005092285544 | AH95: 0.004604464191
A96: 6105000 | B96: 575000 | C96: 26.62758617 | E96: 38.03958465 | F96: 0 | G96: 0.0006910802275 | H96: 0.08622151271 | K96: 6.223 | L96: 5.994 | M96: 4.896 | N96: 3.577 | O96: 1.822 | P96: 1.096 | Q96: 0.4980311711 | R96: 0.2953504127 | S96: 0.1789077234 | T96: 0.1080712408 | U96: 0.06275784807 | X96: 0.4910295307 | Y96: 0.3796709101 | Z96: 0.2954657341 | AA96: 0.224572928 | AB96: 0.1647543626 | AC96: 0.1139473563 | AD96: 0.03867318282 | AE96: 0.02479086233 | AF96: 0.009580371668 | AG96: 0.005067794912 | AH96: 0.004608246097
A97: 6105000 | B97: 585000 | C97: 26.38235294 | E97: 35.34133557 | F97: 0 | G97: 0.0008006341022 | H97: 0.09896986601 | K97: 6.223 | L97: 5.994 | M97: 4.896 | N97: 3.577 | O97: 1.822 | P97: 1.096 | Q97: 0.48986 | R97: 0.288555 | S97: 0.1741452941 | T97: 0.1047532353 | U97: 0.06146841176 | X97: 0.4910295307 | Y97: 0.3796709101 | Z97: 0.2954657341 | AA97: 0.224572928 | AB97: 0.1647543626 | AC97: 0.1139473563 | AD97: 0.03856418615 | AE97: 0.02474084448 | AF97: 0.009565466018 | AG97: 0.005055777298 | AH97: 0.004595723245
A98: 6105000 | B98: 595000 | C98: 25.87249992 | E98: 35.36961973 | F98: 0 | G98: 0.0007993541219 | H98: 0.09690205445 | K98: 6.223 | L98: 5.994 | M98: 4.896 | N98: 3.577 | O98: 1.822 | P98: 1.096 | Q98: 0.4728716973 | R98: 0.2744269728 | S98: 0.1642439484 | T98: 0.0978549239 | U98: 0.05878760457 | X98: 0.4910295307 | Y98: 0.3796709101 | Z98: 0.2954657341 | AA98: 0.224572928 | AB98: 0.1647543626 | AC98: 0.1139473563 | AD98: 0.03915089288 | AE98: 0.02514423848 | AF98: 0.009920087511 | AG98: 0.005249624234 | AH98: 0.004657736536
A99: 6105000 | B99: 605000 | C99: 26.56052642 | E99: 38.11836828 | F99: 0 | G99: 0.0006882265091 | H99: 0.08564922684 | K99: 6.223 | L99: 5.994 | M99: 4.896 | N99: 3.577 | O99: 1.822 | P99: 1.096 | Q99: 0.4957967404 | R99: 0.2934921871 | S99: 0.1776054231 | T99: 0.1071639225 | U99: 0.06240524792 | X99: 0.4910295307 | Y99: 0.3796709101 | Z99: 0.2954657341 | AA99: 0.224572928 | AB99: 0.1647543626 | AC99: 0.1139473563 | AD99: 0.03861806123 | AE99: 0.02476136063 | AF99: 0.009564131493 | AG99: 0.005057610808 | AH99: 0.004602082923
A100: 6105000 | B100: 615000 | C100: 26.08387092 | E100: 43.06982703 | F100: 0 | G100: 0.0005390806519 | H100: 0.06588418211 | K100: 6.223 | L100: 5.994 | M100: 4.896 | N100: 3.577 | O100: 1.822 | P100: 1.096 | Q100: 0.479914579 | R100: 0.2802840632 | S100: 0.1683487732 | T100: 0.1007147735 | U100: 0.05989899329 | X100: 0.4910295307 | Y100: 0.3796709101 | Z100: 0.2954657341 | AA100: 0.224572928 | AB100: 0.1647543626 | AC100: 0.1139473563 | AD100: 0.03877562459 | AE100: 0.02489474359 | AF100: 0.00971152973 | AG100: 0.005134349888 | AH100: 0.004617716138
A101: 6105000 | B101: 625000 | C101: 26.75961546 | E101: 49.5682358 | F101: 0 | G101: 0.0004069987505 | H101: 0.05103032285 | K101: 6.223 | L101: 5.994 | M101: 4.896 | N101: 3.577 | O101: 1.822 | P101: 1.096 | Q101: 0.5024303871 | R101: 0.2990089443 | S101: 0.1814717322 | T101: 0.1098575971 | U101: 0.06345205808 | X101: 0.4910295307 | Y101: 0.3796709101 | Z101: 0.2954657341 | AA101: 0.224572928 | AB101: 0.1647543626 | AC101: 0.1139473563 | AD101: 0.03883698387 | AE101: 0.02488354252 | AF101: 0.009638877353 | AG101: 0.005102865181 | AH101: 0.004626362927
A102: 6105000 | B102: 655000 | C102: 26.06875006 | E102: 73.91217762 | F102: 0 | G102: 0.0001830492714 | H102: 0.02235854739 | K102: 6.223 | L102: 5.994 | M102: 4.896 | N102: 3.577 | O102: 1.822 | P102: 1.096 | Q102: 0.4794107521 | R102: 0.2798650643 | S102: 0.1680551262 | T102: 0.1005101884 | U102: 0.05981948783 | X102: 0.4910295307 | Y102: 0.3796709101 | Z102: 0.2954657341 | AA102: 0.224572928 | AB102: 0.1647543626 | AC102: 0.1139473563 | AD102: 0.03879632298 | AE102: 0.02490876444 | AF102: 0.009723624309 | AG102: 0.005140995156 | AH102: 0.004619912027
A103: 6105000 | B103: 665000 | C103: 25.25789475 | E103: 82.85535589 | F103: 0 | G103: 0.0001456662117 | H103: 0.01723897131 | K103: 6.223 | L103: 5.994 | M103: 4.896 | N103: 3.577 | O103: 1.822 | P103: 1.096 | Q103: 0.4523930531 | R103: 0.2573962635 | S103: 0.152308316 | T103: 0.08953931597 | U103: 0.0555560106 | X103: 0.4910295307 | Y103: 0.3796709101 | Z103: 0.2954657341 | AA103: 0.224572928 | AB103: 0.1647543626 | AC103: 0.1139473563 | AD103: 0.04124351161 | AE103: 0.02649266118 | AF103: 0.01096391016 | AG103: 0.005831536289 | AH103: 0.004883291403
A104: 6105000 | B104: 675000 | C104: 25.06610182 | E104: 92.01635724 | F104: 0 | G104: 0.0001181054469 | H104: 0.01387113819 | K104: 6.223 | L104: =L$2+L$3*$C104 -> 5.994 | M104: 4.896 | N104: 3.577 | O104: 1.822 | P104: 1.096 | Q104: 0.4460025126 | R104: 0.2520816814 | S104: 0.1485836973 | T104: 0.08694435759 | U104: 0.05454756336 | X104: 0.4910295307 | Y104: =SQRT(Y$2+2*Y$3*$C104+Y$4*$C104^2+Y$5) -> 0.3796709101 | Z104: 0.2954657341 | AA104: 0.224572928 | AB104: 0.1647543626 | AC104: 0.1139473563 | AD104: 0.04217671655 | AE104: 0.02708768657 | AF104: 0.01140282009 | AG104: 0.006076446554 | AH104: 0.004984465161
A105: 6105000 | B105: 685000 | C105: 25.94393938 | E105: 101.3361239 | F105: 0 | G105: 9.738037065e-05 | H105: 0.01183757425 | K105: 6.223 | L105: 5.994 | M105: 4.896 | N105: 3.577 | O105: 1.822 | P105: 1.096 | Q105: 0.4752520602 | R105: 0.2764065603 | S105: 0.1656313028 | T105: 0.09882149984 | U105: 0.05916323327 | X105: 0.4910295307 | Y105: 0.3796709101 | Z105: 0.2954657341 | AA105: 0.224572928 | AB105: 0.1647543626 | AC105: 0.1139473563 | AD105: 0.03900346468 | AE105: 0.02504709426 | AF105: 0.009840197949 | AG105: 0.00520533847 | AH105: 0.00464197432
A106: 6105000 | B106: 695000 | C106: 25.81538456 | E106: 110.7745909 | F106: 0 | G106: 8.149288445e-05 | H106: 0.009857202094 | K106: 6.223 | L106: 5.994 | M106: 4.896 | N106: 3.577 | O106: 1.822 | P106: 1.096 | Q106: 0.4709686134 | R106: 0.2728443061 | S106: 0.1631347681 | T106: 0.09708215305 | U106: 0.058487292 | X106: 0.4910295307 | Y106: 0.3796709101 | Z106: 0.2954657341 | AA106: 0.224572928 | AB106: 0.1647543626 | AC106: 0.1139473563 | AD106: 0.03928368271 | AE106: 0.02523118958 | AF106: 0.009990663291 | AG106: 0.005288823 | AH106: 0.004671960743
A107: 6105000 | B107: 705000 | C107: 25.09516131 | E107: 120.3038237 | F107: 0 | G107: 6.909412762e-05 | H107: 0.008124310278 | K107: 6.223 | L107: 5.994 | M107: 4.896 | N107: 3.577 | O107: 1.822 | P107: 1.096 | Q107: 0.446970775 | R107: 0.25288692 | S107: 0.1491480327 | T107: 0.08733753259 | U107: 0.05470035819 | X107: 0.4910295307 | Y107: 0.3796709101 | Z107: 0.2954657341 | AA107: 0.224572928 | AB107: 0.1647543626 | AC107: 0.1139473563 | AD107: 0.04202743368 | AE107: 0.02699262415 | AF107: 0.01133334547 | AG107: 0.006037688382 | AH107: 0.004968262724
A108: 6105000 | B108: 715000 | C108: 24.87777774 | E108: 129.9038491 | F108: 0 | G108: 5.925922414e-05 | H108: 0.006907532172 | K108: 6.223 | L108: 5.994 | M108: 4.896 | N108: 3.577 | O108: 1.822 | P108: 1.096 | Q108: 0.4397275541 | R108: 0.246863221 | S108: 0.1449264436 | T108: 0.08439633276 | U108: 0.05355735533 | X108: 0.4910295307 | Y108: 0.3796709101 | Z108: 0.2954657341 | AA108: 0.224572928 | AB108: 0.1647543626 | AC108: 0.1139473563 | AD108: 0.04320935551 | AE108: 0.02774432145 | AF108: 0.01187682312 | AG108: 0.006340767298 | AH108: 0.005096710089
A109: 6105000 | B109: 725000 | C109: 25.95692312 | E109: 139.5600588 | F109: 0 | G109: 5.134258287e-05 | H109: 0.006244336452 | K109: 6.223 | L109: 5.994 | M109: 4.896 | N109: 3.577 | O109: 1.822 | P109: 1.096 | Q109: 0.4756846783 | R109: 0.2767663396 | S109: 0.165883447 | T109: 0.09899716979 | U109: 0.05923150175 | X109: 0.4910295307 | Y109: 0.3796709101 | Z109: 0.2954657341 | AA109: 0.224572928 | AB109: 0.1647543626 | AC109: 0.1139473563 | AD109: 0.0389789151 | AE109: 0.02503083582 | AF109: 0.009826695775 | AG109: 0.005197865689 | AH109: 0.004639353495
A110: 6115000 | B110: 465000 | C110: 25.92602743 | E110: 127.3774313 | F110: 0 | G110: 6.163324399e-05 | H110: 0.007486974859 | K110: =K$2+K$3*$C110 -> 6.223 | L110: 5.994 | M110: 4.896 | N110: 3.577 | O110: 1.822 | P110: 1.096 | Q110: 0.4746552339 | R110: 0.27591022 | S110: 0.1652834527 | T110: 0.09857915111 | U110: 0.05906905222 | X110: =SQRT(X$2+2*X$3*$C110+X$4*$C110^2+X$5) -> 0.4910295307 | Y110: 0.3796709101 | Z110: 0.2954657341 | AA110: 0.224572928 | AB110: 0.1647543626 | AC110: 0.1139473563 | AD110: 0.03903846888 | AE110: 0.02507023118 | AF110: 0.009859341771 | AG110: 0.005215940245 | AH110: 0.004645713354
A111: 6115000 | B111: 475000 | C111: 25.67123296 | E111: 117.5883072 | F111: 0 | G111: 7.232221572e-05 | H111: 0.008699089971 | K111: 6.223 | L111: 5.994 | M111: 4.896 | N111: 3.577 | O111: 1.822 | P111: 1.096 | Q111: 0.4661654821 | R111: 0.2688498652 | S111: 0.160335344 | T111: 0.09513178188 | U111: 0.05772934288 | X111: 0.4910295307 | Y111: 0.3796709101 | Z111: 0.2954657341 | AA111: 0.224572928 | AB111: 0.1647543626 | AC111: 0.1139473563 | AD111: 0.03967681718 | AE111: 0.02548671556 | AF111: 0.01019438062 | AG111: 0.005402208186 | AH111: 0.004714176261
A112: 6115000 | B112: 485000 | C112: 25.66235289 | E112: 107.8378876 | F112: 0 | G112: 8.599184281e-05 | H112: 0.01033972767 | K112: 6.223 | L112: 5.994 | M112: 4.896 | N112: 3.577 | O112: 1.822 | P112: 1.096 | Q112: 0.4658695982 | R112: 0.2686037985 | S112: 0.1601628931 | T112: 0.09501163457 | U112: 0.05768265148 | X112: 0.4910295307 | Y112: 0.3796709101 | Z112: 0.2954657341 | AA112: 0.224572928 | AB112: 0.1647543626 | AC112: 0.1139473563 | AD112: 0.03970371286 | AE112: 0.02550412189 | AF112: 0.01020809449 | AG112: 0.005409849551 | AH112: 0.004717068854
A113: 6115000 | B113: 495000 | C113: 25.39569902 | E113: 98.13770937 | F113: 0 | G113: 0.00010383127 | H113: 0.0123550273 | K113: 6.223 | L113: 5.994 | M113: 4.896 | N113: 3.577 | O113: 1.822 | P113: 1.096 | Q113: 0.4569846913 | R113: 0.2612148198 | S113: 0.154984475 | T113: 0.09140380773 | U113: 0.05628058544 | X113: 0.4910295307 | Y113: 0.3796709101 | Z113: 0.2954657341 | AA113: 0.224572928 | AB113: 0.1647543626 | AC113: 0.1139473563 | AD113: 0.04065141126 | AE113: 0.02611389976 | AF113: 0.01067890472 | AG113: 0.005672468606 | AH113: 0.004819251133
A114: 6115000 | B114: 505000 | C114: 25.02095224 | E114: 88.50429368 | F114: 0 | G114: 0.000127664844 | H114: 0.01496685409 | K114: 6.223 | L114: =L$2+L$3*$C114 -> 5.994 | M114: 4.896 | N114: 3.577 | O114: 1.822 | P114: 1.096 | Q114: 0.4444981287 | R114: 0.2508305867 | S114: 0.1477068926 | T114: 0.08633348385 | U114: 0.05431016689 | X114: 0.4910295307 | Y114: =SQRT(Y$2+2*Y$3*$C114+Y$4*$C114^2+Y$5) -> 0.3796709101 | Z114: 0.2954657341 | AA114: 0.224572928 | AB114: 0.1647543626 | AC114: 0.1139473563 | AD114: 0.04241408813 | AE114: 0.02723876419 | AF114: 0.01151276692 | AG114: 0.006137775087 | AH114: 0.0050102414
A115: 6115000 | B115: 515000 | C115: 25.07714293 | E115: 78.96207951 | F115: 0 | G115: 0.0001603846666 | H115: 0.01884500568 | K115: 6.223 | L115: 5.994 | M115: 4.896 | N115: 3.577 | O115: 1.822 | P115: 1.096 | Q115: 0.4463704025 | R115: 0.2523876307 | S115: 0.1487981158 | T115: 0.08709374389 | U115: 0.05460561754 | X115: 0.4910295307 | Y115: 0.3796709101 | Z115: 0.2954657341 | AA115: 0.224572928 | AB115: 0.1647543626 | AC115: 0.1139473563 | AD115: 0.04211967198 | AE115: 0.02705136568 | AF115: 0.01137630287 | AG115: 0.006061653699 | AH115: 0.004978273059
A116: 6115000 | B116: 525000 | C116: 25.11797749 | E116: 69.54861609 | F116: 0 | G116: 0.0002067392873 | H116: 0.02433117337 | K116: 6.223 | L116: 5.994 | M116: 4.896 | N116: 3.577 | O116: 1.822 | P116: 1.096 | Q116: 0.4477310098 | R116: 0.2535191561 | S116: 0.1495911228 | T116: 0.08764623538 | U116: 0.05482032562 | X116: 0.4910295307 | Y116: 0.3796709101 | Z116: 0.2954657341 | AA116: 0.224572928 | AB116: 0.1647543626 | AC116: 0.1139473563 | AD116: 0.04191216538 | AE116: 0.02691919359 | AF116: 0.01127951993 | AG116: 0.006007657917 | AH116: 0.004955756531
A117: 6115000 | B117: 535000 | C117: 25.09767439 | E117: 60.32420741 | F117: 0 | G117: 0.0002748000143 | H117: 0.03231510738 | K117: 6.223 | L117: 5.994 | M117: 4.896 | N117: 3.577 | O117: 1.822 | P117: 1.096 | Q117: 0.4470545107 | R117: 0.2529565574 | S117: 0.1491968367 | T117: 0.08737153452 | U117: 0.05471357195 | X117: 0.4910295307 | Y117: 0.3796709101 | Z117: 0.2954657341 | AA117: 0.224572928 | AB117: 0.1647543626 | AC117: 0.1139473563 | AD117: 0.04201465348 | AE117: 0.0269844839 | AF117: 0.01132738552 | AG117: 0.006034363298 | AH117: 0.004966875925
A118: 6115000 | B118: 545000 | C118: 24.62424241 | E118: 51.39075792 | F118: 0 | G118: 0.0003786430191 | H118: 0.04368659575 | K118: 6.223 | L118: 5.994 | M118: 4.896 | N118: 3.577 | O118: 1.822 | P118: 1.096 | Q118: 0.431279757 | R118: 0.2398377571 | S118: 0.1400027875 | T118: 0.08096599977 | U118: 0.05222426658 | X118: 0.4910295307 | Y118: 0.3796709101 | Z118: 0.2954657341 | AA118: 0.224572928 | AB118: 0.1647543626 | AC118: 0.1139473563 | AD118: 0.04476733624 | AE118: 0.02873280215 | AF118: 0.01257369986 | AG118: 0.00672895784 | AH118: 0.005266550546
A119: 6115000 | B119: 565000 | C119: 25.7929826 | E119: 35.28469923 | F119: 0 | G119: 0.0008032063999 | H119: 0.09706979161 | K119: 6.223 | L119: 5.994 | M119: 4.896 | N119: 3.577 | O119: 1.822 | P119: 1.096 | Q119: 0.4702221803 | R119: 0.2722235479 | S119: 0.1626997222 | T119: 0.09677905462 | U119: 0.05836950253 | X119: 0.4910295307 | Y119: 0.3796709101 | Z119: 0.2954657341 | AA119: 0.224572928 | AB119: 0.1647543626 | AC119: 0.1139473563 | AD119: 0.03933935452 | AE119: 0.02526752634 | AF119: 0.0100199416 | AG119: 0.005305100135 | AH119: 0.004677930323
A120: 6115000 | B120: 575000 | C120: 25.77692308 | E120: 29.10343622 | F120: 0 | G120: 0.001180623605 | H120: 0.1425929026 | K120: 6.223 | L120: 5.994 | M120: 4.896 | N120: 3.577 | O120: 1.822 | P120: 1.096 | Q120: 0.4696870769 | R120: 0.2717785385 | S120: 0.1623878462 | T120: 0.09656176923 | U120: 0.05828506154 | X120: 0.4910295307 | Y120: 0.3796709101 | Z120: 0.2954657341 | AA120: 0.224572928 | AB120: 0.1647543626 | AC120: 0.1139473563 | AD120: 0.03938050151 | AE120: 0.02529434491 | AF120: 0.01004147756 | AG120: 0.0053170778 | AH120: 0.004682344486
A121: 6115000 | B121: 585000 | C121: 26.42702695 | E121: 25.47567467 | F121: 0 | G121: 0.001540808308 | H121: 0.1907885428 | K121: 6.223 | L121: 5.994 | M121: 4.896 | N121: 3.577 | O121: 1.822 | P121: 1.096 | Q121: 0.4913485381 | R121: 0.2897929169 | S121: 0.1750128635 | T121: 0.1053576747 | U121: 0.06170330773 | X121: 0.4910295307 | Y121: 0.3796709101 | Z121: 0.2954657341 | AA121: 0.224572928 | AB121: 0.1647543626 | AC121: 0.1139473563 | AD121: 0.03856503027 | AE121: 0.02473807784 | AF121: 0.009559053388 | AG121: 0.005052788155 | AH121: 0.004595947885
A122: 6115000 | B122: 595000 | C122: 26.42820515 | E122: 25.51489761 | F122: 0 | G122: 0.001536074715 | H122: 0.1902108916 | K122: 6.223 | L122: 5.994 | M122: 4.896 | N122: 3.577 | O122: 1.822 | P122: 1.096 | Q122: 0.4913877955 | R122: 0.2898255646 | S122: 0.175035744 | T122: 0.1053736156 | U122: 0.06170950267 | X122: 0.4910295307 | Y122: 0.3796709101 | Z122: 0.2954657341 | AA122: 0.224572928 | AB122: 0.1647543626 | AC122: 0.1139473563 | AD122: 0.03856516733 | AE122: 0.02473807655 | AF122: 0.009558939283 | AG122: 0.00505274055 | AH122: 0.004595966228
A123: 6115000 | B123: 605000 | C123: 26.65769227 | E123: 29.20633493 | F123: 0 | G123: 0.001172319199 | H123: 0.1464278884 | K123: 6.223 | L123: 5.994 | M123: 4.896 | N123: 3.577 | O123: 1.822 | P123: 1.096 | Q123: 0.4990343066 | R123: 0.2961846529 | S123: 0.179492384 | T123: 0.1084785765 | U123: 0.06291614597 | X123: 0.4910295307 | Y123: 0.3796709101 | Z123: 0.2954657341 | AA123: 0.224572928 | AB123: 0.1647543626 | AC123: 0.1139473563 | AD123: 0.03870409816 | AE123: 0.02480796648 | AF123: 0.00959062649 | AG123: 0.005074045806 | AH123: 0.00461168055
A124: 6115000 | B124: 615000 | C124: 25.49859157 | E124: 35.42612031 | F124: 0 | G124: 0.0007968063999 | H124: 0.09519724455 | K124: 6.223 | L124: =L$2+L$3*$C124 -> 5.994 | M124: 4.896 | N124: 3.577 | O124: 1.822 | P124: 1.096 | Q124: 0.4604130711 | R124: 0.2640659724 | S124: 0.1569826483 | T124: 0.09279594395 | U124: 0.05682159448 | X124: 0.4910295307 | Y124: =SQRT(Y$2+2*Y$3*$C124+Y$4*$C124^2+Y$5) -> 0.3796709101 | Z124: 0.2954657341 | AA124: 0.224572928 | AB124: 0.1647543626 | AC124: 0.1139473563 | AD124: 0.04025407995 | AE124: 0.02585892974 | AF124: 0.01048408666 | AG124: 0.005563754313 | AH124: 0.004776355706
A125: 6115000 | B125: 625000 | C125: 26.98363616 | E125: 43.09303888 | F125: 0 | G125: 0.0005385000619 | H125: 0.06808345737 | K125: 6.223 | L125: 5.994 | M125: 4.896 | N125: 3.577 | O125: 1.822 | P125: 1.096 | Q125: 0.5098947569 | R125: 0.3052165581 | S125: 0.1858222143 | T125: 0.1128885973 | U125: 0.06462995894 | X125: 0.4910295307 | Y125: 0.3796709101 | Z125: 0.2954657341 | AA125: 0.224572928 | AB125: 0.1647543626 | AC125: 0.1139473563 | AD125: 0.03928010639 | AE125: 0.02514435633 | AF125: 0.009816843425 | AG125: 0.005206797006 | AH125: 0.004675001782
A126: 6115000 | B126: 635000 | C126: 26.41428566 | E126: 51.5655893 | F126: 0 | G126: 0.0003760798192 | H126: 0.04654513255 | K126: 6.223 | L126: 5.994 | M126: 4.896 | N126: 3.577 | O126: 1.822 | P126: 1.096 | Q126: 0.4909239982 | R126: 0.2894398556 | S126: 0.1747654275 | T126: 0.105185285 | U126: 0.061636314 | X126: 0.4910295307 | Y126: 0.3796709101 | Z126: 0.2954657341 | AA126: 0.224572928 | AB126: 0.1647543626 | AC126: 0.1139473563 | AD126: 0.03856392493 | AE126: 0.02473832708 | AF126: 0.009560468038 | AG126: 0.005053405523 | AH126: 0.004595790287
A127: 6115000 | B127: 655000 | C127: 25.60227277 | E127: 69.73528519 | F127: 0 | G127: 0.0002056339592 | H127: 0.02466770406 | K127: 6.223 | L127: 5.994 | M127: 4.896 | N127: 3.577 | O127: 1.822 | P127: 1.096 | Q127: 0.4638677287 | R127: 0.2669389785 | S127: 0.1589961372 | T127: 0.09419875059 | U127: 0.05736675023 | X127: 0.4910295307 | Y127: 0.3796709101 | Z127: 0.2954657341 | AA127: 0.224572928 | AB127: 0.1647543626 | AC127: 0.1139473563 | AD127: 0.03989371697 | AE127: 0.02562688517 | AF127: 0.01030431812 | AG127: 0.00546348513 | AH127: 0.00473751698
A128: 6115000 | B128: 665000 | C128: 24.69999992 | E128: 79.15181615 | F128: 0 | G128: 0.0001596166646 | H128: 0.01847270756 | K128: 6.223 | L128: 5.994 | M128: 4.896 | N128: 3.577 | O128: 1.822 | P128: 1.096 | Q128: 0.4338039972 | R128: 0.2419369977 | S128: 0.1414739984 | T128: 0.08199099885 | U128: 0.05262259955 | X128: 0.4910295307 | Y128: 0.3796709101 | Z128: 0.2954657341 | AA128: 0.224572928 | AB128: 0.1647543626 | AC128: 0.1139473563 | AD128: 0.04428262692 | AE128: 0.02842549066 | AF128: 0.01235896864 | AG128: 0.006609397987 | AH128: 0.005213652329
A129: 6115000 | B129: 675000 | C129: 24.60327868 | E129: 88.69616677 | F129: 0 | G129: 0.0001271130963 | H129: 0.01465340845 | K129: 6.223 | L129: 5.994 | M129: 4.896 | N129: 3.577 | O129: 1.822 | P129: 1.096 | Q129: 0.4305812455 | R129: 0.2392568521 | S129: 0.1395956719 | T129: 0.08068236049 | U129: 0.05211403928 | X129: 0.4910295307 | Y129: 0.3796709101 | Z129: 0.2954657341 | AA129: 0.224572928 | AB129: 0.1647543626 | AC129: 0.1139473563 | AD129: 0.044904242 | AE129: 0.02881957248 | AF129: 0.01263403991 | AG129: 0.006762545658 | AH129: 0.005281500643
A130: 6115000 | B130: 685000 | C130: 25.20161293 | E130: 98.33112427 | F130: 0 | G130: 0.0001034232047 | H130: 0.01221241909 | K130: 6.223 | L130: 5.994 | M130: 4.896 | N130: 3.577 | O130: 1.822 | P130: 1.096 | Q130: 0.450517743 | R130: 0.2558366944 | S130: 0.1512153232 | T130: 0.088777823 | U130: 0.05526008081 | X130: 0.4910295307 | Y130: 0.3796709101 | Z130: 0.2954657341 | AA130: 0.224572928 | AB130: 0.1647543626 | AC130: 0.1139473563 | AD130: 0.04150447968 | AE130: 0.0266592592 | AF130: 0.01108780778 | AG130: 0.005900681801 | AH130: 0.004911556634
A131: 6115000 | B131: 695000 | C131: 25.33787866 | E131: 108.0324488 | F131: 0 | G131: 8.568238739e-05 | H131: 0.01017225369 | K131: 6.223 | L131: 5.994 | M131: 4.896 | N131: 3.577 | O131: 1.822 | P131: 1.096 | Q131: 0.455058117 | R131: 0.2596126177 | S131: 0.1538616036 | T131: 0.09062149828 | U131: 0.055976566 | X131: 0.4910295307 | Y131: 0.3796709101 | Z131: 0.2954657341 | AA131: 0.224572928 | AB131: 0.1647543626 | AC131: 0.1139473563 | AD131: 0.04089162316 | AE131: 0.02626770804 | AF131: 0.01079523016 | AG131: 0.005737391907 | AH131: 0.004845216091
A132: 6115000 | B132: 705000 | C132: 24.91999995 | E132: 117.7837425 | F132: 0 | G132: 7.208241038e-05 | H132: 0.008416522903 | K132: 6.223 | L132: 5.994 | M132: 4.896 | N132: 3.577 | O132: 1.822 | P132: 1.096 | Q132: 0.4411343983 | R132: 0.2480331986 | S132: 0.145746399 | T132: 0.08496759931 | U132: 0.05377935973 | X132: 0.4910295307 | Y132: 0.3796709101 | Z132: 0.2954657341 | AA132: 0.224572928 | AB132: 0.1647543626 | AC132: 0.1139473563 | AD132: 0.04296823227 | AE132: 0.02759112484 | AF132: 0.01176710411 | AG132: 0.006279603118 | AH132: 0.00507047567
A133: 6115000 | B133: 865000 | C133: 28.5603446 | E133: 276.2336149 | F133: 0 | G133: 1.310529938e-05 | H133: 0.001753742236 | K133: 6.223 | L133: 5.994 | M133: 4.896 | N133: 3.577 | O133: 1.822 | P133: 1.096 | Q133: 0.562430682 | R133: 0.3489071488 | S133: 0.2164418921 | T133: 0.1342214624 | U133: 0.07292029189 | X133: 0.4910295307 | Y133: 0.3796709101 | Z133: 0.2954657341 | AA133: 0.224572928 | AB133: 0.1647543626 | AC133: 0.1139473563 | AD133: 0.04745426244 | AE133: 0.03017396743 | AF133: 0.01326938097 | AG133: 0.007158932674 | AH133: 0.005571271999
A134: 6115000 | B134: 875000 | C134: 28.06999989 | E134: 286.1940076 | F134: 0 | G134: 1.220896722e-05 | H134: 0.001605745488 | K134: 6.223 | L134: =L$2+L$3*$C134 -> 5.994 | M134: 4.896 | N134: 3.577 | O134: 1.822 | P134: 1.096 | Q134: 0.5460923962 | R134: 0.3353196968 | S134: 0.2069193978 | T134: 0.1275870985 | U134: 0.0703420594 | X134: 0.4910295307 | Y134: =SQRT(Y$2+2*Y$3*$C134+Y$4*$C134^2+Y$5) -> 0.3796709101 | Z134: 0.2954657341 | AA134: 0.224572928 | AB134: 0.1647543626 | AC134: 0.1139473563 | AD134: 0.04409207465 | AE134: 0.02808860374 | AF134: 0.01187039569 | AG134: 0.006374085287 | AH134: 0.005201683659
A135: 6115000 | B135: 885000 | C135: 28.50819691 | E135: 296.1570698 | F135: 0 | G135: 1.140133722e-05 | H135: 0.001522933404 | K135: 6.223 | L135: 5.994 | M135: 4.896 | N135: 3.577 | O135: 1.822 | P135: 1.096 | Q135: 0.560693121 | R135: 0.3474621363 | S135: 0.215429184 | T135: 0.1335159042 | U135: 0.07264609935 | X135: 0.4910295307 | Y135: 0.3796709101 | Z135: 0.2954657341 | AA135: 0.224572928 | AB135: 0.1647543626 | AC135: 0.1139473563 | AD135: 0.04706833272 | AE135: 0.02993404216 | AF135: 0.01311071285 | AG135: 0.007070159797 | AH135: 0.005528774969
A136: 6115000 | B136: 895000 | C136: 28.96615389 | E136: 306.1225408 | F136: 0 | G136: 1.067110471e-05 | H136: 0.001448290183 | K136: 6.223 | L136: 5.994 | M136: 4.896 | N136: 3.577 | O136: 1.822 | P136: 1.096 | Q136: 0.5759522477 | R136: 0.3601521244 | S136: 0.2243227086 | T136: 0.1397120622 | U136: 0.07505403717 | X136: 0.4910295307 | Y136: 0.3796709101 | Z136: 0.2954657341 | AA136: 0.224572928 | AB136: 0.1647543626 | AC136: 0.1139473563 | AD136: 0.05065810996 | AE136: 0.0321697898 | AF136: 0.01456952961 | AG136: 0.007884576757 | AH136: 0.005924748057
A137: 6125000 | B137: 475000 | C137: 25.11686746 | E137: =(SQRT(($A137-E$1)^2+($B137-E$2)^2)/1000) -> 115.8749757 | F137: =IF(E137=0,1,0) -> 0 | G137: =IF($F$618=0,1/E137^2,F137) -> 7.447674501e-05 | H137: =G137/$G$618*C137 -> 0.008764790366 | K137: 6.223 | L137: 5.994 | M137: 4.896 | N137: 3.577 | O137: 1.822 | P137: 1.096 | Q137: 0.4476940236 | R137: 0.2534883972 | S137: 0.149569566 | T137: 0.08763121668 | U137: 0.05481448908 | X137: 0.4910295307 | Y137: 0.3796709101 | Z137: 0.2954657341 | AA137: 0.224572928 | AB137: 0.1647543626 | AC137: 0.1139473563 | AD137: 0.04191773353 | AE137: 0.02692274131 | AF137: 0.01128212372 | AG137: 0.006009110681 | AH137: 0.004956360564
A138: 6125000 | B138: 485000 | C138: 25.99529408 | E138: 105.9670232 | F138: 0 | G138: 8.905504581e-05 | H138: 0.01084697497 | K138: 6.223 | L138: 5.994 | M138: 4.896 | N138: 3.577 | O138: 1.822 | P138: 1.096 | Q138: 0.4769631987 | R138: 0.2778295989 | S138: 0.166628611 | T138: 0.09951632887 | U138: 0.05943325626 | X138: 0.4910295307 | Y138: 0.3796709101 | Z138: 0.2954657341 | AA138: 0.224572928 | AB138: 0.1647543626 | AC138: 0.1139473563 | AD138: 0.03891042337 | AE138: 0.02498531422 | AF138: 0.009788645734 | AG138: 0.00517683099 | AH138: 0.004632048947
A139: 6125000 | B139: 495000 | C139: 25.4221238 | E139: 96.07814528 | F139: 0 | G139: 0.0001083305077 | H139: 0.01290381059 | K139: 6.223 | L139: 5.994 | M139: 4.896 | N139: 3.577 | O139: 1.822 | P139: 1.096 | Q139: 0.457865165 | R139: 0.2619470505 | S139: 0.1554976442 | T139: 0.091761335 | U139: 0.05641952694 | X139: 0.4910295307 | Y139: 0.3796709101 | Z139: 0.2954657341 | AA139: 0.224572928 | AB139: 0.1647543626 | AC139: 0.1139473563 | AD139: 0.04054565663 | AE139: 0.02604611032 | AF139: 0.01062735976 | AG139: 0.005643702066 | AH139: 0.004807827277
A140: 6125000 | B140: 505000 | C140: 24.95523811 | E140: 86.2149059 | F140: 0 | G140: 0.000134535 | H140: 0.01573085662 | K140: 6.223 | L140: 5.994 | M140: 4.896 | N140: 3.577 | O140: 1.822 | P140: 1.096 | Q140: 0.4423085337 | R140: 0.2490096479 | S140: 0.146430724 | T140: 0.08544437158 | U140: 0.05396464196 | X140: 0.4910295307 | Y140: 0.3796709101 | Z140: 0.2954657341 | AA140: 0.224572928 | AB140: 0.1647543626 | AC140: 0.1139473563 | AD140: 0.0427711831 | AE140: 0.02746587689 | AF140: 0.01167702272 | AG140: 0.006229377303 | AH140: 0.005049047556
A141: 6125000 | B141: 515000 | C141: 24.82549022 | E141: 76.38723715 | F141: 0 | G141: 0.0001713793121 | H141: 0.01993478703 | K141: 6.223 | L141: 5.994 | M141: 4.896 | N141: 3.577 | O141: 1.822 | P141: 1.096 | Q141: 0.4379853342 | R141: 0.2454143341 | S141: 0.1439110201 | T141: 0.08368888271 | U141: 0.05328242759 | X141: 0.4910295307 | Y141: 0.3796709101 | Z141: 0.2954657341 | AA141: 0.224572928 | AB141: 0.1647543626 | AC141: 0.1139473563 | AD141: 0.04351541501 | AE141: 0.02793868047 | AF141: 0.01201531748 | AG141: 0.006417955228 | AH141: 0.005130030329
A142: 6125000 | B142: 525000 | C142: 24.87582427 | E142: 66.610885 | F142: 0 | G142: 0.0002253769994 | H142: 0.0262689337 | K142: 6.223 | L142: 5.994 | M142: 4.896 | N142: 3.577 | O142: 1.822 | P142: 1.096 | Q142: 0.4396624646 | R142: 0.2468090905 | S142: 0.1448885073 | T142: 0.08436990235 | U142: 0.053547084 | X142: 0.4910295307 | Y142: 0.3796709101 | Z142: 0.2954657341 | AA142: 0.224572928 | AB142: 0.1647543626 | AC142: 0.1139473563 | AD142: 0.04322064247 | AE142: 0.0277514909 | AF142: 0.01188194567 | AG142: 0.00634362263 | AH142: 0.005097938476
A143: 6125000 | B143: 535000 | C143: 25.22000008 | E143: 56.91230096 | F143: 0 | G143: 0.0003087363114 | H143: 0.03648280035 | K143: 6.223 | L143: 5.994 | M143: 4.896 | N143: 3.577 | O143: 1.822 | P143: 1.096 | Q143: 0.4511304025 | R143: 0.2563462021 | S143: 0.1515724015 | T143: 0.08902660103 | U143: 0.0553567604 | X143: 0.4910295307 | Y143: 0.3796709101 | Z143: 0.2954657341 | AA143: 0.224572928 | AB143: 0.1647543626 | AC143: 0.1139473563 | AD143: 0.04141802422 | AE143: 0.02660408705 | AF143: 0.01104686889 | AG143: 0.005877835085 | AH143: 0.004902190207
A144: 6125000 | B144: 545000 | C144: 25.20845077 | E144: 47.33930713 | F144: 0 | G144: 0.0004462273707 | H144: 0.05270571794 | K144: 6.223 | L144: =L$2+L$3*$C144 -> 5.994 | M144: 4.896 | N144: 3.577 | O144: 1.822 | P144: 1.096 | Q144: 0.4507455798 | R144: 0.2560261709 | S144: 0.151348114 | T144: 0.08887033897 | U144: 0.05529603417 | X144: 0.4910295307 | Y144: =SQRT(Y$2+2*Y$3*$C144+Y$4*$C144^2+Y$5) -> 0.3796709101 | Z144: 0.2954657341 | AA144: 0.224572928 | AB144: 0.1647543626 | AC144: 0.1139473563 | AD144: 0.04147219349 | AE144: 0.02663865773 | AF144: 0.01107253154 | AG144: 0.005892156698 | AH144: 0.00490805852
A145: 6125000 | B145: 555000 | C145: 25.8051723 | E145: 37.98697145 | F145: 0 | G145: 0.0006929958905 | H145: 0.08379011648 | K145: 6.223 | L145: 5.994 | M145: 4.896 | N145: 3.577 | O145: 1.822 | P145: 1.096 | Q145: 0.4706283409 | R145: 0.2725613243 | S145: 0.162936446 | T145: 0.09694398116 | U145: 0.05843359593 | X145: 0.4910295307 | Y145: 0.3796709101 | Z145: 0.2954657341 | AA145: 0.224572928 | AB145: 0.1647543626 | AC145: 0.1139473563 | AD145: 0.03930881178 | AE145: 0.02524759887 | AF145: 0.0100038996 | AG145: 0.005296180674 | AH145: 0.004674654875
A146: 6125000 | B146: 565000 | C146: 25.87741944 | E146: 29.06905571 | F146: 0 | G146: 0.001183417948 | H146: 0.1434876386 | K146: 6.223 | L146: 5.994 | M146: 4.896 | N146: 3.577 | O146: 1.822 | P146: 1.096 | Q146: 0.4730356158 | R146: 0.2745632927 | S146: 0.1643394855 | T146: 0.09792148504 | U146: 0.05881347142 | X146: 0.4910295307 | Y146: 0.3796709101 | Z146: 0.2954657341 | AA146: 0.224572928 | AB146: 0.1647543626 | AC146: 0.1139473563 | AD146: 0.03914007319 | AE146: 0.02513713357 | AF146: 0.009914285076 | AG146: 0.005246404256 | AH146: 0.00465657857
A147: 6125000 | B147: 575000 | C147: 25.34406785 | E147: 21.142611 | F147: 0 | G147: 0.002237086419 | H147: 0.2656528353 | K147: 6.223 | L147: 5.994 | M147: 4.896 | N147: 3.577 | O147: 1.822 | P147: 1.096 | Q147: 0.4552643407 | R147: 0.2597841201 | S147: 0.1539817976 | T147: 0.09070523799 | U147: 0.05600910875 | X147: 0.4910295307 | Y147: 0.3796709101 | Z147: 0.2954657341 | AA147: 0.224572928 | AB147: 0.1647543626 | AC147: 0.1139473563 | AD147: 0.04086533714 | AE147: 0.02625088764 | AF147: 0.01078254966 | AG147: 0.005730314561 | AH147: 0.004842373693
A148: 6125000 | B148: 585000 | C148: 24.86578949 | E148: 15.7800507 | F148: 0 | G148: 0.004015902976 | H148: 0.4678868464 | K148: 6.223 | L148: 5.994 | M148: 4.896 | N148: 3.577 | O148: 1.822 | P148: 1.096 | Q148: 0.4393281058 | R148: 0.2465310267 | S148: 0.1446936319 | T148: 0.08423413178 | U148: 0.05349432113 | X148: 0.4910295307 | Y148: 0.3796709101 | Z148: 0.2954657341 | AA148: 0.224572928 | AB148: 0.1647543626 | AC148: 0.1139473563 | AD148: 0.0432788039 | AE148: 0.02778843265 | AF148: 0.01190832344 | AG148: 0.006358325298 | AH148: 0.005104268825
A149: 6125000 | B149: 595000 | C149: 26.41714287 | E149: 15.84329511 | F149: 0 | G149: 0.003983905024 | H149: 0.4931172476 | K149: 6.223 | L149: 5.994 | M149: 4.896 | N149: 3.577 | O149: 1.822 | P149: 1.096 | Q149: 0.4910192004 | R149: 0.2895190289 | S149: 0.1748209145 | T149: 0.105223943 | U149: 0.0616513372 | X149: 0.4910295307 | Y149: 0.3796709101 | Z149: 0.2954657341 | AA149: 0.224572928 | AB149: 0.1647543626 | AC149: 0.1139473563 | AD149: 0.03856411279 | AE149: 0.02473823371 | AF149: 0.009560122037 | AG149: 0.00505325075 | AH149: 0.004595819137
A150: 6125000 | B150: 605000 | C150: 27.29402986 | E150: 21.28403157 | F150: 0 | G150: 0.002207456789 | H150: 0.2823028387 | K150: 6.223 | L150: 5.994 | M150: 4.896 | N150: 3.577 | O150: 1.822 | P150: 1.096 | Q150: 0.520237075 | R150: 0.3138175675 | S150: 0.1918500599 | T150: 0.117088224 | U150: 0.06626200902 | X150: 0.4910295307 | Y150: 0.3796709101 | Z150: 0.2954657341 | AA150: 0.224572928 | AB150: 0.1647543626 | AC150: 0.1139473563 | AD150: 0.04022531553 | AE150: 0.02571395183 | AF150: 0.01021767248 | AG150: 0.005437379071 | AH150: 0.004778386849
A151: 6125000 | B151: 615000 | C151: 26.38928556 | E151: 29.24055403 | F151: 0 | G151: 0.001169576964 | H151: 0.14461449 | K151: 6.223 | L151: 5.994 | M151: 4.896 | N151: 3.577 | O151: 1.822 | P151: 1.096 | Q151: 0.490090995 | R151: 0.288747103 | S151: 0.1742799257 | T151: 0.1048470337 | U151: 0.0615048635 | X151: 0.4910295307 | Y151: 0.3796709101 | Z151: 0.2954657341 | AA151: 0.224572928 | AB151: 0.1647543626 | AC151: 0.1139473563 | AD151: 0.03856376113 | AE151: 0.02474006802 | AF151: 0.009564204583 | AG151: 0.005055162264 | AH151: 0.004595697957
A152: 6125000 | B152: 635000 | C152: 25.84680845 | E152: 47.52904375 | F152: 0 | G152: 0.0004426717899 | H152: 0.05360979453 | K152: 6.223 | L152: 5.994 | M152: 4.896 | N152: 3.577 | O152: 1.822 | P152: 1.096 | Q152: 0.4720156577 | R152: 0.2737150623 | S152: 0.1637450202 | T152: 0.09750731838 | U152: 0.05865251885 | X152: 0.4910295307 | Y152: 0.3796709101 | Z152: 0.2954657341 | AA152: 0.224572928 | AB152: 0.1647543626 | AC152: 0.1139473563 | AD152: 0.03920899232 | AE152: 0.0251823354 | AF152: 0.009951105061 | AG152: 0.005266844574 | AH152: 0.004663957319
A153: 6125000 | B153: 645000 | C153: 25.57826075 | E153: 57.1052537 | F153: 0 | G153: 0.0003066534601 | H153: 0.0367514308 | K153: 6.223 | L153: 5.994 | M153: 4.896 | N153: 3.577 | O153: 1.822 | P153: 1.096 | Q153: 0.4630676483 | R153: 0.2662736055 | S153: 0.1585298238 | T153: 0.09387386799 | U153: 0.05724049504 | X153: 0.4910295307 | Y153: 0.3796709101 | Z153: 0.2954657341 | AA153: 0.224572928 | AB153: 0.1647543626 | AC153: 0.1139473563 | AD153: 0.03997354247 | AE153: 0.02567836671 | AF153: 0.01034442749 | AG153: 0.005485850777 | AH153: 0.004746114276
A154: 6125000 | B154: 655000 | C154: 25.27547163 | E154: 66.80576322 | F154: 0 | G154: 0.0002240640285 | H154: 0.02653546974 | K154: 6.223 | L154: =L$2+L$3*$C154 -> 5.994 | M154: 4.896 | N154: 3.577 | O154: 1.822 | P154: 1.096 | Q154: 0.4529787148 | R154: 0.257883319 | S154: 0.1526496591 | T154: 0.0897771312 | U154: 0.05564842985 | X154: 0.4910295307 | Y154: =SQRT(Y$2+2*Y$3*$C154+Y$4*$C154^2+Y$5) -> 0.3796709101 | Z154: 0.2954657341 | AA154: 0.224572928 | AB154: 0.1647543626 | AC154: 0.1139473563 | AD154: 0.04116425646 | AE154: 0.02644202893 | AF154: 0.01092608678 | AG154: 0.005810426539 | AH154: 0.004874711918
A155: 6125000 | B155: 665000 | C155: 25.23235299 | E155: 76.58335328 | F155: 0 | G155: 0.0001705026931 | H155: 0.0201578573 | K155: 6.223 | L155: 5.994 | M155: 4.896 | N155: 3.577 | O155: 1.822 | P155: 1.096 | Q155: 0.4515420015 | R155: 0.2566885012 | S155: 0.151812295 | T155: 0.0891937359 | U155: 0.055421712 | X155: 0.4910295307 | Y155: 0.3796709101 | Z155: 0.2954657341 | AA155: 0.224572928 | AB155: 0.1647543626 | AC155: 0.1139473563 | AD155: 0.04136059233 | AE155: 0.02656742595 | AF155: 0.01101961559 | AG155: 0.005862625458 | AH155: 0.004895969502
A156: 6125000 | B156: 675000 | C156: 25.57288138 | E156: 86.41186261 | F156: 0 | G156: 0.0001339224134 | H156: 0.01604679494 | K156: 6.223 | L156: 5.994 | M156: 4.896 | N156: 3.577 | O156: 1.822 | P156: 1.096 | Q156: 0.4628884074 | R156: 0.2661245429 | S156: 0.1584253563 | T156: 0.09380108501 | U156: 0.05721221027 | X156: 0.4910295307 | Y156: 0.3796709101 | Z156: 0.2954657341 | AA156: 0.224572928 | AB156: 0.1647543626 | AC156: 0.1139473563 | AD156: 0.03999172781 | AE156: 0.02569008792 | AF156: 0.01035354064 | AG156: 0.005490932996 | AH156: 0.004748073363
A157: 6125000 | B157: 685000 | C157: 26.07868842 | E157: 96.27569787 | F157: 0 | G157: 0.000107886387 | H157: 0.01318280314 | K157: 6.223 | L157: 5.994 | M157: 4.896 | N157: 3.577 | O157: 1.822 | P157: 1.096 | Q157: 0.4797418981 | R157: 0.2801404561 | S157: 0.1682481291 | T157: 0.1006446543 | U157: 0.0598717437 | X157: 0.4910295307 | Y157: 0.3796709101 | Z157: 0.2954657341 | AA157: 0.224572928 | AB157: 0.1647543626 | AC157: 0.1139473563 | AD157: 0.03878261114 | AE157: 0.02489948206 | AF157: 0.009715625043 | AG157: 0.005136599137 | AH157: 0.004618457089
A158: 6125000 | B158: 695000 | C158: 26.52058834 | E158: 106.1650131 | F158: 0 | G158: 8.87231934e-05 | H158: 0.0110249262 | K158: 6.223 | L158: 5.994 | M158: 4.896 | N158: 3.577 | O158: 1.822 | P158: 1.096 | Q158: 0.4944660036 | R158: 0.292385503 | S158: 0.1768298256 | T158: 0.1066235603 | U158: 0.0621952535 | X158: 0.4910295307 | Y158: 0.3796709101 | Z158: 0.2954657341 | AA158: 0.224572928 | AB158: 0.1647543626 | AC158: 0.1139473563 | AD158: 0.03859427046 | AE158: 0.02474944217 | AF158: 0.009558803906 | AG158: 0.005054007884 | AH158: 0.004599390158
A159: 6125000 | B159: 705000 | C159: 26.75571428 | E159: 116.0732958 | F159: 0 | G159: 7.422246402e-05 | H159: 0.009304805281 | K159: 6.223 | L159: 5.994 | M159: 4.896 | N159: 3.577 | O159: 1.822 | P159: 1.096 | Q159: 0.5023003998 | R159: 0.2989008427 | S159: 0.1813959713 | T159: 0.1098048142 | U159: 0.06343154569 | X159: 0.4910295307 | Y159: 0.3796709101 | Z159: 0.2954657341 | AA159: 0.224572928 | AB159: 0.1647543626 | AC159: 0.1139473563 | AD159: 0.03883109893 | AE159: 0.02488014951 | AF159: 0.009636648272 | AG159: 0.005101546 | AH159: 0.004625714469
A160: 6125000 | B160: 715000 | C160: 27.70526314 | E160: 125.9960714 | F160: 0 | G160: 6.29920863e-05 | H160: 0.008177181616 | K160: 6.223 | L160: 5.994 | M160: 4.896 | N160: 3.577 | O160: 1.822 | P160: 1.096 | Q160: 0.5339393678 | R160: 0.3252128415 | S160: 0.1998362101 | T160: 0.1226522103 | U160: 0.06842427358 | X160: 0.4910295307 | Y160: 0.3796709101 | Z160: 0.2954657341 | AA160: 0.224572928 | AB160: 0.1647543626 | AC160: 0.1139473563 | AD160: 0.04202710973 | AE160: 0.02681546783 | AF160: 0.01099199407 | AG160: 0.005878065253 | AH160: 0.004975427831
A161: 6125000 | B161: 865000 | C161: 28.36499993 | E161: 275.5086387 | F161: 0 | G161: 1.317436095e-05 | H161: 0.001750925698 | K161: 6.223 | L161: 5.994 | M161: 4.896 | N161: 3.577 | O161: 1.822 | P161: 1.096 | Q161: 0.5559217977 | R161: 0.3434941481 | S161: 0.2126482986 | T161: 0.1315784491 | U161: 0.07189316963 | X161: 0.4910295307 | Y161: 0.3796709101 | Z161: 0.2954657341 | AA161: 0.224572928 | AB161: 0.1647543626 | AC161: 0.1139473563 | AD161: 0.04604173685 | AE161: 0.02929645377 | AF161: 0.01268629773 | AG161: 0.006832427957 | AH161: 0.005415821622
A162: 6125000 | B162: 875000 | C162: 29.10512817 | E162: 285.4943257 | F162: 0 | G162: 1.226888338e-05 | H162: 0.001673130923 | K162: 6.223 | L162: 5.994 | M162: 4.896 | N162: 3.577 | O162: 1.822 | P162: 1.096 | Q162: 0.5805828705 | R162: 0.3640031015 | S162: 0.227021589 | T162: 0.1415923841 | U162: 0.0757847639 | X162: 0.4910295307 | Y162: 0.3796709101 | Z162: 0.2954657341 | AA162: 0.224572928 | AB162: 0.1647543626 | AC162: 0.1139473563 | AD162: 0.05182954403 | AE162: 0.0329010234 | AF162: 0.01503802235 | AG162: 0.008145400667 | AH162: 0.006054274056
A163: 6125000 | B163: 885000 | C163: 28.66962025 | E163: 295.4809808 | F163: 0 | G163: 1.145357163e-05 | H163: 0.001538573502 | K163: 6.223 | L163: 5.994 | M163: 4.896 | N163: 3.577 | O163: 1.822 | P163: 1.096 | Q163: 0.5660717467 | R163: 0.3519351771 | S163: 0.2185640252 | T163: 0.135699962 | U163: 0.07349486327 | X163: 0.4910295307 | Y163: 0.3796709101 | Z163: 0.2954657341 | AA163: 0.224572928 | AB163: 0.1647543626 | AC163: 0.1139473563 | AD163: 0.04828291819 | AE163: 0.03068951786 | AF163: 0.01360850372 | AG163: 0.007348495696 | AH163: 0.005662581833
A164: 6125000 | B164: 895000 | C164: 27.85500014 | E164: 305.468509 | F164: 0 | G164: 1.071684895e-05 | H164: 0.001398703451 | K164: 6.223 | L164: =L$2+L$3*$C164 -> 5.994 | M164: 4.896 | N164: 3.577 | O164: 1.822 | P164: 1.096 | Q164: 0.5389286046 | R164: 0.3293620538 | S164: 0.2027441027 | T164: 0.1246781519 | U164: 0.06921159073 | X164: 0.4910295307 | Y164: =SQRT(Y$2+2*Y$3*$C164+Y$4*$C164^2+Y$5) -> 0.3796709101 | Z164: 0.2954657341 | AA164: 0.224572928 | AB164: 0.1647543626 | AC164: 0.1139473563 | AD164: 0.04282532035 | AE164: 0.02730663504 | AF164: 0.0113331807 | AG164: 0.006071111463 | AH164: 0.005062822007
A165: 6135000 | B165: 465000 | C165: 25.15833337 | E165: 125.00004 | F165: 0 | G165: 6.399995904e-05 | H165: 0.007544265007 | K165: 6.223 | L165: 5.994 | M165: 4.896 | N165: 3.577 | O165: 1.822 | P165: 1.096 | Q165: 0.4490756679 | R165: 0.2546374177 | S165: 0.150374834 | T165: 0.08819225049 | U165: 0.05503251686 | X165: 0.4910295307 | Y165: 0.3796709101 | Z165: 0.2954657341 | AA165: 0.224572928 | AB165: 0.1647543626 | AC165: 0.1139473563 | AD165: 0.04171251451 | AE165: 0.02679194474 | AF165: 0.0111859034 | AG165: 0.005955422354 | AH165: 0.004934104601
A166: 6135000 | B166: 475000 | C166: 24.41744183 | E166: 115.0087388 | F166: 0 | G166: 7.560287624e-05 | H166: 0.008649556736 | K166: 6.223 | L166: 5.994 | M166: 4.896 | N166: 3.577 | O166: 1.822 | P166: 1.096 | Q166: 0.4243891619 | R166: 0.2341073132 | S166: 0.1359867204 | T166: 0.07816798801 | U166: 0.05113690916 | X166: 0.4910295307 | Y166: 0.3796709101 | Z166: 0.2954657341 | AA166: 0.224572928 | AB166: 0.1647543626 | AC166: 0.1139473563 | AD166: 0.04616836146 | AE166: 0.02962025591 | AF166: 0.01318527566 | AG166: 0.007069209655 | AH166: 0.005419720002
A167: 6135000 | B167: 485000 | C167: 26.35312496 | E167: 105.0190935 | F167: 0 | G167: 9.066996947e-05 | H167: 0.01119569252 | K167: 6.223 | L167: 5.994 | M167: 4.896 | N167: 3.577 | O167: 1.822 | P167: 1.096 | Q167: 0.4888861235 | R167: 0.2877450925 | S167: 0.1735776867 | T167: 0.1043577807 | U167: 0.06131473102 | X167: 0.4910295307 | Y167: 0.3796709101 | Z167: 0.2954657341 | AA167: 0.224572928 | AB167: 0.1647543626 | AC167: 0.1139473563 | AD167: 0.03856822374 | AE167: 0.02474551982 | AF167: 0.009571858488 | AG167: 0.005058980161 | AH167: 0.004596072816
A168: 6135000 | B168: 495000 | C168: 26.27551028 | E168: 95.03162631 | F168: 0 | G168: 0.0001107295862 | H168: 0.01363233367 | K168: 6.223 | L168: 5.994 | M168: 4.896 | N168: 3.577 | O168: 1.822 | P168: 1.096 | Q168: 0.4863000026 | R168: 0.2855943899 | S168: 0.1720704097 | T168: 0.1033076541 | U168: 0.06090663306 | X168: 0.4910295307 | Y168: 0.3796709101 | Z168: 0.2954657341 | AA168: 0.224572928 | AB168: 0.1647543626 | AC168: 0.1139473563 | AD168: 0.03859655465 | AE168: 0.02476892298 | AF168: 0.009597236887 | AG168: 0.005072256537 | AH168: 0.004598906402
A169: 6135000 | B169: 505000 | C169: 26.4895239 | E169: 85.0471046 | F169: 0 | G169: 0.000138255028 | H169: 0.01715973035 | K169: 6.223 | L169: 5.994 | M169: 4.896 | N169: 3.577 | O169: 1.822 | P169: 1.096 | Q169: 0.4934309362 | R169: 0.2915247072 | S169: 0.1762265541 | T169: 0.1062032583 | U169: 0.06203191665 | X169: 0.4910295307 | Y169: 0.3796709101 | Z169: 0.2954657341 | AA169: 0.224572928 | AB169: 0.1647543626 | AC169: 0.1139473563 | AD169: 0.03858044089 | AE169: 0.0247430941 | AF169: 0.009556907302 | AG169: 0.005052479892 | AH169: 0.004597801445
A170: 6135000 | B170: 515000 | C170: 25.11047623 | E170: 75.06670367 | F170: 0 | G170: 0.0001774619743 | H170: 0.02087928537 | K170: 6.223 | L170: 5.994 | M170: 4.896 | N170: 3.577 | O170: 1.822 | P170: 1.096 | Q170: 0.447481068 | R170: 0.2533112963 | S170: 0.1494454484 | T170: 0.0875447434 | U170: 0.05478088402 | X170: 0.4910295307 | Y170: 0.3796709101 | Z170: 0.2954657341 | AA170: 0.224572928 | AB170: 0.1647543626 | AC170: 0.1139473563 | AD170: 0.04194987258 | AE170: 0.02694321742 | AF170: 0.01129714531 | AG170: 0.006017491743 | AH170: 0.004959847191
A171: 6135000 | B171: 525000 | C171: 25.67156863 | E171: 65.09231906 | F171: 0 | G171: 0.0002360154921 | H171: 0.02838888197 | K171: 6.223 | L171: 5.994 | M171: 4.896 | N171: 3.577 | O171: 1.822 | P171: 1.096 | Q171: 0.4661766667 | R171: 0.2688591667 | S171: 0.1603418627 | T171: 0.09513632353 | U171: 0.05773110784 | X171: 0.4910295307 | Y171: 0.3796709101 | Z171: 0.2954657341 | AA171: 0.224572928 | AB171: 0.1647543626 | AC171: 0.1139473563 | AD171: 0.03967580654 | AE171: 0.02548606134 | AF171: 0.01019386483 | AG171: 0.005401920799 | AH171: 0.004714067578
A172: 6135000 | B172: 535000 | C172: 25.70232564 | E172: 55.12721651 | F172: 0 | G172: 0.0003290545276 | H172: 0.03962740781 | K172: 6.223 | L172: 5.994 | M172: 4.896 | N172: 3.577 | O172: 1.822 | P172: 1.096 | Q172: 0.4672014904 | R172: 0.2697114436 | S172: 0.160939164 | T172: 0.09555246596 | U172: 0.05789282823 | X172: 0.4910295307 | Y172: 0.3796709101 | Z172: 0.2954657341 | AA172: 0.224572928 | AB172: 0.1647543626 | AC172: 0.1139473563 | AD172: 0.03958507368 | AE172: 0.02542727958 | AF172: 0.01014741043 | AG172: 0.005376042886 | AH172: 0.004704313245
A173: 6135000 | B173: 545000 | C173: 24.80000005 | E173: 45.17753867 | F173: 0 | G173: 0.0004899535034 | H173: 0.0569327184 | K173: 6.223 | L173: 5.994 | M173: 4.896 | N173: 3.577 | O173: 1.822 | P173: 1.096 | Q173: 0.4371360015 | R173: 0.2447080013 | S173: 0.1434160009 | T173: 0.08334400063 | U173: 0.05314840024 | X173: 0.4910295307 | Y173: 0.3796709101 | Z173: 0.2954657341 | AA173: 0.224572928 | AB173: 0.1647543626 | AC173: 0.1139473563 | AD173: 0.04366756205 | AE173: 0.02803526333 | AF173: 0.01208385688 | AG173: 0.006456147388 | AH173: 0.005146602733
A174: 6135000 | B174: 555000 | C174: 24.65901631 | E174: 35.25634695 | F174: 0 | G174: 0.000804498757 | H174: 0.09295152024 | K174: =K$2+K$3*$C174 -> 6.223 | L174: =L$2+L$3*$C174 -> 5.994 | M174: 4.896 | N174: 3.577 | O174: 1.822 | P174: 1.096 | Q174: 0.4324384235 | R174: 0.240801342 | S174: 0.1406780968 | T174: 0.0814364907 | U174: 0.05240710777 | X174: =SQRT(X$2+2*X$3*$C174+X$4*$C174^2+X$5) -> 0.4910295307 | Y174: =SQRT(Y$2+2*Y$3*$C174+Y$4*$C174^2+Y$5) -> 0.3796709101 | Z174: 0.2954657341 | AA174: 0.224572928 | AB174: 0.1647543626 | AC174: 0.1139473563 | AD174: 0.04454287985 | AE174: 0.02859051519 | AF174: 0.01247448043 | AG174: 0.006673719709 | AH174: 0.005242048471
A175: 6135000 | B175: 565000 | C175: 25.11515167 | E175: 25.39704707 | F175: 0 | G175: 0.00155036356 | H175: 0.1824419599 | K175: 6.223 | L175: 5.994 | M175: 4.896 | N175: 3.577 | O175: 1.822 | P175: 1.096 | Q175: 0.4476368535 | R175: 0.2534408526 | S175: 0.1495362453 | T175: 0.08760800203 | U175: 0.05480546746 | X175: 0.4910295307 | Y175: 0.3796709101 | Z175: 0.2954657341 | AA175: 0.224572928 | AB175: 0.1647543626 | AC175: 0.1139473563 | AD175: 0.04192634833 | AE175: 0.02692823009 | AF175: 0.01128615146 | AG175: 0.006011357911 | AH175: 0.004957295117
A176: 6135000 | B176: 575000 | C176: 24.45454551 | E176: 15.71655178 | F176: 0 | G176: 0.004048419092 | H176: 0.4638744282 | K176: 6.223 | L176: 5.994 | M176: 4.896 | N176: 3.577 | O176: 1.822 | P176: 1.096 | Q176: 0.4256254565 | R176: 0.2351354561 | S176: 0.1367072738 | T176: 0.07867000078 | U176: 0.0513320003 | X176: 0.4910295307 | Y176: 0.3796709101 | Z176: 0.2954657341 | AA176: 0.224572928 | AB176: 0.1647543626 | AC176: 0.1139473563 | AD176: 0.04590890149 | AE176: 0.02945598316 | AF176: 0.01307296101 | AG176: 0.007006752254 | AH176: 0.00539132525
A177: 6135000 | B177: 585000 | C177: 25.01571429 | E177: 7.000714249 | F177: 0 | G177: 0.02040399918 | H177: 2.391572646 | K177: 6.223 | L177: 5.994 | M177: 4.896 | N177: 3.577 | O177: 1.822 | P177: 1.096 | Q177: 0.4443236002 | R177: 0.250685443 | S177: 0.1476051715 | T177: 0.08626261436 | U177: 0.05428262574 | X177: 0.4910295307 | Y177: 0.3796709101 | Z177: 0.2954657341 | AA177: 0.224572928 | AB177: 0.1647543626 | AC177: 0.1139473563 | AD177: 0.04244205006 | AE177: 0.02725655484 | AF177: 0.01152567747 | AG177: 0.006144975934 | AH177: 0.005013278828
A178: 6135000 | B178: 595000 | C178: 26.30526318 | E178: 7.142128534 | F178: 0 | G178: 0.01960399922 | H178: 2.416254632 | K178: 6.223 | L178: 5.994 | M178: 4.896 | N178: 3.577 | O178: 1.822 | P178: 1.096 | Q178: 0.4872913693 | R178: 0.2864188428 | S178: 0.172648211 | T178: 0.1037102109 | U178: 0.06106307382 | X178: 0.4910295307 | Y178: 0.3796709101 | Z178: 0.2954657341 | AA178: 0.224572928 | AB178: 0.1647543626 | AC178: 0.1139473563 | AD178: 0.03858267217 | AE178: 0.02475806625 | AF178: 0.009586068714 | AG178: 0.00506634975 | AH178: 0.004597493149
A179: 6135000 | B179: 605000 | C179: 26.28571422 | E179: 15.90628806 | F179: 0 | G179: 0.003952412948 | H179: 0.4867853136 | K179: 6.223 | L179: 5.994 | M179: 4.896 | N179: 3.577 | O179: 1.822 | P179: 1.096 | Q179: 0.4866399977 | R179: 0.285877141 | S179: 0.1722685701 | T179: 0.1034457134 | U179: 0.06096028536 | X179: 0.4910295307 | Y179: 0.3796709101 | Z179: 0.2954657341 | AA179: 0.224572928 | AB179: 0.1647543626 | AC179: 0.1139473563 | AD179: 0.03859137054 | AE179: 0.02476493574 | AF179: 0.00959320553 | AG179: 0.005070116544 | AH179: 0.004598375937
A180: 6135000 | B180: 615000 | C180: 26.3603774 | E180: 25.59316315 | F180: 0 | G180: 0.001526694249 | H180: 0.1885641228 | K180: 6.223 | L180: 5.994 | M180: 4.896 | N180: 3.577 | O180: 1.822 | P180: 1.096 | Q180: 0.489127775 | R180: 0.2879460578 | S180: 0.1737185291 | T180: 0.1044559062 | U180: 0.06135286438 | X180: 0.4910295307 | Y180: 0.3796709101 | Z180: 0.2954657341 | AA180: 0.224572928 | AB180: 0.1647543626 | AC180: 0.1139473563 | AD180: 0.03856688326 | AE180: 0.02474414837 | AF180: 0.009570110412 | AG180: 0.005058093512 | AH180: 0.004595949441
A181: 6135000 | B181: 635000 | C181: 25.62745098 | E181: 45.37631541 | F181: 0 | G181: 0.0004856702979 | H181: 0.0583179605 | K181: 6.223 | L181: 5.994 | M181: 4.896 | N181: 3.577 | O181: 1.822 | P181: 1.096 | Q181: 0.4647066667 | R181: 0.2676366667 | S181: 0.159485098 | T181: 0.09453941176 | U181: 0.05749913725 | X181: 0.4910295307 | Y181: 0.3796709101 | Z181: 0.2954657341 | AA181: 0.224572928 | AB181: 0.1647543626 | AC181: 0.1139473563 | AD181: 0.03981239212 | AE181: 0.02557438172 | AF181: 0.01026326844 | AG181: 0.005440599934 | AH181: 0.004728762068
A182: 6135000 | B182: 645000 | C182: 26.26938785 | E182: 55.32639515 | F182: 0 | G182: 0.0003266895567 | H182: 0.04021060209 | K182: 6.223 | L182: 5.994 | M182: 4.896 | N182: 3.577 | O182: 1.822 | P182: 1.096 | Q182: 0.4860960031 | R182: 0.2854247373 | S182: 0.171951512 | T182: 0.1032248176 | U182: 0.06087444131 | X182: 0.4910295307 | Y182: 0.3796709101 | Z182: 0.2954657341 | AA182: 0.224572928 | AB182: 0.1647543626 | AC182: 0.1139473563 | AD182: 0.03859987703 | AE182: 0.0247714475 | AF182: 0.009599756388 | AG182: 0.005073597702 | AH182: 0.004599247616
A183: 6135000 | B183: 655000 | C183: 26.21481468 | E183: 65.29172995 | F183: 0 | G183: 0.000234576039 | H183: 0.02881282306 | K183: 6.223 | L183: 5.994 | M183: 4.896 | N183: 3.577 | O183: 1.822 | P183: 1.096 | Q183: 0.4842776252 | R183: 0.2839125148 | S183: 0.1708917011 | T183: 0.1024864426 | U183: 0.06058749559 | X183: 0.4910295307 | Y183: 0.3796709101 | Z183: 0.2954657341 | AA183: 0.224572928 | AB183: 0.1647543626 | AC183: 0.1139473563 | AD183: 0.03863650523 | AE183: 0.02479832367 | AF183: 0.009625539202 | AG183: 0.005087440212 | AH183: 0.004603048282
A184: 6135000 | B184: 665000 | C184: 25.85972224 | E184: 75.2662607 | F184: 0 | G184: 0.000176522195 | H184: 0.02138841228 | K184: 6.223 | L184: =L$2+L$3*$C184 -> 5.994 | M184: 4.896 | N184: 3.577 | O184: 1.822 | P184: 1.096 | Q184: 0.4724459452 | R184: 0.2740729034 | S184: 0.163995806 | T184: 0.09768204195 | U184: 0.05872041956 | X184: 0.4910295307 | Y184: =SQRT(Y$2+2*Y$3*$C184+Y$4*$C184^2+Y$5) -> 0.3796709101 | Z184: 0.2954657341 | AA184: 0.224572928 | AB184: 0.1647543626 | AC184: 0.1139473563 | AD184: 0.03917945432 | AE184: 0.02516297798 | AF184: 0.009935364378 | AG184: 0.005258104108 | AH184: 0.004660794083
A185: 6135000 | B185: 675000 | C185: 26.42419344 | E185: 85.24675947 | F185: 0 | G185: 0.0001376081772 | H185: 0.01703732288 | K185: 6.223 | L185: 5.994 | M185: 4.896 | N185: 3.577 | O185: 1.822 | P185: 1.096 | Q185: 0.4912541255 | R185: 0.2897144003 | S185: 0.1749578367 | T185: 0.1053193373 | U185: 0.06168840913 | X185: 0.4910295307 | Y185: 0.3796709101 | Z185: 0.2954657341 | AA185: 0.224572928 | AB185: 0.1647543626 | AC185: 0.1139473563 | AD185: 0.0385647248 | AE185: 0.02473809602 | AF185: 0.009559339388 | AG185: 0.005052909217 | AH185: 0.004595906384
A186: 6135000 | B186: 685000 | C186: 27.59230769 | E186: 95.23134988 | F186: 0 | G186: 0.0001102656188 | H186: 0.01425553482 | K186: 6.223 | L186: 5.994 | M186: 4.896 | N186: 3.577 | O186: 1.822 | P186: 1.096 | Q186: 0.5301756923 | R186: 0.3220828462 | S186: 0.1976426154 | T186: 0.1211239231 | U186: 0.06783035385 | X186: 0.4910295307 | Y186: 0.3796709101 | Z186: 0.2954657341 | AA186: 0.224572928 | AB186: 0.1647543626 | AC186: 0.1139473563 | AD186: 0.04147346703 | AE186: 0.02647572836 | AF186: 0.01075436009 | AG186: 0.005743257297 | AH186: 0.004914854293
A187: 6135000 | B187: 695000 | C187: 27.3652174 | E187: 105.2188671 | F187: 0 | G187: 9.032599555e-05 | H187: 0.0115815592 | K187: 6.223 | L187: 5.994 | M187: 4.896 | N187: 3.577 | O187: 1.822 | P187: 1.096 | Q187: 0.5226090438 | R187: 0.3157901742 | S187: 0.193232522 | T187: 0.1180513915 | U187: 0.0666363131 | X187: 0.4910295307 | Y187: 0.3796709101 | Z187: 0.2954657341 | AA187: 0.224572928 | AB187: 0.1647543626 | AC187: 0.1139473563 | AD187: 0.04049399138 | AE187: 0.02587729642 | AF187: 0.01033305363 | AG187: 0.005503343308 | AH187: 0.004807756946
A188: 6135000 | B188: 705000 | C188: 28.17058818 | E188: 115.20855 | F188: 0 | G188: 7.534086089e-05 | H188: 0.009944475109 | K188: 6.223 | L188: 5.994 | M188: 4.896 | N188: 3.577 | O188: 1.822 | P188: 1.096 | Q188: 0.5494439983 | R188: 0.3381069986 | S188: 0.2088728225 | T188: 0.1289480581 | U188: 0.07087095268 | X188: 0.4910295307 | Y188: 0.3796709101 | Z188: 0.2954657341 | AA188: 0.224572928 | AB188: 0.1647543626 | AC188: 0.1139473563 | AD188: 0.04473059342 | AE188: 0.02848367669 | AF188: 0.01213906615 | AG188: 0.006525229018 | AH188: 0.005271758871
A189: 6135000 | B189: 715000 | C189: 28.14262299 | E189: 125.1998802 | F189: 0 | G189: 6.379581257e-05 | H189: 0.008412248977 | K189: 6.223 | L189: 5.994 | M189: 4.896 | N189: 3.577 | O189: 1.822 | P189: 1.096 | Q189: 0.5485121982 | R189: 0.3373320832 | S189: 0.2083297386 | T189: 0.1285696891 | U189: 0.07072391171 | X189: 0.4910295307 | Y189: 0.3796709101 | Z189: 0.2954657341 | AA189: 0.224572928 | AB189: 0.1647543626 | AC189: 0.1139473563 | AD189: 0.04455025747 | AE189: 0.02837204247 | AF189: 0.01206333134 | AG189: 0.006482646551 | AH189: 0.005251962118
A190: 6135000 | B190: 865000 | C190: 29.06307708 | E190: 275.1454343 | F190: 0 | G190: 1.320916542e-05 | H190: 0.001798756367 | K190: 6.223 | L190: 5.994 | M190: 4.896 | N190: 3.577 | O190: 1.822 | P190: 1.096 | Q190: 0.5791817282 | R190: 0.3628378658 | S190: 0.2262049568 | T190: 0.1410234328 | U190: 0.07556365926 | X190: 0.4910295307 | Y190: 0.3796709101 | Z190: 0.2954657341 | AA190: 0.224572928 | AB190: 0.1647543626 | AC190: 0.1139473563 | AD190: 0.05147141338 | AE190: 0.03267739787 | AF190: 0.01489515327 | AG190: 0.008065893023 | AH190: 0.006014660252
A191: 6135000 | B191: 875000 | C191: 29.36805558 | E191: 285.1438409 | F191: 0 | G191: 1.229906253e-05 | H191: 0.001692398278 | K191: 6.223 | L191: 5.994 | M191: 4.896 | N191: 3.577 | O191: 1.822 | P191: 1.096 | Q191: 0.589343612 | R191: 0.3712888202 | S191: 0.2321276394 | T191: 0.145149792 | U191: 0.07716723625 | X191: 0.4910295307 | Y191: 0.3796709101 | Z191: 0.2954657341 | AA191: 0.224572928 | AB191: 0.1647543626 | AC191: 0.1139473563 | AD191: 0.05413649108 | AE191: 0.03434291254 | AF191: 0.01595130846 | AG191: 0.008653057314 | AH191: 0.006309754475
A192: 6135000 | B192: 885000 | C192: 28.95588235 | E192: 295.1423555 | F192: 0 | G192: 1.147986873e-05 | H192: 0.001557503737 | K192: 6.223 | L192: 5.994 | M192: 4.896 | N192: 3.577 | O192: 1.822 | P192: 1.096 | Q192: 0.57561 | R192: 0.3598675 | S192: 0.2241232353 | T192: 0.1395730882 | U192: 0.07500002941 | X192: 0.4910295307 | Y192: 0.3796709101 | Z192: 0.2954657341 | AA192: 0.224572928 | AB192: 0.1647543626 | AC192: 0.1139473563 | AD192: 0.05057293694 | AE192: 0.03211665066 | AF192: 0.01453533198 | AG192: 0.0078655258 | AH192: 0.005915336077
A193: 6145000 | B193: 455000 | C193: 25.36301378 | E193: 134.9926294 | F193: 0 | G193: 5.487567641e-05 | H193: 0.006521329076 | K193: 6.223 | L193: 5.994 | M193: 4.896 | N193: 3.577 | O193: 1.822 | P193: 1.096 | Q193: 0.4558956191 | R193: 0.2603091118 | S193: 0.1543497275 | T193: 0.0909615764 | U193: 0.05610872644 | X193: 0.4910295307 | Y193: 0.3796709101 | Z193: 0.2954657341 | AA193: 0.224572928 | AB193: 0.1647543626 | AC193: 0.1139473563 | AD193: 0.04078572366 | AE193: 0.02619992764 | AF193: 0.01074407188 | AG193: 0.005708839152 | AH193: 0.004833766428
A194: 6145000 | B194: 465000 | C194: 25.17530867 | E194: 125.00004 | F194: 0 | G194: 6.399995904e-05 | H194: 0.007549355415 | K194: 6.223 | L194: =L$2+L$3*$C194 -> 5.994 | M194: 4.896 | N194: 3.577 | O194: 1.822 | P194: 1.096 | Q194: 0.449641285 | R194: 0.2551078034 | S194: 0.1507044945 | T194: 0.08842192637 | U194: 0.05512177301 | X194: 0.4910295307 | Y194: =SQRT(Y$2+2*Y$3*$C194+Y$4*$C194^2+Y$5) -> 0.3796709101 | Z194: 0.2954657341 | AA194: 0.224572928 | AB194: 0.1647543626 | AC194: 0.1139473563 | AD194: 0.04163016308 | AE194: 0.02673943256 | AF194: 0.01114714044 | AG194: 0.005933792004 | AH194: 0.004925177257
A195: 6145000 | B195: 475000 | C195: 25.12469143 | E195: 115.0087388 | F195: 0 | G195: 7.560287624e-05 | H195: 0.008900090579 | K195: 6.223 | L195: 5.994 | M195: 4.896 | N195: 3.577 | O195: 1.822 | P195: 1.096 | Q195: 0.4479547186 | R195: 0.2537051996 | S195: 0.1497215076 | T195: 0.08773707509 | U195: 0.05485562756 | X195: 0.4910295307 | Y195: 0.3796709101 | Z195: 0.2954657341 | AA195: 0.224572928 | AB195: 0.1647543626 | AC195: 0.1139473563 | AD195: 0.04187857378 | AE195: 0.02689778949 | AF195: 0.01126380363 | AG195: 0.005998889049 | AH195: 0.004952112709
A196: 6145000 | B196: 485000 | C196: 25.71460677 | E196: 105.0190935 | F196: 0 | G196: 9.066996947e-05 | H196: 0.01092442855 | K196: 6.223 | L196: 5.994 | M196: 4.896 | N196: 3.577 | O196: 1.822 | P196: 1.096 | Q196: 0.4676106975 | R196: 0.2700517535 | S196: 0.1611776634 | T196: 0.09571862956 | U196: 0.05795740238 | X196: 0.4910295307 | Y196: 0.3796709101 | Z196: 0.2954657341 | AA196: 0.224572928 | AB196: 0.1647543626 | AC196: 0.1139473563 | AD196: 0.03954988157 | AE196: 0.02540445327 | AF196: 0.01012931041 | AG196: 0.005365963026 | AH196: 0.004700531534
A197: 6145000 | B197: 495000 | C197: 26.30000006 | E197: 95.03162631 | F197: 0 | G197: 0.0001107295862 | H197: 0.01364503953 | K197: 6.223 | L197: 5.994 | M197: 4.896 | N197: 3.577 | O197: 1.822 | P197: 1.096 | Q197: 0.4871160021 | R197: 0.2862730017 | S197: 0.1725460012 | T197: 0.1036390008 | U197: 0.06103540033 | X197: 0.4910295307 | Y197: 0.3796709101 | Z197: 0.2954657341 | AA197: 0.224572928 | AB197: 0.1647543626 | AC197: 0.1139473563 | AD197: 0.03858485452 | AE197: 0.02475981621 | AF197: 0.009587914245 | AG197: 0.005067320779 | AH197: 0.00459771356
A198: 6145000 | B198: 505000 | C198: 25.56293088 | E198: 85.0471046 | F198: 0 | G198: 0.000138255028 | H198: 0.0165594898 | K198: 6.223 | L198: 5.994 | M198: 4.896 | N198: 3.577 | O198: 1.822 | P198: 1.096 | Q198: 0.4625568569 | R198: 0.2658488147 | S198: 0.1582321177 | T198: 0.09366645481 | U198: 0.05715989057 | X198: 0.4910295307 | Y198: 0.3796709101 | Z198: 0.2954657341 | AA198: 0.224572928 | AB198: 0.1647543626 | AC198: 0.1139473563 | AD198: 0.04002565664 | AE198: 0.02571194986 | AF198: 0.01037051992 | AG198: 0.005500402509 | AH198: 0.004751728967
A199: 6145000 | B199: 515000 | C199: 25.88877542 | E199: 75.06670367 | F199: 0 | G199: 0.0001774619743 | H199: 0.0215264388 | K199: 6.223 | L199: 5.994 | M199: 4.896 | N199: 3.577 | O199: 1.822 | P199: 1.096 | Q199: 0.4734139969 | R199: 0.2748779668 | S199: 0.1645600186 | T199: 0.09807513139 | U199: 0.05887318114 | X199: 0.4910295307 | Y199: 0.3796709101 | Z199: 0.2954657341 | AA199: 0.224572928 | AB199: 0.1647543626 | AC199: 0.1139473563 | AD199: 0.03911547337 | AE199: 0.02512096677 | AF199: 0.009901059957 | AG199: 0.005239066985 | AH199: 0.004653946437
A200: 6145000 | B200: 525000 | C200: 25.7677777 | E200: 65.09231906 | F200: 0 | G200: 0.0002360154921 | H200: 0.02849527469 | K200: 6.223 | L200: 5.994 | M200: 4.896 | N200: 3.577 | O200: 1.822 | P200: 1.096 | Q200: 0.4693823529 | R200: 0.27152512 | S200: 0.1622102429 | T200: 0.09643803224 | U200: 0.05823697513 | X200: 0.4910295307 | Y200: 0.3796709101 | Z200: 0.2954657341 | AA200: 0.224572928 | AB200: 0.1647543626 | AC200: 0.1139473563 | AD200: 0.03940439359 | AE200: 0.02530990348 | AF200: 0.01005394441 | AG200: 0.005324013205 | AH200: 0.004684908332
A201: 6145000 | B201: 535000 | C201: 25.1505377 | E201: =(SQRT(($A201-E$1)^2+($B201-E$2)^2)/1000) -> 55.12721651 | F201: =IF(E201=0,1,0) -> 0 | G201: =IF($F$618=0,1/E201^2,F201) -> 0.0003290545276 | H201: =G201/$G$618*C201 -> 0.03877667056 | K201: 6.223 | L201: 5.994 | M201: 4.896 | N201: 3.577 | O201: 1.822 | P201: 1.096 | Q201: 0.448815916 | R201: 0.2544213996 | S201: 0.1502234421 | T201: 0.08808677503 | U201: 0.05499152721 | X201: 0.4910295307 | Y201: 0.3796709101 | Z201: 0.2954657341 | AA201: 0.224572928 | AB201: 0.1647543626 | AC201: 0.1139473563 | AD201: 0.04175065788 | AE201: 0.02681626215 | AF201: 0.01120382778 | AG201: 0.005965424134 | AH201: 0.004938240266
... 418 more rows

Sheet MAP (hidden)
D1: Northing | E1: =Beregn!B3 -> 6140000 | J1: lambda | W1: Std(lambda)
D2: Easting | E2: =Beregn!B4 -> 589900 | J2: b_0 | K2: -0.8322 | L2: -0.3746 | M2: 0.2793 | N2: 0.4209 | O2: 1.066 | P2: 1.695 | Q2: 1.2 | R2: 0.1843 | S2: -0.9251 | T2: -3.072 | U2: -5.168 | W2: V(b_0) | X2: 1.353 | Y2: 1.427 | Z2: 1.438 | AA2: 1.84 | AB2: 1.587 | AC2: 1.644 | AD2: 1.394 | AE2: 1.356 | AF2: 1.301 | AG2: 1.281 | AH2: 1.111
J3: b_1 | K3: 0.007291 | L3: 0.006631 | M3: 0.00549 | N3: 0.005875 | O3: 0.004339 | P3: 0.003258 | Q3: 0.003352 | R3: 0.004362 | S3: 0.005524 | T3: 0.008851 | U3: 0.01239 | W3: Cov | X3: -0.001883 | Y3: -0.001984 | Z3: -0.002 | AA3: -0.002563 | AB3: -0.002206 | AC3: -0.002283 | AD3: -0.00193 | AE3: -0.001873 | AF3: -0.001795 | AG3: -0.001761 | AH3: -0.00152
D4: MAP | H4: =SUM(H8:H616) -> 675.696197 | W4: V(b_1) | X4: 2.694e-06 | Y4: 2.839e-06 | Z4: 2.86e-06 | AA4: 3.666e-06 | AB4: 3.149e-06 | AC4: 3.254e-06 | AD4: 2.746e-06 | AE4: 2.662e-06 | AF4: 2.553e-06 | AG4: 2.501e-06 | AH4: 2.154e-06
W5: Res.var. | X5: 0.3571 | Y5: 0.3929 | Z5: 0.3974 | AA5: 0.5236 | AB5: 0.4187 | AC5: 0.4128 | AD5: 0.3107 | AE5: 0.311 | AF5: 0.313 | AG5: 0.2889 | AH5: 0.2094
A7: Northing | B7: Easting | C7: MAP [mm] | E7: dist | F7: dist = 0? | G7: 1/dist^2 | H7: w*MAP | K7: 1 | L7: 2 | M7: 5 | N7: 10 | O7: 30 | P7: 60 | Q7: 180 | R7: 360 | S7: 720 | T7: 1440 | U7: 2880 | X7: 1 | Y7: 2 | Z7: 5 | AA7: 10 | AB7: 30 | AC7: 60 | AD7: 180 | AE7: 360 | AF7: 720 | AG7: 1440 | AH7: 2880
A8: 6055000 | B8: 655000 | C8: 592.9005289 | E8: =(SQRT(($A8-E$1)^2+($B8-E$2)^2)/1000) -> 107.0654473 | F8: =IF(E8=0,1,0) -> 0 | G8: =IF($F$618=0,1/E8^2,F8) -> 8.723712184e-05 | H8: =G8/$G$618*C8 -> 0.2423474968 | K8: =K$2+K$3*$C8 -> 3.490637756 | L8: =L$2+L$3*$C8 -> 3.556923407 | M8: 3.534323904 | N8: 3.904190607 | O8: 3.638595395 | P8: 3.626669923 | Q8: 3.187402573 | R8: 2.770532107 | S8: 2.350082522 | T8: 2.175762582 | U8: 2.178037554 | X8: =SQRT(X$2+2*X$3*$C8+X$4*$C8^2+X$5) -> 0.6513533774 | Y8: =SQRT(Y$2+2*Y$3*$C8+Y$4*$C8^2+Y$5) -> 0.6821050622 | Z8: 0.6849647076 | AA8: 0.783010007 | AB8: 0.7048362239 | AC8: 0.7024942562 | AD8: 0.6175825342 | AE8: 0.6178755859 | AF8: 0.6188261784 | AG8: 0.6007357665 | AH8: 0.5245762539
A9: 6055000 | B9: 665000 | C9: 592.8368886 | E9: 113.4240274 | F9: =IF(E9=0,1,0) -> 0 | G9: =IF($F$618=0,1/E9^2,F9) -> 7.773021552e-05 | H9: =G9/$G$618*C9 -> 0.2159138309 | K9: 3.490173755 | L9: 3.556501408 | M9: 3.533974518 | N9: 3.903816721 | O9: 3.63831926 | P9: 3.626462583 | Q9: 3.187189251 | R9: 2.770254508 | S9: 2.349730973 | T9: 2.175199301 | U9: 2.17724905 | X9: 0.651381302 | Y9: 0.6821331305 | Z9: 0.6849929885 | AA9: 0.7830416671 | AB9: 0.704866837 | AC9: 0.7025263074 | AD9: 0.6176136519 | AE9: 0.6179059475 | AF9: 0.6188551177 | AG9: 0.6007652413 | AH9: 0.5246057285
A10: 6055000 | B10: 685000 | C10: 584.8818482 | E10: 127.5500294 | F10: 0 | G10: 6.146655513e-05 | H10: 0.1684466541 | K10: 3.432173555 | L10: 3.503751535 | M10: 3.490301346 | N10: 3.857080858 | O10: 3.603802339 | P10: 3.600545061 | Q10: 3.160523955 | R10: 2.735554622 | S10: 2.305787329 | T10: 2.104789238 | U10: 2.078686099 | X10: 0.654993691 | Y10: 0.6857646713 | Z10: 0.6886514268 | AA10: 0.787137706 | AB10: 0.7088247629 | AC10: 0.7066681339 | AD10: 0.6216320084 | AE10: 0.6218260169 | AF10: 0.622592728 | AG10: 0.6045702261 | AH10: 0.5284071326
A11: 6055000 | B11: 695000 | C11: 567.2080212 | E11: 135.1703 | F11: 0 | G11: 5.473151183e-05 | H11: 0.1454571856 | K11: 3.303313682 | L11: 3.386556388 | M11: 3.393272036 | N11: 3.753247124 | O11: 3.527115604 | P11: 3.542963733 | Q11: 3.101281287 | R11: 2.658461388 | S11: 2.208157109 | T11: 1.948358195 | U11: 1.859707382 | X11: 0.6638686457 | Y11: 0.6946910642 | Z11: 0.697639765 | AA11: 0.7972046857 | AB11: 0.7185332591 | AC11: 0.7168131749 | AD11: 0.6314536575 | AE11: 0.6314036277 | AF11: 0.6317333092 | AG11: 0.6138627066 | AH11: 0.5376645189
A12: 6065000 | B12: 605000 | C12: 579.4587834 | E12: 76.50496716 | F12: 0 | G12: 0.0001708522623 | H12: 0.4638725312 | K12: 3.39263399 | L12: 3.467791193 | M12: 3.460528721 | N12: 3.825220353 | O12: 3.580271661 | P12: 3.582876716 | Q12: 3.142345842 | R12: 2.711899213 | S12: 2.27583032 | T12: 2.056789692 | U12: 2.011494327 | X12: 0.6575935578 | Y12: 0.688378982 | Z12: 0.6912844305 | AA12: 0.790086194 | AB12: 0.7116708455 | AC12: 0.7096441716 | AD12: 0.6245160772 | AE12: 0.6246388905 | AF12: 0.6252760296 | AG12: 0.6072998777 | AH12: 0.5311301384
A13: 6065000 | B13: 615000 | C13: 585.6773522 | E13: 79.08862118 | F13: 0 | G13: 0.0001598718467 | H13: 0.4387183441 | K13: 3.437973575 | L13: 3.509026522 | M13: 3.494668664 | N13: 3.861754444 | O13: 3.607254031 | P13: 3.603136813 | Q13: 3.163190485 | R13: 2.73902461 | S13: 2.310181694 | T13: 2.111830244 | U13: 2.088542394 | X13: 0.6546216298 | Y13: 0.6853905875 | Z13: 0.6882746249 | AA13: 0.7867157919 | AB13: 0.708417307 | AC13: 0.7062419235 | AD13: 0.6212187546 | AE13: 0.621422924 | AF13: 0.6222082929 | AG13: 0.6041790179 | AH13: 0.5280166068
A14: 6065000 | B14: 635000 | C14: 590.077626 | E14: 87.51577001 | F14: 0 | G14: 0.0001305651775 | H14: 0.3609872667 | K14: 3.470055971 | L14: 3.538204738 | M14: 3.518826167 | N14: 3.887606053 | O14: 3.626346819 | P14: 3.617472906 | Q14: 3.177940202 | R14: 2.758218605 | S14: 2.334488806 | T14: 2.150777068 | U14: 2.143061786 | X14: 0.6526069595 | Y14: 0.6833651628 | Z14: 0.6862342788 | AA14: 0.7844313303 | AB14: 0.7062102217 | AC14: 0.7039325546 | AD14: 0.6189786023 | AE14: 0.619237648 | AF14: 0.6201245758 | AG14: 0.6020579744 | AH14: 0.5258980258
A15: 6065000 | B15: 645000 | C15: 597.8417455 | E15: 93.06454749 | F15: 0 | G15: 0.0001154599752 | H15: 0.3234246144 | K15: 3.526664166 | L15: 3.589688614 | M15: 3.561451183 | N15: 3.933220255 | O15: 3.660035334 | P15: 3.642768407 | Q15: 3.203965531 | R15: 2.792085694 | S15: 2.377377802 | T15: 2.219497289 | U15: 2.239259227 | X15: 0.6492328782 | Y15: 0.67997385 | Z15: 0.6828171136 | AA15: 0.7806059799 | AB15: 0.7025106939 | AC15: 0.7000587084 | AD15: 0.6152168505 | AE15: 0.6155671311 | AF15: 0.6166263027 | AG15: 0.5984945019 | AH15: 0.5223336778
A16: 6065000 | B16: 655000 | C16: 608.478771 | E16: 99.31268801 | F16: 0 | G16: 0.0001013889269 | H16: 0.289062217 | K16: 3.604218719 | L16: 3.660222731 | M16: 3.619848453 | N16: 3.99571278 | O16: 3.706189387 | P16: 3.677423836 | Q16: 3.23962084 | R16: 2.838484399 | S16: 2.436136731 | T16: 2.313645602 | U16: 2.371051973 | X16: 0.6449905346 | Y16: 0.6757113349 | Z16: 0.6785202003 | AA16: 0.7757971232 | AB16: 0.6978521494 | AC16: 0.6951746293 | AD16: 0.6104658867 | AE16: 0.6109291939 | AF16: 0.612209367 | AG16: 0.5939899425 | AH16: 0.5178178382
A17: 6065000 | B17: 665000 | C17: 632.8257405 | E17: 106.1367514 | F17: 0 | G17: 8.877044938e-05 | H17: 0.2632133582 | K17: 3.781732474 | L17: 3.821667485 | M17: 3.753513315 | N17: 4.138751225 | O17: 3.811830888 | P17: 3.756746263 | Q17: 3.321231882 | R17: 2.94468588 | S17: 2.570629391 | T17: 2.529140629 | U17: 2.672710925 | X17: 0.6369773771 | Y17: 0.6676655599 | Z17: 0.6704004125 | AA17: 0.76671538 | AB17: 0.6890195068 | AC17: 0.6858876734 | AD17: 0.6013974701 | AE17: 0.6020645351 | AF17: 0.6037809722 | AG17: 0.5853710404 | AH17: 0.5091352678
A18: 6065000 | B18: 675000 | C18: 639.7989017 | E18: 113.4328436 | F18: 0 | G18: 7.771813343e-05 | H18: 0.2329813854 | K18: 3.832573792 | L18: 3.867906517 | M18: 3.79179597 | N18: 4.179718547 | O18: 3.842087434 | P18: 3.779464822 | Q18: 3.344605918 | R18: 2.975102809 | S18: 2.609149133 | T18: 2.590860079 | U18: 2.759108392 | X18: 0.6351270691 | Y18: 0.665809055 | Z18: 0.6685239922 | AA18: 0.7646181586 | AB18: 0.6869695787 | AC18: 0.6837244678 | AD18: 0.599275491 | AE18: 0.5999861728 | AF18: 0.6018086815 | AG18: 0.5833474071 | AH18: 0.5070851741
A19: 6065000 | B19: 685000 | C19: 626.4844368 | E19: 121.1156885 | F19: 0 | G19: 6.817092633e-05 | H19: 0.2001081854 | K19: 3.735498029 | L19: 3.779618301 | M19: 3.718699558 | N19: 4.101496066 | O19: 3.784315971 | P19: 3.736086295 | Q19: 3.299975832 | R19: 2.917025113 | S19: 2.535600029 | T19: 2.47301375 | U19: 2.594142172 | X19: 0.6388334198 | Y19: 0.6695284017 | Z19: 0.6722818728 | AA19: 0.7688189233 | AB19: 0.6910707946 | AC19: 0.6880486382 | AD19: 0.6035128037 | AE19: 0.6041344048 | AF19: 0.6057469203 | AG19: 0.5873850272 | AH19: 0.5111703773
A20: 6065000 | B20: 695000 | C20: 623.625168 | E20: 129.1162654 | F20: 0 | G20: 5.998436807e-05 | H20: 0.1752738368 | K20: 3.7146511 | L20: 3.760658489 | M20: 3.703002172 | N20: 4.084697862 | O20: 3.771909604 | P20: 3.726770797 | Q20: 3.290391563 | R20: 2.904552983 | S20: 2.519805428 | T20: 2.447706362 | U20: 2.558715832 | X20: 0.6397239347 | Y20: 0.670422359 | Z20: 0.67318438 | AA20: 0.769828163 | AB20: 0.692053577 | AC20: 0.6890829082 | AD20: 0.6045239293 | AE20: 0.6051232509 | AF20: 0.6066866282 | AG20: 0.5883467872 | AH20: 0.5121406794
A21: 6075000 | B21: 515000 | C21: 886.8915495 | E21: 99.17161892 | F21: 0 | G21: 0.0001016775784 | H21: 0.4225237083 | K21: 5.634126287 | L21: 5.506377865 | M21: 5.148334607 | N21: 5.631387853 | O21: 4.914222433 | P21: 4.584492668 | Q21: 4.172860474 | R21: 4.052920939 | S21: 3.974088919 | T21: 4.777877104 | U21: 5.820586298 | X21: 0.699359593 | Y21: 0.7306198446 | Z21: 0.7331049971 | AA21: 0.837247758 | AB21: 0.7547610627 | AC21: 0.7528436148 | AD21: 0.6642574945 | AE21: 0.6622470985 | AF21: 0.6619587975 | AG21: 0.6430366169 | AH21: 0.5643896971
A22: 6075000 | B22: 525000 | C22: 889.2735159 | E22: 91.85319809 | F22: 0 | G22: 0.0001185254018 | H22: 0.4938580831 | K22: 5.651493204 | L22: 5.522172684 | M22: 5.161411602 | N22: 5.645381906 | O22: 4.924557785 | P22: 4.592253115 | Q22: 4.180844825 | R22: 4.063311076 | S22: 3.987246902 | T22: 4.798959889 | U22: 5.850098862 | X22: 0.7010927451 | Y22: 0.7323693453 | Z22: 0.7348571702 | AA22: 0.8392162027 | AB22: 0.7566225655 | AC22: 0.7547611282 | AD22: 0.6660790574 | AE22: 0.6640110475 | AF22: 0.6636560363 | AG22: 0.6447386676 | AH22: 0.5660456
A23: 6075000 | B23: 545000 | C23: 717.6992035 | E23: 79.00006329 | F23: 0 | G23: 0.0001602304755 | H23: 0.5388190695 | K23: 4.400544893 | L23: 4.384463418 | M23: 4.219468627 | N23: 4.63738282 | O23: 4.180096844 | P23: 4.033264005 | Q23: 3.60572773 | R23: 3.314903926 | S23: 3.0394704 | T23: 3.28035565 | U23: 3.724293131 | X23: 0.6284131148 | Y23: 0.6591025451 | Z23: 0.6616394226 | AA23: 0.7569687528 | AB23: 0.6791437875 | AC23: 0.6752001793 | AD23: 0.5906133332 | AE23: 0.59133246 | AF23: 0.5937087754 | AG23: 0.5748120251 | AH23: 0.4980992927
A24: 6075000 | B24: 595000 | C24: 564.5533105 | E24: 65.19976994 | F24: 0 | G24: 0.000235238214 | H24: 0.6222547258 | K24: 3.283958187 | L24: =L$2+L$3*$C24 -> 3.368953002 | M24: 3.378697675 | N24: 3.737650699 | O24: 3.515596814 | P24: 3.534314686 | Q24: 3.092382697 | R24: 2.64688154 | S24: 2.193492487 | T24: 1.924861351 | U24: 1.826815517 | X24: 0.6653007584 | Y24: =SQRT(Y$2+2*Y$3*$C24+Y$4*$C24^2+Y$5) -> 0.6961320235 | Z24: 0.6990902785 | AA24: 0.7988296845 | AB24: 0.72009823 | AC24: 0.7184468646 | AD24: 0.6330328197 | AE24: 0.6329432132 | AF24: 0.6332036794 | AG24: 0.6153560448 | AH24: 0.5391491117
A25: 6075000 | B25: 605000 | C25: 579.3178656 | E25: 66.73087741 | F25: 0 | G25: 0.0002245672029 | H25: 0.6095630358 | K25: 3.391606558 | L25: 3.466856767 | M25: 3.459755082 | N25: 3.82439246 | O25: 3.579660219 | P25: 3.582417606 | Q25: 3.141873485 | R25: 2.71128453 | S25: 2.27505189 | T25: 2.055542428 | U25: 2.009748355 | X25: 0.657662584 | Y25: 0.688448399 | Z25: 0.691354337 | AA25: 0.7901644824 | AB25: 0.7117463835 | AC25: 0.7097231347 | AD25: 0.6245925655 | AE25: 0.6247134845 | AF25: 0.625347202 | AG25: 0.6073722582 | AH25: 0.5312022991
A26: 6075000 | B26: 615000 | C26: 583.2635657 | E26: 69.67790181 | F26: 0 | G26: 0.0002059727992 | H26: 0.5628985002 | K26: 3.420374657 | L26: 3.493020704 | M26: 3.481416975 | N26: 3.847573448 | O26: 3.596780611 | P26: 3.595272697 | Q26: 3.155099472 | R26: 2.728495673 | S26: 2.296847937 | T26: 2.09046582 | U26: 2.058635578 | X26: 0.6557579419 | Y26: 0.6865331123 | Z26: 0.689425416 | AA26: 0.7880043891 | AB26: 0.7096615891 | AC26: 0.7075433574 | AD26: 0.6224804538 | AE26: 0.6226535677 | AF26: 0.6233820461 | AG26: 0.6053733441 | AH26: 0.5292086338
A27: 6075000 | B27: 625000 | C27: 573.0583852 | E27: 73.87157775 | F27: 0 | G27: 0.0001832505346 | H27: 0.4920389622 | K27: 3.345968686 | L27: 3.425350152 | M27: 3.425390535 | N27: 3.787618013 | O27: 3.552500333 | P27: 3.562024219 | Q27: 3.120891707 | R27: 2.683980676 | S27: 2.24047452 | T27: 2.000139767 | U27: 1.932193393 | X27: 0.66080308 | Y27: 0.691607059 | Z27: 0.6945349307 | AA27: 0.7937267376 | AB27: 0.7151818888 | AC27: 0.7133131946 | AD27: 0.6280683162 | AE27: 0.628102865 | AF27: 0.6285818663 | AG27: 0.6106607449 | AH27: 0.5344785358
A28: 6075000 | B28: 635000 | C28: 581.699832 | E28: 79.11390523 | F28: 0 | G28: 0.000159769676 | H28: 0.4354603975 | K28: 3.408973475 | L28: 3.482651586 | M28: 3.472832078 | N28: 3.838386513 | O28: 3.589995571 | P28: 3.590178053 | Q28: 3.149857837 | R28: 2.721674667 | S28: 2.288209872 | T28: 2.076625213 | U28: 2.039260918 | X28: 0.6565057957 | Y28: 0.6872851115 | Z28: 0.6901828007 | AA28: 0.7888525156 | AB28: 0.7104802984 | AC28: 0.7083994799 | AD28: 0.6233101633 | AE28: 0.6234628026 | AF28: 0.6241539861 | AG28: 0.6061586449 | AH28: 0.529992078
A29: 6075000 | B29: 645000 | C29: 606.3104543 | E29: 85.21156025 | F29: 0 | G29: 0.0001377218872 | H29: 0.3912491378 | K29: 3.588409522 | L29: 3.645844622 | M29: 3.607944394 | N29: 3.982973919 | O29: 3.696781061 | P29: 3.67035946 | Q29: 3.232352643 | R29: 2.829026201 | S29: 2.424158949 | T29: 2.294453831 | U29: 2.344186528 | X29: 0.6458192826 | Y29: 0.6765438842 | Z29: 0.6793596635 | AA29: 0.7767364731 | AB29: 0.6987629207 | AC29: 0.6961300941 | AD29: 0.6113961123 | AE29: 0.6118375268 | AF29: 0.6130740918 | AG29: 0.5948723475 | AH29: 0.5187034388
A30: 6075000 | B30: 655000 | C30: 623.4887959 | E30: 91.99461941 | F30: 0 | G30: 0.0001181612689 | H30: 0.3451907674 | K30: 3.713656811 | L30: 3.759754206 | M30: 3.702253489 | N30: 4.083896676 | O30: 3.771317885 | P30: 3.726326497 | Q30: 3.289934444 | R30: 2.903958128 | S30: 2.519052109 | T30: 2.446499332 | U30: 2.557026181 | X30: 0.6397672368 | Y30: 0.6704658312 | Z30: 0.6732282624 | AA30: 0.769877238 | AB30: 0.6921013451 | AC30: 0.6891331631 | AD30: 0.6045730402 | AE30: 0.6051712718 | AF30: 0.6067322705 | AG30: 0.5883934871 | AH30: 0.5121877708
A31: 6075000 | B31: 665000 | C31: 643.844608 | E31: 99.32275671 | F31: 0 | G31: 0.0001013683716 | H31: 0.3058010026 | K31: 3.862071037 | L31: 3.894733595 | M31: 3.814006898 | N31: 4.203487072 | O31: 3.859641754 | P31: 3.792645733 | Q31: 3.358167126 | R31: 2.99275018 | S31: 2.631497614 | T31: 2.626668625 | U31: 2.809234693 | X31: 0.6341457758 | Y31: 0.6648247564 | Z31: 0.6675284134 | AA31: 0.7635057778 | AB31: 0.6858797805 | AC31: 0.682572539 | AD31: 0.5981432417 | AE31: 0.5988761216 | AF31: 0.6007561544 | AG31: 0.5822658539 | AH31: 0.5059868334
A32: 6075000 | B32: 675000 | C32: 641.8081176 | E32: 107.0841258 | F32: 0 | G32: 8.72066912e-05 | H32: 0.262246914 | K32: 3.847222985 | L32: 3.881229628 | M32: 3.802826566 | N32: 4.191522691 | O32: 3.850805422 | P32: 3.786010847 | Q32: 3.35134081 | R32: 2.983867009 | S32: 2.620248042 | T32: 2.608643649 | U32: 2.784002577 | X32: 0.6346312352 | Y32: 0.6653116755 | Z32: 0.6680209852 | AA32: 0.764056104 | AB32: 0.6864191838 | AC32: 0.6831428841 | AD32: 0.5987040671 | AE32: 0.5994260604 | AF32: 0.6012775094 | AG32: 0.5828017476 | AH32: 0.5065313038
A33: 6075000 | B33: 685000 | C33: 641.2353547 | E33: 115.1911889 | F33: 0 | G33: 7.536357272e-05 | H33: 0.2264301789 | K33: 3.843046971 | L33: 3.877431637 | M33: 3.799682097 | N33: 4.188157709 | O33: 3.848320204 | P33: 3.784144786 | Q33: 3.349420909 | R33: 2.981368617 | S33: 2.617084099 | T33: 2.603574124 | U33: 2.776906045 | X33: 0.6347708751 | Y33: 0.6654517453 | Z33: 0.6681626541 | AA33: 0.7642143964 | AB33: 0.6865742419 | AC33: 0.6833067664 | AD33: 0.5988651309 | AE33: 0.5995839574 | AF33: 0.6014272311 | AG33: 0.5829555848 | AH33: 0.5066875073
A34: 6075000 | B34: 695000 | C34: 612.7654014 | E34: 123.5759281 | F34: 0 | G34: 6.548355348e-05 | H34: 0.1880103881 | K34: 3.635472541 | L34: =L$2+L$3*$C34 -> 3.688647376 | M34: 3.643382054 | N34: 4.020896733 | O34: 3.724789077 | P34: 3.691389678 | Q34: 3.253989625 | R34: 2.857182681 | S34: 2.459816077 | T34: 2.351586568 | U34: 2.424163323 | X34: 0.6434069397 | Y34: =SQRT(Y$2+2*Y$3*$C34+Y$4*$C34^2+Y$5) -> 0.6741206771 | Z34: 0.6769160248 | AA34: 0.7740022617 | AB34: 0.6961106914 | AC34: 0.6933467918 | AD34: 0.6086851214 | AE34: 0.6091899474 | AF34: 0.6105541074 | AG34: 0.5923000343 | AH34: 0.5161203303
A35: 6085000 | B35: 475000 | C35: 747.896537 | E35: 127.3852817 | F35: 0 | G35: 6.162564761e-05 | H35: 0.2159525767 | K35: 4.620713651 | L35: 4.584701937 | M35: 4.385251988 | N35: 4.814792155 | O35: 4.311123074 | P35: 4.131646918 | Q35: 3.706949192 | R35: 3.446624695 | S35: 3.206280471 | T35: 3.547632249 | U35: 4.098438094 | X35: 0.6327783715 | Y35: 0.6635050907 | Z35: 0.665997485 | AA35: 0.7618770431 | AB35: 0.6836455253 | AC35: 0.6797255378 | AD35: 0.5948044661 | AE35: 0.5952875127 | AF35: 0.5975533587 | AG35: 0.5785679053 | AH35: 0.5016301118
A36: 6085000 | B36: 485000 | C36: 756.4016117 | E36: 118.4441218 | F36: 0 | G36: 7.128086729e-05 | H36: 0.2526275978 | K36: 4.682724151 | L36: 4.641099087 | M36: 4.431944848 | N36: 4.864759469 | O36: 4.348026593 | P36: 4.159356451 | Q36: 3.735458202 | R36: 3.48372383 | S36: 3.253262503 | T36: 3.622910665 | U36: 4.203815969 | X36: 0.6347013826 | Y36: 0.6654423433 | Z36: 0.6679249 | AA36: 0.7640438706 | AB36: 0.6856643859 | AC36: 0.6817806529 | AD36: 0.5967374215 | AE36: 0.5971308806 | AF36: 0.5993332208 | AG36: 0.58033108 | AH36: 0.503324925
A37: 6085000 | B37: 495000 | C37: 797.335977 | E37: 109.6859608 | F37: 0 | G37: 8.311854117e-05 | H37: 0.310523623 | K37: 4.981176608 | L37: 4.912534863 | M37: 4.656674514 | N37: 5.105248865 | O37: 4.525640804 | P37: 4.292720613 | Q37: 3.872670195 | R37: 3.662279532 | S37: 3.479383937 | T37: 3.985220732 | U37: 4.710992755 | X37: 0.6480963086 | Y37: 0.6789329375 | Z37: 0.6813852216 | AA37: 0.7791634657 | AB37: 0.6998668477 | AC37: 0.6963311377 | AD37: 0.6105226988 | AE37: 0.6103537627 | AF37: 0.6120620558 | AG37: 0.5930262087 | AH37: 0.5156477752
A38: 6085000 | B38: 505000 | C38: 851.3075171 | E38: 101.1583412 | F38: 0 | G38: 9.772295737e-05 | H38: 0.3897969544 | K38: 5.374683107 | L38: 5.270420146 | M38: 4.952978269 | N38: 5.422331663 | O38: 4.759823317 | P38: 4.468559891 | Q38: 4.053582797 | R38: 3.89770339 | S38: 3.777522725 | T38: 4.462922834 | U38: 5.379700137 | X38: 0.6756357473 | Y38: 0.7066856412 | Z38: 0.7091417131 | AA38: 0.8103318103 | AB38: 0.7293069651 | AC38: 0.726624637 | AD38: 0.6393328006 | AE38: 0.6381368425 | AF38: 0.6387704073 | AG38: 0.6197829224 | AH38: 0.5417395099
A39: 6085000 | B39: 515000 | C39: 875.0271749 | E39: 92.92475451 | F39: 0 | G39: 0.000115807625 | H39: 0.4748036705 | K39: 5.547623132 | L39: 5.427705196 | M39: 5.08319919 | N39: 5.561684652 | O39: 4.862742912 | P39: 4.545838536 | Q39: 4.13309109 | R39: 4.001168537 | S39: 3.908550114 | T39: 4.672865525 | U39: 5.673586697 | X39: 0.6909916985 | Y39: 0.722174881 | Z39: 0.7246480614 | AA39: 0.8277477241 | AB39: 0.7457767667 | AC39: 0.7435888778 | AD39: 0.6554631537 | AE39: 0.6537343107 | AF39: 0.6537694392 | AG39: 0.6348238768 | AH39: 0.5563956107
A40: 6085000 | B40: 525000 | C40: 871.2451213 | E40: 85.07061772 | F40: 0 | G40: 0.0001381786124 | H40: 0.5640746184 | K40: 5.52004818 | L40: 5.4026264 | M40: 5.062435716 | N40: 5.539465088 | O40: 4.846332582 | P40: 4.533516605 | Q40: 4.120413647 | R40: 3.984671219 | S40: 3.88765805 | T40: 4.639390569 | U40: 5.626727053 | X40: 0.6884186449 | Y40: 0.7195787553 | Z40: 0.7220485928 | AA40: 0.8248278738 | AB40: 0.7430153768 | AC40: 0.7407443877 | AD40: 0.6527593189 | AE40: 0.6511182343 | AF40: 0.6512532344 | AG40: 0.6323004858 | AH40: 0.5539381152
A41: 6085000 | B41: 535000 | C41: 804.9455414 | E41: 77.71106742 | F41: 0 | G41: 0.0001655900553 | H41: 0.6245340512 | K41: 5.036657942 | L41: 4.962993885 | M41: 4.698451022 | N41: 5.149955056 | O41: 4.558658704 | P41: 4.317512574 | Q41: 3.898177455 | R41: 3.695472452 | S41: 3.521419171 | T41: 4.052572987 | U41: 4.805275258 | X41: 0.6513203848 | Y41: 0.6821804426 | Z41: 0.6846302526 | AA41: 0.7828073753 | AB41: 0.7033028555 | AC41: 0.6998619237 | AD41: 0.6138779224 | AE41: 0.6135822358 | AF41: 0.6151662345 | AG41: 0.5961317405 | AH41: 0.5186738391
A42: 6085000 | B42: 545000 | C42: 721.4585283 | E42: 71.00007042 | F42: 0 | G42: 0.0001983729451 | H42: 0.6705778196 | K42: 4.42795413 | L42: 4.409391501 | M42: 4.24010732 | N42: 4.659468854 | O42: 4.196408554 | P42: 4.045511885 | Q42: 3.618328987 | R42: 3.331302101 | S42: 3.06023691 | T42: 3.313629434 | U42: 3.770871166 | X42: 0.6287453139 | Y42: 0.6594383187 | Z42: 0.6619688617 | AA42: 0.7573410143 | AB42: 0.6794755743 | AC42: 0.675525866 | AD42: 0.5909058244 | AE42: 0.5916027073 | AF42: 0.5939751941 | AG42: 0.5750648536 | AH42: 0.4983254568
A43: 6085000 | B43: 555000 | C43: 688.2882825 | E43: 65.13839114 | F43: 0 | G43: 0.0002356817448 | H43: 0.7600666771 | K43: 4.186109868 | L43: 4.189439601 | M43: 4.058002671 | N43: 4.46459366 | O43: 4.052482858 | P43: 3.937443224 | Q43: 3.507142323 | R43: 3.186613488 | S43: 2.877004473 | T43: 3.020039589 | U43: 3.35989182 | X43: 0.6279043996 | Y43: 0.6585758211 | Z43: 0.6611697536 | AA43: 0.7564178008 | AB43: 0.6788090676 | AC43: 0.6750023219 | AD43: 0.5905923772 | AE43: 0.5914135579 | AF43: 0.5937215051 | AG43: 0.5749559195 | AH43: 0.4984387805
A44: 6085000 | B44: 565000 | C44: 653.399748 | E44: 60.37391821 | F44: 0 | G44: 0.0002743476698 | H44: 0.8399155278 | K44: 3.931737563 | L44: =L$2+L$3*$C44 -> 3.958093729 | M44: 3.866464616 | N44: 4.259623519 | O44: 3.901101506 | P44: 3.823776379 | Q44: 3.390195955 | R44: 3.034429701 | S44: 2.684280208 | T44: 2.711241169 | U44: 2.927622877 | X44: 0.6320991097 | Y44: =SQRT(Y$2+2*Y$3*$C44+Y$4*$C44^2+Y$5) -> 0.6627726336 | Z44: 0.6654504698 | AA44: 0.7611851177 | AB44: 0.6835983889 | AC44: 0.6801551112 | AD44: 0.5957601297 | AE44: 0.5965362353 | AF44: 0.5985401713 | AG44: 0.5799837028 | AH44: 0.5036612324
A45: 6085000 | B45: 575000 | C45: 621.8659676 | E45: 56.98254119 | F45: 0 | G45: 0.0003079756453 | H45: 0.8973637791 | K45: 3.70182477 | L45: 3.748993231 | M45: 3.693344162 | N45: 4.07436256 | O45: 3.764276434 | P45: 3.721039323 | Q45: 3.284494724 | R45: 2.896879351 | S45: 2.510087605 | T45: 2.43213568 | U45: 2.536919339 | X45: 0.6402883122 | Y45: 0.670988974 | Z45: 0.6737563025 | AA45: 0.770467783 | AB45: 0.6926760216 | AC45: 0.6897376504 | AD45: 0.6051636312 | AE45: 0.6057487013 | AF45: 0.607281151 | AG45: 0.5889549928 | AH45: 0.5127538232
A46: 6085000 | B46: 585000 | C46: 598.2054045 | E46: 55.21784132 | F46: 0 | G46: 0.00032797531 | H46: 0.9192779759 | K46: =K$2+K$3*$C46 -> 3.529315604 | L46: 3.592100037 | M46: 3.563447671 | N46: 3.935356751 | O46: 3.66161325 | P46: 3.643953208 | Q46: 3.205184516 | R46: 2.793671974 | S46: 2.379386654 | T46: 2.222716035 | U46: 2.243764962 | X46: =SQRT(X$2+2*X$3*$C46+X$4*$C46^2+X$5) -> 0.6490805455 | Y46: 0.6798207633 | Z46: 0.6826628312 | AA46: 0.780433289 | AB46: 0.7023435623 | AC46: 0.6998836091 | AD46: 0.6150466903 | AE46: 0.615401066 | AF46: 0.6164680829 | AG46: 0.5983332516 | AH46: 0.5221722292
A47: 6085000 | B47: 595000 | C47: 578.9769353 | E47: 55.23594844 | F47: 0 | G47: 0.0003277603154 | H47: 0.8891458458 | K47: 3.389120835 | L47: 3.464596058 | M47: 3.457883375 | N47: 3.822389495 | O47: 3.578180922 | P47: 3.581306855 | Q47: 3.140730687 | R47: 2.709797392 | S47: 2.273168591 | T47: 2.052524854 | U47: 2.005524228 | X47: 0.6578298893 | Y47: 0.6886166529 | Z47: 0.691523776 | AA47: 0.7903542387 | AB47: 0.7119294668 | AC47: 0.7099145148 | AD47: 0.6247779402 | AE47: 0.6248942668 | AF47: 0.6255196949 | AG47: 0.6075476748 | AH47: 0.5313771738
A48: 6085000 | B48: 605000 | C48: 592.2550342 | E48: 57.03516459 | F48: 0 | G48: 0.000307407601 | H48: 0.8530583423 | K48: 3.485931455 | L48: 3.552643132 | M48: 3.530780138 | N48: 3.900398326 | O48: 3.635794594 | P48: 3.624566902 | Q48: 3.185238875 | R48: 2.767716459 | S48: 2.346516809 | T48: 2.170049308 | U48: 2.170039874 | X48: 0.6516373332 | Y48: 0.6823904826 | Z48: 0.6852522865 | AA48: 0.7833319503 | AB48: 0.7051475048 | AC48: 0.7028201483 | AD48: 0.617898919 | AE48: 0.6181842782 | AF48: 0.6191204167 | AG48: 0.6010354394 | AH48: 0.5248759044
A49: 6085000 | B49: 615000 | C49: 602.7193217 | E49: 60.4566787 | F49: 0 | G49: 0.0002735970627 | H49: 0.7726484121 | K49: 3.562226575 | L49: 3.622031822 | M49: 3.588229076 | N49: 3.961876015 | O49: 3.681199137 | P49: 3.65865955 | Q49: 3.220315166 | R49: 2.813361681 | S49: 2.404321533 | T49: 2.262668717 | U49: 2.299692396 | X49: 0.647232554 | Y49: 0.6779637971 | Z49: 0.6807911384 | AA49: 0.7783384264 | AB49: 0.7003152229 | AC49: 0.6977578712 | AD49: 0.6129799613 | AE49: 0.6133838169 | AF49: 0.614546522 | AG49: 0.5963742713 | AH49: 0.5202096625
A50: 6085000 | B50: 625000 | C50: 551.7752427 | E50: 65.24576615 | F50: 0 | G50: 0.0002349066598 | H50: 0.6073134674 | K50: 3.190793294 | L50: 3.284221634 | M50: 3.308546082 | N50: 3.662579551 | O50: 3.460152778 | P50: 3.492683741 | Q50: 3.049550613 | R50: 2.591143609 | S50: 2.122906441 | T50: 1.811762673 | U50: 1.668495257 | X50: 0.672546415 | Y50: 0.7034246153 | Z50: 0.7064297247 | AA50: 0.8070535936 | AB50: 0.7280105195 | AC50: 0.7267006265 | AD50: 0.641001962 | AE50: 0.6407117884 | AF50: 0.6406269106 | AG50: 0.6228899159 | AH50: 0.5466272135
A51: 6085000 | B51: 635000 | C51: 556.6619104 | E51: 71.12671791 | F51: 0 | G51: 0.0001976671325 | H51: 0.5155625222 | K51: 3.226421989 | L51: 3.316625128 | M51: 3.335373888 | N51: 3.691288724 | O51: 3.481356029 | P51: 3.508604504 | Q51: 3.065930724 | R51: 2.612459253 | S51: 2.149900393 | T51: 1.855014569 | U51: 1.72904107 | X51: 0.6697071847 | Y51: 0.7005665688 | Z51: 0.7035535931 | AA51: 0.8038305593 | AB51: 0.7249110971 | AC51: 0.7234685723 | AD51: 0.6378831106 | AE51: 0.6376715707 | AF51: 0.6377210907 | AG51: 0.6199417959 | AH51: 0.543703154
A52: 6085000 | B52: 645000 | C52: 601.9056347 | E52: 77.85248872 | F52: 0 | G52: 0.0001649890035 | H52: 0.4653061366 | K52: 3.556293983 | L52: 3.616636264 | M52: 3.583761935 | N52: 3.957095604 | O52: 3.677668549 | P52: 3.656008558 | Q52: 3.217587688 | R52: 2.809812379 | S52: 2.399826726 | T52: 2.255466773 | U52: 2.289610814 | X52: 0.6475598032 | Y52: 0.678292612 | Z52: 0.6811225921 | AA52: 0.7787093794 | AB52: 0.7006745232 | AC52: 0.6981345222 | AD52: 0.6133462884 | AE52: 0.6137414104 | AF52: 0.6148870994 | AG52: 0.5967215663 | AH52: 0.5205577559
A53: 6085000 | B53: 655000 | C53: 591.3367953 | E53: 85.22329494 | F53: 0 | G53: 0.000137683963 | H53: 0.381481633 | K53: 3.479236574 | L53: 3.546554289 | M53: 3.525739006 | N53: 3.895003672 | O53: 3.631810355 | P53: 3.621575279 | Q53: 3.182160938 | R53: 2.763711101 | S53: 2.341444457 | T53: 2.161921975 | U53: 2.158662893 | X53: 0.6520440234 | Y53: 0.6827992828 | Z53: 0.6856641645 | AA53: 0.783793056 | AB53: 0.7055932803 | AC53: 0.703286803 | AD53: 0.6183518969 | AE53: 0.6186262279 | AF53: 0.6195416987 | AG53: 0.6014644627 | AH53: 0.5253048171
A54: 6085000 | B54: 665000 | C54: 603.0238861 | E54: 93.08603547 | F54: 0 | G54: 0.0001154066758 | H54: 0.3260774895 | K54: 3.564447154 | L54: =L$2+L$3*$C54 -> 3.624051389 | M54: 3.589901135 | N54: 3.963665331 | O54: 3.682520642 | P54: 3.659651821 | Q54: 3.221336066 | R54: 2.814690191 | S54: 2.406003947 | T54: 2.265364416 | U54: 2.303465949 | X54: 0.6471107305 | Y54: =SQRT(Y$2+2*Y$3*$C54+Y$4*$C54^2+Y$5) -> 0.6778413934 | Z54: 0.6806677488 | AA54: 0.7782003348 | AB54: 0.7001814546 | AC54: 0.6976176322 | AD54: 0.6128435512 | AE54: 0.6132506547 | AF54: 0.6144197024 | AG54: 0.5962449404 | AH54: 0.5200800159
A55: 6085000 | B55: 675000 | C55: 596.2961948 | E55: 101.3262552 | F55: 0 | G55: 9.739934022e-05 | H55: 0.2721281221 | K55: 3.515395556 | L55: 3.579440068 | M55: 3.552966109 | N55: 3.924140144 | O55: 3.653329189 | P55: 3.637733003 | Q55: 3.198784845 | R55: 2.785344002 | S55: 2.36884018 | T55: 2.20581762 | U55: 2.220109853 | X55: 0.6498860098 | Y55: 0.6806302384 | Z55: 0.683478599 | AA55: 0.7813464126 | AB55: 0.7032271667 | AC55: 0.7008092429 | AD55: 0.6159460847 | AE55: 0.6162787817 | AF55: 0.6173043865 | AG55: 0.5991854896 | AH55: 0.5230253542
A56: 6085000 | B56: 685000 | C56: 629.2027878 | E56: 109.8590461 | F56: 0 | G56: 8.285683747e-05 | H56: 0.2442723794 | K56: 3.755317526 | L56: 3.797643686 | M56: 3.733623305 | N56: 4.117466378 | O56: 3.796110896 | P56: 3.744942683 | Q56: 3.309087745 | R56: 2.92888256 | S56: 2.5506162 | T56: 2.497073875 | U56: 2.627822541 | X56: 0.6380176521 | Y56: 0.6687095802 | Z56: 0.6714550116 | AA56: 0.7678943866 | AB56: 0.6901697406 | AC56: 0.6870998014 | AD56: 0.6025844853 | AE56: 0.6032262456 | AF56: 0.6048841691 | AG56: 0.5865015328 | AH56: 0.5102781871
A57: 6085000 | B57: 695000 | C57: 601.9556378 | E57: 118.6212881 | F57: 0 | G57: 7.106810385e-05 | H57: 0.2004447041 | K57: 3.556658555 | L57: 3.616967834 | M57: 3.584036452 | N57: 3.957389372 | O57: 3.677885513 | P57: 3.656171468 | Q57: 3.217755298 | R57: 2.810030492 | S57: 2.400102943 | T57: 2.25590935 | U57: 2.290230353 | X57: 0.6475396182 | Y57: 0.6782723302 | Z57: 0.6811021479 | AA57: 0.7786864986 | AB57: 0.7006523628 | AC57: 0.6981112929 | AD57: 0.6133236975 | AE57: 0.6137193585 | AF57: 0.6148660962 | AG57: 0.5967001499 | AH57: 0.5205362924
A58: 6085000 | B58: 705000 | C58: 586.2819353 | E58: 127.5657086 | F58: 0 | G58: 6.145144629e-05 | H58: 0.1688083765 | K58: 3.44238159 | L58: 3.513035513 | M58: 3.497987825 | N58: 3.86530637 | O58: 3.609877317 | P58: 3.605106545 | Q58: 3.165217047 | R58: 2.741661802 | S58: 2.313521411 | T58: 2.117181409 | U58: 2.096033178 | X58: 0.6543404644 | Y58: 0.685107901 | Z58: 0.6879898769 | AA58: 0.7863969588 | AB58: 0.7081093659 | AC58: 0.7059197825 | AD58: 0.6209063696 | AE58: 0.6211182124 | AF58: 0.6219177006 | AG58: 0.603883283 | AH58: 0.5277213414
A59: 6095000 | B59: 475000 | C59: 755.2242657 | E59: 123.3977715 | F59: 0 | G59: 6.567277489e-05 | H59: 0.2323895925 | K59: 4.674140121 | L59: 4.633292106 | M59: 4.425481219 | N59: 4.857842561 | O59: 4.342918089 | P59: 4.155520658 | Q59: 3.731511739 | R59: 3.478588247 | S59: 3.246758844 | T59: 3.612489976 | U59: 4.189228652 | X59: 0.6344172131 | Y59: 0.6651560974 | Z59: 0.6676399441 | AA59: 0.7637235803 | AB59: 0.6853654531 | AC59: 0.6814759387 | AD59: 0.5964503594 | AE59: 0.5968568065 | AF59: 0.5990687695 | AG59: 0.5800687275 | AH59: 0.5030721854
A60: 6095000 | B60: 485000 | C60: 793.9994057 | E60: 114.1446889 | F60: 0 | G60: 7.675180232e-05 | H60: 0.2855381437 | K60: 4.956849667 | L60: 4.890410059 | M60: 4.638356737 | N60: 5.085646509 | O60: 4.511163421 | P60: 4.281850064 | Q60: 3.861486008 | R60: 3.647725408 | S60: 3.460952717 | T60: 3.95568874 | U60: 4.669652637 | X60: 0.6467536468 | Y60: 0.6775806099 | Z60: 0.6800342919 | AA60: 0.7776464252 | AB60: 0.6984372658 | AC60: 0.6948628545 | AD60: 0.6091280313 | AE60: 0.6090125992 | AF60: 0.6107723243 | AG60: 0.5917365705 | AH60: 0.5143917941
A61: 6095000 | B61: 495000 | C61: 832.3427007 | E61: 105.0286151 | F61: 0 | G61: 9.065353037e-05 | H61: 0.3535430211 | K61: 5.236410631 | L61: 5.144664448 | M61: 4.848861427 | N61: 5.310913367 | O61: 4.677534978 | P61: 4.406772519 | Q61: 3.990012733 | R61: 3.81497886 | S61: 3.672761079 | T61: 4.295065244 | U61: 5.144726061 | X61: 0.664744632 | Y61: 0.6957063921 | Z61: 0.698155498 | AA61: 0.7979946628 | AB61: 0.7176443967 | AC61: 0.71461606 | AD61: 0.6279096425 | AE61: 0.6271067372 | AF61: 0.628166964 | AG61: 0.6091532902 | AH61: 0.5313730007
A62: 6095000 | B62: 505000 | C62: 830.4653111 | E62: 96.08855291 | F62: 0 | G62: 0.0001083070418 | H62: 0.4214378739 | K62: 5.222722584 | L62: 5.132215478 | M62: 4.838554558 | N62: 5.299883703 | O62: 4.669388985 | P62: 4.400655984 | Q62: 3.983719723 | R62: 3.806789687 | S62: 3.662390379 | T62: 4.278448469 | U62: 5.121465205 | X62: 0.6637361762 | Y62: 0.6946900392 | Z62: 0.6971387852 | AA62: 0.79685299 | AB62: 0.7165655368 | AC62: 0.7135055271 | AD62: 0.6268532119 | AE62: 0.6260874488 | AF62: 0.627187185 | AG62: 0.6081713815 | AH62: 0.53041522
A63: 6095000 | B63: 515000 | C63: 864.5901618 | E63: 87.37854428 | F63: 0 | G63: 0.0001309755979 | H63: 0.530586323 | K63: 5.47152687 | L63: 5.358497363 | M63: 5.025899988 | N63: 5.500367201 | O63: 4.817456712 | P63: 4.511834747 | Q63: 4.098106222 | R63: 3.955642286 | S63: 3.850896054 | T63: 4.580487522 | U63: 5.544272105 | X63: 0.6840043516 | Y63: 0.7151255707 | Z63: 0.7175900889 | AA63: 0.8198201197 | AB63: 0.7382794564 | AC63: 0.7358660655 | AD63: 0.6481213756 | AE63: 0.646632229 | AF63: 0.6469389806 | AG63: 0.6279739931 | AH63: 0.5497232855
A64: 6095000 | B64: 525000 | C64: 898.8968419 | E64: 78.9747428 | F64: 0 | G64: 0.0001603332366 | H64: 0.6752876171 | K64: 5.721656875 | L64: =L$2+L$3*$C64 -> 5.585984959 | M64: 5.214243662 | N64: 5.701918946 | O64: 4.966313397 | P64: 4.623605911 | Q64: 4.213102214 | R64: 4.105288025 | S64: 4.040406155 | T64: 4.884135948 | U64: 5.969331872 | X64: 0.7082713729 | Y64: =SQRT(Y$2+2*Y$3*$C64+Y$4*$C64^2+Y$5) -> 0.7396170819 | Z64: 0.7421166048 | AA64: 0.8473722501 | AB64: 0.7643350346 | AC64: 0.762705423 | AD64: 0.6736236651 | AE64: 0.6713194303 | AF64: 0.6706891916 | AG64: 0.6517915076 | AH64: 0.572904056
A65: 6095000 | B65: 535000 | C65: 795.1131114 | E65: 70.98598453 | F65: 0 | G65: 0.00019845168 | H65: 0.7393312556 | K65: 4.964969695 | L65: 4.897795042 | M65: 4.644470982 | N65: 5.092189529 | O65: 4.51599579 | P65: 4.285478517 | Q65: 3.865219149 | R65: 3.652583392 | S65: 3.467104827 | T65: 3.965546149 | U65: 4.68345145 | X65: 0.6471969678 | Y65: 0.6780271169 | Z65: 0.6804803111 | AA65: 0.7781472916 | AB65: 0.6989091904 | AC65: 0.6953475013 | AD65: 0.6095883327 | AE65: 0.6094551844 | AF65: 0.6111979527 | AG65: 0.59216212 | AH65: 0.5148061865
A66: 6095000 | B66: 545000 | C66: 719.7584225 | E66: 63.56893896 | F66: 0 | G66: 0.0002474628868 | H66: 0.834549694 | K66: 4.415558659 | L66: 4.3981181 | M66: 4.23077374 | N66: 4.649480732 | O66: 4.189031795 | P66: 4.039972941 | Q66: 3.612630232 | R66: 3.323886239 | S66: 3.050845526 | T66: 3.298581798 | U66: 3.749806855 | X66: 0.6285876009 | Y66: 0.6592789529 | Z66: 0.661812333 | AA66: 0.7571642113 | AB66: 0.6793174339 | AC66: 0.6753701641 | AD66: 0.5907654306 | AE66: 0.5914726287 | AF66: 0.5938471992 | AG66: 0.5749429146 | AH66: 0.4982156219
A67: 6095000 | B67: 555000 | C67: 695.0614312 | E67: 56.9474319 | F67: 0 | G67: 0.0003083555092 | H67: 1.004223255 | K67: 4.235492895 | L67: 4.234352351 | M67: 4.095187257 | N67: 4.504385909 | O67: 4.08187155 | P67: 3.959510143 | Q67: 3.529845918 | R67: 3.216157963 | S67: 2.914419346 | T67: 3.079988728 | U67: 3.443811133 | X67: 0.6276926391 | Y67: 0.658366651 | Z67: 0.660946291 | AA67: 0.7561731316 | AB67: 0.6785304662 | AC67: 0.6746782377 | AD67: 0.5902406417 | AE67: 0.5910496978 | AF67: 0.5933888234 | AG67: 0.5745891859 | AH67: 0.4980291517
A68: 6095000 | B68: 565000 | C68: 699.9981021 | E68: 51.4296607 | F68: 0 | G68: 0.0003780704043 | H68: 1.240009225 | K68: 4.271486162 | L68: 4.267087415 | M68: 4.12228958 | N68: 4.53338885 | O68: 4.103291765 | P68: 3.975593816 | Q68: 3.546393638 | R68: 3.237691721 | S68: 2.941689516 | T68: 3.123683201 | U68: 3.504976484 | X68: 0.6276623211 | Y68: 0.658338809 | Z68: 0.6609084599 | AA68: 0.7561349006 | AB68: 0.6784614996 | AC68: 0.6745813663 | AD68: 0.5901186572 | AE68: 0.5909145763 | AF68: 0.5932706212 | AG68: 0.5744475947 | AH68: 0.4978554472
A69: 6095000 | B69: 575000 | C69: 640.0761917 | E69: 47.40263706 | F69: 0 | G69: 0.0004450358476 | H69: 1.33469502 | K69: 3.834595513 | L69: 3.869745227 | M69: 3.793318292 | N69: 4.181347626 | O69: 3.843290596 | P69: 3.780368232 | Q69: 3.345535394 | R69: 2.976312348 | S69: 2.610680883 | T69: 2.593314372 | U69: 2.762544015 | X69: 0.6350576439 | Y69: 0.6657394103 | Z69: 0.6684535679 | AA69: 0.7645394631 | AB69: 0.6868925447 | AC69: 0.6836430905 | AD69: 0.5991955613 | AE69: 0.5999078378 | AF69: 0.601734384 | AG69: 0.5832711019 | AH69: 0.5070077508
A70: 6095000 | B70: 585000 | C70: 633.3030429 | E70: 45.26599165 | F70: 0 | G70: 0.0004880405659 | H70: 1.448181078 | K70: 3.785212486 | L70: 3.824832478 | M70: 3.756133706 | N70: 4.141555377 | O70: 3.813901903 | P70: 3.758301314 | Q70: 3.3228318 | R70: 2.946767873 | S70: 2.573266009 | T70: 2.533365233 | U70: 2.678624702 | X70: 0.6368443398 | Y70: 0.6675320565 | Z70: 0.670265527 | AA70: 0.7665645975 | AB70: 0.6888723002 | AC70: 0.6857324665 | AD70: 0.6012453824 | AE70: 0.6019156471 | AF70: 0.6036396208 | AG70: 0.5852261238 | AH70: 0.5089886447
A71: 6095000 | B71: 595000 | C71: 648.4812601 | E71: 45.2880779 | F71: 0 | G71: 0.0004875646633 | H71: 1.481443266 | K71: 3.895876867 | L71: 3.925479236 | M71: 3.839462118 | N71: 4.230727403 | O71: 3.879760188 | P71: 3.807751945 | Q71: 3.373709184 | R71: 3.012975257 | S71: 2.657110481 | T71: 2.667707633 | U71: 2.866682813 | X71: 0.633104934 | Y71: 0.6637809842 | Z71: 0.666471966 | AA71: 0.7623257217 | AB71: 0.6847212413 | AC71: 0.681346093 | AD71: 0.5969355678 | AE71: 0.5976910477 | AF71: 0.5996333205 | AG71: 0.5811104814 | AH71: 0.5048110163
A72: 6095000 | B72: 605000 | C72: 630.5255974 | E72: =(SQRT(($A72-E$1)^2+($B72-E$2)^2)/1000) -> 47.46588248 | F72: 0 | G72: 0.0004438506709 | H72: 1.311278603 | K72: 3.764962131 | L72: 3.806415236 | M72: 3.74088553 | N72: 4.125237885 | O72: 3.801850567 | P72: 3.749252396 | Q72: 3.313521802 | R72: 2.934652656 | S72: 2.5579234 | T72: 2.508782062 | U72: 2.644212152 | X72: 0.6376315968 | Y72: 0.6683221149 | Z72: 0.6710636656 | AA72: 0.7674568515 | AB72: 0.6897430449 | AC72: 0.6866502687 | AD72: 0.6021444167 | AE72: 0.602795624 | AF72: 0.6044751788 | AG72: 0.5860825291 | AH72: 0.5098547551
A73: 6095000 | B73: 615000 | C73: 629.6982732 | E73: 51.52678915 | F73: =IF(E73=0,1,0) -> 0 | G73: =IF($F$618=0,1/E73^2,F73) -> 0.0003766464156 | H73: =G73/$G$618*C73 -> 1.111275432 | K73: 3.75893011 | L73: 3.800929249 | M73: 3.73634352 | N73: 4.120377355 | O73: 3.798260807 | P73: 3.746556974 | Q73: 3.310748612 | R73: 2.931043868 | S73: 2.553353261 | T73: 2.501459416 | U73: 2.633961605 | X73: 0.6378722089 | Y73: 0.6685636031 | Z73: 0.6713075784 | AA73: 0.7677295494 | AB73: 0.6900090085 | AC73: 0.6869304833 | AD73: 0.602418752 | AE73: 0.6030640787 | AF73: 0.6047301406 | AG73: 0.5863437472 | AH73: 0.5101187577
A74: 6095000 | B74: 625000 | C74: 596.8235003 | E74: 57.0702199 | F74: 0 | G74: 0.0003070300675 | H74: 0.8585828222 | K74: 3.519240141 | L74: =L$2+L$3*$C74 -> 3.582936631 | M74: 3.555861017 | N74: 3.927238064 | O74: 3.655617168 | P74: 3.639450964 | Q74: 3.200552373 | R74: 2.787644108 | S74: 2.371753016 | T74: 2.210484801 | U74: 2.226643169 | X74: 0.6496621372 | Y74: =SQRT(Y$2+2*Y$3*$C74+Y$4*$C74^2+Y$5) -> 0.6804052451 | Z74: 0.683251864 | AA74: 0.7810926132 | AB74: 0.7029816025 | AC74: 0.7005520216 | AD74: 0.6156961869 | AE74: 0.6160349156 | AF74: 0.6170720133 | AG74: 0.5989487094 | AH74: 0.5227883672
A75: 6095000 | B75: 635000 | C75: 579.1633105 | E75: 63.71036023 | F75: 0 | G75: 0.0002463654931 | H75: 0.6685536934 | K75: 3.390479697 | L75: 3.465831912 | M75: 3.458906575 | N75: 3.823484449 | O75: 3.578989604 | P75: 3.581914066 | Q75: 3.141355417 | R75: 2.71061036 | S75: 2.274198127 | T75: 2.054174461 | U75: 2.007833417 | X75: 0.6577383754 | Y75: 0.6885246198 | Z75: 0.6914310949 | AA75: 0.7902504441 | AB75: 0.7118293234 | AC75: 0.7098098341 | AD75: 0.6246765455 | AE75: 0.6247953842 | AF75: 0.6254253459 | AG75: 0.6074517274 | AH75: 0.5312815244
A76: 6095000 | B76: 645000 | C76: 605.0376478 | E76: 71.14077593 | F76: 0 | G76: 0.0001975890188 | H76: 0.560145144 | K76: 3.57912949 | L76: 3.637404643 | M76: 3.600956686 | N76: 3.975496181 | O76: 3.691258354 | P76: 3.666212657 | Q76: 3.228086195 | R76: 2.82347422 | S76: 2.417127966 | T76: 2.283188221 | U76: 2.328416456 | X76: 0.6463143927 | Y76: 0.6770412985 | Z76: 0.67986116 | AA76: 0.7772976733 | AB76: 0.6993068543 | AC76: 0.6967005719 | AD76: 0.611951325 | AE76: 0.6123796122 | AF76: 0.6135902313 | AG76: 0.5953989109 | AH76: 0.5192316696
A77: 6095000 | B77: 655000 | C77: 575.6358183 | E77: 79.13918119 | F77: 0 | G77: 0.0001596676358 | H77: 0.4306456614 | K77: 3.364760751 | L77: 3.442441111 | M77: 3.439540642 | N77: 3.802760432 | O77: 3.563683816 | P77: 3.570421496 | Q77: 3.129531263 | R77: 2.695223439 | S77: 2.25471226 | T77: 2.022952628 | U77: 1.964127789 | X77: 0.6594923624 | Y77: 0.6902886694 | Z77: 0.6932074649 | AA77: 0.7922399092 | AB77: 0.7137483368 | AC77: 0.7118154359 | AD77: 0.6266186656 | AE77: 0.6266893021 | AF77: 0.6272326523 | AG77: 0.6092893342 | AH77: 0.5331127636
A78: 6095000 | B78: 665000 | C78: 571.7037554 | E78: 87.55004283 | F78: 0 | G78: 0.000130462974 | H78: 0.3494730506 | K78: 3.336092081 | L78: 3.416367602 | M78: 3.417953617 | N78: 3.779659563 | O78: 3.546622595 | P78: 3.557610835 | Q78: 3.116350988 | R78: 2.678071781 | S78: 2.232991545 | T78: 1.988149939 | U78: 1.91540953 | X78: 0.6615017632 | Y78: 0.6923098842 | Z78: 0.6952425508 | AA78: 0.7945193478 | AB78: 0.7159458886 | AC78: 0.7141112528 | AD78: 0.6288405038 | AE78: 0.6288557958 | AF78: 0.6293006219 | AG78: 0.6113911829 | AH78: 0.5352056705
A79: 6095000 | B79: 675000 | C79: 588.9593746 | E79: 96.26531047 | F79: 0 | G79: 0.000107909671 | H79: 0.2977838078 | K79: 3.4619028 | L79: 3.530789613 | M79: 3.512686967 | N79: 3.881036326 | O79: 3.621494726 | P79: 3.613829642 | Q79: 3.174191824 | R79: 2.753340792 | S79: 2.328311585 | T79: 2.140879425 | U79: 2.129206651 | X79: 0.6531119718 | Y79: 0.6838728391 | Z79: 0.6867457288 | AA79: 0.7850039459 | AB79: 0.7067635903 | AC79: 0.7045116814 | AD79: 0.6195405314 | AE79: 0.6197858457 | AF79: 0.6206472301 | AG79: 0.6025900913 | AH79: 0.526429725
A80: 6095000 | B80: 685000 | C80: 609.0833541 | E80: 105.2093627 | F80: 0 | G80: 9.034231607e-05 | H80: 0.2578239885 | K80: 3.608626735 | L80: 3.664231721 | M80: 3.623167614 | N80: 3.999264705 | O80: 3.708812673 | P80: 3.679393568 | Q80: 3.241647403 | R80: 2.84112159 | S80: 2.439476448 | T80: 2.318996767 | U80: 2.378542757 | X80: 0.6447627706 | Y80: 0.6754825386 | Z80: 0.6782894853 | AA80: 0.7755389675 | AB80: 0.6976017745 | AC80: 0.6949119118 | AD80: 0.6102100349 | AE80: 0.6106793401 | AF80: 0.6119715382 | AG80: 0.5937472021 | AH80: 0.517574128
A81: 6095000 | B81: 695000 | C81: 614.8746235 | E81: 114.3285179 | F81: 0 | G81: 7.650518208e-05 | H81: 0.2204107612 | K81: 3.65085088 | L81: 3.702633629 | M81: 3.654961683 | N81: 4.033288413 | O81: 3.733940991 | P81: 3.698261523 | Q81: 3.261059738 | R81: 2.866383108 | S81: 2.47146742 | T81: 2.370255293 | U81: 2.450296585 | X81: 0.6426545807 | Y81: 0.6733650589 | Z81: 0.6761538298 | AA81: 0.7731495601 | AB81: 0.6952827616 | AC81: 0.692477336 | AD81: 0.6078374596 | AE81: 0.608361847 | AF81: 0.6097662345 | AG81: 0.5914952691 | AH81: 0.5153112199
A82: 6095000 | B82: 705000 | C82: 600.0509739 | E82: 123.58402 | F82: 0 | G82: 6.547497841e-05 | H82: 0.1840852029 | K82: 3.54277165 | L82: 3.604338008 | M82: 3.573579847 | N82: 3.946199471 | O82: 3.669621176 | P82: 3.649966073 | Q82: 3.211370864 | R82: 2.801722348 | S82: 2.38958158 | T82: 2.23905117 | U82: 2.266631566 | X82: 0.6483153768 | Y82: 0.6790518396 | Z82: 0.6818878605 | AA82: 0.7795658803 | AB82: 0.701503907 | AC82: 0.6990037944 | AD82: 0.614191515 | AE82: 0.6145664242 | AF82: 0.615672944 | AG82: 0.5975227689 | AH82: 0.52136053
A83: 6095000 | B83: 715000 | C83: 593.7414904 | E83: 132.9473956 | F83: 0 | G83: 5.657705427e-05 | H83: 0.1573957864 | K83: 3.496769206 | L83: 3.562499823 | M83: 3.538940782 | N83: 3.909131256 | O83: 3.642244327 | P83: 3.629409776 | Q83: 3.190221476 | R83: 2.774200381 | S83: 2.354727993 | T83: 2.183205931 | U83: 2.188457065 | X83: 0.6509858358 | Y83: 0.6817356352 | Z83: 0.6845924749 | AA83: 0.7825933032 | AB83: 0.7044332696 | AC83: 0.7020723484 | AD83: 0.6171728803 | AE83: 0.6174758794 | AF83: 0.61844521 | AG83: 0.600347727 | AH83: 0.5241881757
A84: 6095000 | B84: 725000 | C84: 580.9952427 | E84: 142.3973665 | F84: 0 | G84: 4.931693578e-05 | H84: 0.1342530104 | K84: 3.403836314 | L84: =L$2+L$3*$C84 -> 3.477979454 | M84: 3.468963882 | N84: 3.834247051 | O84: 3.586938358 | P84: 3.587882501 | Q84: 3.147496053 | R84: 2.718601249 | S84: 2.284317721 | T84: 2.070388893 | U84: 2.030531057 | X84: 0.656845764 | Y84: =SQRT(Y$2+2*Y$3*$C84+Y$4*$C84^2+Y$5) -> 0.6876269789 | Z84: 0.6905271025 | AA84: 0.7892380797 | AB84: 0.7108524254 | AC84: 0.7087885636 | AD84: 0.6236871727 | AE84: 0.6238304957 | AF84: 0.6245047629 | AG84: 0.6065154498 | AH84: 0.5303479509
A85: 6105000 | B85: 465000 | C85: 782.1123024 | E85: 129.7112563 | F85: 0 | G85: 5.943532872e-05 | H85: 0.2178056583 | K85: 4.870180797 | L85: 4.811586677 | M85: 4.57309654 | N85: 5.015809777 | O85: 4.45958528 | P85: 4.243121881 | Q85: 3.821640438 | R85: 3.595873863 | S85: 3.395288359 | T85: 3.850475989 | U85: 4.522371427 | X85: 0.6423269696 | Y85: 0.6731223519 | Z85: 0.6755825631 | AA85: 0.7726469232 | AB85: 0.693731022 | AC85: 0.69003326 | AD85: 0.6045442593 | AE85: 0.6046087934 | AF85: 0.6065361077 | AG85: 0.5875043017 | AH85: 0.5102740974
A86: 6105000 | B86: 475000 | C86: 775.0891381 | E86: 120.1124889 | F86: 0 | G86: 6.931443175e-05 | H86: 0.2517275157 | K86: 4.818974906 | L86: 4.765016075 | M86: 4.534539368 | N86: 4.974548687 | O86: 4.42911177 | P86: 4.220240412 | Q86: 3.798098791 | R86: 3.565238821 | S86: 3.356492399 | T86: 3.788313962 | U86: 4.435354422 | X86: 0.6399767897 | Y86: 0.6707555034 | Z86: 0.6732207064 | AA86: 0.7699940692 | AB86: 0.6912379846 | AC86: 0.6874782594 | AD86: 0.6021225766 | AE86: 0.6022853581 | AF86: 0.6042999027 | AG86: 0.5852732258 | AH86: 0.5081071665
A87: 6105000 | B87: 485000 | C87: 818.955504 | E87: 110.5848543 | F87: 0 | G87: 8.17727682e-05 | H87: 0.3137793635 | K87: 5.13880458 | L87: 5.055893947 | M87: 4.775365717 | N87: 5.232263586 | O87: 4.619447932 | P87: 4.363157032 | Q87: 3.94513885 | R87: 3.756583909 | S87: 3.598810204 | T87: 4.176575166 | U87: 4.978858695 | X87: 0.6578353598 | Y87: 0.6887438753 | Z87: 0.6911917246 | AA87: 0.7901751233 | AB87: 0.7102571355 | AC87: 0.7070136514 | AD87: 0.6206781173 | AE87: 0.6201326075 | AF87: 0.6214631966 | AG87: 0.6024364671 | AH87: 0.5248213725
A88: 6105000 | B88: 495000 | C88: 864.3401462 | E88: 101.1484553 | F88: 0 | G88: 9.774206066e-05 | H88: 0.3958417044 | K88: 5.469704006 | L88: 5.35683951 | M88: 5.024527403 | N88: 5.498898359 | O88: 4.816371895 | P88: 4.511020196 | Q88: 4.09726817 | R88: 3.954551718 | S88: 3.849514968 | T88: 4.578274634 | U88: 5.541174412 | X88: 0.6838413592 | Y88: 0.714961159 | Z88: 0.7174254915 | AA88: 0.8196352513 | AB88: 0.7381046263 | AC88: 0.7356859827 | AD88: 0.647950147 | AE88: 0.646466645 | AF88: 0.6467797477 | AG88: 0.6278143116 | AH88: 0.5495676947
A89: 6105000 | B89: 505000 | C89: 879.6092782 | E89: 91.83142164 | F89: 0 | G89: 0.0001185816215 | H89: 0.4887227525 | K89: 5.581031247 | L89: 5.458089123 | M89: 5.108354937 | N89: 5.588604509 | O89: 4.882624658 | P89: 4.560767028 | Q89: 4.1484503 | R89: 4.021155671 | S89: 3.933861653 | T89: 4.713421721 | U89: 5.730358956 | X89: 0.6941706459 | Y89: 0.7253827412 | Z89: 0.7278602795 | AA89: 0.8313560008 | AB89: 0.7491892093 | AC89: 0.7471040443 | AD89: 0.6588039636 | AE89: 0.6569674815 | AF89: 0.6568794855 | AG89: 0.637942819 | AH89: 0.5594322846
A90: 6105000 | B90: 515000 | C90: 863.8310236 | E90: 82.67411929 | F90: 0 | G90: 0.000146305565 | H90: 0.5921681088 | K90: 5.465991993 | L90: 5.353463518 | M90: 5.02173232 | N90: 5.495907264 | O90: 4.814162812 | P90: 4.509361475 | Q90: 4.095561591 | R90: 3.952330925 | S90: 3.846702575 | T90: 4.57376839 | U90: 5.534866383 | X90: 0.683510089 | Y90: 0.7146270079 | Z90: 0.7170909652 | AA90: 0.8192595278 | AB90: 0.7377493053 | AC90: 0.7353199873 | AD90: 0.6476021429 | AE90: 0.6461301208 | AF90: 0.6464561336 | AG90: 0.6274897866 | AH90: 0.5492514767
A91: 6105000 | B91: 525000 | C91: 884.4777629 | E91: 73.73608343 | F91: 0 | G91: 0.0001839246203 | H91: 0.7622231916 | K91: 5.616527369 | L91: 5.490372046 | M91: 5.135082918 | N91: 5.617206857 | O91: 4.903749013 | P91: 4.576628552 | Q91: 4.164769461 | R91: 4.042392002 | S91: 3.960755162 | T91: 4.75651268 | U91: 5.790679482 | X91: 0.6976212473 | Y91: 0.7288652338 | Z91: 0.7313477694 | AA91: 0.8352736885 | AB91: 0.7528942059 | AC91: 0.7509205722 | AD91: 0.6624304813 | AE91: 0.6604781077 | AF91: 0.6602568154 | AG91: 0.6413297924 | AH91: 0.5627288579
A92: 6105000 | B92: 535000 | C92: 791.5356161 | E92: 65.10768004 | F92: 0 | G92: 0.000235904138 | H92: 0.874905994 | K92: 4.938886177 | L92: 4.87407267 | M92: 4.624830532 | N92: 5.071171744 | O92: 4.500473038 | P92: 4.273823037 | Q92: 3.853227385 | R92: 3.636978357 | S92: 3.447342743 | T92: 3.933881738 | U92: 4.639126283 | X92: 0.6457902161 | Y92: 0.6766102721 | Z92: 0.6790651087 | AA92: 0.7765580436 | AB92: 0.6974120178 | AC92: 0.6938101642 | AD92: 0.6081283944 | AE92: 0.6080516419 | AF92: 0.6098481242 | AG92: 0.5908127179 | AH92: 0.5134923557
A93: 6105000 | B93: 545000 | C93: 710.4487523 | E93: 56.92986914 | F93: 0 | G93: 0.0003085457928 | H93: 1.02708824 | K93: 4.347681853 | L93: 4.336385677 | M93: 4.17966365 | N93: 4.59478642 | O93: 4.148637136 | P93: 4.009642035 | Q93: 3.581424218 | R93: 3.283277458 | S93: 2.999418908 | T93: 3.216181907 | U93: 3.634460041 | X93: 0.6279431776 | Y93: 0.6586265358 | Z93: 0.6611762546 | AA93: 0.7564437274 | AB93: 0.6786886405 | AC93: 0.6747641018 | AD93: 0.5902345279 | AE93: 0.5909907035 | AF93: 0.59336636 | AG93: 0.5744978729 | AH93: 0.4978355315
A94: 6105000 | B94: 555000 | C94: 688.020084 | E94: 49.42681458 | F94: 0 | G94: 0.000409331112 | H94: 1.319566383 | K94: 4.184154432 | L94: =L$2+L$3*$C94 -> 4.187661177 | M94: 4.056530261 | N94: 4.463017994 | O94: 4.051319145 | P94: 3.936569434 | Q94: 3.506243322 | R94: 3.185443606 | S94: 2.875522944 | T94: 3.017665764 | U94: 3.356568841 | X94: 0.6279168345 | Y94: =SQRT(Y$2+2*Y$3*$C94+Y$4*$C94^2+Y$5) -> 0.6585881727 | Z94: 0.661182685 | AA94: 0.7564320637 | AB94: 0.6788244774 | AC94: 0.6750197034 | AD94: 0.5906106909 | AE94: 0.5914322111 | AF94: 0.5937387347 | AG94: 0.5749745436 | AH94: 0.4984590741
A95: 6105000 | B95: 565000 | C95: 661.9957374 | E95: 42.95357959 | F95: 0 | G95: 0.0005420024824 | H95: 1.681170809 | K95: 3.994410921 | L95: 4.015093735 | M95: 3.913656598 | N95: 4.310124957 | O95: 3.938399505 | P95: 3.851782112 | Q95: 3.419009712 | R95: 3.071925407 | S95: 2.731764453 | T95: 2.787324272 | U95: 3.034127186 | X95: 0.6305855889 | Y95: 0.6612560832 | Z95: 0.6639117031 | AA95: 0.7594680141 | AB95: 0.6818998392 | AC95: 0.6783473112 | AD95: 0.5939688377 | AE95: 0.5947726223 | AF95: 0.5968733756 | AG95: 0.5782604448 | AH95: 0.5018947876
A96: 6105000 | B96: 575000 | C96: 659.7319602 | E96: 38.03958465 | F96: 0 | G96: 0.0006910802275 | H96: 2.136246494 | K96: 3.977905722 | L96: 4.000082628 | M96: 3.901228461 | N96: 4.296825266 | O96: 3.928576975 | P96: 3.844406726 | Q96: 3.411421531 | R96: 3.06205081 | S96: 2.719259348 | T96: 2.76728758 | U96: 3.006078987 | X96: 0.630953929 | Y96: 0.661625054 | Z96: 0.6642864298 | AA96: 0.7598860169 | AB96: 0.6823144892 | AC96: 0.678789509 | AD96: 0.5944079926 | AE96: 0.595205527 | AF96: 0.5972821468 | AG96: 0.5786837916 | AH96: 0.5023298553
A97: 6105000 | B97: 585000 | C97: 703.271033 | E97: 35.34133557 | F97: 0 | G97: 0.0008006341022 | H97: 2.638227153 | K97: 4.295349101 | L97: 4.28879022 | M97: 4.140257971 | N97: 4.552617319 | O97: 4.117493012 | P97: 3.986257025 | Q97: 3.557364503 | R97: 3.251968246 | S97: 2.959769186 | T97: 3.152651913 | U97: 3.545528099 | X97: 0.6276998826 | Y97: 0.6583782842 | Z97: 0.6609415142 | AA97: 0.7561746885 | AB97: 0.6784781291 | AC97: 0.6745819431 | AD97: 0.5901002907 | AE97: 0.5908855038 | AF97: 0.5932500602 | AG97: 0.5744122009 | AH97: 0.4977983868
A98: 6105000 | B98: 595000 | C98: 719.5584101 | E98: 35.36961973 | F98: 0 | G98: 0.0007993541219 | H98: 2.695011632 | K98: 4.414100368 | L98: 4.396791817 | M98: 4.229675671 | N98: 4.648305659 | O98: 4.188163941 | P98: 4.0393213 | Q98: 3.611959791 | R98: 3.323013785 | S98: 3.049740657 | T98: 3.296811488 | U98: 3.747328701 | X98: 0.6285698583 | Y98: 0.6592610198 | Z98: 0.6617947367 | AA98: 0.7571443284 | AB98: 0.6792997076 | AC98: 0.6753527595 | AD98: 0.5907497948 | AE98: 0.5914581787 | AF98: 0.5938329561 | AG98: 0.5749293937 | AH98: 0.4982035201
A99: 6105000 | B99: 605000 | C99: 729.2499222 | E99: 38.11836828 | F99: 0 | G99: 0.0006882265091 | H99: 2.351598422 | K99: 4.484761183 | L99: 4.461056234 | M99: 4.282882073 | N99: 4.705243293 | O99: 4.230215412 | P99: 4.070896247 | Q99: 3.644445739 | R99: 3.365288161 | S99: 3.10327657 | T99: 3.382591062 | U99: 3.867406536 | X99: 0.6296258196 | Y99: 0.6603271753 | Z99: 0.6628453028 | AA99: 0.7583295293 | AB99: 0.6803710034 | AC99: 0.6764168732 | AD99: 0.5917204267 | AE99: 0.5923646654 | AF99: 0.5947201785 | AG99: 0.575783989 | AH99: 0.4989881499
A100: 6105000 | B100: 615000 | C100: 665.291397 | E100: 43.06982703 | F100: 0 | G100: 0.0005390806519 | H100: 1.680432314 | K100: 4.018439576 | L100: 4.036947254 | M100: 3.93174977 | N100: 4.329486957 | O100: 3.952699372 | P100: 3.862519371 | Q100: 3.430056763 | R100: 3.086301074 | S100: 2.749969677 | T100: 2.816494155 | U100: 3.074960409 | X100: 0.6300881358 | Y100: 0.6607579208 | Z100: 0.6634052839 | AA100: 0.7589033192 | AB100: 0.6813380725 | AC100: 0.6777470187 | AD100: 0.5933713214 | AE100: 0.5941828694 | AF100: 0.596316998 | AG100: 0.5776832348 | AH100: 0.5013000957
A101: 6105000 | B101: 625000 | C101: 606.6104729 | E101: 49.5682358 | F101: 0 | G101: 0.0004069987505 | H101: 1.156800191 | K101: 3.590596958 | L101: 3.647834046 | M101: 3.609591496 | N101: 3.984736528 | O101: 3.698082842 | P101: 3.671336921 | Q101: 3.233358305 | R101: 2.830334883 | S101: 2.425816252 | T101: 2.297109296 | U101: 2.34790376 | X101: 0.6457035072 | Y101: 0.6764275735 | Z101: 0.6792423932 | AA101: 0.7766052449 | AB101: 0.6986357095 | AC101: 0.6959966593 | AD101: 0.6112662272 | AE101: 0.6117107063 | AF101: 0.6129533497 | AG101: 0.5947491532 | AH101: 0.5185798289
A102: 6105000 | B102: 655000 | C102: 580.2224673 | E102: 73.91217762 | F102: 0 | G102: 0.0001830492714 | H102: 0.4976430209 | K102: 3.398202009 | L102: 3.472855181 | M102: 3.464721346 | N102: 3.829706996 | O102: 3.583585286 | P102: 3.585364799 | Q102: 3.14490571 | R102: 2.715230402 | S102: 2.28004891 | T102: 2.063549058 | U102: 2.02095637 | X102: 0.6572207701 | Y102: 0.6880040904 | Z102: 0.6909068894 | AA102: 0.78966339 | AB102: 0.7112628681 | AC102: 0.7092176741 | AD102: 0.6241029166 | AE102: 0.6242359573 | AF102: 0.6248915915 | AG102: 0.6069088953 | AH102: 0.5307403053
A103: 6105000 | B103: 665000 | C103: 588.5411668 | E103: 82.85535589 | F103: 0 | G103: 0.0001456662117 | H103: 0.4016900215 | K103: 3.458853647 | L103: 3.528016477 | M103: 3.510391006 | N103: 3.878579355 | O103: 3.619680123 | P103: 3.612467121 | Q103: 3.172789991 | R103: 2.751516569 | S103: 2.326001405 | T103: 2.137177867 | U103: 2.124025056 | X103: 0.6533020627 | Y103: 0.6840639383 | Z103: 0.6869382426 | AA103: 0.7852194875 | AB103: 0.706971861 | AC103: 0.7047296266 | AD103: 0.6197519763 | AE103: 0.6199921176 | AF103: 0.6208439024 | AG103: 0.6027903067 | AH103: 0.5266297481
A104: 6105000 | B104: 675000 | C104: 585.6591693 | E104: 92.01635724 | F104: 0 | G104: 0.0001181054469 | H104: 0.3240934442 | K104: 3.437841003 | L104: =L$2+L$3*$C104 -> 3.508905951 | M104: 3.494568839 | N104: 3.861647619 | O104: 3.607175135 | P104: 3.603077573 | Q104: 3.163129535 | R104: 2.738945296 | S104: 2.310081251 | T104: 2.111669307 | U104: 2.088317107 | X104: 0.6546301073 | Y104: =SQRT(Y$2+2*Y$3*$C104+Y$4*$C104^2+Y$5) -> 0.685399111 | Z104: 0.6882832105 | AA104: 0.7867254052 | AB104: 0.7084265915 | AC104: 0.7062516358 | AD104: 0.6212281722 | AE104: 0.6214321102 | AF104: 0.6222170536 | AG104: 0.6041879334 | AH104: 0.5280255075
A105: 6105000 | B105: 685000 | C105: 612.4835657 | E105: 101.3361239 | F105: 0 | G105: 9.738037065e-05 | H105: 0.2794610169 | K105: 3.633417677 | L105: 3.686778524 | M105: 3.641834775 | N105: 4.019240948 | O105: 3.723566191 | P105: 3.690471457 | Q105: 3.253044912 | R105: 2.855953313 | S105: 2.458259217 | T105: 2.34909204 | U105: 2.420671378 | X105: 0.6435088144 | Y105: 0.674222998 | Z105: 0.6770192283 | AA105: 0.7741177247 | AB105: 0.6962227693 | AC105: 0.6934644676 | AD105: 0.608799817 | AE105: 0.6093019856 | AF105: 0.6106607152 | AG105: 0.5924089072 | AH105: 0.5162297541
A106: 6105000 | B106: 695000 | C106: 655.0907623 | E106: 110.7745909 | F106: 0 | G106: 8.149288445e-05 | H106: 0.2501361938 | K106: 3.944066748 | L106: 3.969306845 | M106: 3.875748285 | N106: 4.269558228 | O106: 3.908438818 | P106: 3.829285704 | Q106: 3.395864235 | R106: 3.041805905 | S106: 2.693621371 | T106: 2.726208337 | U106: 2.948574545 | X106: 0.6317767598 | Y106: 0.6624495503 | Z106: 0.6651229393 | AA106: 0.7608195022 | AB106: 0.6832376742 | AC106: 0.6797719119 | AD106: 0.595381244 | AE106: 0.596163639 | AF106: 0.5981877277 | AG106: 0.5796199153 | AH106: 0.5032892389
A107: 6105000 | B107: 705000 | C107: 606.4513721 | E107: 120.3038237 | F107: 0 | G107: 6.909412762e-05 | H107: 0.1963326338 | K107: 3.589436954 | L107: 3.646779049 | M107: 3.608718033 | N107: 3.983801811 | O107: 3.697392504 | P107: 3.67081857 | Q107: 3.232824999 | R107: 2.829640885 | S107: 2.42493738 | T107: 2.295701095 | U107: 2.345932501 | X107: 0.6457648591 | Y107: 0.6764892089 | Z107: 0.6793045373 | AA107: 0.7766747855 | AB107: 0.6987031224 | AC107: 0.6960673709 | AD107: 0.6113350588 | AE107: 0.611777914 | AF107: 0.6130173359 | AG107: 0.5948144396 | AH107: 0.5186453367
A108: 6105000 | B108: 715000 | C108: 593.0914499 | E108: 129.9038491 | F108: 0 | G108: 5.925922414e-05 | H108: 0.1646770188 | K108: 3.492029761 | L108: 3.558189404 | M108: 3.53537206 | N108: 3.905312268 | O108: 3.639423801 | P108: 3.627291944 | Q108: 3.18804254 | R108: 2.771364904 | S108: 2.351137169 | T108: 2.177452423 | U108: 2.180403064 | X108: 0.6512696971 | Y108: 0.6820209515 | Z108: 0.6848799593 | AA108: 0.7829151329 | AB108: 0.7047444853 | AC108: 0.7023982065 | AD108: 0.6174892795 | AE108: 0.617784597 | AF108: 0.6187394529 | AG108: 0.6006474347 | AH108: 0.52448792
A109: 6105000 | B109: 725000 | C109: 583.0953734 | E109: 139.5600588 | F109: 0 | G109: 5.134258287e-05 | H109: 0.1402725461 | K109: 3.419148367 | L109: 3.491905421 | M109: 3.4804936 | N109: 3.846585319 | O109: 3.596050825 | P109: 3.594724726 | Q109: 3.154535692 | R109: 2.727762019 | S109: 2.295918842 | T109: 2.08897715 | U109: 2.056551676 | X109: 0.6558379385 | Y109: 0.6866135502 | Z109: 0.689506432 | AA109: 0.7880951099 | AB109: 0.7097491726 | AC109: 0.7076349504 | AD109: 0.6225692312 | AE109: 0.6227401563 | AF109: 0.6234646398 | AG109: 0.6054573737 | AH109: 0.5292924776
A110: 6115000 | B110: 465000 | C110: 771.9843995 | E110: 127.3774313 | F110: 0 | G110: 6.163324399e-05 | H110: 0.222935342 | K110: =K$2+K$3*$C110 -> 4.796338257 | L110: 4.744428553 | M110: 4.517494353 | N110: 4.956308347 | O110: 4.415640309 | P110: 4.210125174 | Q110: 3.787691707 | R110: 3.551695951 | S110: 3.339341823 | T110: 3.76083392 | U110: 4.39688671 | X110: =SQRT(X$2+2*X$3*$C110+X$4*$C110^2+X$5) -> 0.639001375 | Y110: 0.6697731676 | Z110: 0.6722408448 | AA110: 0.7688933668 | AB110: 0.6902047491 | AC110: 0.6864202714 | AD110: 0.601120736 | AE110: 0.6013249771 | AF110: 0.6033752264 | AG110: 0.5843515103 | AH110: 0.5072130502
A111: 6115000 | B111: 475000 | C111: 775.852822 | E111: 117.5883072 | F111: 0 | G111: 7.232221572e-05 | H111: 0.2629095967 | K111: 4.824542925 | L111: 4.770080063 | M111: 4.538731993 | N111: 4.979035329 | O111: 4.432425395 | P111: 4.222728494 | Q111: 3.800658659 | R111: 3.56857001 | S111: 3.360710989 | T111: 3.795073328 | U111: 4.444816465 | X111: 0.6402227039 | Y111: 0.6710031615 | Z111: 0.673467781 | AA111: 0.7702716022 | AB111: 0.6914986234 | AC111: 0.6877452361 | AD111: 0.6023754814 | AE111: 0.602527878 | AF111: 0.60453337 | AG111: 0.5855060307 | AH111: 0.5083331138
A112: 6115000 | B112: 485000 | C112: 820.4646889 | E112: 107.8378876 | F112: 0 | G112: 8.599184281e-05 | H112: 0.330576915 | K112: 5.149808046 | L112: 5.065901352 | M112: 4.783651142 | N112: 5.241130047 | O112: 4.625996285 | P112: 4.368073956 | Q112: 3.950197637 | R112: 3.763166973 | S112: 3.607146941 | T112: 4.189932961 | U112: 4.997557495 | X112: 0.6585812275 | Y112: 0.6894953955 | Z112: 0.6919432338 | AA112: 0.7910189742 | AB112: 0.711054072 | AC112: 0.7078335774 | AD112: 0.621457957 | AE112: 0.6208843155 | AF112: 0.6221857708 | AG112: 0.6031602542 | AH112: 0.5255273088
A113: 6115000 | B113: 495000 | C113: 869.3359116 | E113: 98.13770937 | F113: 0 | G113: 0.00010383127 | H113: 0.4229325963 | K113: 5.506128132 | L113: 5.38996643 | M113: 5.051954155 | N113: 5.528248481 | O113: 4.838048521 | P113: 4.5272964 | Q113: 4.114013976 | R113: 3.976343247 | S113: 3.877111576 | T113: 4.622492154 | U113: 5.603071945 | X113: 0.6871373886 | Y113: 0.7182861207 | Z113: 0.7207543586 | AA113: 0.8233741679 | AB113: 0.7416405691 | AC113: 0.7393282226 | AD113: 0.651413042 | AE113: 0.649815875 | AF113: 0.6500006742 | AG113: 0.6310443584 | AH113: 0.5527145755
A114: 6115000 | B114: 505000 | C114: 902.2379589 | E114: 88.50429368 | F114: 0 | G114: 0.000127664844 | H114: 0.5396942432 | K114: 5.746016959 | L114: =L$2+L$3*$C114 -> 5.608139906 | M114: 5.232586395 | N114: 5.721548009 | O114: 4.980810504 | P114: 4.63449127 | Q114: 4.224301638 | R114: 4.119861977 | S114: 4.058862485 | T114: 4.913708174 | U114: 6.010728311 | X114: 0.7108288471 | Y114: =SQRT(Y$2+2*Y$3*$C114+Y$4*$C114^2+Y$5) -> 0.7421997142 | Z114: 0.744703633 | AA114: 0.8502790289 | AB114: 0.7670834998 | AC114: 0.7655363807 | AD114: 0.6763113301 | AE114: 0.6739238402 | AF114: 0.6731959822 | AG114: 0.6543051874 | AH114: 0.575347206
A115: 6115000 | B115: 515000 | C115: 879.6092782 | E115: 78.96207951 | F115: 0 | G115: 0.0001603846666 | H115: 0.6610099839 | K115: 5.581031247 | L115: 5.458089123 | M115: 5.108354937 | N115: 5.588604509 | O115: 4.882624658 | P115: 4.560767028 | Q115: 4.1484503 | R115: 4.021155671 | S115: 3.933861653 | T115: 4.713421721 | U115: 5.730358956 | X115: 0.6941706459 | Y115: 0.7253827412 | Z115: 0.7278602795 | AA115: 0.8313560008 | AB115: 0.7491892093 | AC115: 0.7471040443 | AD115: 0.6588039636 | AE115: 0.6569674815 | AF115: 0.6568794855 | AG115: 0.637942819 | AH115: 0.5594322846
A116: 6115000 | B116: 525000 | C116: 835.8656472 | E116: 69.54861609 | F116: 0 | G116: 0.0002067392873 | H116: 0.809682706 | K116: 5.262096434 | L116: 5.168025106 | M116: 4.868202403 | N116: 5.331610677 | O116: 4.692821043 | P116: 4.418250278 | Q116: 4.001821649 | R116: 3.830345953 | S116: 3.692221835 | T116: 4.326246843 | U116: 5.188375368 | X116: 0.6666713364 | Y116: 0.6976483069 | Z116: 0.7000982491 | AA116: 0.8001762132 | AB116: 0.7197061488 | AC116: 0.7167385339 | AD116: 0.6299287354 | AE116: 0.6290552437 | AF116: 0.6300399671 | AG116: 0.6110305331 | AH116: 0.5332040748
A117: 6115000 | B117: 535000 | C117: 806.2910797 | E117: 60.32420741 | F117: 0 | G117: 0.0002748000143 | H117: 1.03815925 | K117: 5.046468262 | L117: 4.971916149 | M117: 4.705838027 | N117: 5.157860093 | O117: 4.564496995 | P117: 4.321896338 | Q117: 3.902687699 | R117: 3.701341689 | S117: 3.528851924 | T117: 4.064482346 | U117: 4.821946477 | X117: 0.6519137106 | Y117: 0.6827781171 | Z117: 0.6852275929 | AA117: 0.7834781262 | AB117: 0.7039356238 | AC117: 0.700512379 | AD117: 0.6144962168 | AE117: 0.6141774482 | AF117: 0.6157384737 | AG117: 0.5967044374 | AH117: 0.5192320725
A118: 6115000 | B118: 545000 | C118: 721.2266957 | E118: 51.39075792 | F118: 0 | G118: 0.0003786430191 | H118: 1.279549583 | K118: 4.426263838 | L118: 4.407854219 | M118: 4.238834559 | N118: 4.658106837 | O118: 4.195402633 | P118: 4.044756575 | Q118: 3.617551884 | R118: 3.330290847 | S118: 3.058956267 | T118: 3.311577484 | U118: 3.76799876 | X118: 0.6287230806 | Y118: 0.6594158565 | Z118: 0.6619467837 | AA118: 0.7573160833 | AB118: 0.6794532231 | AC118: 0.6755038162 | AD118: 0.5908858908 | AE118: 0.5915842051 | AF118: 0.5939570103 | AG118: 0.5750474869 | AH118: 0.4983097451
A119: 6115000 | B119: 565000 | C119: 688.7928594 | E119: 35.28469923 | F119: 0 | G119: 0.0008032063999 | H119: 2.592215889 | K119: 4.189788738 | L119: 4.19278545 | M119: 4.060772798 | N119: 4.467558049 | O119: 4.054672217 | P119: 3.939087136 | Q119: 3.508833665 | R119: 3.188814453 | S119: 2.879791755 | T119: 3.024505598 | U119: 3.366143528 | X119: 0.6278818411 | Y119: 0.6585534233 | Z119: 0.6611462678 | AA119: 0.7563919116 | AB119: 0.6787809799 | AC119: 0.6749705599 | AD119: 0.5905588277 | AE119: 0.5913793404 | AF119: 0.5936899272 | AG119: 0.5749217275 | AH119: 0.4984014412
A120: 6115000 | B120: 575000 | C120: 694.2932016 | E120: 29.10343622 | F120: 0 | G120: 0.001180623605 | H120: 3.840694352 | K120: 4.229891733 | L120: 4.22925822 | M120: 4.090969677 | N120: 4.49987256 | O120: 4.078538202 | P120: 3.957007251 | Q120: 3.527270812 | R120: 3.212806945 | S120: 2.910175646 | T120: 3.073189128 | U120: 3.434292768 | X120: 0.6277067619 | Y120: 0.6583804329 | Z120: 0.66096166 | AA120: 0.7561897045 | AB120: 0.6785513675 | AC120: 0.6747038799 | AD120: 0.5902698167 | AE120: 0.5910805912 | AF120: 0.5934166431 | AG120: 0.5746207545 | AH120: 0.4980656547
A121: 6115000 | B121: 585000 | C121: 749.9012072 | E121: 25.47567467 | F121: 0 | G121: 0.001540808308 | H121: 5.413872654 | K121: 4.635329702 | L121: 4.597994905 | M121: 4.396257628 | N121: 4.826569592 | O121: 4.319821338 | P121: 4.138178133 | Q121: 3.713668847 | R121: 3.455369066 | S121: 3.217354269 | T121: 3.565375585 | U121: 4.123275957 | X121: 0.6332044364 | Y121: 0.6639343555 | Z121: 0.6664243228 | AA121: 0.7623569939 | AB121: 0.6840919213 | AC121: 0.6801793234 | AD121: 0.5952305767 | AE121: 0.5956933978 | AF121: 0.597945536 | AG121: 0.5789558286 | AH121: 0.502002143
A122: 6115000 | B122: 595000 | C122: 733.9683976 | E122: 25.51489761 | F122: 0 | G122: 0.001536074715 | H122: 5.282567718 | K122: 4.519163587 | L122: 4.492344445 | M122: 4.308786503 | N122: 4.732964336 | O122: 4.250688877 | P122: 4.086269039 | Q122: 3.660262069 | R122: 3.38587015 | S122: 3.129341429 | T122: 3.424354287 | U122: 3.925868447 | X122: 0.6302846186 | Y122: 0.6609916621 | Z122: 0.6635027433 | AA122: 0.7590701017 | AB122: 0.6810491814 | AC122: 0.6770977501 | AD122: 0.5923500407 | AE122: 0.5929581443 | AF122: 0.5952974749 | AG122: 0.576347148 | AH122: 0.4995163345
A123: 6115000 | B123: 605000 | C123: 732.4001182 | E123: 29.20633493 | F123: 0 | G123: 0.001172319199 | H123: 4.022996502 | K123: 4.507729262 | L123: 4.481945184 | M123: 4.300176649 | N123: 4.723750695 | O123: 4.243884113 | P123: 4.081159585 | Q123: 3.655005196 | R123: 3.379029316 | S123: 3.120678253 | T123: 3.410473446 | U123: 3.906437465 | X123: 0.630055168 | Y123: 0.6607602675 | Z123: 0.6632736509 | AA123: 0.7588121039 | AB123: 0.6808124249 | AC123: 0.6768596477 | AD123: 0.5921293948 | AE123: 0.5927498623 | AF123: 0.5950950638 | AG123: 0.5761493092 | AH123: 0.499330188
A124: 6115000 | B124: 615000 | C124: 680.3786994 | E124: 35.42612031 | F124: 0 | G124: 0.0007968063999 | H124: 2.540147257 | K124: 4.128441098 | L124: =L$2+L$3*$C124 -> 4.136991156 | M124: 4.01457906 | N124: 4.418124859 | O124: 4.018163177 | P124: 3.911673803 | Q124: 3.480629401 | R124: 3.152111887 | S124: 2.833311936 | T124: 2.950031869 | U124: 3.261892086 | X124: 0.6284005875 | Y124: =SQRT(Y$2+2*Y$3*$C124+Y$4*$C124^2+Y$5) -> 0.6590701795 | Z124: 0.6616816468 | AA124: 0.7569846874 | AB124: 0.6794034612 | AC124: 0.6756602968 | AD124: 0.5912726019 | AE124: 0.5920993049 | AF124: 0.5943592431 | AG124: 0.5756362327 | AH124: 0.4991673466
A125: 6115000 | B125: 625000 | C125: 605.5467704 | E125: 43.09303888 | F125: 0 | G125: 0.0005385000619 | H125: 1.527878507 | K125: 3.582841503 | L125: 3.640780634 | M125: 3.603751769 | N125: 3.978487276 | O125: 3.693467437 | P125: 3.667871378 | Q125: 3.229792774 | R125: 2.825695012 | S125: 2.41994036 | T125: 2.287694465 | U125: 2.334724485 | X125: 0.6461155836 | Y125: 0.6768415612 | Z125: 0.6796597877 | AA125: 0.7770723247 | AB125: 0.6990884559 | AC125: 0.6964715286 | AD125: 0.6117284278 | AE125: 0.6121619903 | AF125: 0.6133830185 | AG125: 0.5951875246 | AH125: 0.519019635
A126: 6115000 | B126: 635000 | C126: 588.9275544 | E126: 51.5655893 | F126: 0 | G126: 0.0003760798192 | H126: 1.037760833 | K126: 3.461670799 | L126: 3.530578614 | M126: 3.512512274 | N126: 3.880849382 | O126: 3.621356659 | P126: 3.613725972 | Q126: 3.174085163 | R126: 2.753201993 | S126: 2.328135811 | T126: 2.140597784 | U126: 2.1288124 | X126: 0.6531264118 | Y126: 0.6838873556 | Z126: 0.6867603529 | AA126: 0.7850203192 | AB126: 0.7067794118 | AC126: 0.7045282381 | AD126: 0.6195565949 | AE126: 0.6198015163 | AF126: 0.6206621712 | AG126: 0.6026053019 | AH126: 0.5264449217
A127: 6115000 | B127: 655000 | C127: 580.3679309 | E127: 69.73528519 | F127: 0 | G127: 0.0002056339592 | H127: 0.5591825574 | K127: 3.399262584 | L127: 3.47381975 | M127: 3.465519941 | N127: 3.830561594 | O127: 3.584216452 | P127: 3.585838719 | Q127: 3.145393304 | R127: 2.715864915 | S127: 2.28085245 | T127: 2.064836557 | U127: 2.022758664 | X127: 0.65715001 | Y127: 0.6879329322 | Z127: 0.6908352272 | AA127: 0.7895831373 | AB127: 0.7111854244 | AC127: 0.7091367109 | AD127: 0.6240244793 | AE127: 0.6241594607 | AF127: 0.6248186086 | AG127: 0.6068346664 | AH127: 0.5306662873
A128: 6115000 | B128: 665000 | C128: 612.0699035 | E128: 79.15181615 | F128: 0 | G128: 0.0001596166646 | H128: 0.4577566143 | K128: 3.630401667 | L128: 3.68403553 | M128: 3.63956377 | N128: 4.016810683 | O128: 3.721771311 | P128: 3.689123746 | Q128: 3.251658317 | R128: 2.854148919 | S128: 2.455974147 | T128: 2.345430716 | U128: 2.415546105 | X128: 0.643658913 | Y128: 0.6743737561 | Z128: 0.6771712833 | AA128: 0.7742878447 | AB128: 0.6963878887 | AC128: 0.693637824 | AD128: 0.60896877 | AE128: 0.6094670198 | AF128: 0.6108177555 | AG128: 0.5925692756 | AH128: 0.516390918
A129: 6115000 | B129: 675000 | C129: 607.6378096 | E129: 88.69616677 | F129: 0 | G129: 0.0001271130963 | H129: 0.3619015633 | K129: 3.59808727 | L129: 3.654646315 | M129: 3.615231575 | N129: 3.990772131 | O129: 3.702540456 | P129: 3.674683984 | Q129: 3.236801938 | R129: 2.834816125 | S129: 2.43149126 | T129: 2.306202253 | U129: 2.360632461 | X129: 0.6453097531 | Y129: 0.6760320093 | Z129: 0.6788435501 | AA129: 0.7761589401 | AB129: 0.6982030073 | AC129: 0.6955427421 | AD129: 0.6108243251 | AE129: 0.611279212 | AF129: 0.6125425611 | AG129: 0.5943299819 | AH129: 0.5181591697
A130: 6115000 | B130: 685000 | C130: 614.7928002 | E130: 98.33112427 | F130: 0 | G130: 0.0001034232047 | H130: 0.2979216985 | K130: 3.650254307 | L130: 3.702091058 | M130: 3.654512473 | N130: 4.032807701 | O130: 3.73358596 | P130: 3.697994943 | Q130: 3.260785466 | R130: 2.866026195 | S130: 2.471015429 | T130: 2.369531075 | U130: 2.449282795 | X130: 0.6426834358 | Y130: 0.6733940378 | Z130: 0.6761830629 | AA130: 0.7731822633 | AB130: 0.6953145223 | AC130: 0.6925106955 | AD130: 0.6078699904 | AE130: 0.6083936297 | AF130: 0.6097964702 | AG130: 0.5915261582 | AH130: 0.5153422848
A131: 6115000 | B131: 695000 | C131: 633.6803391 | E131: 108.0324488 | F131: 0 | G131: 8.568238739e-05 | H131: 0.254400033 | K131: 3.787963353 | L131: 3.827334329 | M131: 3.758205062 | N131: 4.143771992 | O131: 3.815538992 | P131: 3.759530545 | Q131: 3.324096497 | R131: 2.948413639 | S131: 2.575350193 | T131: 2.536704682 | U131: 2.683299402 | X131: 0.6367398394 | Y131: 0.667427192 | Z131: 0.670159572 | AA131: 0.7664461576 | AB131: 0.6887566518 | AC131: 0.6856105194 | AD131: 0.6011258699 | AE131: 0.6017986417 | AF131: 0.6035285444 | AG131: 0.5851122344 | AH131: 0.5088733952
A132: 6115000 | B132: 705000 | C132: 618.3657498 | E132: 117.7837425 | F132: 0 | G132: 7.208241038e-05 | H132: 0.2088478935 | K132: 3.676304682 | L132: 3.725783287 | M132: 3.674127967 | N132: 4.05379878 | O132: 3.749088989 | P132: 3.709635613 | Q132: 3.272761993 | R132: 2.881611401 | S132: 2.490752402 | T132: 2.401155252 | U132: 2.493551641 | X132: 0.641448416 | Y132: 0.6721538054 | Z132: 0.6749317997 | AA132: 0.7717825585 | AB132: 0.6939545859 | AC132: 0.6910818641 | AD132: 0.6064760938 | AE132: 0.6070315865 | AF132: 0.6085009434 | AG132: 0.5902022591 | AH132: 0.5140101716
A133: 6115000 | B133: 865000 | C133: 622.4932794 | E133: 276.2336149 | F133: 0 | G133: 1.310529938e-05 | H133: 0.03822407506 | K133: 3.7063985 | L133: 3.753152936 | M133: 3.696788104 | N133: 4.078048016 | O133: 3.766998339 | P133: 3.723083104 | Q133: 3.286597473 | R133: 2.899615685 | S133: 2.513552875 | T133: 2.437688016 | U133: 2.544691732 | X133: 0.6400856242 | Y133: 0.6707854775 | Z133: 0.6735509094 | AA133: 0.7702380726 | AB133: 0.6924525143 | AC133: 0.6895025723 | AD133: 0.6049339864 | AE133: 0.6055241858 | AF133: 0.6070677244 | AG133: 0.5887366772 | AH133: 0.5125337749
A134: 6115000 | B134: 875000 | C134: 644.0400747 | E134: 286.1940076 | F134: 0 | G134: 1.220896722e-05 | H134: 0.03684233872 | K134: 3.863496184 | L134: =L$2+L$3*$C134 -> 3.896029735 | M134: 3.81508001 | N134: 4.204635439 | O134: 3.860489884 | P134: 3.793282563 | Q134: 3.35882233 | R134: 2.993602806 | S134: 2.632577372 | T134: 2.628398701 | U134: 2.811656525 | X134: 0.6341000876 | Y134: =SQRT(Y$2+2*Y$3*$C134+Y$4*$C134^2+Y$5) -> 0.6647789336 | Z134: 0.6674820508 | AA134: 0.7634539829 | AB134: 0.6858289867 | AC134: 0.682518811 | AD134: 0.5980903863 | AE134: 0.5988242804 | AF134: 0.6007070169 | AG134: 0.5822153288 | AH134: 0.5059354719
A135: 6115000 | B135: 885000 | C135: 616.8338363 | E135: 296.1570698 | F135: 0 | G135: 1.140133722e-05 | H135: 0.03295181583 | K135: 3.665135501 | L135: 3.715625169 | M135: 3.665717762 | N135: 4.044798789 | O135: 3.742442016 | P135: 3.704644639 | Q135: 3.267627019 | R135: 2.874929194 | S135: 2.482290112 | T135: 2.387596285 | U135: 2.474571232 | X135: 0.6419716652 | Y135: 0.672679241 | Z135: 0.6754619472 | AA135: 0.7723755768 | AB135: 0.6945309009 | AC135: 0.6916874869 | AD135: 0.6070670518 | AE135: 0.6076090916 | AF135: 0.609050189 | AG135: 0.59076363 | AH135: 0.5145751976
A136: 6115000 | B136: 895000 | C136: 633.1030305 | E136: =(SQRT(($A136-E$1)^2+($B136-E$2)^2)/1000) -> 306.1225408 | F136: 0 | G136: 1.067110471e-05 | H136: 0.03165476877 | K136: 3.783754195 | L136: 3.823506195 | M136: 3.755035637 | N136: 4.140380304 | O136: 3.813034049 | P136: 3.757649673 | Q136: 3.322161358 | R136: 2.945895419 | S136: 2.57216114 | T136: 2.531594923 | U136: 2.676146548 | X136: 0.6368999749 | Y136: 0.6675878861 | Z136: 0.6703219354 | AA136: 0.7666276536 | AB136: 0.6889338639 | AC136: 0.6857973783 | AD136: 0.6013089924 | AE136: 0.6019779201 | AF136: 0.6036987405 | AG136: 0.5852867367 | AH136: 0.5090499746
A137: 6125000 | B137: 475000 | C137: 792.4584007 | E137: 115.8749757 | F137: =IF(E137=0,1,0) -> 0 | G137: =IF($F$618=0,1/E137^2,F137) -> 7.447674501e-05 | H137: =G137/$G$618*C137 -> 0.2765365453 | K137: 4.9456142 | L137: 4.880191655 | M137: 4.62989662 | N137: 5.076593104 | O137: 4.504477001 | P137: 4.27682947 | Q137: 3.856320559 | R137: 3.641003544 | S137: 3.452440206 | T137: 3.942049305 | U137: 4.650559585 | X137: 0.6461482621 | Y137: 0.6769708824 | Z137: 0.6794252743 | AA137: 0.7769625085 | AB137: 0.6977929807 | AC137: 0.6942012917 | AD137: 0.6084997809 | AE137: 0.6084086246 | AF137: 0.6101914621 | AG137: 0.5911558975 | AH137: 0.5138264341
A138: 6125000 | B138: 485000 | C138: 818.5736621 | E138: 105.9670232 | F138: 0 | G138: 8.905504581e-05 | H138: 0.3415636691 | K138: 5.13602057 | L138: 5.053361953 | M138: 4.773269405 | N138: 5.230020265 | O138: 4.61779112 | P138: 4.361912991 | Q138: 3.943858915 | R138: 3.754918314 | S138: 3.596700909 | T138: 4.173195483 | U138: 4.974127673 | X138: 0.6576479911 | Y138: 0.6885550903 | Z138: 0.6910029485 | AA138: 0.7899631514 | AB138: 0.7100569603 | AC138: 0.7068077116 | AD138: 0.6204822509 | AE138: 0.6199438221 | AF138: 0.621281727 | AG138: 0.6022547016 | AH138: 0.5246440938
A139: 6125000 | B139: 495000 | C139: 890.2872153 | E139: 96.07814528 | F139: 0 | G139: 0.0001083305077 | H139: 0.4518937005 | K139: 5.658884087 | L139: 5.528894525 | M139: 5.166976812 | N139: 5.65133739 | O139: 4.928956227 | P139: 4.595555747 | Q139: 4.184242746 | R139: 4.067732833 | S139: 3.992846577 | T139: 4.807932143 | U139: 5.862658598 | X139: 0.7018356351 | Y139: 0.7331192832 | Z139: 0.7356082724 | AA139: 0.8400600303 | AB139: 0.7574205376 | AC139: 0.7555831052 | AD139: 0.6668598424 | AE139: 0.6647672078 | AF139: 0.6643836329 | AG139: 0.645468321 | AH139: 0.5667553803
A140: 6125000 | B140: 505000 | C140: 881.395753 | E140: 86.2149059 | F140: 0 | G140: 0.000134535 | H140: 0.5555991955 | K140: 5.594056435 | L140: 5.469935238 | M140: 5.118162684 | N140: 5.599100049 | O140: 4.890376172 | P140: 4.566587363 | Q140: 4.154438564 | R140: 4.028948274 | S140: 3.943730139 | T140: 4.729233809 | U140: 5.752493379 | X140: 0.695428157 | Y140: 0.7266518135 | Z140: 0.7291311418 | AA140: 0.8327836055 | AB140: 0.7505393197 | AC140: 0.7484947991 | AD140: 0.6601255648 | AE140: 0.658246736 | AF140: 0.6581101194 | AG140: 0.6391769707 | AH140: 0.560633626
A141: 6125000 | B141: 515000 | C141: 864.326509 | E141: 76.38723715 | F141: 0 | G141: 0.0001713793121 | H141: 0.694051345 | K141: 5.469604577 | L141: 5.356749081 | M141: 5.024452535 | N141: 5.498818241 | O141: 4.816312723 | P141: 4.510975766 | Q141: 4.097222458 | R141: 3.954492232 | S141: 3.849439636 | T141: 4.578153931 | U141: 5.541005447 | X141: 0.6838324747 | Y141: 0.7149521972 | Z141: 0.7174165195 | AA141: 0.8196251745 | AB141: 0.7380950966 | AC141: 0.7356761667 | AD141: 0.6479408136 | AE141: 0.6464576193 | AF141: 0.6467710683 | AG141: 0.6278056077 | AH141: 0.5495592137
A142: 6125000 | B142: 525000 | C142: 827.1923802 | E142: 66.610885 | F142: 0 | G142: 0.0002253769994 | H142: 0.8735172575 | K142: 5.198859644 | L142: 5.110512673 | M142: 4.820586167 | N142: 5.280655234 | O142: 4.655187738 | P142: 4.389992775 | Q142: 3.972748858 | R142: 3.792513162 | S142: 3.644310708 | T142: 4.249479757 | U142: 5.080913591 | X142: 0.6620087191 | Y142: 0.6929491556 | Z142: 0.6953974173 | AA142: 0.7948976151 | AB142: 0.714717957 | AC142: 0.7116038863 | AD142: 0.6250442517 | AE142: 0.6243424383 | AF142: 0.6255098266 | AG142: 0.6064905348 | AH142: 0.5287756669
A143: 6125000 | B143: 535000 | C143: 772.2207778 | E143: 56.91230096 | F143: 0 | G143: 0.0003087363114 | H143: 1.117080744 | K143: 4.798061691 | L143: 4.745995978 | M143: 4.51879207 | N143: 4.95769707 | O143: 4.416665955 | P143: 4.210895294 | Q143: 3.788484047 | R143: 3.552727033 | S143: 3.340647577 | T143: 3.762926105 | U143: 4.399815438 | X143: 0.6390742612 | Y143: 0.6698465713 | Z143: 0.6723140543 | AA143: 0.7689756077 | AB143: 0.690281922 | AC143: 0.6864992715 | AD143: 0.6011955211 | AE143: 0.6013966488 | AF143: 0.603444242 | AG143: 0.5844202852 | AH143: 0.5072797394
A144: 6125000 | B144: 545000 | C144: 718.3583354 | E144: 47.33930713 | F144: 0 | G144: 0.0004462273707 | H144: 1.501940446 | K144: 4.405350623 | L144: =L$2+L$3*$C144 -> 4.388834122 | M144: 4.223087261 | N144: 4.641255221 | O144: 4.182956817 | P144: 4.035411457 | Q144: 3.60793714 | R144: 3.317779059 | S144: 3.043111445 | T144: 3.286189627 | U144: 3.732459776 | X144: 0.6284669931 | Y144: =SQRT(Y$2+2*Y$3*$C144+Y$4*$C144^2+Y$5) -> 0.659157029 | Z144: 0.6616927798 | AA144: 0.7570290878 | AB144: 0.6791972352 | AC144: 0.6752523706 | AD144: 0.5906598769 | AE144: 0.5913752529 | AF144: 0.5937511027 | AG144: 0.574851917 | AH144: 0.498134536
A145: 6125000 | B145: 555000 | C145: 700.7663317 | E145: 37.98697145 | F145: 0 | G145: 0.0006929958905 | H145: 2.275407887 | K145: 4.277087324 | L145: 4.272181545 | M145: 4.126507161 | N145: 4.537902199 | O145: 4.106625113 | P145: 3.978096709 | Q145: 3.548968744 | R145: 3.241042739 | S145: 2.945933216 | T145: 3.130482802 | U145: 3.514494849 | X145: 0.6276670085 | Y145: 0.6583439261 | Z145: 0.6609120553 | AA145: 0.7561395754 | AB145: 0.6784609375 | AC145: 0.6745768608 | AD145: 0.5901098693 | AE145: 0.5909034183 | AF145: 0.593261655 | AG145: 0.5744350984 | AH145: 0.4978378918
A146: 6125000 | B146: 565000 | C146: 715.7263535 | E146: 29.06905571 | F146: 0 | G146: 0.001183417948 | H146: 3.968629276 | K146: 4.386160843 | L146: 4.37138145 | M146: 4.20863768 | N146: 4.625792327 | O146: 4.171536648 | P146: 4.02683646 | Q146: 3.599114737 | R146: 3.306298354 | S146: 3.028572376 | T146: 3.262893954 | U146: 3.699849519 | X146: 0.6282629567 | Y146: 0.6589506281 | Z146: 0.6614909186 | AA146: 0.7568007117 | AB146: 0.6789958287 | AC146: 0.6750564564 | AD146: 0.5904860749 | AE146: 0.5912160477 | AF146: 0.5935932336 | AG146: 0.5747039063 | AH146: 0.4980050204
A147: 6125000 | B147: 575000 | C147: 722.8722526 | E147: 21.142611 | F147: 0 | G147: 0.002237086419 | H147: 7.57704188 | K147: 4.438261594 | L147: 4.418765907 | M147: 4.247868667 | N147: 4.667774484 | O147: 4.202542704 | P147: 4.050117799 | Q147: 3.623067791 | R147: 3.337468766 | S147: 3.068046324 | T147: 3.326142308 | U147: 3.78838721 | X147: 0.628885859 | Y147: 0.6595802841 | Z147: 0.6621085026 | AA147: 0.7574986557 | AB147: 0.6796172467 | AC147: 0.675665913 | AD147: 0.5910327699 | AE147: 0.5917207545 | AF147: 0.594091066 | AG147: 0.5751758032 | AH147: 0.4984262839
A148: 6125000 | B148: 585000 | C148: 728.2271313 | E148: 15.7800507 | F148: 0 | G148: 0.004015902976 | H148: 13.70267757 | K148: 4.477304014 | L148: 4.454274108 | M148: 4.277266951 | N148: 4.699234396 | O148: 4.225777523 | P148: 4.067563994 | Q148: 3.641017344 | R148: 3.360826747 | S148: 3.097626673 | T148: 3.373538339 | U148: 3.854734157 | X148: 0.6294954907 | Y148: 0.6601956769 | Z148: 0.6627153789 | AA148: 0.7581831018 | AB148: 0.6802375022 | AC148: 0.6762833212 | AD148: 0.5915974896 | AE148: 0.5922491396 | AF148: 0.5946075744 | AG148: 0.5756746001 | AH148: 0.4988862622
A149: 6125000 | B149: 595000 | C149: 711.5033634 | E149: 15.84329511 | F149: 0 | G149: 0.003983905024 | H149: 13.28132198 | K149: 4.355371023 | L149: 4.343378803 | M149: 4.185453465 | N149: 4.60098226 | O149: 4.153213094 | P149: 4.013077958 | Q149: 3.584959274 | R149: 3.287877671 | S149: 3.005244579 | T149: 3.22551627 | U149: 3.647526673 | X149: 0.6279975388 | Y149: 0.6586817134 | Z149: 0.6612295137 | AA149: 0.7565042853 | AB149: 0.6787397052 | AC149: 0.6748117947 | AD149: 0.5902744434 | AE149: 0.5910257108 | AF149: 0.5934021222 | AG149: 0.5745293565 | AH149: 0.4978597705
A150: 6125000 | B150: 605000 | C150: 697.4070317 | E150: 21.28403157 | F150: 0 | G150: 0.002207456789 | H150: 7.213298504 | K150: 4.252594668 | L150: 4.249906027 | M150: 4.108064604 | N150: 4.518166311 | O150: 4.092049111 | P150: 3.967152109 | Q150: 3.53770837 | R150: 3.226389472 | S150: 2.927376443 | T150: 3.100749638 | U150: 3.472873123 | X150: 0.6276651914 | Y150: 0.6583403181 | Z150: 0.6609151665 | AA150: 0.7561402339 | AB150: 0.6784835947 | AC150: 0.6746175547 | AD150: 0.5901685463 | AE150: 0.5909718123 | AF150: 0.5933195884 | AG150: 0.5745086863 | AH150: 0.4979334803
A151: 6125000 | B151: 615000 | C151: 649.799524 | E151: 29.24055403 | F151: 0 | G151: 0.001169576964 | H151: 3.560931066 | K151: 3.905488329 | L151: 3.934220643 | M151: 3.846699387 | N151: 4.238472203 | O151: 3.885480134 | P151: 3.812046849 | Q151: 3.378128004 | R151: 3.018725524 | S151: 2.66439257 | T151: 2.679375587 | U151: 2.883016102 | X151: 0.6328254055 | Y151: 0.6635007205 | Z151: 0.6661881485 | AA151: 0.7620087656 | AB151: 0.6844095543 | AC151: 0.6810157492 | AD151: 0.5966098294 | AE151: 0.5973711768 | AF151: 0.5993304194 | AG151: 0.5807984757 | AH151: 0.5044929739
A152: 6125000 | B152: 635000 | C152: 570.06729 | E152: 47.52904375 | F152: 0 | G152: 0.0004426717899 | H152: 1.182397058 | K152: 3.324160611 | L152: 3.4055162 | M152: 3.408969422 | N152: 3.770045329 | O152: 3.539521971 | P152: 3.552279231 | Q152: 3.110865556 | R152: 2.670933519 | S152: 2.22395171 | T152: 1.973665584 | U152: 1.895133723 | X152: 0.6623547814 | Y152: 0.6931680082 | Z152: 0.6961064899 | AA152: 0.7954870892 | AB152: 0.7168785061 | AC152: 0.715085299 | AD152: 0.6297827565 | AE152: 0.629774521 | AF152: 0.6301777389 | AG152: 0.612282426 | AH152: 0.5360926065
A153: 6125000 | B153: 645000 | C153: 558.798407 | E153: 57.1052537 | F153: 0 | G153: 0.0003066534601 | H153: 0.8028943477 | K153: 3.241999185 | L153: 3.330792237 | M153: 3.347103254 | N153: 3.703840641 | O153: 3.490626288 | P153: 3.51556521 | Q153: 3.07309226 | R153: 2.621778651 | S153: 2.1617024 | T153: 1.8739247 | U153: 1.755512262 | X153: 0.6684922934 | Y153: 0.6993437916 | Z153: 0.7023229732 | AA153: 0.8024516273 | AB153: 0.7235844806 | AC153: 0.7220847528 | AD153: 0.6365470842 | AE153: 0.6363691801 | AF153: 0.6364765652 | AG153: 0.6186787659 | AH153: 0.5424495678
A154: 6125000 | B154: 655000 | C154: 592.5277785 | E154: 66.80576322 | F154: 0 | G154: 0.0002240640285 | H154: 0.6220656596 | K154: 3.487920033 | L154: =L$2+L$3*$C154 -> 3.554451699 | M154: 3.532277504 | N154: 3.902000699 | O154: 3.636978031 | P154: 3.625455502 | Q154: 3.186153113 | R154: 2.76890617 | S154: 2.348023448 | T154: 2.172463367 | U154: 2.173419175 | X154: 0.6515171568 | Y154: =SQRT(Y$2+2*Y$3*$C154+Y$4*$C154^2+Y$5) -> 0.6822696855 | Z154: 0.6851305769 | AA154: 0.7831956961 | AB154: 0.7050157674 | AC154: 0.7026822305 | AD154: 0.6177650291 | AE154: 0.6180536447 | AF154: 0.6189958981 | AG154: 0.6009086237 | AH154: 0.5247491037
A155: 6125000 | B155: 665000 | C155: 633.1257592 | E155: 76.58335328 | F155: 0 | G155: 0.0001705026931 | H155: 0.5057974067 | K155: 3.78391991 | L155: 3.823656909 | M155: 3.755160418 | N155: 4.140513835 | O155: 3.813132669 | P155: 3.757723723 | Q155: 3.322237545 | R155: 2.945994562 | S155: 2.572286694 | T155: 2.531796094 | U155: 2.676428156 | X155: 0.6368936444 | Y155: 0.6675815335 | Z155: 0.670315517 | AA155: 0.7666204787 | AB155: 0.6889268591 | AC155: 0.6857899927 | AD155: 0.6013017551 | AE155: 0.601970835 | AF155: 0.6036920141 | AG155: 0.5852798405 | AH155: 0.5090429971
A156: 6125000 | B156: 675000 | C156: 643.8173335 | E156: 86.41186261 | F156: 0 | G156: 0.0001339224134 | H156: 0.4039906407 | K156: 3.861872179 | L156: 3.894552739 | M156: 3.813857161 | N156: 4.203326835 | O156: 3.85952341 | P156: 3.792556873 | Q156: 3.358075702 | R156: 2.992631209 | S156: 2.63134695 | T156: 2.626427219 | U156: 2.808896763 | X156: 0.6341521636 | Y156: 0.6648311629 | Z156: 0.6675348953 | AA156: 0.7635130193 | AB156: 0.6858868816 | AC156: 0.6825800501 | AD156: 0.5981506304 | AE156: 0.5988833684 | AF156: 0.6007630234 | AG156: 0.5822729166 | AH156: 0.5059940127
A157: 6125000 | B157: 685000 | C157: 656.7545022 | E157: 96.27569787 | F157: 0 | G157: 0.000107886387 | H157: 0.3319900591 | K157: 3.956197075 | L157: 3.980339104 | M157: 3.884882217 | N157: 4.2793327 | O157: 3.915657785 | P157: 3.834706168 | Q157: 3.401441091 | R157: 3.049063139 | S157: 2.70281187 | T157: 2.740934099 | U157: 2.969188282 | X157: 0.6314713545 | Y157: 0.6621434898 | Z157: 0.6648125398 | AA157: 0.7604730655 | AB157: 0.6828954603 | AC157: 0.6794080485 | AD157: 0.5950211131 | AE157: 0.5958092936 | AF157: 0.5978526831 | AG157: 0.5792738214 | AH157: 0.5029349292
A158: 6125000 | B158: 695000 | C158: 650.4359272 | E158: 106.1650131 | F158: 0 | G158: 8.87231934e-05 | H158: 0.270394005 | K158: 3.910128345 | L158: 3.938440633 | M158: 3.85019324 | N158: 4.242211072 | O158: 3.888241488 | P158: 3.814120251 | Q158: 3.380261228 | R158: 3.021501514 | S158: 2.667908062 | T158: 2.685008392 | U158: 2.890901138 | X158: 0.6326930649 | Y158: 0.6633680403 | Z158: 0.6660537606 | AA158: 0.761858698 | AB158: 0.6842618963 | AC158: 0.6808591881 | AD158: 0.5964553762 | AE158: 0.5972194674 | AF158: 0.5991867866 | AG158: 0.5806504713 | AH158: 0.5043420208
A159: 6125000 | B159: 705000 | C159: 632.9712041 | E159: 116.0732958 | F159: 0 | G159: 7.422246402e-05 | H159: 0.2201276984 | K159: 3.782793049 | L159: 3.822632054 | M159: 3.754311911 | N159: 4.139605824 | O159: 3.812462055 | P159: 3.757220183 | Q159: 3.321719476 | R159: 2.945320392 | S159: 2.571432931 | T159: 2.530428128 | U159: 2.674513219 | X159: 0.6369367333 | Y159: 0.6676247734 | Z159: 0.6703592044 | AA159: 0.766669315 | AB159: 0.6889745368 | AC159: 0.6858402614 | AD159: 0.6013510134 | AE159: 0.6020190569 | AF159: 0.6037377951 | AG159: 0.585326776 | AH159: 0.509090485
A160: 6125000 | B160: 715000 | C160: 611.1834848 | E160: 125.9960714 | F160: 0 | G160: 6.29920863e-05 | H160: 0.1803902143 | K160: 3.623938787 | L160: 3.678157687 | M160: 3.634697331 | N160: 4.011602973 | O160: 3.71792514 | P160: 3.686235793 | Q160: 3.248687041 | R160: 2.85028236 | S160: 2.45107757 | T160: 2.337585024 | U160: 2.404563376 | X160: 0.6439828456 | Y160: 0.6746991204 | Z160: 0.6774994331 | AA160: 0.7746549884 | AB160: 0.6967441883 | AC160: 0.6940118578 | AD160: 0.6093332511 | AE160: 0.6098230293 | AF160: 0.6111565415 | AG160: 0.5929152064 | AH160: 0.5167385018
A161: 6125000 | B161: 865000 | C161: 621.634135 | E161: 275.5086387 | F161: 0 | G161: 1.317436095e-05 | H161: 0.03837247257 | K161: 3.700134479 | L161: 3.747455949 | M161: 3.692071401 | N161: 4.073000543 | O161: 3.763270512 | P161: 3.720284012 | Q161: 3.283717621 | R161: 2.895868097 | S161: 2.508806962 | T161: 2.430083729 | U161: 2.534046933 | X161: 0.6403636214 | Y161: 0.6710645849 | Z161: 0.6738326155 | AA161: 0.7705531324 | AB161: 0.6927590565 | AC161: 0.6898249766 | AD161: 0.6052489296 | AE161: 0.6058320909 | AF161: 0.6073604257 | AG161: 0.589036077 | AH161: 0.5128355398
A162: 6125000 | B162: 875000 | C162: 710.3623833 | E162: 285.4943257 | F162: 0 | G162: 1.226888338e-05 | H162: 0.04083573395 | K162: 4.347052137 | L162: 4.335812964 | M162: 4.179189484 | N162: 4.594279002 | O162: 4.148262381 | P162: 4.009360645 | Q162: 3.581134709 | R162: 3.282900716 | S162: 2.998941805 | T162: 3.215417455 | U162: 3.633389929 | X162: 0.6279389368 | Y162: 0.6586222291 | Z162: 0.6611721058 | AA162: 0.7564390065 | AB162: 0.678684687 | AC162: 0.6747604334 | AD162: 0.5902314881 | AE162: 0.5909880583 | AF162: 0.5933636431 | AG162: 0.5744955089 | AH162: 0.4978337596
A163: 6125000 | B163: 885000 | C163: 696.6433479 | E163: 295.4809808 | F163: 0 | G163: 1.145357163e-05 | H163: 0.03738581069 | K163: 4.247026649 | L163: 4.24484204 | M163: 4.10387198 | N163: 4.513679669 | O163: 4.088735486 | P163: 3.964664027 | Q163: 3.535148502 | R163: 3.223058283 | S163: 2.923157854 | T163: 3.093990272 | U163: 3.46341108 | X163: 0.6276715354 | Y163: 0.6583462869 | Z163: 0.6609226864 | AA163: 0.7561480164 | AB163: 0.6784960521 | AC163: 0.674634399 | AD163: 0.5901892097 | AE163: 0.5909944507 | AF163: 0.5933395318 | AG163: 0.5745322672 | AH163: 0.4979620183
A164: 6125000 | B164: 895000 | C164: 650.3859241 | E164: 305.468509 | F164: 0 | G164: 1.071684895e-05 | H164: 0.03265830307 | K164: 3.909763772 | L164: =L$2+L$3*$C164 -> 3.938109063 | M164: 3.849918723 | N164: 4.241917304 | O164: 3.888024525 | P164: 3.813957341 | Q164: 3.380093618 | R164: 3.021283401 | S164: 2.667631845 | T164: 2.684565814 | U164: 2.890281599 | X164: 0.6327034017 | Y164: =SQRT(Y$2+2*Y$3*$C164+Y$4*$C164^2+Y$5) -> 0.6633784034 | Z164: 0.6660642577 | AA164: 0.7618704195 | AB164: 0.6842734317 | AC164: 0.6808714206 | AD164: 0.5964674457 | AE164: 0.5972313235 | AF164: 0.5991980109 | AG164: 0.5806620384 | AH164: 0.5043538205
A165: 6135000 | B165: 465000 | C165: 791.2310516 | E165: 125.00004 | F165: 0 | G165: 6.399995904e-05 | H165: 0.2372675744 | K165: 4.936665598 | L165: 4.872053103 | M165: 4.623158474 | N165: 5.069382428 | O165: 4.499151533 | P165: 4.272830766 | Q165: 3.852206485 | R165: 3.635649847 | S165: 3.445660329 | T165: 3.931186038 | U165: 4.63535273 | X165: 0.6456727795 | Y165: 0.6764919951 | Z165: 0.6789469817 | AA165: 0.7764253865 | AB165: 0.6972870796 | AC165: 0.6936819012 | AD165: 0.6080066129 | AE165: 0.6079345925 | AF165: 0.6097355459 | AG165: 0.5907001993 | AH165: 0.5133828299
A166: 6135000 | B166: 475000 | C166: 822.1466117 | E166: 115.0087388 | F166: 0 | G166: 7.560287624e-05 | H166: 0.2912345942 | K166: 5.162070946 | L166: 5.077054182 | M166: 4.792884898 | N166: 5.251011344 | O166: 4.633294148 | P166: 4.373553661 | Q166: 3.955835442 | R166: 3.77050352 | S166: 3.616437883 | T166: 4.20481966 | U166: 5.018396519 | X166: 0.6594224352 | Y166: 0.6903430053 | Z166: 0.6927908771 | AA166: 0.7919707734 | AB166: 0.7119530428 | AC166: 0.7087585536 | AD166: 0.6223377453 | AE166: 0.6217324816 | AF166: 0.623001059 | AG166: 0.6039769751 | AH166: 0.5263239122
A167: 6135000 | B167: 485000 | C167: 862.4354823 | E167: 105.0190935 | F167: 0 | G167: 9.066996947e-05 | H167: 0.3663915569 | K167: 5.455817101 | L167: 5.344209683 | M167: 5.014070798 | N167: 5.487708458 | O167: 4.808107558 | P167: 4.504814801 | Q167: 4.090883737 | R167: 3.946243574 | S167: 3.838993604 | T167: 4.561416454 | U167: 5.517575625 | X167: 0.6826064744 | Y167: 0.7137155602 | Z167: 0.716178511 | AA167: 0.8182347128 | AB167: 0.7367801468 | AC167: 0.7343217219 | AD167: 0.646652922 | AE167: 0.6452122672 | AF167: 0.645573508 | AG167: 0.6266046833 | AH167: 0.5483889861
A168: 6135000 | B168: 495000 | C168: 904.5108276 | E168: 95.03162631 | F168: 0 | G168: 0.0001107295862 | H168: 0.4692808353 | K168: 5.762588444 | L168: 5.623211298 | M168: 5.245064444 | N168: 5.734901112 | O168: 4.990672481 | P168: 4.641896276 | Q168: 4.231920294 | R168: 4.12977623 | S168: 4.071417812 | T168: 4.933825335 | U168: 6.038889154 | X168: 0.7125874998 | Y168: 0.7439758289 | Z168: 0.7464828358 | AA168: 0.8522782064 | AB168: 0.7689737162 | AC168: 0.7674832843 | AD168: 0.6781594197 | AE168: 0.6757149448 | AF168: 0.6749200941 | AG168: 0.6560339916 | AH168: 0.5770271168
A169: 6135000 | B169: 505000 | C169: 924.4620691 | E169: 85.0471046 | F169: 0 | G169: 0.000138255028 | H169: 0.5988601336 | K169: 5.908052946 | L169: 5.75550798 | M169: 5.354596759 | N169: 5.852114656 | O169: 5.077240918 | P169: 4.706897421 | Q169: 4.298796856 | R169: 4.216803545 | S169: 4.18162847 | T169: 5.110413773 | U169: 6.286085036 | X169: 0.7286627364 | Y169: 0.7602166879 | Z169: 0.7627541273 | AA169: 0.8705638652 | AB169: 0.7862592385 | AC169: 0.7852850399 | AD169: 0.6950472754 | AE169: 0.6920913676 | AF169: 0.69068941 | AG169: 0.6718441156 | AH169: 0.5923753729
A170: 6135000 | B170: 515000 | C170: 876.5909085 | E170: 75.06670367 | F170: 0 | G170: 0.0001774619743 | H170: 0.7288827007 | K170: 5.559024314 | L170: 5.438074314 | M170: 5.091784088 | N170: 5.570871588 | O170: 4.869527952 | P170: 4.55093318 | Q170: 4.138332725 | R170: 4.007989543 | S170: 3.917188179 | T170: 4.686706131 | U170: 5.692961357 | X170: 0.6920690321 | Y170: 0.7232619627 | Z170: 0.7257365925 | AA170: 0.8289704489 | AB170: 0.7469331334 | AC170: 0.7447800522 | AD170: 0.6565953123 | AE170: 0.6548298951 | AF170: 0.6548232636 | AG170: 0.6358807153 | AH170: 0.5574246761
A171: 6135000 | B171: 525000 | C171: 850.5983821 | E171: 65.09231906 | F171: 0 | G171: 0.0002360154921 | H171: 0.9406334855 | K171: 5.369512804 | L171: 5.265717872 | M171: 4.949085118 | N171: 5.418165495 | O171: 4.75674638 | P171: 4.466249529 | Q171: 4.051205777 | R171: 3.894610143 | S171: 3.773605463 | T171: 4.45664628 | U171: 5.370913954 | X171: 0.6752058412 | Y171: 0.706252156 | Z171: 0.708707859 | AA171: 0.8098445795 | AB171: 0.7288462695 | AC171: 0.7261501791 | AD171: 0.6388815192 | AE171: 0.6377008171 | AF171: 0.6383512047 | AG171: 0.6193626037 | AH171: 0.5413297011
A172: 6135000 | B172: 535000 | C172: 813.8779154 | E172: 55.12721651 | F172: 0 | G172: 0.0003290545276 | H172: 1.254823105 | K172: 5.101783881 | L172: 5.022224457 | M172: 4.747489755 | N172: 5.202432753 | O172: 4.597416275 | P172: 4.346614248 | Q172: 3.928118772 | R172: 3.734435467 | S172: 3.570761605 | T172: 4.131633429 | U172: 4.915947371 | X172: 0.6553884285 | Y172: 0.6862785558 | Z172: 0.6887267276 | AA172: 0.7874072422 | AB172: 0.7076437046 | AC172: 0.7043252985 | AD172: 0.618121449 | AE172: 0.6176688742 | AF172: 0.619094897 | AG172: 0.6000646066 | AH172: 0.5225082179
A173: 6135000 | B173: 545000 | C173: 708.6486403 | E173: 45.17753867 | F173: 0 | G173: 0.0004899535034 | H173: 1.626826347 | K173: 4.334557237 | L173: 4.324449134 | M173: 4.169781035 | N173: 4.584210762 | O173: 4.14082645 | P173: 4.00377727 | Q173: 3.575390242 | R173: 3.275425369 | S173: 2.989475089 | T173: 3.200249116 | U173: 3.612156654 | X173: 0.6278614026 | Y173: 0.6585434195 | Z173: 0.6610964526 | AA173: 0.7563528042 | AB173: 0.6786133926 | AC173: 0.6746950793 | AD173: 0.5901783453 | AE173: 0.5909425192 | AF173: 0.5933163686 | AG173: 0.5744553162 | AH173: 0.4978052734
A174: 6135000 | B174: 555000 | C174: 685.8426758 | E174: 35.25634695 | F174: 0 | G174: 0.000804498757 | H174: 2.585266117 | K174: =K$2+K$3*$C174 -> 4.168278949 | L174: =L$2+L$3*$C174 -> 4.173222783 | M174: 4.04457629 | N174: 4.45022572 | O174: 4.04187137 | P174: 3.929475438 | Q174: 3.498944649 | R174: 3.175945752 | S174: 2.863494941 | T174: 2.998393523 | U174: 3.329590753 | X174: =SQRT(X$2+2*X$3*$C174+X$4*$C174^2+X$5) -> 0.6280292007 | Y174: =SQRT(Y$2+2*Y$3*$C174+Y$4*$C174^2+Y$5) -> 0.658699918 | Z174: 0.6612991759 | AA174: 0.7565607503 | AB174: 0.6789619197 | AC174: 0.6751736331 | AD174: 0.590771728 | AE174: 0.5915956092 | AF174: 0.5938900429 | AG174: 0.5751373018 | AH174: 0.4986353022
A175: 6135000 | B175: 565000 | C175: 712.7670784 | E175: 25.39704707 | F175: 0 | G175: 0.00155036356 | H175: 5.177696097 | K175: 4.364584769 | L175: 4.351758497 | M175: 4.19239126 | N175: 4.608406586 | O175: 4.158696353 | P175: 4.017195141 | Q175: 3.589195247 | R175: 3.293389996 | S175: 3.012225341 | T175: 3.236701411 | U175: 3.663184101 | X175: 0.6280689556 | Y175: 0.6587541384 | Z175: 0.6612996624 | AA175: 0.7565839418 | AB175: 0.6788076852 | AC175: 0.6748760026 | AD175: 0.5903290835 | AE175: 0.5910742538 | AF175: 0.5934512742 | AG175: 0.5745734565 | AH175: 0.4978951512
A176: 6135000 | B176: 575000 | C176: 711.4624518 | E176: 15.71655178 | F176: 0 | G176: 0.004048419092 | H176: 13.49561936 | K176: 4.355072736 | L176: 4.343107518 | M176: 4.18522886 | N176: 4.600741904 | O176: 4.153035578 | P176: 4.012944668 | Q176: 3.584822138 | R176: 3.287699215 | S176: 3.005018584 | T176: 3.225154161 | U176: 3.647019777 | X176: 0.6279953411 | Y176: 0.6586794836 | Z176: 0.661227358 | AA176: 0.7565018357 | AB176: 0.6787376281 | AC176: 0.6748098446 | AD176: 0.5902727985 | AE176: 0.5910242594 | AF176: 0.5934006457 | AG176: 0.5745280449 | AH176: 0.4978587405
A177: 6135000 | B177: 585000 | C177: 701.4391008 | E177: 7.000714249 | F177: 0 | G177: 0.02040399918 | H177: 67.05955091 | K177: 4.281992484 | L177: 4.276642677 | M177: 4.130200663 | N177: 4.541854717 | O177: 4.109544258 | P177: 3.98028859 | Q177: 3.551223866 | R177: 3.243977358 | S177: 2.949649593 | T177: 3.136437481 | U177: 3.522830459 | X177: 0.6276731938 | Y177: 0.6583504976 | Z177: 0.6609173016 | AA177: 0.7561460193 | AB177: 0.6784626951 | AC177: 0.6745752533 | AD177: 0.5901044289 | AE177: 0.5908958303 | AF177: 0.5932558887 | AG177: 0.5744262652 | AH177: 0.4978246146
A178: 6135000 | B178: 595000 | C178: 666.1641786 | E178: 7.142128534 | F178: 0 | G178: 0.01960399922 | H178: 61.1901227 | K178: 4.024803026 | L178: 4.042734668 | M178: 3.93654134 | N178: 4.334614549 | O178: 3.956486371 | P178: 3.865362894 | Q178: 3.432982327 | R178: 3.090108147 | S178: 2.754790923 | T178: 2.824219145 | U178: 3.085774173 | X178: 0.6299641099 | Y178: 0.6606337481 | Z178: 0.6632789491 | AA178: 0.758762491 | AB178: 0.6811976327 | AC178: 0.6775966913 | AD178: 0.5932214023 | AE178: 0.5940347402 | AF178: 0.5961773568 | AG178: 0.5775381544 | AH178: 0.5011503053
A179: 6135000 | B179: 605000 | C179: 635.1758867 | E179: 15.90628806 | F179: 0 | G179: 0.003952412948 | H179: 11.7628264 | K179: 3.79886739 | L179: 3.837251305 | M179: 3.766415618 | N179: 4.152558335 | O179: 3.822028173 | P179: 3.764403039 | Q179: 3.329109572 | R179: 2.954937218 | S179: 2.583611598 | T179: 2.549941774 | U179: 2.701829237 | X179: 0.6363313753 | Y179: 0.667017323 | Z179: 0.6697453974 | AA179: 0.7659832015 | AB179: 0.6883044542 | AC179: 0.6851335766 | AD179: 0.6006583081 | AE179: 0.6013408251 | AF179: 0.603093981 | AG179: 0.5846665657 | AH179: 0.5084222391
A180: 6135000 | B180: 615000 | C180: 622.7751151 | E180: 25.59316315 | F180: 0 | G180: 0.001526694249 | H180: 4.454907512 | K180: 3.708453364 | L180: 3.755021788 | M180: 3.698335382 | N180: 4.079703801 | O180: 3.768221225 | P180: 3.724001325 | Q180: 3.287542186 | R180: 2.900845052 | S180: 2.515109736 | T180: 2.440182544 | U180: 2.548183676 | X180: 0.6399950798 | Y180: 0.6706945738 | Z180: 0.673459155 | AA180: 0.7701354569 | AB180: 0.6923526572 | AC180: 0.6893975361 | AD180: 0.604831366 | AE180: 0.6054238528 | AF180: 0.6069723515 | AG180: 0.5886391114 | AH180: 0.5124354204
A181: 6135000 | B181: 635000 | C181: 543.9474829 | E181: 45.37631541 | F181: 0 | G181: 0.0004856702979 | H181: 1.237809716 | K181: 3.133721098 | L181: 3.232315759 | M181: 3.265571681 | N181: 3.616591462 | O181: 3.426188128 | P181: 3.467180899 | Q181: 3.023311963 | R181: 2.55699892 | S181: 2.079665895 | T181: 1.742479171 | U181: 1.571509313 | X181: 0.6772676276 | Y181: 0.7081782849 | Z181: 0.711212781 | AA181: 0.8124143762 | AB181: 0.7331618162 | AC181: 0.7320694073 | AD181: 0.6461780536 | AE181: 0.6457571257 | AF181: 0.6454512194 | AG181: 0.6277818128 | AH181: 0.5514732318
A182: 6135000 | B182: 645000 | C182: 589.7912446 | E182: 55.32639515 | F182: 0 | G182: 0.0003266895567 | H182: 0.902794583 | K182: 3.467967964 | L182: 3.536305743 | M182: 3.517253933 | N182: 3.885923562 | O182: 3.62510421 | P182: 3.616539875 | Q182: 3.176980252 | R182: 2.756969409 | S182: 2.332906835 | T182: 2.148242306 | U182: 2.13951352 | X182: 0.6527358375 | Y182: 0.6834947186 | Z182: 0.6863647999 | AA182: 0.784577459 | AB182: 0.7063514484 | AC182: 0.7040803624 | AD182: 0.6191220313 | AE182: 0.6193775744 | AF182: 0.6202579779 | AG182: 0.6021937984 | AH182: 0.5260337561
A183: 6135000 | B183: 655000 | C183: 659.8183292 | E183: 65.29172995 | F183: 0 | G183: 0.000234576039 | H183: 0.7252093522 | K183: 3.978535438 | L183: 4.000655341 | M183: 3.901702627 | N183: 4.297332684 | O183: 3.92895173 | P183: 3.844688116 | Q183: 3.411711039 | R183: 3.062427552 | S183: 2.71973645 | T183: 2.768052032 | U183: 3.007149099 | X183: 0.6309394783 | Y183: 0.6616105771 | Z183: 0.664271732 | AA183: 0.7598696196 | AB183: 0.6822982399 | AC183: 0.6787721925 | AD183: 0.5943908093 | AE183: 0.5951885958 | AF183: 0.5972661543 | AG183: 0.5786672391 | AH183: 0.5023128601
A184: 6135000 | B184: 665000 | C184: 660.4229123 | E184: 75.2662607 | F184: 0 | G184: 0.000176522195 | H184: 0.5462316026 | K184: 3.982943453 | L184: =L$2+L$3*$C184 -> 4.004664331 | M184: 3.905021788 | N184: 4.30088461 | O184: 3.931575016 | P184: 3.846657848 | Q184: 3.413737602 | R184: 3.065064743 | S184: 2.723076167 | T184: 2.773403196 | U184: 3.014639883 | X184: 0.6308392062 | Y184: =SQRT(Y$2+2*Y$3*$C184+Y$4*$C184^2+Y$5) -> 0.6615101263 | Z184: 0.664169738 | AA184: 0.7597558362 | AB184: 0.6821854478 | AC184: 0.6786519662 | AD184: 0.594271477 | AE184: 0.5950709981 | AF184: 0.5971550879 | AG184: 0.5785522613 | AH184: 0.5021947729
A185: 6135000 | B185: 675000 | C185: 656.4226633 | E185: 85.24675947 | F185: 0 | G185: 0.0001376081772 | H185: 0.4232365649 | K185: 3.953777638 | L185: 3.978138681 | M185: 3.883060422 | N185: 4.277383147 | O185: 3.914217936 | P185: 3.833625037 | Q185: 3.400328768 | R185: 3.047615658 | S185: 2.700978792 | T185: 2.737996993 | U185: 2.965076799 | X185: 0.6315313377 | Y185: 0.6622035985 | Z185: 0.664873511 | AA185: 0.7605411109 | AB185: 0.6829627108 | AC185: 0.6794795796 | AD185: 0.5950919402 | AE185: 0.5958789986 | AF185: 0.5979185804 | AG185: 0.5793419135 | AH185: 0.5030046711
A186: 6135000 | B186: 685000 | C186: 671.5508774 | E186: 95.23134988 | F186: 0 | G186: 0.0001102656188 | H186: 0.3469560077 | K186: 4.064077447 | L186: 4.078453868 | M186: 3.966114317 | N186: 4.366261405 | O186: 3.979859257 | P186: 3.882912759 | Q186: 3.451038541 | R186: 3.113604927 | S186: 2.784547047 | T186: 2.871896816 | U186: 3.152515371 | X186: 0.6292702764 | Y186: 0.6599393819 | Z186: 0.6625714693 | AA186: 0.757974282 | AB186: 0.6804082438 | AC186: 0.6767492181 | AD186: 0.5923734367 | AE186: 0.593195347 | AF186: 0.5953870785 | AG186: 0.5767150446 | AH186: 0.5002974156
A187: 6135000 | B187: 695000 | C187: 654.3134412 | E187: 105.2188671 | F187: 0 | G187: 9.032599555e-05 | H187: 0.2769197753 | K187: 3.9383993 | L187: 3.964152429 | M187: 3.871480792 | N187: 4.264991467 | O187: 3.905066021 | P187: 3.826753191 | Q187: 3.393258655 | R187: 3.03841523 | S187: 2.689327449 | T187: 2.719328268 | U187: 2.938943536 | X187: 0.6319234433 | Y187: 0.6625965624 | Z187: 0.6652719911 | AA187: 0.7609858785 | AB187: 0.6834018739 | AC187: 0.6799463873 | AD187: 0.5955538018 | AE187: 0.5963333568 | AF187: 0.5983482486 | AG187: 0.5797856367 | AH187: 0.5034587507
A188: 6135000 | B188: 705000 | C188: 637.8442346 | E188: 115.20855 | F188: 0 | G188: 7.534086089e-05 | H188: 0.2251648447 | K188: 3.818322314 | L188: 3.85494512 | M188: 3.781064848 | N188: 4.168234878 | O188: 3.833606134 | P188: 3.773096516 | Q188: 3.338053874 | R188: 2.966576551 | S188: 2.598351552 | T188: 2.57355932 | U188: 2.734890067 | X188: 0.6356254899 | Y188: 0.6663090813 | Z188: 0.6690295412 | AA188: 0.7651831183 | AB188: 0.6875223521 | AC188: 0.6843082095 | AD188: 0.5998486137 | AE188: 0.6005477496 | AF188: 0.6023414032 | AG188: 0.5838943569 | AH188: 0.5076398657
A189: 6135000 | B189: 715000 | C189: 605.1967486 | E189: 125.1998802 | F189: 0 | G189: 6.379581257e-05 | H189: 0.1809023178 | K189: 3.580289494 | L189: 3.63845964 | M189: 3.60183015 | N189: 3.976430898 | O189: 3.691948692 | P189: 3.666731007 | Q189: 3.228619501 | R189: 2.824168217 | S189: 2.418006839 | T189: 2.284596422 | U189: 2.330387715 | X189: 0.6462521554 | Y189: 0.6769787702 | Z189: 0.6797981204 | AA189: 0.7772271276 | AB189: 0.6992384867 | AC189: 0.6966288739 | AD189: 0.6118815534 | AE189: 0.6123114926 | AF189: 0.613525369 | AG189: 0.5953327438 | AH189: 0.5191653026
A190: 6135000 | B190: 865000 | C190: 626.066229 | E190: 275.1454343 | F190: 0 | G190: 1.320916542e-05 | H190: 0.03874815502 | K190: 3.732448876 | L190: 3.776845164 | M190: 3.716403597 | N190: 4.099039095 | O190: 3.782501368 | P190: 3.734723774 | Q190: 3.298574 | R190: 2.915200891 | S190: 2.533289849 | T190: 2.469312193 | U190: 2.588960577 | X190: 0.6389615954 | Y190: 0.669657066 | Z190: 0.6724117816 | AA190: 0.7689641879 | AB190: 0.691212302 | AC190: 0.6881975982 | AD190: 0.6036584787 | AE190: 0.6042768897 | AF190: 0.6058823059 | AG190: 0.5875236235 | AH190: 0.5113102622
A191: 6135000 | B191: 875000 | C191: 685.1199035 | E191: 285.1438409 | F191: 0 | G191: 1.229906253e-05 | H191: 0.03948152923 | K191: 4.163009217 | L191: 4.16843008 | M191: 4.04060827 | N191: 4.445979433 | O191: 4.038735261 | P191: 3.927120646 | Q191: 3.496521917 | R191: 3.172793019 | S191: 2.859502347 | T191: 2.991996266 | U191: 3.320635605 | X191: 0.6280709909 | Y191: 0.6587415237 | Z191: 0.661342372 | AA191: 0.7566085402 | AB191: 0.679012397 | AC191: 0.6752297719 | AD191: 0.5908300444 | AE191: 0.5916545535 | AF191: 0.593944765 | AG191: 0.575195875 | AH191: 0.4986983128
A192: 6135000 | B192: 885000 | C192: 663.5594711 | E192: 295.1423555 | F192: 0 | G192: 1.147986873e-05 | H192: 0.0356921037 | K192: 4.005812104 | L192: 4.025462853 | M192: 3.922241496 | N192: 4.319311893 | O192: 3.945184545 | P192: 3.856876757 | Q192: 3.424251347 | R192: 3.078746413 | S192: 2.740402518 | T192: 2.801164878 | U192: 3.053501846 | X192: 0.6303438176 | Y192: 0.6610139447 | Z192: 0.6636656286 | AA192: 0.7591935896 | AB192: 0.6816270924 | AC192: 0.6780560505 | AD192: 0.5936791381 | AE192: 0.5944868041 | AF192: 0.5966036541 | AG192: 0.577980781 | AH192: 0.5016068896
A193: 6145000 | B193: 455000 | C193: 796.3540977 | E193: 134.9926294 | F193: 0 | G193: 5.487567641e-05 | H193: 0.2047582822 | K193: 4.974017726 | L193: 4.906024022 | M193: 4.651283996 | N193: 5.099480324 | O193: 4.52138043 | P193: 4.28952165 | Q193: 3.869378935 | R193: 3.657996574 | S193: 3.473960036 | T193: 3.976530119 | U193: 4.69882727 | X193: 0.6476966737 | Y193: 0.6785304204 | Z193: 0.6809830961 | AA193: 0.7787118988 | AB193: 0.6994412521 | AC193: 0.6958939706 | AD193: 0.610107407 | AE193: 0.609954349 | AF193: 0.6116779737 | AG193: 0.5926421096 | AH193: 0.5152736531
A194: 6145000 | B194: 465000 | C194: 810.2549627 | E194: 125.00004 | F194: 0 | G194: 6.399995904e-05 | H194: 0.2429723015 | K194: 5.075368933 | L194: =L$2+L$3*$C194 -> 4.998200657 | M194: 4.727599745 | N194: 5.181147906 | O194: 4.581696283 | P194: 4.334810668 | Q194: 3.915974635 | R194: 3.718632147 | S194: 3.550748414 | T194: 4.099566675 | U194: 4.871058987 | X194: 0.6537018542 | Y194: =SQRT(Y$2+2*Y$3*$C194+Y$4*$C194^2+Y$5) -> 0.6845794416 | Z194: 0.6870281132 | AA194: 0.7854999061 | AB194: 0.7058433756 | AC194: 0.7024738305 | AD194: 0.6163609569 | AE194: 0.6159730466 | AF194: 0.6174646872 | AG194: 0.5984323654 | AH194: 0.520916635
A195: 6145000 | B195: 475000 | C195: 841.9160236 | E195: 115.0087388 | F195: 0 | G195: 7.560287624e-05 | H195: 0.2982376476 | K195: 5.306209728 | L195: 5.208145153 | M195: 4.90141897 | N195: 5.367156639 | O195: 4.719073627 | P195: 4.437962405 | Q195: 4.022102511 | R195: 3.856737695 | S195: 3.725644115 | T195: 4.379798725 | U195: 5.263339533 | X195: 0.6700838117 | Y195: 0.7010881212 | Z195: 0.7035399884 | AA195: 0.8040410941 | AB195: 0.7233594144 | AC195: 0.7204999283 | AD195: 0.6335068928 | AE195: 0.6325095354 | AF195: 0.633360521 | AG195: 0.614359068 | AH195: 0.5364505092
A196: 6145000 | B196: 485000 | C196: 874.1498475 | E196: 105.0190935 | F196: 0 | G196: 9.066996947e-05 | H196: 0.3713682126 | K196: 5.541226538 | L196: 5.421887639 | M196: 5.078382663 | N196: 5.556530354 | O196: 4.858936188 | P196: 4.542980203 | Q196: 4.130150289 | R196: 3.997341635 | S196: 3.903703758 | T196: 4.665100301 | U196: 5.662716611 | X196: 0.6903907064 | Y196: 0.7215684735 | Z196: 0.7240408579 | AA196: 0.8270656734 | AB196: 0.7451317306 | AC196: 0.7429244274 | AD196: 0.6548315933 | AE196: 0.6531231965 | AF196: 0.6531816354 | AG196: 0.6342343926 | AH196: 0.5558215726
A197: 6145000 | B197: 495000 | C197: 922.0982856 | E197: 95.03162631 | F197: 0 | G197: 0.0001107295862 | H197: 0.4784056094 | K197: 5.8908186 | L197: 5.739833732 | M197: 5.341619588 | N197: 5.838227428 | O197: 5.066984461 | P197: 4.699196215 | Q197: 4.290873453 | R197: 4.206492722 | S197: 4.16857093 | T197: 5.089491926 | U197: 6.256797759 | X197: 0.7266996872 | Y197: 0.758232842 | Z197: 0.7607663687 | AA197: 0.8683297694 | AB197: 0.7841477099 | AC197: 0.7831106856 | AD197: 0.6929855622 | AE197: 0.6900912354 | AF197: 0.6887629009 | AG197: 0.6699128482 | AH197: 0.5905019531
A198: 6145000 | B198: 505000 | C198: 927.925921 | E198: 85.0471046 | F198: 0 | G198: 0.000138255028 | H198: 0.6011039929 | K198: 5.93330789 | L198: 5.778476782 | M198: 5.373613306 | N198: 5.872464786 | O198: 5.092270571 | P198: 4.718182651 | Q198: 4.310407687 | R198: 4.231912867 | S198: 4.200762787 | T198: 5.141072327 | U198: 6.329002161 | X198: 0.7315670116 | Y198: 0.7631520171 | Z198: 0.7656953366 | AA198: 0.8738696999 | AB198: 0.7893835011 | AC198: 0.7885021268 | AD198: 0.6980971814 | AE198: 0.6950505899 | AF198: 0.6935399744 | AG198: 0.6747015932 | AH198: 0.5951465308
A199: 6145000 | B199: 515000 | C199: 885.9505818 | E199: 75.06670367 | F199: 0 | G199: 0.0001774619743 | H199: 0.7366652408 | K199: 5.627265692 | L199: 5.500138308 | M199: 5.143168694 | N199: 5.625859668 | O199: 4.910139575 | P199: 4.581426996 | Q199: 4.16970635 | R199: 4.048816438 | S199: 3.968891014 | T199: 4.7695486 | U199: 5.808927709 | X199: 0.6986797754 | Y199: 0.7299336503 | Z199: 0.7324177717 | AA199: 0.8364757226 | AB199: 0.7540309608 | AC199: 0.7520915408 | AD199: 0.6635429996 | AE199: 0.6615552662 | AF199: 0.6612931588 | AG199: 0.6423690861 | AH199: 0.5637401856
A200: 6145000 | B200: 525000 | C200: 837.9294119 | E200: =(SQRT(($A200-E$1)^2+($B200-E$2)^2)/1000) -> 65.09231906 | F200: 0 | G200: 0.0002360154921 | H200: 0.9266235158 | K200: 5.277143343 | L200: 5.181709931 | M200: 4.879532472 | N200: 5.343735295 | O200: 4.701775718 | P200: 4.424974024 | Q200: 4.008739389 | R200: 3.839348095 | S200: 3.703622072 | T200: 4.344513225 | U200: 5.213945414 | X200: 0.6678206861 | Y200: 0.6988068074 | Z200: 0.7012573369 | AA200: 0.8014777903 | AB200: 0.7209363786 | AC200: 0.7180051051 | AD200: 0.6311336154 | AE200: 0.6302182437 | AF200: 0.6311579214 | AG200: 0.6121511132 | AH200: 0.5342970561
A201: 6145000 | B201: 535000 | C201: 804.9546329 | E201: 55.12721651 | F201: =IF(E201=0,1,0) -> 0 | G201: =IF($F$618=0,1/E201^2,F201) -> 0.0003290545276 | H201: =G201/$G$618*C201 -> 1.24106534 | K201: 5.036724228 | L201: 4.96305417 | M201: 4.698500934 | N201: 5.150008468 | O201: 4.558698152 | P201: 4.317542194 | Q201: 3.898207929 | R201: 3.695512109 | S201: 3.521469392 | T201: 4.052653455 | U201: 4.805387901 | X201: 0.6513243704 | Y201: 0.6821844574 | Z201: 0.6846342651 | AA201: 0.7828118809 | AB201: 0.7033071057 | AC201: 0.6998662925 | AD201: 0.613882075 | AE201: 0.613586233 | AF201: 0.6151700776 | AG201: 0.5961355865 | AH201: 0.5186775877
... 418 more rows

Sheet help1 (hidden)
A1: Variable | B1: i1m | D1: i2m | F1: i5m | H1: i10m | J1: i30m | L1: i60m | N1: i3h | P1: i6h | R1: i12h | T1: i24h | V1: i48h
A3: q0 | B3: =Tables!$L$4 -> 15.8 | D3: =Tables!$L$5 -> 12.8 | F3: =Tables!$L$6 -> 9 | H3: =Tables!$L$7 -> 6 | J3: =Tables!$L$8 -> 3.2 | L3: =Tables!$L$9 -> 2.1 | N3: =Tables!$L$10 -> 1.1 | P3: =Tables!$L$11 -> 0.73 | R3: =Tables!$L$12 -> 0.45 | T3: =Tables!$L$13 -> 0.26 | V3: =Tables!$L$14 -> 0.15
A4: lambda | B4: =Tables!$I$4 -> 4.094300972 | D4: =Tables!$I$5 -> 4.105941482 | F4: =Tables!$I$6 -> 3.988872122 | H4: =Tables!$I$7 -> 4.390615157 | J4: =Tables!$I$8 -> 3.997845799 | L4: =Tables!$I$9 -> 3.89641821 | N4: =Tables!$I$10 -> 3.464933652 | P4: =Tables!$I$11 -> 3.131686811 | R4: =Tables!$I$12 -> 2.807445792 | T4: =Tables!$I$13 -> 2.90858704 | V4: =Tables!$I$14 -> 3.203875881
A5: mean | B5: =Tables!$I$20 -> 6.223 | D5: =Tables!I21 -> 5.994 | F5: =Tables!I22 -> 4.896 | H5: =Tables!I23 -> 3.577 | J5: =Tables!I24 -> 1.822 | L5: =Tables!I25 -> 1.096 | N5: =Tables!I26 -> 0.4703100108 | P5: =Tables!I27 -> 0.2722965906 | R5: =Tables!I28 -> 0.1627509127 | T5: =Tables!I29 -> 0.09681471927 | V5: =Tables!I30 -> 0.05838336245
A6: kappa | B6: =Tables!$E$37 -> -0.1580401547 | D6: =Tables!$E$38 -> -0.1096408318 | F6: =Tables!$E$39 -> -0.07433082996 | H6: =Tables!$E$40 -> -0.1224183252 | J6: =Tables!$E$41 -> -0.2072427393 | L6: =Tables!$E$42 -> -0.2069212838 | N6: =Tables!$E$43 -> -0.1751824818 | P6: =Tables!$E$44 -> -0.1801637853 | R6: =Tables!$E$45 -> -0.1374557646 | T6: =Tables!$E$46 -> -0.1238273921 | V6: =Tables!$E$47 -> -0.0894153611
A7: V_lambda | B7: =Tables!$J$4 -> 0.3954151767 | D7: =Tables!$J$5 -> 0.4349265208 | F7: =Tables!$J$6 -> 0.4383921148 | H7: =Tables!$J$7 -> 0.5737498696 | J7: =Tables!$J$8 -> 0.462252668 | L7: =Tables!$J$9 -> 0.4572348155 | N7: =Tables!$J$10 -> 0.3502411324 | P7: =Tables!$J$11 -> 0.3512190094 | R7: =Tables!$J$12 -> 0.353861993 | T7: =Tables!$J$13 -> 0.3319679361 | V7: =Tables!$J$14 -> 0.2497253264
A8: V_mean | B8: =Tables!$J$20 -> 0.24111 | D8: =Tables!J21 -> 0.14415 | F8: =Tables!J22 -> 0.0873 | H8: =Tables!J23 -> 0.050433 | J8: =Tables!J24 -> 0.027144 | L8: =Tables!J25 -> 0.012984 | N8: =Tables!J26 -> 0.001547061236 | P8: =Tables!J27 -> 0.0006382285529 | R8: =Tables!J28 -> 0.0001003292758 | T8: =Tables!J29 -> 2.812349252e-05 | V8: =Tables!J30 -> 2.187635444e-05
A9: V_kappa | B9: =Tables!$G$37 -> 0.005884525898 | D9: =Tables!$G$38 -> 0.004632811076 | F9: =Tables!$G$39 -> 0.001595088187 | H9: =Tables!$G$40 -> 0.001739896391 | J9: =Tables!$G$41 -> 0.002495645473 | L9: =Tables!$G$42 -> 0.00537010743 | N9: =Tables!$G$43 -> 0.005900258307 | P9: =Tables!$G$44 -> 0.0004977298699 | R9: =Tables!$G$45 -> 0.004628450933 | T9: =Tables!$G$46 -> 0.0041533179 | V9: =Tables!$G$47 -> 0.004643740143
A11: Min Lanbda | C11: =MIN(B4:V4) -> 2.807445792
A13: T | B13: z_T | C13: S(z_T) | D13: z_T | E13: S(z_T) | F13: z_T | G13: S(z_T) | H13: z_T | I13: S(z_T) | J13: z_T | K13: S(z_T) | L13: z_T | M13: S(z_T) | N13: z_T | O13: S(z_T) | P13: z_T | Q13: S(z_T) | R13: z_T | S13: S(z_T) | T13: z_T | U13: S(z_T) | V13: z_T | W13: S(z_T)
A14: =Beregn!B8 -> 5 | B14: =B$5*(1+B$6)/B$6*(1-(1/($A14*B$4))^B$6)+B$3 -> 36.0711336 | C14: =SQRT(((1+B$6)*B$5*$A14*(B$4*$A14)^(-B$6-1))^2*B$7+((1+B$6)/B$6*(1-(1/($A14*B$4))^B$6))^2*B$8+((1+B$6)*B$5*((B$4*$A14)^(-B$6)/B$6*LN(B$4*$A14)-1/B$6^2*(1-(B$4*$A14)^(-B$6))))^2*B$9) -> 3.264572061 | D14: =D$5*(1+D$6)/D$6*(1-(1/($A14*D$4))^D$6)+D$3 -> 31.92001151 | E14: =SQRT(((1+D$6)*D$5*$A14*(D$4*$A14)^(-D$6-1))^2*D$7+((1+D$6)/D$6*(1-(1/($A14*D$4))^D$6))^2*D$8+((1+D$6)*D$5*((D$4*$A14)^(-D$6)/D$6*LN(D$4*$A14)-1/D$6^2*(1-(D$4*$A14)^(-D$6))))^2*D$9) -> 2.682646034 | F14: =F$5*(1+F$6)/F$6*(1-(1/($A14*F$4))^F$6)+F$3 -> 24.19146741 | G14: =SQRT(((1+F$6)*F$5*$A14*(F$4*$A14)^(-F$6-1))^2*F$7+((1+F$6)/F$6*(1-(1/($A14*F$4))^F$6))^2*F$8+((1+F$6)*F$5*((F$4*$A14)^(-F$6)/F$6*LN(F$4*$A14)-1/F$6^2*(1-(F$4*$A14)^(-F$6))))^2*F$9) -> 1.615589639 | H14: =H$5*(1+H$6)/H$6*(1-(1/($A14*H$4))^H$6)+H$3 -> 17.78440228 | I14: =SQRT(((1+H$6)*H$5*$A14*(H$4*$A14)^(-H$6-1))^2*H$7+((1+H$6)/H$6*(1-(1/($A14*H$4))^H$6))^2*H$8+((1+H$6)*H$5*((H$4*$A14)^(-H$6)/H$6*LN(H$4*$A14)-1/H$6^2*(1-(H$4*$A14)^(-H$6))))^2*H$9) -> 1.350287584 | J14: =J$5*(1+J$6)/J$6*(1-(1/($A14*J$4))^J$6)+J$3 -> 9.195893362 | K14: =SQRT(((1+J$6)*J$5*$A14*(J$4*$A14)^(-J$6-1))^2*J$7+((1+J$6)/J$6*(1-(1/($A14*J$4))^J$6))^2*J$8+((1+J$6)*J$5*((J$4*$A14)^(-J$6)/J$6*LN(J$4*$A14)-1/J$6^2*(1-(J$4*$A14)^(-J$6))))^2*J$9) -> 0.8645784332 | L14: =L$5*(1+L$6)/L$6*(1-(1/($A14*L$4))^L$6)+L$3 -> 5.664894742 | M14: =SQRT(((1+L$6)*L$5*$A14*(L$4*$A14)^(-L$6-1))^2*L$7+((1+L$6)/L$6*(1-(1/($A14*L$4))^L$6))^2*L$8+((1+L$6)*L$5*((L$4*$A14)^(-L$6)/L$6*LN(L$4*$A14)-1/L$6^2*(1-(L$4*$A14)^(-L$6))))^2*L$9) -> 0.6306782311 | N14: =N$5*(1+N$6)/N$6*(1-(1/($A14*N$4))^N$6)+N$3 -> 2.535211539 | O14: =SQRT(((1+N$6)*N$5*$A14*(N$4*$A14)^(-N$6-1))^2*N$7+((1+N$6)/N$6*(1-(1/($A14*N$4))^N$6))^2*N$8+((1+N$6)*N$5*((N$4*$A14)^(-N$6)/N$6*LN(N$4*$A14)-1/N$6^2*(1-(N$4*$A14)^(-N$6))))^2*N$9) -> 0.2351960424 | P14: =P$5*(1+P$6)/P$6*(1-(1/($A14*P$4))^P$6)+P$3 -> 1.524918782 | Q14: =SQRT(((1+P$6)*P$5*$A14*(P$4*$A14)^(-P$6-1))^2*P$7+((1+P$6)/P$6*(1-(1/($A14*P$4))^P$6))^2*P$8+((1+P$6)*P$5*((P$4*$A14)^(-P$6)/P$6*LN(P$4*$A14)-1/P$6^2*(1-(P$4*$A14)^(-P$6))))^2*P$9) -> 0.1046197731 | R14: =R$5*(1+R$6)/R$6*(1-(1/($A14*R$4))^R$6)+R$3 -> 0.8971199496 | S14: =SQRT(((1+R$6)*R$5*$A14*(R$4*$A14)^(-R$6-1))^2*R$7+((1+R$6)/R$6*(1-(1/($A14*R$4))^R$6))^2*R$8+((1+R$6)*R$5*((R$4*$A14)^(-R$6)/R$6*LN(R$4*$A14)-1/R$6^2*(1-(R$4*$A14)^(-R$6))))^2*R$9) -> 0.06634352532 | T14: =T$5*(1+T$6)/T$6*(1-(1/($A14*T$4))^T$6)+T$3 -> 0.5292572108 | U14: =SQRT(((1+T$6)*T$5*$A14*(T$4*$A14)^(-T$6-1))^2*T$7+((1+T$6)/T$6*(1-(1/($A14*T$4))^T$6))^2*T$8+((1+T$6)*T$5*((T$4*$A14)^(-T$6)/T$6*LN(T$4*$A14)-1/T$6^2*(1-(T$4*$A14)^(-T$6))))^2*T$9) -> 0.03696115832 | V14: =V$5*(1+V$6)/V$6*(1-(1/($A14*V$4))^V$6)+V$3 -> 0.3173608683 | W14: =SQRT(((1+V$6)*V$5*$A14*(V$4*$A14)^(-V$6-1))^2*V$7+((1+V$6)/V$6*(1-(1/($A14*V$4))^V$6))^2*V$8+((1+V$6)*V$5*((V$4*$A14)^(-V$6)/V$6*LN(V$4*$A14)-1/V$6^2*(1-(V$4*$A14)^(-V$6))))^2*V$9) -> 0.02374780579
A16: Dur(min) | B16: z_T | C16: S_T
A17: 1 | B17: =B14 -> 36.0711336 | C17: =C14 -> 3.264572061
A18: 2 | B18: =D14 -> 31.92001151 | C18: =E14 -> 2.682646034
A19: 5 | B19: =F14 -> 24.19146741 | C19: =G14 -> 1.615589639
A20: 10 | B20: =H14 -> 17.78440228 | C20: =I14 -> 1.350287584
A21: 30 | B21: =J14 -> 9.195893362 | C21: =K14 -> 0.8645784332
A22: 60 | B22: =L14 -> 5.664894742 | C22: =M14 -> 0.6306782311
A23: 180 | B23: =N14 -> 2.535211539 | C23: =O14 -> 0.2351960424
A24: 360 | B24: =P14 -> 1.524918782 | C24: =Q14 -> 0.1046197731
A25: 720 | B25: =R14 -> 0.8971199496 | C25: =S14 -> 0.06634352532
A26: 1440 | B26: =T14 -> 0.5292572108 | C26: =U14 -> 0.03696115832
A27: 2880 | B27: =V14 -> 0.3173608683 | C27: =W14 -> 0.02374780579

Sheet help2 (hidden)
A1: CDS characteristics | E1: CDS
A2: Storm duration (h) | C2: =ROUND(Beregn!I3,0) -> 240 | D2: =IF(C2<=0,"ERROR"," ") ->  | E2: Time step | F2: Time (h) | G2: Intensity
A3: Time step (h) | C3: =ROUND(Beregn!I4,0) -> 1 | D3: =IF(C2>0,IF(OR(C3<=0,C3>C2),"ERROR"," ")," ") ->  | E3: =-INT($C$2*$C$4/$C$3) -> -120 | F3: =E3*$C$3 -> -120 | G3: =IF(E3<0,$C$7*((($C$4+ABS(E3))/$C$4*$C$3+$C$8)^(-$C$9)*($C$4+ABS(E3))-(($C$4+ABS(E3)-1)/$C$4*$C$3+$C$8)^(-$C$9)*($C$4+ABS(E3)-1)),IF(AND(E3>0,E3<$C$2*(1-$C$4)/$C$3),$C$7*(((1-$C$4+E3)/(1-$C$4)*$C$3+$C$8)^(-$C$9)*(1-$C$4+E3)-((1-$C$4+E3-1)/(1-$C$4)*$C$3+$C$8)^(-$C$9)*(1-$C$4+E3-1)),IF(E3=0,$C$7*($C$3+$C$8)^(-$C$9)," "))) -> 0.5190645357
A4: Storm adv. Coef. | C4: =Beregn!I5 -> 0.5 | D4: =IF(OR(C4<0,C4>1),"ERROR"," ") ->  | E4: =E3+1 -> -119 | F4: -119 | G4: =IF(E4<0,$C$7*((($C$4+ABS(E4))/$C$4*$C$3+$C$8)^(-$C$9)*($C$4+ABS(E4))-(($C$4+ABS(E4)-1)/$C$4*$C$3+$C$8)^(-$C$9)*($C$4+ABS(E4)-1)),IF(AND(E4>0,E4<$C$2*(1-$C$4)/$C$3),$C$7*(((1-$C$4+E4)/(1-$C$4)*$C$3+$C$8)^(-$C$9)*(1-$C$4+E4)-((1-$C$4+E4-1)/(1-$C$4)*$C$3+$C$8)^(-$C$9)*(1-$C$4+E4-1)),IF(E4=0,$C$7*($C$3+$C$8)^(-$C$9)," "))) -> 0.5225785162
E5: -118 | F5: -118 | G5: 0.5261476548
A6: IDF characteristics | E6: -117 | F6: -117 | G6: 0.529773314
A7: Alpha | C7: =Beregn!U4 -> 137.3108733 | D7: =IF(C7<=0,"ERROR"," ") ->  | E7: -116 | F7: -116 | G7: 0.5334569025
A8: Theta | C8: =Beregn!U5 -> 4.743348089 | D8: =IF(C8<0,"ERROR"," ") ->  | E8: -115 | F8: -115 | G8: 0.5371998772
A9: Nu | C9: =Beregn!U7 -> 0.763228732 | D9: =IF(OR(C9<=0,C9>=1),"ERROR"," ") ->  | E9: -114 | F9: -114 | G9: 0.5410037448
E10: -113 | F10: -113 | G10: 0.5448700647
E11: -112 | F11: -112 | G11: 0.5488004507
E12: -111 | F12: -111 | G12: 0.5527965738
E13: -110 | F13: -110 | G13: 0.5568601646
E14: -109 | F14: -109 | G14: 0.560993016
E15: -108 | F15: -108 | G15: 0.5651969863
E16: -107 | F16: -107 | G16: 0.5694740018
E17: -106 | F17: -106 | G17: 0.5738260605
E18: -105 | F18: -105 | G18: 0.5782552349
E19: -104 | F19: -104 | G19: 0.5827636762
E20: -103 | F20: -103 | G20: 0.5873536175
E21: -102 | F21: -102 | G21: 0.592027378
E22: -101 | F22: -101 | G22: 0.5967873675
E23: -100 | F23: -100 | G23: 0.6016360904
E24: -99 | F24: -99 | G24: 0.6065761509
E25: -98 | F25: -98 | G25: 0.6116102577
E26: -97 | F26: -97 | G26: 0.6167412294
E27: -96 | F27: -96 | G27: 0.6219720006
E28: -95 | F28: -95 | G28: 0.6273056274
E29: -94 | F29: -94 | G29: 0.632745294
E30: -93 | F30: -93 | G30: 0.6382943198
E31: -92 | F31: -92 | G31: 0.6439561664
E32: -91 | F32: -91 | G32: 0.6497344453
E33: -90 | F33: -90 | G33: 0.6556329268
E34: -89 | F34: -89 | G34: 0.6616555478
E35: -88 | F35: -88 | G35: 0.6678064224
E36: -87 | F36: -87 | G36: 0.674089851
E37: -86 | F37: -86 | G37: 0.6805103318
E38: -85 | F38: -85 | G38: 0.687072572
E39: -84 | F39: -84 | G39: 0.6937815003
E40: -83 | F40: -83 | G40: 0.7006422802
E41: -82 | F41: -82 | G41: 0.7076603241
E42: -81 | F42: -81 | G42: 0.7148413089
E43: -80 | F43: -80 | G43: 0.7221911922
E44: -79 | F44: -79 | G44: 0.7297162299
E45: -78 | F45: -78 | G45: 0.7374229958
E46: -77 | F46: -77 | G46: 0.7453184014
E47: -76 | F47: -76 | G47: 0.7534097188
E48: -75 | F48: -75 | G48: 0.7617046041
E49: -74 | F49: -74 | G49: 0.7702111235
E50: -73 | F50: -73 | G50: 0.7789377813
E51: -72 | F51: -72 | G51: 0.7878935504
E52: -71 | F52: -71 | G52: 0.7970879048
E53: -70 | F53: -70 | G53: 0.8065308558
E54: -69 | F54: -69 | G54: 0.8162329906
E55: -68 | F55: -68 | G55: 0.8262055146
E56: -67 | F56: -67 | G56: 0.8364602974
E57: -66 | F57: -66 | G57: 0.8470099232
E58: -65 | F58: -65 | G58: 0.8578677456
E59: -64 | F59: -64 | G59: 0.8690479478
E60: -63 | F60: -63 | G60: 0.880565608
E61: -62 | F61: -62 | G61: 0.892436772
E62: -61 | F62: -61 | G62: 0.9046785321
E63: -60 | F63: -60 | G63: 0.9173091147
E64: -59 | F64: -59 | G64: 0.9303479756
E65: -58 | F65: -58 | G65: 0.9438159071
E66: -57 | F66: -57 | G66: 0.9577351541
E67: -56 | F67: =E67*$C$3 -> -56 | G67: 0.9721295446
E68: =E67+1 -> -55 | F68: -55 | G68: =IF(E68<0,$C$7*((($C$4+ABS(E68))/$C$4*$C$3+$C$8)^(-$C$9)*($C$4+ABS(E68))-(($C$4+ABS(E68)-1)/$C$4*$C$3+$C$8)^(-$C$9)*($C$4+ABS(E68)-1)),IF(AND(E68>0,E68<$C$2*(1-$C$4)/$C$3),$C$7*(((1-$C$4+E68)/(1-$C$4)*$C$3+$C$8)^(-$C$9)*(1-$C$4+E68)-((1-$C$4+E68-1)/(1-$C$4)*$C$3+$C$8)^(-$C$9)*(1-$C$4+E68-1)),IF(E68=0,$C$7*($C$3+$C$8)^(-$C$9)," "))) -> 0.9870246333
E69: -54 | F69: -54 | G69: 1.002447862
E70: -53 | F70: -53 | G70: 1.018428736
E71: -52 | F71: -52 | G71: 1.034999026
E72: -51 | F72: -51 | G72: 1.052192986
E73: -50 | F73: -50 | G73: 1.070047607
E74: -49 | F74: -49 | G74: 1.088602891
E75: -48 | F75: -48 | G75: 1.107902168
E76: -47 | F76: -47 | G76: 1.12799245
E77: -46 | F77: -46 | G77: 1.148924833
E78: -45 | F78: -45 | G78: 1.170754946
E79: -44 | F79: -44 | G79: 1.193543473
E80: -43 | F80: -43 | G80: 1.217356737
E81: -42 | F81: -42 | G81: 1.242267371
E82: -41 | F82: -41 | G82: 1.268355091
E83: -40 | F83: -40 | G83: 1.295707581
E84: -39 | F84: -39 | G84: 1.324421512
E85: -38 | F85: -38 | G85: 1.354603725
E86: -37 | F86: -37 | G86: 1.386372607
E87: -36 | F87: -36 | G87: 1.419859691
E88: -35 | F88: -35 | G88: 1.45521153
E89: -34 | F89: -34 | G89: 1.492591905
E90: -33 | F90: -33 | G90: 1.53218443
E91: -32 | F91: -32 | G91: 1.574195636
E92: -31 | F92: -31 | G92: 1.61885866
E93: -30 | F93: -30 | G93: 1.666437658
E94: -29 | F94: -29 | G94: 1.717233123
E95: -28 | F95: -28 | G95: 1.771588335
E96: -27 | F96: -27 | G96: 1.829897226
E97: -26 | F97: -26 | G97: 1.892614033
E98: -25 | F98: -25 | G98: 1.960265241
E99: -24 | F99: -24 | G99: 2.033464451
E100: -23 | F100: -23 | G100: 2.112931066
E101: -22 | F101: -22 | G101: 2.199513953
E102: -21 | F102: -21 | G102: 2.29422171
E103: -20 | F103: -20 | G103: 2.398261768
E104: -19 | F104: -19 | G104: 2.513091461
E105: -18 | F105: -18 | G105: 2.640485539
E106: -17 | F106: -17 | G106: 2.782626585
E107: -16 | F107: -16 | G107: 2.942227869
E108: -15 | F108: -15 | G108: 3.122702903
E109: -14 | F109: -14 | G109: 3.328403621
E110: -13 | F110: -13 | G110: 3.564961495
E111: -12 | F111: -12 | G111: 3.839786887
E112: -11 | F112: -11 | G112: 4.162818227
E113: -10 | F113: -10 | G113: 4.547677925
E114: -9 | F114: -9 | G114: 5.013514088
E115: -8 | F115: -8 | G115: 5.588046355
E116: -7 | F116: -7 | G116: 6.312828657
E117: -6 | F117: -6 | G117: 7.252830174
E118: -5 | F118: -5 | G118: 8.515020865
E119: -4 | F119: -4 | G119: 10.28738707
E120: -3 | F120: -3 | G120: 12.92956492
E121: -2 | F121: -2 | G121: 17.21392587
E122: -1 | F122: -1 | G122: 25.10323133
E123: 0 | F123: 0 | G123: 36.16498448
E124: 1 | F124: 1 | G124: 25.10323133
E125: 2 | F125: 2 | G125: 17.21392587
E126: 3 | F126: 3 | G126: 12.92956492
E127: 4 | F127: 4 | G127: 10.28738707
E128: 5 | F128: 5 | G128: 8.515020865
E129: 6 | F129: 6 | G129: 7.252830174
E130: 7 | F130: 7 | G130: 6.312828657
E131: 8 | F131: =E131*$C$3 -> 8 | G131: 5.588046355
E132: =E131+1 -> 9 | F132: 9 | G132: =IF(E132<0,$C$7*((($C$4+ABS(E132))/$C$4*$C$3+$C$8)^(-$C$9)*($C$4+ABS(E132))-(($C$4+ABS(E132)-1)/$C$4*$C$3+$C$8)^(-$C$9)*($C$4+ABS(E132)-1)),IF(AND(E132>0,E132<$C$2*(1-$C$4)/$C$3),$C$7*(((1-$C$4+E132)/(1-$C$4)*$C$3+$C$8)^(-$C$9)*(1-$C$4+E132)-((1-$C$4+E132-1)/(1-$C$4)*$C$3+$C$8)^(-$C$9)*(1-$C$4+E132-1)),IF(E132=0,$C$7*($C$3+$C$8)^(-$C$9)," "))) -> 5.013514088
E133: 10 | F133: 10 | G133: 4.547677925
E134: 11 | F134: 11 | G134: 4.162818227
E135: 12 | F135: 12 | G135: 3.839786887
E136: 13 | F136: 13 | G136: 3.564961495
E137: 14 | F137: 14 | G137: 3.328403621
E138: 15 | F138: 15 | G138: 3.122702903
E139: 16 | F139: 16 | G139: 2.942227869
E140: 17 | F140: 17 | G140: 2.782626585
E141: 18 | F141: 18 | G141: 2.640485539
E142: 19 | F142: 19 | G142: 2.513091461
E143: 20 | F143: 20 | G143: 2.398261768
E144: 21 | F144: 21 | G144: 2.29422171
E145: 22 | F145: 22 | G145: 2.199513953
E146: 23 | F146: 23 | G146: 2.112931066
E147: 24 | F147: 24 | G147: 2.033464451
E148: 25 | F148: 25 | G148: 1.960265241
E149: 26 | F149: 26 | G149: 1.892614033
E150: 27 | F150: 27 | G150: 1.829897226
E151: 28 | F151: 28 | G151: 1.771588335
E152: 29 | F152: 29 | G152: 1.717233123
E153: 30 | F153: 30 | G153: 1.666437658
E154: 31 | F154: 31 | G154: 1.61885866
E155: 32 | F155: 32 | G155: 1.574195636
E156: 33 | F156: 33 | G156: 1.53218443
E157: 34 | F157: 34 | G157: 1.492591905
E158: 35 | F158: 35 | G158: 1.45521153
E159: 36 | F159: 36 | G159: 1.419859691
E160: 37 | F160: 37 | G160: 1.386372607
E161: 38 | F161: 38 | G161: 1.354603725
E162: 39 | F162: 39 | G162: 1.324421512
E163: 40 | F163: 40 | G163: 1.295707581
E164: 41 | F164: 41 | G164: 1.268355091
E165: 42 | F165: 42 | G165: 1.242267371
E166: 43 | F166: 43 | G166: 1.217356737
E167: 44 | F167: 44 | G167: 1.193543473
E168: 45 | F168: 45 | G168: 1.170754946
E169: 46 | F169: 46 | G169: 1.148924833
E170: 47 | F170: 47 | G170: 1.12799245
E171: 48 | F171: 48 | G171: 1.107902168
E172: 49 | F172: 49 | G172: 1.088602891
E173: 50 | F173: 50 | G173: 1.070047607
E174: 51 | F174: 51 | G174: 1.052192986
E175: 52 | F175: 52 | G175: 1.034999026
E176: 53 | F176: 53 | G176: 1.018428736
E177: 54 | F177: 54 | G177: 1.002447862
E178: 55 | F178: 55 | G178: 0.9870246333
E179: 56 | F179: 56 | G179: 0.9721295446
E180: 57 | F180: 57 | G180: 0.9577351541
E181: 58 | F181: 58 | G181: 0.9438159071
E182: 59 | F182: 59 | G182: 0.9303479756
E183: 60 | F183: 60 | G183: 0.9173091147
E184: 61 | F184: 61 | G184: 0.9046785321
E185: 62 | F185: 62 | G185: 0.892436772
E186: 63 | F186: 63 | G186: 0.880565608
E187: 64 | F187: 64 | G187: 0.8690479478
E188: 65 | F188: 65 | G188: 0.8578677456
E189: 66 | F189: 66 | G189: 0.8470099232
E190: 67 | F190: 67 | G190: 0.8364602974
E191: 68 | F191: 68 | G191: 0.8262055146
E192: 69 | F192: 69 | G192: 0.8162329906
E193: 70 | F193: 70 | G193: 0.8065308558
E194: 71 | F194: 71 | G194: 0.7970879048
E195: 72 | F195: =E195*$C$3 -> 72 | G195: 0.7878935504
E196: =E195+1 -> 73 | F196: 73 | G196: =IF(E196<0,$C$7*((($C$4+ABS(E196))/$C$4*$C$3+$C$8)^(-$C$9)*($C$4+ABS(E196))-(($C$4+ABS(E196)-1)/$C$4*$C$3+$C$8)^(-$C$9)*($C$4+ABS(E196)-1)),IF(AND(E196>0,E196<$C$2*(1-$C$4)/$C$3),$C$7*(((1-$C$4+E196)/(1-$C$4)*$C$3+$C$8)^(-$C$9)*(1-$C$4+E196)-((1-$C$4+E196-1)/(1-$C$4)*$C$3+$C$8)^(-$C$9)*(1-$C$4+E196-1)),IF(E196=0,$C$7*($C$3+$C$8)^(-$C$9)," "))) -> 0.7789377813
E197: 74 | F197: 74 | G197: 0.7702111235
E198: 75 | F198: 75 | G198: 0.7617046041
E199: 76 | F199: 76 | G199: 0.7534097188
E200: 77 | F200: 77 | G200: 0.7453184014
... 2682 more rows

Sheet help3 (hidden)
A1: Variable | C1: bv1 | D1: bv2 | M1: LAMBDA
A3: z0 | C3: =Q4 -> 17 | D3: =Q5 -> 5.4 | M3: Variable | N3: b_0 | O3: b_1 | Q3: z_0 | R3: E(lambda)
A4: lambda | C4: =R4 -> 3.307077939 | D4: =R5 -> 3.625387079 | M4: bv1 | N4: -1.039 | O4: 0.006432 | Q4: 17 | R4: =N4+O4*Beregn!$B$5 -> 3.307077939
A5: mean | C5: =Q10 -> 9.750056459 | D5: =Q11 -> 4.706727942 | M5: bv2 | N5: 2.449 | O5: 0.001741 | Q5: 5.4 | R5: =N5+O5*Beregn!$B$5 -> 3.625387079
A6: kappa | C6: =O17 -> -0.1741829469 | D6: =O18 -> -0.1238273921
M7: MEAN
G9: Incl. koblede regn, s-faktor 1,0 | M9: Variable | N9: b_0 | O9: b_1 | Q9: E(mean)
A10: T = | B10: =Beregn!B8 -> 5 | C10: =C$5*(1+C$6)/C$6*(1-(1/($B10*C$4))^C$6)+C$3 -> 46.12915304 | D10: =D$5*(1+D$6)/D$6*(1-(1/($B10*D$4))^D$6)+D$3 -> 19.77313079 | F10: 0.1 | G10: =C10 -> 46.12915304 | M10: bv1 | N10: -17 | O10: 1.037 | Q10: =N10+O10*Beregn!B6 -> 9.750056459
F11: 1 | G11: =D10 -> 19.77313079 | M11: bv2 | N11: -2.547 | O11: 0.2812 | Q11: =N11+O11*Beregn!B6 -> 4.706727942
M13: L-CV
O15: Kappa
M16: Variable | N16: mean | O16: mean
M17: bv1 | N17: 0.5477 | O17: =1/N17-2 -> -0.1741829469
M18: bv2 | N18: 0.533 | O18: =1/N18-2 -> -0.1238273921
B26: 1 | C26: =C$5*(1+C$6)/C$6*(1-(1/($B26*C$4))^C$6)+C$3 -> 27.70705571 | D26: 11.15842043
B27: 2 | C27: 35.01298879 | D27: 14.65923255
B28: 5 | C28: 46.12915304 | D28: 19.77313079
B29: 10 | C29: 55.79910563 | D29: 24.04600823
B30: 20 | C30: 66.70995692 | D30: 28.70182837
B31: 50 | C31: 83.31109654 | D31: 35.50293329
B32: 100 | C32: 97.75242985 | D32: 41.18554298

Sheet SVK stationer
A1: Station No. | B1: Name | C1: Northing | D1: Easting | E1: (WGS84 ZONE 32)
A2: 20097 | B2: Frederikshavn Materielgård | C2: 6368352.3 | D2: 589564.2
A3: 20099 | B3: Frederikshavn Centralrenseanlæg | C3: 6365840.3 | D3: 591625.2
A4: 20211 | B4: Sulsted | C4: 6336906.4 | D4: 557765.5
A5: 20212 | B5: Vodskov | C5: 6328973.5 | D5: 562046.5
A6: 20298 | B6: Gistrup | C6: 6317423.5 | D6: 560706.6
A7: 20304 | B7: Aalborg Østerport Pumpestation | C7: 6322922.5 | D7: 557583.6
A8: 20307 | B8: Aalborg Renseanlæg Vest | C8: 6323092.5 | D8: 552478.6
A9: 20309 | B9: Nørresundby Søvangen Pumpestation | C9: 6324522.5 | D9: 555263.6
A10: 20456 | B10: Frejlev Syd Lannerparken | C10: 6317776.5 | D10: 549415.6
A11: 20458 | B11: Frejlev Nord Verdisvej | C11: 6318782.5 | D11: 549808.6
A12: 20461 | B12: Svenstrup J. | C12: 6315042.5 | D12: 550778.6
A13: 21192 | B13: Skive Renseanlæg | C13: 6268932.7 | D13: 502699.1
A14: 21207 | B14: Skive Lufthavn | C14: 6267742.7 | D14: 510142
A15: 22123 | B15: Grenaå Ådalen P40 | C15: 6253558.1 | D15: 617298.4
A16: 22321 | B16: Egå Renseanlæg | C16: 6230496.1 | D16: 577190.7
A17: 22361 | B17: Viby J. Renseanlæg | C17: 6220681.2 | D17: 571098.8
A18: 22421 | B18: Silkeborg Vandværk | C18: 6224068 | D18: 534704
A19: 22554 | B19: Trankær Renseanlæg | C19: 6215761.2 | D19: 570630.8
A20: 23127 | B20: Horsens Centralrenseanlæg | C20: 6190188.3 | D20: 553589
A21: 23261 | B21: Vejle Centralrenseanlæg | C21: 6173068.4 | D21: 533875.1
A22: 23294 | B22: Fredericia Centralrenseanlæg | C22: 6156433.5 | D22: 545527.1
A23: 23321 | B23: Kolding Forrenseanlæg | C23: 6149145.5 | D23: 530709.2
A24: 23345 | B24: Vamdrup Flyveplads | C24: 6143760 | D24: 521130
A25: 24292 | B25: Herning Centralrenseanlæg | C25: 6222387.9 | D25: 496400.2
A26: 25171 | B26: Esbjerg Renseanlæg V | C26: 6149223.3 | D26: 463949.7
A27: 26091 | B27: Haderslev Renseanlæg | C27: 6122623.7 | D27: 532139.3
A28: 26376 | B28: Tønder Centralrenseanlæg | C28: 6086068.8 | D28: 490654.7
A29: 26481 | B29: Sønderborg Damgade Pumpestation | C29: 6086668 | D29: 551486.3
A30: 28181 | B30: Bolbro Højdebeholder | C30: 6139143.7 | D30: 584148.9
A31: 28182 | B31: Dalum Vandværk | C31: 6135398.8 | D31: 587102.9
A32: 28183 | B32: Ejby Mølle Renseanlæg | C32: 6140043.7 | D32: 589913.9
A33: 28184 | B33: Odense NV Renseanlæg | C33: 6142453.7 | D33: 586478.9
A34: 28186 | B34: Odense Vandværk | C34: 6139402.7 | D34: 586880.9
A35: 28453 | B35: Svendborg Centralrenseanlæg | C35: 6102984 | D35: 607488.9
A36: 28461 | B36: Svendborg Vandværksvej | C36: 6102919 | D36: 601533.9
A37: 28503 | B37: Ærøskøbing Renseanlæg | C37: 6082688.1 | D37: 590677
A38: 29009 | B38: Gniben | C38: 6209353.4 | D38: 642058.4
A39: 29041 | B39: Holbæk Centralrenseanlæg | C39: 6178243.7 | D39: 671258.3
A40: 29122 | B40: Sønder Nyrup Renseanlæg | C40: 6173740.6 | D40: 628774.5
A41: 29142 | B41: Kalundborg Renseanlæg | C41: 6170978.7 | D41: 632348.5
A42: 29354 | B42: Slagelse Centralrenseanlæg | C42: 6143700.9 | D42: 648246.5
A43: 29429 | B43: Omø Fyr | C43: 6114654 | D43: 635958.7
A44: 30031 | B44: Sydkystens Renseanlæg | C44: 6211155.9 | D44: 721870.1
A45: 30131 | B45: Frederikssund Centralrenseanlæg | C45: 6191483.6 | D45: 692125.3
A46: 30168 | B46: Hillerød Centralrenseanlæg | C46: 6204686.4 | D46: 704236.4
A47: 30191 | B47: Furesø Park | C47: 6189622.5 | D47: 715342.8
A48: 30201 | B48: Vedbæk Renseanlæg | C48: 6194851.9 | D48: 722834.5
A49: 30208 | B49: Ordrup Kirkegård | C49: 6185793.9 | D49: 724242.8
A50: 30211 | B50: Svanemøllens Kaserne | C50: 6180448 | D50: 724079.3
A51: 30218 | B51: Stades Krog Overløbsbassin | C51: 6186406.4 | D51: 719641.2
A52: 30221 | B52: Virum | C52: 6187073.6 | D52: 718975.8
A53: 30222 | B53: Søborg Vandværk | C53: 6181402.8 | D53: 721023.4
A54: 30242 | B54: Stavnsholt Resnseanlæg | C54: 6190505.4 | D54: 713404.6
A55: 30309 | B55: Åvendingen | C55: 6178374.5 | D55: 717712.8
A56: 30311 | B56: Emdrup | C56: 6180425.3 | D56: 722776
A57: 30312 | B57: Vølundsgade | C57: 6178508.4 | D57: 723133.1
A58: 30313 | B58: Kløvermarksvej | C58: 6175223.7 | D58: 726590.9
A59: 30314 | B59: Kongens Enghave | C59: 6172102.5 | D59: 722323.1
A60: 30315 | B60: Husum | C60: 6179275.9 | D60: 717514.1
A61: 30316 | B61: Måløv Renseanlæg | C61: 6184284.2 | D61: 708184.1
A62: 30317 | B62: Glostrup Genbrugsstation | C62: 6174858.3 | D62: 715025.8
A63: 30318 | B63: Hvidovre Vandværk | C63: 6171690.1 | D63: 718493.3
A64: 30319 | B64: Hvidovre Pumpestation | C64: 6169040.8 | D64: 718913.7
A65: 30321 | B65: Rødovre Vandværk | C65: 6177447.8 | D65: 717736
A66: 30325 | B66: Bispebjerg Hospital | C66: 6180238.8 | D66: 722536.1
A67: 30326 | B67: Lygten | C67: 6178995.7 | D67: 722327.7
A68: 30348 | B68: Wibrandtsvej | C68: 6172885.1 | D68: 728571
A69: 30351 | B69: Tårnby Pumpestation 4 | C69: 6171027.9 | D69: 726328.1
A70: 30352 | B70: Tårnby Pumpestation 10 | C70: 6167768.1 | D70: 725672.9
A71: 30353 | B71: Tårnby Renseanlæg | C71: 6171907.6 | D71: 729885.8
A72: 30381 | B72: Landbohøjskolen | C72: 6176849.8 | D72: 722764.9
A73: 30384 | B73: Brøndbyvester Vandværk | C73: 6171328.4 | D73: 714900.2
A74: 30386 | B74: Albertslund Materielgård | C74: 6173719.4 | D74: 710054.6
A75: 30388 | B75: Høje Tåstrup | C75: 6173114.1 | D75: 704926.8
A76: 30395 | B76: Ishøj Varmeværk | C76: 6167191.6 | D76: 710956.8
A77: 30411 | B77: Roskilde Renseanlæg | C77: 6171355.1 | D77: 692385.8
A78: 30451 | B78: Mosede Renseanlæg | C78: 6163374.7 | D78: 706565
A79: 31031 | B79: Store Heddinge Vandværk | C79: 6135000.8 | D79: 715202.2
A80: 31151 | B80: Næstved Centralrenseanlæg | C80: 6121674.1 | D80: 673598.4
A81: 31231 | B81: Vordingborg Renseanlæg | C81: 6098964.3 | D81: 684908.4
A82: 31401 | B82: Nakskov Renseanlæg | C82: 6077346.3 | D82: 636067.8
A83: 31511 | B83: Nykøbing F Renseanlæg | C83: 6073444.4 | D83: 685278.5
A84: 32097 | B84: Rønne C | C84: 6121110.1 | D84: 864080.3

Sheet DK-koordinater (hidden)
A3: x | B3: y
A4: 628557 | B4: 6027669
A5: 629562 | B5: 6027852
A6: 630965 | B6: 6027582
A7: 629549 | B7: 6027356
A8: 628557 | B8: 6027669
A10: 650082 | B10: 6031417
A11: 638840 | B11: 6030876
A12: 637848 | B12: 6030878
A13: 631073 | B13: 6034220
A14: 630266 | B14: 6035139
A15: 630044 | B15: 6036292
A16: 630325 | B16: 6038450
A17: 630748 | B17: 6040009
A18: 631361 | B18: 6041557
A19: 632296 | B19: 6043115
A20: 633726 | B20: 6044966
A21: 641369 | B21: 6043573
A22: 644539 | B22: 6041786
A23: 645316 | B23: 6040852
A24: 647398 | B24: 6036943
A25: 649358 | B25: 6033141
A26: 650082 | B26: 6031417
A28: 472280 | B28: 6060086
A29: 471866 | B29: 6059734
A30: 467014 | B30: 6059921
A31: 466370 | B31: 6060080
A32: 461235 | B32: 6062709
A33: 461999 | B33: 6065199
A34: 463036 | B34: 6066257
A35: 464257 | B35: 6066927
A36: 465351 | B36: 6067320
A37: 470306 | B37: 6067656
A38: 471109 | B38: 6067496
A39: 472305 | B39: 6067087
A40: 473293 | B40: 6066439
A41: 473903 | B41: 6063693
A42: 472280 | B42: 6060086
A44: 661472 | B44: 6078739
A45: 664750 | B45: 6077991
A46: 669529 | B46: 6084389
A47: 669516 | B47: 6087350
A48: 670346 | B48: 6087328
A49: 673781 | B49: 6084272
A50: 675579 | B50: 6082083
A51: 683157 | B51: 6072684
A52: 684209 | B52: 6070127
A53: 684169 | B53: 6063641
A54: 683404 | B54: 6061723
A55: 682779 | B55: 6060769
A56: 679414 | B56: 6058329
A57: 676561 | B57: 6058758
A58: 675640 | B58: 6059372
A59: 673775 | B59: 6059795
A60: 670307 | B60: 6060437
A61: 666631 | B61: 6060409
A62: 662776 | B62: 6057870
A63: 659434 | B63: 6055462
A64: 658503 | B64: 6055260
A65: 653386 | B65: 6058069
A66: 651602 | B66: 6059370
A67: 649284 | B67: 6061149
A68: 646797 | B68: 6063759
A69: 645750 | B69: 6064561
A70: 644678 | B70: 6065021
A71: 641069 | B71: 6066454
A72: 638062 | B72: 6067628
A73: 636835 | B73: 6067962
A74: 635129 | B74: 6068158
A75: 630557 | B75: 6069678
A76: 629950 | B76: 6070264
A77: 628164 | B77: 6072687
A78: 627943 | B78: 6073333
A79: 630142 | B79: 6076022
A80: 629167 | B80: 6084747
A81: 630111 | B81: 6086940
A82: 630878 | B82: 6088137
A83: 631836 | B83: 6089496
A84: 632688 | B84: 6090170
A85: 635697 | B85: 6091374
A86: 636807 | B86: 6091748
A87: 638594 | B87: 6092112
A88: 640429 | B88: 6092251
A89: 643411 | B89: 6092326
A90: 645732 | B90: 6091565
A91: 646575 | B91: 6090851
A92: 649785 | B92: 6087770
A93: 650654 | B93: 6085525
A94: 651458 | B94: 6084424
A95: 653584 | B95: 6082732
A96: 654604 | B96: 6082148
A97: 661472 | B97: 6078739
A99: 592010 | B99: 6078112
A100: 590414 | B100: 6075823
A101: 589908 | B101: 6076122
A102: 579869 | B102: 6085038
A103: 576253 | B103: 6090772
A104: 575960 | B104: 6092591
A105: 582363 | B105: 6088437
A106: 583734 | B106: 6087443
A107: 592476 | B107: 6080595
A108: 592010 | B108: 6078112
A110: 694828 | B110: 6087055
A111: 696295 | B111: 6086964
A112: 697663 | B112: 6087303
A113: 698778 | B113: 6087105
A114: 699500 | B114: 6086704
A115: 700096 | B115: 6086142
A116: 701269 | B116: 6084677
A117: 703446 | B117: 6081331
A118: 702859 | B118: 6080291
A119: 700490 | B119: 6077709
A120: 699720 | B120: 6076931
A121: 698554 | B121: 6076199
A122: 697718 | B122: 6075481
A123: 696503 | B123: 6074004
A124: 692057 | B124: 6066631
A125: 691357 | B125: 6065395
A126: 690945 | B126: 6063272
A127: 690811 | B127: 6061348
A128: 690973 | B128: 6059622
A129: 691255 | B129: 6057621
A130: 691655 | B130: 6055380
A131: 692192 | B131: 6052895
A132: 692567 | B132: 6051046
A133: 691816 | B133: 6050093
A134: 690362 | B134: 6050652
A135: 689136 | B135: 6051374
A136: 685277 | B136: 6059787
A137: 685152 | B137: 6061547
A138: 685488 | B138: 6063850
A139: 686339 | B139: 6065371
A140: 686724 | B140: 6067336
A141: 683700 | B141: 6073402
A142: 679928 | B142: 6080492
A143: 679315 | B143: 6081086
A144: 678601 | B144: 6081522
A145: 676756 | B145: 6082346
A146: 673657 | B146: 6091385
A147: 674951 | B147: 6093137
A148: 675843 | B148: 6093791
A149: 677142 | B149: 6094028
A150: 682270 | B150: 6093615
A151: 682527 | B151: 6093478
A152: 683485 | B152: 6092712
A153: 692138 | B153: 6088208
A154: 693652 | B154: 6087438
A155: 694828 | B155: 6087055
A157: 603432 | B157: 6090451
A158: 600258 | B158: 6089915
A159: 599434 | B159: 6090159
A160: 596953 | B160: 6093738
A161: 596048 | B161: 6096571
A162: 603973 | B162: 6100854
A163: 607216 | B163: 6095178
A164: 606869 | B164: 6093524
A165: 603432 | B165: 6090451
A167: 727656 | B167: 6096545
A168: 727100 | B168: 6094783
A169: 726495 | B169: 6094396
A170: 725469 | B170: 6094251
A171: 724242 | B171: 6094530
A172: 722057 | B172: 6095474
A173: 717915 | B173: 6095982
A174: 716191 | B174: 6095899
A175: 715200 | B175: 6095758
A176: 713707 | B176: 6095315
A177: 711986 | B177: 6094211
A178: 709185 | B178: 6090674
A179: 704221 | B179: 6086111
A180: 702924 | B180: 6086361
A181: 702090 | B181: 6086665
A182: 699756 | B182: 6088572
A183: 700674 | B183: 6094170
A184: 703330 | B184: 6097463
A185: 711633 | B185: 6103731
A186: 716971 | B186: 6103678
A187: 720639 | B187: 6103238
A188: 724180 | B188: 6102176
A189: 725943 | B189: 6101080
A190: 727656 | B190: 6096545
A192: 550599 | B192: 6103423
A193: 561969 | B193: 6096410
A194: 563993 | B194: 6093437
A195: 564301 | B195: 6092996
A196: 566822 | B196: 6088504
A197: 568569 | B197: 6083659
A198: 568800 | B198: 6082566
A199: 568614 | B199: 6081280
A200: 563476 | B200: 6079659
A201: 562819 | B201: 6079495
A202: 561393 | B202: 6079415
A203: 559801 | B203: 6079764
A204: 557487 | B204: 6080878
A205: 551569 | B205: 6083897
A206: 550194 | B206: 6085002
A207: 549502 | B207: 6087151
A208: 548555 | B208: 6090757
A209: 548688 | B209: 6092814
A210: 550022 | B210: 6091639
... 852 more rows
